Workbook

Sheet الرئيسية
A1: بسم الله الرحمن الرحيم | D1: ادارة ........... التعليمية | M1: شيت كنترول الصف الثانى
D2: مدرسة ............ التجارية | M2: للعام الدراسى 2017 / 2018
A5: مدير إدارة المدرسة الاستاذ / .................
A6: مدير المدرسة الاستاذ ..... / .............
A7: رئيس الكنترول الاستاذ ..../ ................
A8: مسئول الكنترول الاستاذ .../ .................

Sheet بيانات ادارة
B1: بسم الله الرحمن الرحـــــيم | M1: قم باختيار اول رقم جلوس و عدد الفئة و عدد اللجان فقط
B2: مدرسة .......... التجارية | M2: البيان | O2: صباحى | S2: مسائى | W2: مجموع
B3: طلبة الصف الثانى - شعبة الادارة لعام 2017/2018 | O3: من | P3: الى | Q3: عدد الفئة | R3: عدد اللجان | S3: من | T3: الى | U3: عدد الفئة | V3: عدد اللجان
M4: انتظام - بنات | O4: 701 | P4: =IF(AND(O4>0,Q4>0),O4+Q4-1,"") -> 1006 | Q4: 306 | R4: 14 | S4: 0 | T4: =IF(AND(S4>0,U4>0),S4+U4-1,"") ->  | W4: =SUM(Q4,U4) -> 306
D5: بيانات طالبات شعبة الادارة | M5: خدمات - بنات | O5: 0 | S5: 1051 | T5: 1093 | U5: 43 | V5: 2 | W5: =SUM(Q5,U5) -> 43
B6: م | C6: جلوس | D6: الاســــــــــــم | E6: الفصل | F6: الحالة | G6: الديانة | H6: النوع | I6: الصفة | J6: فترة الامتحان | K6: لجنة | L6: مقر | M6: انتظام - بنين | O6: 0 | S6: 1101 | T6: 1119 | U6: 19 | V6: 1 | W6: 19
B7: 1 | C7: 701 | D7: طالبة ادارة صباحى 1 | E7: 4/2 | H7: بنات | I7: انتظام | J7: صباحى | K7: 1 | L7: 1/3 | M7: خدمات - بنبن | O7: 0 | S7: 1151 | T7: 1160 | U7: 10 | V7: 1 | W7: 10
B8: 2 | C8: 702 | D8: طالبة ادارة صباحى 2 | E8: 1/2 | G8: مسيحية | H8: بنات | I8: انتظام | J8: صباحى | K8: 1 | L8: 1/3 | O8: اجمالى صباحى | Q8: =SUM(Q4:Q7) -> 306 | R8: =SUM(R4:R7) -> 14 | S8: اجمالى مسائى | U8: =SUM(U4:U7) -> 72 | V8: =SUM(V4:V7) -> 4 | W8: 378
B9: 3 | C9: 703 | D9: طالبة ادارة صباحى 3 | E9: 4/2 | H9: بنات | I9: انتظام | J9: صباحى | K9: 1 | L9: 1/3
B10: 4 | C10: 704 | D10: طالبة ادارة صباحى 4 | E10: 4/2 | H10: بنات | I10: انتظام | J10: صباحى | K10: 1 | L10: 1/3 | O10: تعليمات هامة :
B11: 5 | C11: 705 | D11: طالبة ادارة صباحى 5 | E11: 1/2 | H11: بنات | I11: انتظام | J11: صباحى | K11: 1 | L11: 1/3 | O11: 1 - تسجيل الاسماء و الفصل و الحالة و الديانة (المسيحية فقط) النوع و الصفة
B12: 6 | C12: 706 | D12: طالبة ادارة صباحى 6 | E12: 6/2 | H12: بنات | I12: انتظام | J12: صباحى | K12: 1 | L12: 1/3 | O12: 2 - الضغط على الزر ( فرز شامل )
B13: 7 | C13: 707 | D13: طالبة ادارة صباحى 7 | E13: 5/2 | H13: بنات | I13: انتظام | J13: صباحى | K13: 1 | L13: 1/3 | O13: 3 - تسجيل البيانات الخاصة بجدول الفترات
B14: 8 | C14: 708 | D14: طالبة ادارة صباحى 8 | E14: 7/2 | H14: بنات | I14: انتظام | J14: صباحى | K14: 1 | L14: 1/3 | O14: 4 - الضغط على زر ( توزيع الفترات )
B15: 9 | C15: 709 | D15: طالبة ادارة صباحى 9 | E15: 1/2 | H15: بنات | I15: انتظام | J15: صباحى | K15: 1 | L15: 1/3 | O15: 5 - الضغط على زر (توليد ارقام الجلوس)
B16: 10 | C16: 710 | D16: طالبة ادارة صباحى 10 | E16: 1/2 | H16: بنات | I16: انتظام | J16: صباحى | K16: 1 | L16: 1/3 | O16: 6 - الضغط على زر (ترحيل الاسماء الى الشيت )
B17: 11 | C17: 711 | D17: طالبة ادارة صباحى 11 | E17: 1/2 | H17: بنات | I17: انتظام | J17: صباحى | K17: 1 | L17: 1/3 | O17: 7 - الذهاب الى ورقة لجان
B18: 12 | C18: 712 | D18: طالبة ادارة صباحى 12 | E18: 3/2 | H18: بنات | I18: انتظام | J18: صباحى | K18: 1 | L18: 1/3 | O18: 8 - الضغط على زر ( توزيع الاعداد صباحى ) ثم الضغط على زر ( توزيع الاعداد مسائى )
B19: 13 | C19: 713 | D19: طالبة ادارة صباحى 13 | E19: 4/2 | H19: بنات | I19: انتظام | J19: صباحى | K19: 1 | L19: 1/3 | O19: 9 - العودة الى ورقة بيانات الطالبات ثم الضغط على زر (توزيع اللجان على الطالبات )
B20: 14 | C20: 714 | D20: طالبة ادارة صباحى 14 | E20: 6/2 | H20: بنات | I20: انتظام | J20: صباحى | K20: 1 | L20: 1/3 | O20: و اخيرا لا يمكن عمل كشوف اللجان بورقة اللجان قبل اجراء الخطوات السابقة
B21: 15 | C21: 715 | D21: طالبة ادارة صباحى 15 | E21: 4/2 | H21: بنات | I21: انتظام | J21: صباحى | K21: 1 | L21: 1/3
B22: 16 | C22: 716 | D22: طالبة ادارة صباحى 16 | E22: 3/2 | H22: بنات | I22: انتظام | J22: صباحى | K22: 1 | L22: 1/3
B23: 17 | C23: 717 | D23: طالبة ادارة صباحى 17 | E23: 4/2 | H23: بنات | I23: انتظام | J23: صباحى | K23: 1 | L23: 1/3
B24: 18 | C24: 718 | D24: طالبة ادارة صباحى 18 | E24: 1/2 | H24: بنات | I24: انتظام | J24: صباحى | K24: 1 | L24: 1/3
B25: 19 | C25: 719 | D25: طالبة ادارة صباحى 19 | E25: 5/2 | H25: بنات | I25: انتظام | J25: صباحى | K25: 1 | L25: 1/3
B26: 20 | C26: 720 | D26: طالبة ادارة صباحى 20 | E26: 3/2 | H26: بنات | I26: انتظام | J26: صباحى | K26: 1 | L26: 1/3
B27: 21 | C27: 721 | D27: طالبة ادارة صباحى 21 | E27: 4/2 | H27: بنات | I27: انتظام | J27: صباحى | K27: 1 | L27: 1/3
B28: 22 | C28: 722 | D28: طالبة ادارة صباحى 22 | E28: 6/2 | H28: بنات | I28: انتظام | J28: صباحى | K28: 1 | L28: 1/3
B29: 23 | C29: 723 | D29: طالبة ادارة صباحى 23 | E29: 7/2 | H29: بنات | I29: انتظام | J29: صباحى | K29: 2 | L29: 2/3
B30: 24 | C30: 724 | D30: طالبة ادارة صباحى 24 | E30: 2/2 | H30: بنات | I30: انتظام | J30: صباحى | K30: 2 | L30: 2/3
B31: 25 | C31: 725 | D31: طالبة ادارة صباحى 25 | E31: 6/2 | H31: بنات | I31: انتظام | J31: صباحى | K31: 2 | L31: 2/3
B32: 26 | C32: 726 | D32: طالبة ادارة صباحى 26 | E32: 7/2 | H32: بنات | I32: انتظام | J32: صباحى | K32: 2 | L32: 2/3
B33: 27 | C33: 727 | D33: طالبة ادارة صباحى 27 | E33: 3/2 | H33: بنات | I33: انتظام | J33: صباحى | K33: 2 | L33: 2/3
B34: 28 | C34: 728 | D34: طالبة ادارة صباحى 28 | E34: 1/2 | H34: بنات | I34: انتظام | J34: صباحى | K34: 2 | L34: 2/3
B35: 29 | C35: 729 | D35: طالبة ادارة صباحى 29 | E35: 2/2 | H35: بنات | I35: انتظام | J35: صباحى | K35: 2 | L35: 2/3
B36: 30 | C36: 730 | D36: طالبة ادارة صباحى 30 | E36: 2/2 | H36: بنات | I36: انتظام | J36: صباحى | K36: 2 | L36: 2/3
B37: 31 | C37: 731 | D37: طالبة ادارة صباحى 31 | E37: 5/2 | H37: بنات | I37: انتظام | J37: صباحى | K37: 2 | L37: 2/3
B38: 32 | C38: 732 | D38: طالبة ادارة صباحى 32 | E38: 6/2 | H38: بنات | I38: انتظام | J38: صباحى | K38: 2 | L38: 2/3
B39: 33 | C39: 733 | D39: طالبة ادارة صباحى 33 | E39: 4/2 | H39: بنات | I39: انتظام | J39: صباحى | K39: 2 | L39: 2/3
B40: 34 | C40: 734 | D40: طالبة ادارة صباحى 34 | E40: 7/2 | H40: بنات | I40: انتظام | J40: صباحى | K40: 2 | L40: 2/3
B41: 35 | C41: 735 | D41: طالبة ادارة صباحى 35 | E41: 6/2 | H41: بنات | I41: انتظام | J41: صباحى | K41: 2 | L41: 2/3
B42: 36 | C42: 736 | D42: طالبة ادارة صباحى 36 | E42: 2/2 | H42: بنات | I42: انتظام | J42: صباحى | K42: 2 | L42: 2/3
B43: 37 | C43: 737 | D43: طالبة ادارة صباحى 37 | E43: 6/2 | H43: بنات | I43: انتظام | J43: صباحى | K43: 2 | L43: 2/3
B44: 38 | C44: 738 | D44: طالبة ادارة صباحى 38 | E44: 2/2 | H44: بنات | I44: انتظام | J44: صباحى | K44: 2 | L44: 2/3
B45: 39 | C45: 739 | D45: طالبة ادارة صباحى 39 | E45: 7/2 | H45: بنات | I45: انتظام | J45: صباحى | K45: 2 | L45: 2/3
B46: 40 | C46: 740 | D46: طالبة ادارة صباحى 40 | E46: 4/2 | H46: بنات | I46: انتظام | J46: صباحى | K46: 2 | L46: 2/3
B47: 41 | C47: 741 | D47: طالبة ادارة صباحى 41 | E47: 1/2 | H47: بنات | I47: انتظام | J47: صباحى | K47: 2 | L47: 2/3
B48: 42 | C48: 742 | D48: طالبة ادارة صباحى 42 | E48: 4/2 | H48: بنات | I48: انتظام | J48: صباحى | K48: 2 | L48: 2/3
B49: 43 | C49: 743 | D49: طالبة ادارة صباحى 43 | E49: 4/2 | H49: بنات | I49: انتظام | J49: صباحى | K49: 2 | L49: 2/3
B50: 44 | C50: 744 | D50: طالبة ادارة صباحى 44 | E50: 7/2 | H50: بنات | I50: انتظام | J50: صباحى | K50: 2 | L50: 2/3
B51: 45 | C51: 745 | D51: طالبة ادارة صباحى 45 | E51: 4/2 | H51: بنات | I51: انتظام | J51: صباحى | K51: 3 | L51: 3/3
B52: 46 | C52: 746 | D52: طالبة ادارة صباحى 46 | E52: 6/2 | H52: بنات | I52: انتظام | J52: صباحى | K52: 3 | L52: 3/3
B53: 47 | C53: 747 | D53: طالبة ادارة صباحى 47 | E53: 1/2 | G53: مسيحية | H53: بنات | I53: انتظام | J53: صباحى | K53: 3 | L53: 3/3
B54: 48 | C54: 748 | D54: طالبة ادارة صباحى 48 | E54: 5/2 | H54: بنات | I54: انتظام | J54: صباحى | K54: 3 | L54: 3/3
B55: 49 | C55: 749 | D55: طالبة ادارة صباحى 49 | E55: 7/2 | H55: بنات | I55: انتظام | J55: صباحى | K55: 3 | L55: 3/3
B56: 50 | C56: 750 | D56: طالبة ادارة صباحى 50 | E56: 4/2 | H56: بنات | I56: انتظام | J56: صباحى | K56: 3 | L56: 3/3
B57: 51 | C57: 751 | D57: طالبة ادارة صباحى 51 | E57: 4/2 | H57: بنات | I57: انتظام | J57: صباحى | K57: 3 | L57: 3/3
B58: 52 | C58: 752 | D58: طالبة ادارة صباحى 52 | E58: 5/2 | H58: بنات | I58: انتظام | J58: صباحى | K58: 3 | L58: 3/3
B59: 53 | C59: 753 | D59: طالبة ادارة صباحى 53 | E59: 6/2 | H59: بنات | I59: انتظام | J59: صباحى | K59: 3 | L59: 3/3
B60: 54 | C60: 754 | D60: طالبة ادارة صباحى 54 | E60: 2/2 | H60: بنات | I60: انتظام | J60: صباحى | K60: 3 | L60: 3/3
B61: 55 | C61: 755 | D61: طالبة ادارة صباحى 55 | E61: 6/2 | H61: بنات | I61: انتظام | J61: صباحى | K61: 3 | L61: 3/3
B62: 56 | C62: 756 | D62: طالبة ادارة صباحى 56 | E62: 4/2 | H62: بنات | I62: انتظام | J62: صباحى | K62: 3 | L62: 3/3
B63: 57 | C63: 757 | D63: طالبة ادارة صباحى 57 | E63: 5/2 | G63: مسيحية | H63: بنات | I63: انتظام | J63: صباحى | K63: 3 | L63: 3/3
B64: 58 | C64: 758 | D64: طالبة ادارة صباحى 58 | E64: 3/2 | H64: بنات | I64: انتظام | J64: صباحى | K64: 3 | L64: 3/3
B65: 59 | C65: 759 | D65: طالبة ادارة صباحى 59 | E65: 2/2 | H65: بنات | I65: انتظام | J65: صباحى | K65: 3 | L65: 3/3
B66: 60 | C66: 760 | D66: طالبة ادارة صباحى 60 | E66: 1/2 | G66: مسيحية | H66: بنات | I66: انتظام | J66: صباحى | K66: 3 | L66: 3/3
B67: 61 | C67: 761 | D67: طالبة ادارة صباحى 61 | E67: 5/2 | H67: بنات | I67: انتظام | J67: صباحى | K67: 3 | L67: 3/3
B68: 62 | C68: 762 | D68: طالبة ادارة صباحى 62 | E68: 5/2 | G68: مسيحية | H68: بنات | I68: انتظام | J68: صباحى | K68: 3 | L68: 3/3
B69: 63 | C69: 763 | D69: طالبة ادارة صباحى 63 | E69: 7/2 | H69: بنات | I69: انتظام | J69: صباحى | K69: 3 | L69: 3/3
B70: 64 | C70: 764 | D70: طالبة ادارة صباحى 64 | E70: 2/2 | H70: بنات | I70: انتظام | J70: صباحى | K70: 3 | L70: 3/3
B71: 65 | C71: 765 | D71: طالبة ادارة صباحى 65 | E71: 1/2 | H71: بنات | I71: انتظام | J71: صباحى | K71: 3 | L71: 3/3
B72: 66 | C72: 766 | D72: طالبة ادارة صباحى 66 | E72: 4/2 | H72: بنات | I72: انتظام | J72: صباحى | K72: 3 | L72: 3/3
B73: 67 | C73: 767 | D73: طالبة ادارة صباحى 67 | E73: 7/2 | H73: بنات | I73: انتظام | J73: صباحى | K73: 4 | L73: 4/3
B74: 68 | C74: 768 | D74: طالبة ادارة صباحى 68 | E74: 2/2 | H74: بنات | I74: انتظام | J74: صباحى | K74: 4 | L74: 4/3
B75: 69 | C75: 769 | D75: طالبة ادارة صباحى 69 | E75: 6/2 | H75: بنات | I75: انتظام | J75: صباحى | K75: 4 | L75: 4/3
B76: 70 | C76: 770 | D76: طالبة ادارة صباحى 70 | E76: 2/2 | H76: بنات | I76: انتظام | J76: صباحى | K76: 4 | L76: 4/3
B77: 71 | C77: 771 | D77: طالبة ادارة صباحى 71 | E77: 3/2 | H77: بنات | I77: انتظام | J77: صباحى | K77: 4 | L77: 4/3
B78: 72 | C78: 772 | D78: طالبة ادارة صباحى 72 | E78: 3/2 | H78: بنات | I78: انتظام | J78: صباحى | K78: 4 | L78: 4/3
B79: 73 | C79: 773 | D79: طالبة ادارة صباحى 73 | E79: 6/2 | H79: بنات | I79: انتظام | J79: صباحى | K79: 4 | L79: 4/3
B80: 74 | C80: 774 | D80: طالبة ادارة صباحى 74 | E80: 7/2 | H80: بنات | I80: انتظام | J80: صباحى | K80: 4 | L80: 4/3
B81: 75 | C81: 775 | D81: طالبة ادارة صباحى 75 | E81: 4/2 | H81: بنات | I81: انتظام | J81: صباحى | K81: 4 | L81: 4/3
B82: 76 | C82: 776 | D82: طالبة ادارة صباحى 76 | E82: 7/2 | H82: بنات | I82: انتظام | J82: صباحى | K82: 4 | L82: 4/3
B83: 77 | C83: 777 | D83: طالبة ادارة صباحى 77 | E83: 3/2 | H83: بنات | I83: انتظام | J83: صباحى | K83: 4 | L83: 4/3
B84: 78 | C84: 778 | D84: طالبة ادارة صباحى 78 | E84: 7/2 | H84: بنات | I84: انتظام | J84: صباحى | K84: 4 | L84: 4/3
B85: 79 | C85: 779 | D85: طالبة ادارة صباحى 79 | E85: 3/2 | H85: بنات | I85: انتظام | J85: صباحى | K85: 4 | L85: 4/3
B86: 80 | C86: 780 | D86: طالبة ادارة صباحى 80 | E86: 2/2 | H86: بنات | I86: انتظام | J86: صباحى | K86: 4 | L86: 4/3
B87: 81 | C87: 781 | D87: طالبة ادارة صباحى 81 | E87: 2/2 | H87: بنات | I87: انتظام | J87: صباحى | K87: 4 | L87: 4/3
B88: 82 | C88: 782 | D88: طالبة ادارة صباحى 82 | E88: 7/2 | H88: بنات | I88: انتظام | J88: صباحى | K88: 4 | L88: 4/3
B89: 83 | C89: 783 | D89: طالبة ادارة صباحى 83 | E89: 2/2 | H89: بنات | I89: انتظام | J89: صباحى | K89: 4 | L89: 4/3
B90: 84 | C90: 784 | D90: طالبة ادارة صباحى 84 | E90: 3/2 | H90: بنات | I90: انتظام | J90: صباحى | K90: 4 | L90: 4/3
B91: 85 | C91: 785 | D91: طالبة ادارة صباحى 85 | E91: 7/2 | H91: بنات | I91: انتظام | J91: صباحى | K91: 4 | L91: 4/3
B92: 86 | C92: 786 | D92: طالبة ادارة صباحى 86 | E92: 5/2 | H92: بنات | I92: انتظام | J92: صباحى | K92: 4 | L92: 4/3
B93: 87 | C93: 787 | D93: طالبة ادارة صباحى 87 | E93: 4/2 | H93: بنات | I93: انتظام | J93: صباحى | K93: 4 | L93: 4/3
B94: 88 | C94: 788 | D94: طالبة ادارة صباحى 88 | E94: 6/2 | H94: بنات | I94: انتظام | J94: صباحى | K94: 4 | L94: 4/3
B95: 89 | C95: 789 | D95: طالبة ادارة صباحى 89 | E95: 4/2 | H95: بنات | I95: انتظام | J95: صباحى | K95: 5 | L95: 5/3
B96: 90 | C96: 790 | D96: طالبة ادارة صباحى 90 | E96: 6/2 | H96: بنات | I96: انتظام | J96: صباحى | K96: 5 | L96: 5/3
B97: 91 | C97: 791 | D97: طالبة ادارة صباحى 91 | E97: 1/2 | H97: بنات | I97: انتظام | J97: صباحى | K97: 5 | L97: 5/3
B98: 92 | C98: 792 | D98: طالبة ادارة صباحى 92 | E98: 1/2 | H98: بنات | I98: انتظام | J98: صباحى | K98: 5 | L98: 5/3
B99: 93 | C99: 793 | D99: طالبة ادارة صباحى 93 | E99: 1/2 | H99: بنات | I99: انتظام | J99: صباحى | K99: 5 | L99: 5/3
B100: 94 | C100: 794 | D100: طالبة ادارة صباحى 94 | E100: 6/2 | H100: بنات | I100: انتظام | J100: صباحى | K100: 5 | L100: 5/3
B101: 95 | C101: 795 | D101: طالبة ادارة صباحى 95 | E101: 3/2 | H101: بنات | I101: انتظام | J101: صباحى | K101: 5 | L101: 5/3
B102: 96 | C102: 796 | D102: طالبة ادارة صباحى 96 | E102: 1/2 | H102: بنات | I102: انتظام | J102: صباحى | K102: 5 | L102: 5/3
B103: 97 | C103: 797 | D103: طالبة ادارة صباحى 97 | E103: 7/2 | H103: بنات | I103: انتظام | J103: صباحى | K103: 5 | L103: 5/3
B104: 98 | C104: 798 | D104: طالبة ادارة صباحى 98 | E104: 3/2 | H104: بنات | I104: انتظام | J104: صباحى | K104: 5 | L104: 5/3
B105: 99 | C105: 799 | D105: طالبة ادارة صباحى 99 | E105: 3/2 | H105: بنات | I105: انتظام | J105: صباحى | K105: 5 | L105: 5/3
B106: 100 | C106: 800 | D106: طالبة ادارة صباحى 100 | E106: 3/2 | H106: بنات | I106: انتظام | J106: صباحى | K106: 5 | L106: 5/3
B107: 101 | C107: 801 | D107: طالبة ادارة صباحى 101 | E107: 6/2 | H107: بنات | I107: انتظام | J107: صباحى | K107: 5 | L107: 5/3
B108: 102 | C108: 802 | D108: طالبة ادارة صباحى 102 | E108: 2/2 | H108: بنات | I108: انتظام | J108: صباحى | K108: 5 | L108: 5/3
B109: 103 | C109: 803 | D109: طالبة ادارة صباحى 103 | E109: 7/2 | H109: بنات | I109: انتظام | J109: صباحى | K109: 5 | L109: 5/3
B110: 104 | C110: 804 | D110: طالبة ادارة صباحى 104 | E110: 3/2 | H110: بنات | I110: انتظام | J110: صباحى | K110: 5 | L110: 5/3
B111: 105 | C111: 805 | D111: طالبة ادارة صباحى 105 | E111: 1/2 | G111: مسيحية | H111: بنات | I111: انتظام | J111: صباحى | K111: 5 | L111: 5/3
B112: 106 | C112: 806 | D112: طالبة ادارة صباحى 106 | E112: 1/2 | G112: مسيحية | H112: بنات | I112: انتظام | J112: صباحى | K112: 5 | L112: 5/3
B113: 107 | C113: 807 | D113: طالبة ادارة صباحى 107 | E113: 7/2 | H113: بنات | I113: انتظام | J113: صباحى | K113: 5 | L113: 5/3
B114: 108 | C114: 808 | D114: طالبة ادارة صباحى 108 | E114: 4/2 | H114: بنات | I114: انتظام | J114: صباحى | K114: 5 | L114: 5/3
B115: 109 | C115: 809 | D115: طالبة ادارة صباحى 109 | E115: 3/2 | H115: بنات | I115: انتظام | J115: صباحى | K115: 5 | L115: 5/3
B116: 110 | C116: 810 | D116: طالبة ادارة صباحى 110 | E116: 2/2 | H116: بنات | I116: انتظام | J116: صباحى | K116: 5 | L116: 5/3
B117: 111 | C117: 811 | D117: طالبة ادارة صباحى 111 | E117: 1/2 | H117: بنات | I117: انتظام | J117: صباحى | K117: 6 | L117: 1/2
B118: 112 | C118: 812 | D118: طالبة ادارة صباحى 112 | E118: 7/2 | H118: بنات | I118: انتظام | J118: صباحى | K118: 6 | L118: 1/2
B119: 113 | C119: 813 | D119: طالبة ادارة صباحى 113 | E119: 2/2 | H119: بنات | I119: انتظام | J119: صباحى | K119: 6 | L119: 1/2
B120: 114 | C120: 814 | D120: طالبة ادارة صباحى 114 | E120: 1/2 | H120: بنات | I120: انتظام | J120: صباحى | K120: 6 | L120: 1/2
B121: 115 | C121: 815 | D121: طالبة ادارة صباحى 115 | E121: 2/2 | H121: بنات | I121: انتظام | J121: صباحى | K121: 6 | L121: 1/2
B122: 116 | C122: 816 | D122: طالبة ادارة صباحى 116 | E122: 4/2 | H122: بنات | I122: انتظام | J122: صباحى | K122: 6 | L122: 1/2
B123: 117 | C123: 817 | D123: طالبة ادارة صباحى 117 | E123: 3/2 | H123: بنات | I123: انتظام | J123: صباحى | K123: 6 | L123: 1/2
B124: 118 | C124: 818 | D124: طالبة ادارة صباحى 118 | E124: 3/2 | H124: بنات | I124: انتظام | J124: صباحى | K124: 6 | L124: 1/2
B125: 119 | C125: 819 | D125: طالبة ادارة صباحى 119 | E125: 3/2 | H125: بنات | I125: انتظام | J125: صباحى | K125: 6 | L125: 1/2
B126: 120 | C126: 820 | D126: طالبة ادارة صباحى 120 | E126: 2/2 | H126: بنات | I126: انتظام | J126: صباحى | K126: 6 | L126: 1/2
B127: 121 | C127: 821 | D127: طالبة ادارة صباحى 121 | E127: 7/2 | H127: بنات | I127: انتظام | J127: صباحى | K127: 6 | L127: 1/2
B128: 122 | C128: 822 | D128: طالبة ادارة صباحى 122 | E128: 1/2 | H128: بنات | I128: انتظام | J128: صباحى | K128: 6 | L128: 1/2
B129: 123 | C129: 823 | D129: طالبة ادارة صباحى 123 | E129: 3/2 | H129: بنات | I129: انتظام | J129: صباحى | K129: 6 | L129: 1/2
B130: 124 | C130: 824 | D130: طالبة ادارة صباحى 124 | E130: 6/2 | H130: بنات | I130: انتظام | J130: صباحى | K130: 6 | L130: 1/2
B131: 125 | C131: 825 | D131: طالبة ادارة صباحى 125 | E131: 1/2 | G131: مسيحية | H131: بنات | I131: انتظام | J131: صباحى | K131: 6 | L131: 1/2
B132: 126 | C132: 826 | D132: طالبة ادارة صباحى 126 | E132: 1/2 | G132: مسيحية | H132: بنات | I132: انتظام | J132: صباحى | K132: 6 | L132: 1/2
B133: 127 | C133: 827 | D133: طالبة ادارة صباحى 127 | E133: 6/2 | H133: بنات | I133: انتظام | J133: صباحى | K133: 6 | L133: 1/2
B134: 128 | C134: 828 | D134: طالبة ادارة صباحى 128 | E134: 2/2 | H134: بنات | I134: انتظام | J134: صباحى | K134: 6 | L134: 1/2
B135: 129 | C135: 829 | D135: طالبة ادارة صباحى 129 | E135: 3/2 | H135: بنات | I135: انتظام | J135: صباحى | K135: 6 | L135: 1/2
B136: 130 | C136: 830 | D136: طالبة ادارة صباحى 130 | E136: 3/2 | H136: بنات | I136: انتظام | J136: صباحى | K136: 6 | L136: 1/2
B137: 131 | C137: 831 | D137: طالبة ادارة صباحى 131 | E137: 3/2 | H137: بنات | I137: انتظام | J137: صباحى | K137: 6 | L137: 1/2
B138: 132 | C138: 832 | D138: طالبة ادارة صباحى 132 | E138: 1/2 | H138: بنات | I138: انتظام | J138: صباحى | K138: 6 | L138: 1/2
B139: 133 | C139: 833 | D139: طالبة ادارة صباحى 133 | E139: 5/2 | H139: بنات | I139: انتظام | J139: صباحى | K139: 7 | L139: 2/2
B140: 134 | C140: 834 | D140: طالبة ادارة صباحى 134 | E140: 4/2 | H140: بنات | I140: انتظام | J140: صباحى | K140: 7 | L140: 2/2
B141: 135 | C141: 835 | D141: طالبة ادارة صباحى 135 | E141: 3/2 | H141: بنات | I141: انتظام | J141: صباحى | K141: 7 | L141: 2/2
B142: 136 | C142: 836 | D142: طالبة ادارة صباحى 136 | E142: 3/2 | H142: بنات | I142: انتظام | J142: صباحى | K142: 7 | L142: 2/2
B143: 137 | C143: 837 | D143: طالبة ادارة صباحى 137 | E143: 7/2 | H143: بنات | I143: انتظام | J143: صباحى | K143: 7 | L143: 2/2
B144: 138 | C144: 838 | D144: طالبة ادارة صباحى 138 | E144: 6/2 | H144: بنات | I144: انتظام | J144: صباحى | K144: 7 | L144: 2/2
B145: 139 | C145: 839 | D145: طالبة ادارة صباحى 139 | E145: 4/2 | H145: بنات | I145: انتظام | J145: صباحى | K145: 7 | L145: 2/2
B146: 140 | C146: 840 | D146: طالبة ادارة صباحى 140 | E146: 2/2 | H146: بنات | I146: انتظام | J146: صباحى | K146: 7 | L146: 2/2
B147: 141 | C147: 841 | D147: طالبة ادارة صباحى 141 | E147: 5/2 | H147: بنات | I147: انتظام | J147: صباحى | K147: 7 | L147: 2/2
B148: 142 | C148: 842 | D148: طالبة ادارة صباحى 142 | E148: 2/2 | H148: بنات | I148: انتظام | J148: صباحى | K148: 7 | L148: 2/2
B149: 143 | C149: 843 | D149: طالبة ادارة صباحى 143 | E149: 3/2 | H149: بنات | I149: انتظام | J149: صباحى | K149: 7 | L149: 2/2
B150: 144 | C150: 844 | D150: طالبة ادارة صباحى 144 | E150: 4/2 | H150: بنات | I150: انتظام | J150: صباحى | K150: 7 | L150: 2/2
B151: 145 | C151: 845 | D151: طالبة ادارة صباحى 145 | E151: 3/2 | H151: بنات | I151: انتظام | J151: صباحى | K151: 7 | L151: 2/2
B152: 146 | C152: 846 | D152: طالبة ادارة صباحى 146 | E152: 5/2 | H152: بنات | I152: انتظام | J152: صباحى | K152: 7 | L152: 2/2
B153: 147 | C153: 847 | D153: طالبة ادارة صباحى 147 | E153: 5/2 | H153: بنات | I153: انتظام | J153: صباحى | K153: 7 | L153: 2/2
B154: 148 | C154: 848 | D154: طالبة ادارة صباحى 148 | E154: 5/2 | H154: بنات | I154: انتظام | J154: صباحى | K154: 7 | L154: 2/2
B155: 149 | C155: 849 | D155: طالبة ادارة صباحى 149 | E155: 5/2 | H155: بنات | I155: انتظام | J155: صباحى | K155: 7 | L155: 2/2
B156: 150 | C156: 850 | D156: طالبة ادارة صباحى 150 | E156: 5/2 | H156: بنات | I156: انتظام | J156: صباحى | K156: 7 | L156: 2/2
B157: 151 | C157: 851 | D157: طالبة ادارة صباحى 151 | E157: 1/2 | H157: بنات | I157: انتظام | J157: صباحى | K157: 7 | L157: 2/2
B158: 152 | C158: 852 | D158: طالبة ادارة صباحى 152 | E158: 2/2 | H158: بنات | I158: انتظام | J158: صباحى | K158: 7 | L158: 2/2
B159: 153 | C159: 853 | D159: طالبة ادارة صباحى 153 | E159: 3/2 | H159: بنات | I159: انتظام | J159: صباحى | K159: 7 | L159: 2/2
B160: 154 | C160: 854 | D160: طالبة ادارة صباحى 154 | E160: 1/2 | H160: بنات | I160: انتظام | J160: صباحى | K160: 7 | L160: 2/2
B161: 155 | C161: 855 | D161: طالبة ادارة صباحى 155 | E161: 6/2 | H161: بنات | I161: انتظام | J161: صباحى | K161: 8 | L161: 3/2
B162: 156 | C162: 856 | D162: طالبة ادارة صباحى 156 | E162: 1/2 | H162: بنات | I162: انتظام | J162: صباحى | K162: 8 | L162: 3/2
B163: 157 | C163: 857 | D163: طالبة ادارة صباحى 157 | E163: 6/2 | H163: بنات | I163: انتظام | J163: صباحى | K163: 8 | L163: 3/2
B164: 158 | C164: 858 | D164: طالبة ادارة صباحى 158 | E164: 7/2 | H164: بنات | I164: انتظام | J164: صباحى | K164: 8 | L164: 3/2
B165: 159 | C165: 859 | D165: طالبة ادارة صباحى 159 | E165: 6/2 | H165: بنات | I165: انتظام | J165: صباحى | K165: 8 | L165: 3/2
B166: 160 | C166: 860 | D166: طالبة ادارة صباحى 160 | E166: 5/2 | H166: بنات | I166: انتظام | J166: صباحى | K166: 8 | L166: 3/2
B167: 161 | C167: 861 | D167: طالبة ادارة صباحى 161 | E167: 2/2 | H167: بنات | I167: انتظام | J167: صباحى | K167: 8 | L167: 3/2
B168: 162 | C168: 862 | D168: طالبة ادارة صباحى 162 | E168: 4/2 | H168: بنات | I168: انتظام | J168: صباحى | K168: 8 | L168: 3/2
B169: 163 | C169: 863 | D169: طالبة ادارة صباحى 163 | E169: 5/2 | H169: بنات | I169: انتظام | J169: صباحى | K169: 8 | L169: 3/2
B170: 164 | C170: 864 | D170: طالبة ادارة صباحى 164 | E170: 5/2 | H170: بنات | I170: انتظام | J170: صباحى | K170: 8 | L170: 3/2
B171: 165 | C171: 865 | D171: طالبة ادارة صباحى 165 | E171: 1/2 | G171: مسيحية | H171: بنات | I171: انتظام | J171: صباحى | K171: 8 | L171: 3/2
B172: 166 | C172: 866 | D172: طالبة ادارة صباحى 166 | E172: 1/2 | H172: بنات | I172: انتظام | J172: صباحى | K172: 8 | L172: 3/2
B173: 167 | C173: 867 | D173: طالبة ادارة صباحى 167 | E173: 7/2 | H173: بنات | I173: انتظام | J173: صباحى | K173: 8 | L173: 3/2
B174: 168 | C174: 868 | D174: طالبة ادارة صباحى 168 | E174: 4/2 | H174: بنات | I174: انتظام | J174: صباحى | K174: 8 | L174: 3/2
B175: 169 | C175: 869 | D175: طالبة ادارة صباحى 169 | E175: 3/2 | H175: بنات | I175: انتظام | J175: صباحى | K175: 8 | L175: 3/2
B176: 170 | C176: 870 | D176: طالبة ادارة صباحى 170 | E176: 2/2 | H176: بنات | I176: انتظام | J176: صباحى | K176: 8 | L176: 3/2
B177: 171 | C177: 871 | D177: طالبة ادارة صباحى 171 | E177: 6/2 | H177: بنات | I177: انتظام | J177: صباحى | K177: 8 | L177: 3/2
B178: 172 | C178: 872 | D178: طالبة ادارة صباحى 172 | E178: 6/2 | H178: بنات | I178: انتظام | J178: صباحى | K178: 8 | L178: 3/2
B179: 173 | C179: 873 | D179: طالبة ادارة صباحى 173 | E179: 5/2 | H179: بنات | I179: انتظام | J179: صباحى | K179: 8 | L179: 3/2
B180: 174 | C180: 874 | D180: طالبة ادارة صباحى 174 | E180: 5/2 | H180: بنات | I180: انتظام | J180: صباحى | K180: 8 | L180: 3/2
B181: 175 | C181: 875 | D181: طالبة ادارة صباحى 175 | E181: 2/2 | H181: بنات | I181: انتظام | J181: صباحى | K181: 8 | L181: 3/2
B182: 176 | C182: 876 | D182: طالبة ادارة صباحى 176 | E182: 5/2 | H182: بنات | I182: انتظام | J182: صباحى | K182: 8 | L182: 3/2
B183: 177 | C183: 877 | D183: طالبة ادارة صباحى 177 | E183: 4/2 | H183: بنات | I183: انتظام | J183: صباحى | K183: 9 | L183: 4/2
B184: 178 | C184: 878 | D184: طالبة ادارة صباحى 178 | E184: 3/2 | H184: بنات | I184: انتظام | J184: صباحى | K184: 9 | L184: 4/2
B185: 179 | C185: 879 | D185: طالبة ادارة صباحى 179 | E185: 1/2 | H185: بنات | I185: انتظام | J185: صباحى | K185: 9 | L185: 4/2
B186: 180 | C186: 880 | D186: طالبة ادارة صباحى 180 | E186: 7/2 | H186: بنات | I186: انتظام | J186: صباحى | K186: 9 | L186: 4/2
B187: 181 | C187: 881 | D187: طالبة ادارة صباحى 181 | E187: 6/2 | H187: بنات | I187: انتظام | J187: صباحى | K187: 9 | L187: 4/2
B188: 182 | C188: 882 | D188: طالبة ادارة صباحى 182 | E188: 6/2 | H188: بنات | I188: انتظام | J188: صباحى | K188: 9 | L188: 4/2
B189: 183 | C189: 883 | D189: طالبة ادارة صباحى 183 | E189: 2/2 | H189: بنات | I189: انتظام | J189: صباحى | K189: 9 | L189: 4/2
B190: 184 | C190: 884 | D190: طالبة ادارة صباحى 184 | E190: 4/2 | H190: بنات | I190: انتظام | J190: صباحى | K190: 9 | L190: 4/2
B191: 185 | C191: 885 | D191: طالبة ادارة صباحى 185 | E191: 3/2 | H191: بنات | I191: انتظام | J191: صباحى | K191: 9 | L191: 4/2
B192: 186 | C192: 886 | D192: طالبة ادارة صباحى 186 | E192: 2/2 | H192: بنات | I192: انتظام | J192: صباحى | K192: 9 | L192: 4/2
B193: 187 | C193: 887 | D193: طالبة ادارة صباحى 187 | E193: 7/2 | H193: بنات | I193: انتظام | J193: صباحى | K193: 9 | L193: 4/2
B194: 188 | C194: 888 | D194: طالبة ادارة صباحى 188 | E194: 6/2 | H194: بنات | I194: انتظام | J194: صباحى | K194: 9 | L194: 4/2
B195: 189 | C195: 889 | D195: طالبة ادارة صباحى 189 | E195: 4/2 | H195: بنات | I195: انتظام | J195: صباحى | K195: 9 | L195: 4/2
B196: 190 | C196: 890 | D196: طالبة ادارة صباحى 190 | E196: 2/2 | H196: بنات | I196: انتظام | J196: صباحى | K196: 9 | L196: 4/2
B197: 191 | C197: 891 | D197: طالبة ادارة صباحى 191 | E197: 3/2 | H197: بنات | I197: انتظام | J197: صباحى | K197: 9 | L197: 4/2
B198: 192 | C198: 892 | D198: طالبة ادارة صباحى 192 | E198: 7/2 | H198: بنات | I198: انتظام | J198: صباحى | K198: 9 | L198: 4/2
B199: 193 | C199: 893 | D199: طالبة ادارة صباحى 193 | E199: 5/2 | H199: بنات | I199: انتظام | J199: صباحى | K199: 9 | L199: 4/2
B200: 194 | C200: 894 | D200: طالبة ادارة صباحى 194 | E200: 7/2 | H200: بنات | I200: انتظام | J200: صباحى | K200: 9 | L200: 4/2
... 184 more rows

Sheet بيانات قانون
B1: بسم الله الرحمن الرحـــــيم | M1: قم باختيار اول رقم جلوس و عدد الفئة و عدد اللجان فقط
B2: مدرسة ............. التجارية | M2: البيان | O2: صباحى | S2: مسائى | W2: مجموع
B3: طلبة الصف الثانى - شعبة القانون لعام 2017/2018 | O3: من | P3: الى | Q3: عدد الفئة | R3: عدد اللجان | S3: من | T3: الى | U3: عدد الفئة | V3: عدد اللجان
M4: انتظام - بنات | O4: 0 | P4: =IF(AND(O4>0,Q4>0),O4+Q4-1,"") ->  | S4: 1201 | T4: =IF(AND(S4>0,U4>0),S4+U4-1,"") -> 1274 | U4: 74 | V4: 4 | W4: =SUM(Q4,U4) -> 74
D5: بيانات طالبات شعبة القانون | M5: خدمات - بنات | O5: 0 | S5: 1301 | T5: 1333 | U5: 33 | V5: 2 | W5: =SUM(Q5,U5) -> 33
B6: م | C6: جلوس | D6: الاســــــــــــم | E6: الفصل | F6: الحالة | G6: الديانة | H6: النوع | I6: الصفة | J6: فترة الامتحان | K6: لجنة | L6: مقر | M6: انتظام - بنين | O6: 0 | S6: 0 | W6: 0
B7: 1 | C7: 1151 | D7: طالبة قانون مسائى 1 | E7: 9/2 | H7: بنات | I7: انتظام | J7: مسائى | K7: 5 | L7: 5/1 | M7: خدمات - بنبن | O7: 0 | S7: 0 | W7: 0
B8: 2 | C8: 1152 | D8: طالبة قانون مسائى 2 | E8: 9/2 | H8: بنات | I8: انتظام | J8: مسائى | K8: 5 | L8: 5/1 | O8: اجمالى صباحى | Q8: =SUM(Q4:Q7) -> 0 | R8: =SUM(R4:R7) -> 0 | S8: اجمالى مسائى | U8: =SUM(U4:U7) -> 107 | V8: =SUM(V4:V7) -> 6 | W8: 107
B9: 3 | C9: 1153 | D9: طالبة قانون مسائى 3 | E9: 8/2 | H9: بنات | I9: انتظام | J9: مسائى | K9: 5 | L9: 5/1
B10: 4 | C10: 1154 | D10: طالبة قانون مسائى 4 | E10: 9/2 | H10: بنات | I10: انتظام | J10: مسائى | K10: 5 | L10: 5/1 | O10: تعليمات هامة :
B11: 5 | C11: 1155 | D11: طالبة قانون مسائى 5 | E11: 9/2 | H11: بنات | I11: انتظام | J11: مسائى | K11: 5 | L11: 5/1 | O11: 1 - تسجيل الاسماء و الفصل و الحالة و الديانة (المسيحية فقط) النوع و الصفة
B12: 6 | C12: 1156 | D12: طالبة قانون مسائى 6 | E12: 8/2 | H12: بنات | I12: انتظام | J12: مسائى | K12: 5 | L12: 5/1 | O12: 2 - الضغط على الزر ( فرز شامل )
B13: 7 | C13: 1157 | D13: طالبة قانون مسائى 7 | E13: 8/2 | H13: بنات | I13: انتظام | J13: مسائى | K13: 5 | L13: 5/1 | O13: 3 - تسجيل البيانات الخاصة بجدول الفترات
B14: 8 | C14: 1158 | D14: طالبة قانون مسائى 8 | E14: 9/2 | H14: بنات | I14: انتظام | J14: مسائى | K14: 5 | L14: 5/1 | O14: 4 - الضغط على زر ( توزيع الفترات )
B15: 9 | C15: 1159 | D15: طالبة قانون مسائى 9 | E15: 8/2 | H15: بنات | I15: انتظام | J15: مسائى | K15: 5 | L15: 5/1 | O15: 5 - الضغط على زر (توليد ارقام الجلوس)
B16: 10 | C16: 1160 | D16: طالبة قانون مسائى 10 | E16: 8/2 | H16: بنات | I16: انتظام | J16: مسائى | K16: 5 | L16: 5/1 | O16: 6 - الضغط على زر (ترحيل الاسماء الى الشيت )
B17: 11 | C17: 1161 | D17: طالبة قانون مسائى 11 | E17: 8/2 | H17: بنات | I17: انتظام | J17: مسائى | K17: 5 | L17: 5/1 | O17: 7 - الذهاب الى ورقة لجان
B18: 12 | C18: 1162 | D18: طالبة قانون مسائى 12 | E18: 9/2 | H18: بنات | I18: انتظام | J18: مسائى | K18: 5 | L18: 5/1 | O18: 8 - الضغط على زر ( توزيع الاعداد صباحى ) ثم الضغط على زر ( توزيع الاعداد مسائى )
B19: 13 | C19: 1163 | D19: طالبة قانون مسائى 13 | E19: 9/2 | H19: بنات | I19: انتظام | J19: مسائى | K19: 5 | L19: 5/1 | O19: 9 - العودة الى ورقة بيانات الطالبات ثم الضغط على زر (توزيع اللجان على الطالبات )
B20: 14 | C20: 1164 | D20: طالبة قانون مسائى 14 | E20: 9/2 | H20: بنات | I20: انتظام | J20: مسائى | K20: 5 | L20: 5/1 | O20: و اخيرا لا يمكن عمل كشوف اللجان بورقة اللجان قبل اجراء الخطوات السابقة
B21: 15 | C21: 1165 | D21: طالبة قانون مسائى 15 | E21: 9/2 | H21: بنات | I21: انتظام | J21: مسائى | K21: 5 | L21: 5/1
B22: 16 | C22: 1166 | D22: طالبة قانون مسائى 16 | E22: 9/2 | H22: بنات | I22: انتظام | J22: مسائى | K22: 5 | L22: 5/1
B23: 17 | C23: 1167 | D23: طالبة قانون مسائى 17 | E23: 8/2 | H23: بنات | I23: انتظام | J23: مسائى | K23: 5 | L23: 5/1
B24: 18 | C24: 1168 | D24: طالبة قانون مسائى 18 | E24: 8/2 | H24: بنات | I24: انتظام | J24: مسائى | K24: 5 | L24: 5/1
B25: 19 | C25: 1169 | D25: طالبة قانون مسائى 19 | E25: 8/2 | H25: بنات | I25: انتظام | J25: مسائى | K25: 5 | L25: 5/1
B26: 20 | C26: 1170 | D26: طالبة قانون مسائى 20 | E26: 8/2 | H26: بنات | I26: انتظام | J26: مسائى | K26: 6 | L26: 6/1
B27: 21 | C27: 1171 | D27: طالبة قانون مسائى 21 | E27: 9/2 | H27: بنات | I27: انتظام | J27: مسائى | K27: 6 | L27: 6/1
B28: 22 | C28: 1172 | D28: طالبة قانون مسائى 22 | E28: 8/2 | H28: بنات | I28: انتظام | J28: مسائى | K28: 6 | L28: 6/1
B29: 23 | C29: 1173 | D29: طالبة قانون مسائى 23 | E29: 9/2 | H29: بنات | I29: انتظام | J29: مسائى | K29: 6 | L29: 6/1
B30: 24 | C30: 1174 | D30: طالبة قانون مسائى 24 | E30: 9/2 | H30: بنات | I30: انتظام | J30: مسائى | K30: 6 | L30: 6/1
B31: 25 | C31: 1175 | D31: طالبة قانون مسائى 25 | E31: 9/2 | H31: بنات | I31: انتظام | J31: مسائى | K31: 6 | L31: 6/1
B32: 26 | C32: 1176 | D32: طالبة قانون مسائى 26 | E32: 8/2 | H32: بنات | I32: انتظام | J32: مسائى | K32: 6 | L32: 6/1
B33: 27 | C33: 1177 | D33: طالبة قانون مسائى 27 | E33: 9/2 | H33: بنات | I33: انتظام | J33: مسائى | K33: 6 | L33: 6/1
B34: 28 | C34: 1178 | D34: طالبة قانون مسائى 28 | E34: 9/2 | H34: بنات | I34: انتظام | J34: مسائى | K34: 6 | L34: 6/1
B35: 29 | C35: 1179 | D35: طالبة قانون مسائى 29 | E35: 8/2 | H35: بنات | I35: انتظام | J35: مسائى | K35: 6 | L35: 6/1
B36: 30 | C36: 1180 | D36: طالبة قانون مسائى 30 | E36: 9/2 | H36: بنات | I36: انتظام | J36: مسائى | K36: 6 | L36: 6/1
B37: 31 | C37: 1181 | D37: طالبة قانون مسائى 31 | E37: 8/2 | H37: بنات | I37: انتظام | J37: مسائى | K37: 6 | L37: 6/1
B38: 32 | C38: 1182 | D38: طالبة قانون مسائى 32 | E38: 8/2 | H38: بنات | I38: انتظام | J38: مسائى | K38: 6 | L38: 6/1
B39: 33 | C39: 1183 | D39: طالبة قانون مسائى 33 | E39: 8/2 | H39: بنات | I39: انتظام | J39: مسائى | K39: 6 | L39: 6/1
B40: 34 | C40: 1184 | D40: طالبة قانون مسائى 34 | E40: 8/2 | H40: بنات | I40: انتظام | J40: مسائى | K40: 6 | L40: 6/1
B41: 35 | C41: 1185 | D41: طالبة قانون مسائى 35 | E41: 9/2 | H41: بنات | I41: انتظام | J41: مسائى | K41: 6 | L41: 6/1
B42: 36 | C42: 1186 | D42: طالبة قانون مسائى 36 | E42: 9/2 | H42: بنات | I42: انتظام | J42: مسائى | K42: 6 | L42: 6/1
B43: 37 | C43: 1187 | D43: طالبة قانون مسائى 37 | E43: 8/2 | H43: بنات | I43: انتظام | J43: مسائى | K43: 6 | L43: 6/1
B44: 38 | C44: 1188 | D44: طالبة قانون مسائى 38 | E44: 8/2 | H44: بنات | I44: انتظام | J44: مسائى | K44: 6 | L44: 6/1
B45: 39 | C45: 1189 | D45: طالبة قانون مسائى 39 | E45: 8/2 | H45: بنات | I45: انتظام | J45: مسائى | K45: 7 | L45: 7/1
B46: 40 | C46: 1190 | D46: طالبة قانون مسائى 40 | E46: 9/2 | H46: بنات | I46: انتظام | J46: مسائى | K46: 7 | L46: 7/1
B47: 41 | C47: 1191 | D47: طالبة قانون مسائى 41 | E47: 8/2 | H47: بنات | I47: انتظام | J47: مسائى | K47: 7 | L47: 7/1
B48: 42 | C48: 1192 | D48: طالبة قانون مسائى 42 | E48: 8/2 | H48: بنات | I48: انتظام | J48: مسائى | K48: 7 | L48: 7/1
B49: 43 | C49: 1193 | D49: طالبة قانون مسائى 43 | E49: 8/2 | H49: بنات | I49: انتظام | J49: مسائى | K49: 7 | L49: 7/1
B50: 44 | C50: 1194 | D50: طالبة قانون مسائى 44 | E50: 9/2 | H50: بنات | I50: انتظام | J50: مسائى | K50: 7 | L50: 7/1
B51: 45 | C51: 1195 | D51: طالبة قانون مسائى 45 | E51: 8/2 | H51: بنات | I51: انتظام | J51: مسائى | K51: 7 | L51: 7/1
B52: 46 | C52: 1196 | D52: طالبة قانون مسائى 46 | E52: 8/2 | H52: بنات | I52: انتظام | J52: مسائى | K52: 7 | L52: 7/1
B53: 47 | C53: 1197 | D53: طالبة قانون مسائى 47 | E53: 8/2 | H53: بنات | I53: انتظام | J53: مسائى | K53: 7 | L53: 7/1
B54: 48 | C54: 1198 | D54: طالبة قانون مسائى 48 | E54: 8/2 | H54: بنات | I54: انتظام | J54: مسائى | K54: 7 | L54: 7/1
B55: 49 | C55: 1199 | D55: طالبة قانون مسائى 49 | E55: 8/2 | H55: بنات | I55: انتظام | J55: مسائى | K55: 7 | L55: 7/1
B56: 50 | C56: 1200 | D56: طالبة قانون مسائى 50 | E56: 9/2 | H56: بنات | I56: انتظام | J56: مسائى | K56: 7 | L56: 7/1
B57: 51 | C57: 1201 | D57: طالبة قانون مسائى 51 | E57: 9/2 | H57: بنات | I57: انتظام | J57: مسائى | K57: 7 | L57: 7/1
B58: 52 | C58: 1202 | D58: طالبة قانون مسائى 52 | E58: 9/2 | H58: بنات | I58: انتظام | J58: مسائى | K58: 7 | L58: 7/1
B59: 53 | C59: 1203 | D59: طالبة قانون مسائى 53 | E59: 8/2 | H59: بنات | I59: انتظام | J59: مسائى | K59: 7 | L59: 7/1
B60: 54 | C60: 1204 | D60: طالبة قانون مسائى 54 | E60: 9/2 | H60: بنات | I60: انتظام | J60: مسائى | K60: 7 | L60: 7/1
B61: 55 | C61: 1205 | D61: طالبة قانون مسائى 55 | E61: 8/2 | H61: بنات | I61: انتظام | J61: مسائى | K61: 7 | L61: 7/1
B62: 56 | C62: 1206 | D62: طالبة قانون مسائى 56 | E62: 9/2 | H62: بنات | I62: انتظام | J62: مسائى | K62: 7 | L62: 7/1
B63: 57 | C63: 1207 | D63: طالبة قانون مسائى 57 | E63: 8/2 | H63: بنات | I63: انتظام | J63: مسائى | K63: 8 | L63: 8/1
B64: 58 | C64: 1208 | D64: طالبة قانون مسائى 58 | E64: 9/2 | H64: بنات | I64: انتظام | J64: مسائى | K64: 8 | L64: 8/1
B65: 59 | C65: 1209 | D65: طالبة قانون مسائى 59 | E65: 8/2 | H65: بنات | I65: انتظام | J65: مسائى | K65: 8 | L65: 8/1
B66: 60 | C66: 1210 | D66: طالبة قانون مسائى 60 | E66: 9/2 | H66: بنات | I66: انتظام | J66: مسائى | K66: 8 | L66: 8/1
B67: 61 | C67: 1211 | D67: طالبة قانون مسائى 61 | E67: 8/2 | H67: بنات | I67: انتظام | J67: مسائى | K67: 8 | L67: 8/1
B68: 62 | C68: 1212 | D68: طالبة قانون مسائى 62 | E68: 9/2 | H68: بنات | I68: انتظام | J68: مسائى | K68: 8 | L68: 8/1
B69: 63 | C69: 1213 | D69: طالبة قانون مسائى 63 | E69: 8/2 | H69: بنات | I69: انتظام | J69: مسائى | K69: 8 | L69: 8/1
B70: 64 | C70: 1214 | D70: طالبة قانون مسائى 64 | E70: 9/2 | H70: بنات | I70: انتظام | J70: مسائى | K70: 8 | L70: 8/1
B71: 65 | C71: 1215 | D71: طالبة قانون مسائى 65 | E71: 9/2 | H71: بنات | I71: انتظام | J71: مسائى | K71: 8 | L71: 8/1
B72: 66 | C72: 1216 | D72: طالبة قانون مسائى 66 | E72: 8/2 | H72: بنات | I72: انتظام | J72: مسائى | K72: 8 | L72: 8/1
B73: 67 | C73: 1217 | D73: طالبة قانون مسائى 67 | E73: 9/2 | H73: بنات | I73: انتظام | J73: مسائى | K73: 8 | L73: 8/1
B74: 68 | C74: 1218 | D74: طالبة قانون مسائى 68 | E74: 8/2 | H74: بنات | I74: انتظام | J74: مسائى | K74: 8 | L74: 8/1
B75: 69 | C75: 1219 | D75: طالبة قانون مسائى 69 | E75: 9/2 | H75: بنات | I75: انتظام | J75: مسائى | K75: 8 | L75: 8/1
B76: 70 | C76: 1220 | D76: طالبة قانون مسائى 70 | E76: 9/2 | H76: بنات | I76: انتظام | J76: مسائى | K76: 8 | L76: 8/1
B77: 71 | C77: 1221 | D77: طالبة قانون مسائى 71 | E77: 8/2 | H77: بنات | I77: انتظام | J77: مسائى | K77: 8 | L77: 8/1
B78: 72 | C78: 1222 | D78: طالبة قانون مسائى 72 | E78: 9/2 | H78: بنات | I78: انتظام | J78: مسائى | K78: 8 | L78: 8/1
B79: 73 | C79: 1223 | D79: طالبة قانون مسائى 73 | E79: 9/2 | H79: بنات | I79: انتظام | J79: مسائى | K79: 8 | L79: 8/1
B80: 74 | C80: 1224 | D80: طالبة قانون مسائى 74 | E80: 9/2 | H80: بنات | I80: انتظام | J80: مسائى | K80: 8 | L80: 8/1
B81: 75 | C81: 1251 | D81: طالبة قانون مسائى 75 | E81: 11/2 | H81: بنات | I81: خدمات | J81: مسائى | K81: 9 | L81: 9/1
B82: 76 | C82: 1252 | D82: طالبة قانون مسائى 76 | E82: 11/2 | H82: بنات | I82: خدمات | J82: مسائى | K82: 9 | L82: 9/1
B83: 77 | C83: 1253 | D83: طالبة قانون مسائى 77 | E83: 11/2 | H83: بنات | I83: خدمات | J83: مسائى | K83: 9 | L83: 9/1
B84: 78 | C84: 1254 | D84: طالبة قانون مسائى 78 | E84: 11/2 | H84: بنات | I84: خدمات | J84: مسائى | K84: 9 | L84: 9/1
B85: 79 | C85: 1255 | D85: طالبة قانون مسائى 79 | E85: 11/2 | H85: بنات | I85: خدمات | J85: مسائى | K85: 9 | L85: 9/1
B86: 80 | C86: 1256 | D86: طالبة قانون مسائى 80 | E86: 11/2 | H86: بنات | I86: خدمات | J86: مسائى | K86: 9 | L86: 9/1
B87: 81 | C87: 1257 | D87: طالبة قانون مسائى 81 | E87: 11/2 | H87: بنات | I87: خدمات | J87: مسائى | K87: 9 | L87: 9/1
B88: 82 | C88: 1258 | D88: طالبة قانون مسائى 82 | E88: 11/2 | H88: بنات | I88: خدمات | J88: مسائى | K88: 9 | L88: 9/1
B89: 83 | C89: 1259 | D89: طالبة قانون مسائى 83 | E89: 11/2 | H89: بنات | I89: خدمات | J89: مسائى | K89: 9 | L89: 9/1
B90: 84 | C90: 1260 | D90: طالبة قانون مسائى 84 | E90: 11/2 | H90: بنات | I90: خدمات | J90: مسائى | K90: 9 | L90: 9/1
B91: 85 | C91: 1261 | D91: طالبة قانون مسائى 85 | E91: 11/2 | H91: بنات | I91: خدمات | J91: مسائى | K91: 9 | L91: 9/1
B92: 86 | C92: 1262 | D92: طالبة قانون مسائى 86 | E92: 11/2 | H92: بنات | I92: خدمات | J92: مسائى | K92: 9 | L92: 9/1
B93: 87 | C93: 1263 | D93: طالبة قانون مسائى 87 | E93: 11/2 | H93: بنات | I93: خدمات | J93: مسائى | K93: 9 | L93: 9/1
B94: 88 | C94: 1264 | D94: طالبة قانون مسائى 88 | E94: 11/2 | H94: بنات | I94: خدمات | J94: مسائى | K94: 9 | L94: 9/1
B95: 89 | C95: 1265 | D95: طالبة قانون مسائى 89 | E95: 11/2 | H95: بنات | I95: خدمات | J95: مسائى | K95: 9 | L95: 9/1
B96: 90 | C96: 1266 | D96: طالبة قانون مسائى 90 | E96: 11/2 | H96: بنات | I96: خدمات | J96: مسائى | K96: 9 | L96: 9/1
B97: 91 | C97: 1267 | D97: طالبة قانون مسائى 91 | E97: 11/2 | H97: بنات | I97: خدمات | J97: مسائى | K97: 9 | L97: 9/1
B98: 92 | C98: 1268 | D98: طالبة قانون مسائى 92 | E98: 11/2 | H98: بنات | I98: خدمات | J98: مسائى | K98: 10 | L98: 10/1
B99: 93 | C99: 1269 | D99: طالبة قانون مسائى 93 | E99: 11/2 | H99: بنات | I99: خدمات | J99: مسائى | K99: 10 | L99: 10/1
B100: 94 | C100: 1270 | D100: طالبة قانون مسائى 94 | E100: 11/2 | H100: بنات | I100: خدمات | J100: مسائى | K100: 10 | L100: 10/1
B101: 95 | C101: 1271 | D101: طالبة قانون مسائى 95 | E101: 11/2 | H101: بنات | I101: خدمات | J101: مسائى | K101: 10 | L101: 10/1
B102: 96 | C102: 1272 | D102: طالبة قانون مسائى 96 | E102: 11/2 | G102: مسيحية | H102: بنات | I102: خدمات | J102: مسائى | K102: 10 | L102: 10/1
B103: 97 | C103: 1273 | D103: طالبة قانون مسائى 97 | E103: 11/2 | H103: بنات | I103: خدمات | J103: مسائى | K103: 10 | L103: 10/1
B104: 98 | C104: 1274 | D104: طالبة قانون مسائى 98 | E104: 11/2 | H104: بنات | I104: خدمات | J104: مسائى | K104: 10 | L104: 10/1
B105: 99 | C105: 1275 | D105: طالبة قانون مسائى 99 | E105: 11/2 | H105: بنات | I105: خدمات | J105: مسائى | K105: 10 | L105: 10/1
B106: 100 | C106: 1276 | D106: طالبة قانون مسائى 100 | E106: 11/2 | H106: بنات | I106: خدمات | J106: مسائى | K106: 10 | L106: 10/1
B107: 101 | C107: 1277 | D107: طالبة قانون مسائى 101 | E107: 11/2 | H107: بنات | I107: خدمات | J107: مسائى | K107: 10 | L107: 10/1
B108: 102 | C108: 1278 | D108: طالبة قانون مسائى 102 | E108: 11/2 | H108: بنات | I108: خدمات | J108: مسائى | K108: 10 | L108: 10/1
B109: 103 | C109: 1279 | D109: طالبة قانون مسائى 103 | E109: 11/2 | H109: بنات | I109: خدمات | J109: مسائى | K109: 10 | L109: 10/1
B110: 104 | C110: 1280 | D110: طالبة قانون مسائى 104 | E110: 11/2 | H110: بنات | I110: خدمات | J110: مسائى | K110: 10 | L110: 10/1
B111: 105 | C111: 1281 | D111: طالبة قانون مسائى 105 | E111: 11/2 | H111: بنات | I111: خدمات | J111: مسائى | K111: 10 | L111: 10/1
B112: 106 | C112: 1282 | D112: طالبة قانون مسائى 106 | E112: 11/2 | H112: بنات | I112: خدمات | J112: مسائى | K112: 10 | L112: 10/1
B113: 107 | C113: 1283 | D113: طالبة قانون مسائى 107 | E113: 11/2 | H113: بنات | I113: خدمات | J113: مسائى | K113: 10 | L113: 10/1

Sheet لجان
C1: ادارة ............ التعليمية | F1: لجنة : | G1: 1 | I1: ادارة ............ التعليمية | L1: لجنة : | M1: 2 | AM1: اعداد و توزيع اللجان على الفترتين آليا
C2: مدرسة ........ التجارية | F2: المقر : | G2: 1/1 | I2: مدرسة ........ التجارية | L2: المقر : | M2: 2/1
C3: الصف الثانى | E3: الشعبة : | F3: ادارة - مسائى | I3: الصف الثانى | K3: الشعبة : | L3: ادارة - مسائى
D4: من : | E4: 1051 | F4: الى : | G4: 1072 | J4: من : | K4: 1073 | L4: الى : | M4: 1093 | T4: ملحوظة هـــامة : | AJ4: لجان الفترة الصباحية | AR4: لجان الفترة المسائية
C5: م | D5: جلوس | E5: اسم الطالبة | F5: الفصل | G5: ملاحظات | I5: م | J5: جلوس | K5: اسم الطالبة | L5: الفصل | M5: ملاحظات | O5: الفترة | S5: عدد اللجان يستكمل يدويا قبل توزيع عدد طالبات كل لجنة لكل فترة | AI5: لجنة | AJ5: من | AK5: الى | AL5: العدد | AM5: الصفة | AN5: الشعبة | AO5: المقر | AQ5: لجنة | AR5: من | AS5: الى | AT5: العدد | AU5: الصفة | AV5: الشعبة | AW5: المقر
C6: 1 | D6: 1051 | E6: طالبة ادارة مسائى 1 | F6: 10/2 | I6: 1 | J6: 1073 | K6: طالبة ادارة مسائى 23 | L6: 10/2 | P6: مسائى | R6: توزيع الفترة الصباحية | S6: البيان | U6: شعبة الادارة | Y6: شعبة القانون | AI6: 1 | AJ6: 701 | AK6: 722 | AL6: 22 | AM6: انتظام | AN6: ادارة | AO6: 1/3 | AQ6: 1 | AR6: 1051 | AS6: 1072 | AT6: 22 | AU6: خدمات | AV6: ادارة | AW6: 1/1
C7: 2 | D7: 1052 | E7: طالبة ادارة مسائى 2 | F7: 10/2 | I7: 2 | J7: 1074 | K7: طالبة ادارة مسائى 24 | L7: 10/2 | U7: من | V7: الى | W7: العدد | X7: عدد اللجان | Y7: من | Z7: الى | AA7: العدد | AB7: عدد اللجان | AI7: 2 | AJ7: 723 | AK7: 744 | AL7: 22 | AM7: انتظام | AN7: ادارة | AO7: 2/3 | AQ7: 2 | AR7: 1073 | AS7: 1093 | AT7: 21 | AU7: خدمات | AV7: ادارة | AW7: 2/1
C8: 3 | D8: 1053 | E8: طالبة ادارة مسائى 3 | F8: 10/2 | I8: 3 | J8: 1075 | K8: طالبة ادارة مسائى 25 | L8: 10/2 | S8: بنات | T8: انتظام | U8: 701 | V8: 1006 | W8: 306 | X8: 14 | Y8: 0 | AI8: 3 | AJ8: 745 | AK8: 766 | AL8: 22 | AM8: انتظام | AN8: ادارة | AO8: 3/3 | AQ8: 3 | AR8: 1101 | AS8: 1119 | AT8: 19 | AU8: انتظام | AV8: ادارة | AW8: 3/1
C9: 4 | D9: 1054 | E9: طالبة ادارة مسائى 4 | F9: 10/2 | I9: 4 | J9: 1076 | K9: طالبة ادارة مسائى 26 | L9: 10/2 | S9: بنات | T9: خدمات | U9: 0 | Y9: 0 | AI9: 4 | AJ9: 767 | AK9: 788 | AL9: 22 | AM9: انتظام | AN9: ادارة | AO9: 4/3 | AQ9: 4 | AR9: 1151 | AS9: 1160 | AT9: 10 | AU9: خدمات | AV9: ادارة | AW9: 4/1
C10: 5 | D10: 1055 | E10: طالبة ادارة مسائى 5 | F10: 10/2 | I10: 5 | J10: 1077 | K10: طالبة ادارة مسائى 27 | L10: 10/2 | S10: بنين | T10: انتظام | U10: 0 | Y10: 0 | AI10: 5 | AJ10: 789 | AK10: 810 | AL10: 22 | AM10: انتظام | AN10: ادارة | AO10: 5/3 | AQ10: 5 | AR10: 1201 | AS10: 1219 | AT10: 19 | AU10: انتظام | AV10: قانون | AW10: 5/1
C11: 6 | D11: 1056 | E11: طالبة ادارة مسائى 6 | F11: 10/2 | I11: 6 | J11: 1078 | K11: طالبة ادارة مسائى 28 | L11: 10/2 | S11: بنين | T11: خدمات | U11: 0 | Y11: 0 | AI11: 6 | AJ11: 811 | AK11: 832 | AL11: 22 | AM11: انتظام | AN11: ادارة | AO11: 1/2 | AQ11: 6 | AR11: 1220 | AS11: 1238 | AT11: 19 | AU11: انتظام | AV11: قانون | AW11: 6/1
C12: 7 | D12: 1057 | E12: طالبة ادارة مسائى 7 | F12: 10/2 | I12: 7 | J12: 1079 | K12: طالبة ادارة مسائى 29 | L12: 10/2 | U12: اجمالى | W12: =SUM(W8:W11) -> 306 | X12: =SUM(X8:X11) -> 14 | Y12: اجمالى | AA12: =SUM(AA8:AA11) -> 0 | AB12: 0 | AI12: 7 | AJ12: 833 | AK12: 854 | AL12: 22 | AM12: انتظام | AN12: ادارة | AO12: 2/2 | AQ12: 7 | AR12: 1239 | AS12: 1256 | AT12: 18 | AU12: انتظام | AV12: قانون | AW12: 7/1
C13: 8 | D13: 1058 | E13: طالبة ادارة مسائى 8 | F13: 10/2 | I13: 8 | J13: 1080 | K13: طالبة ادارة مسائى 30 | L13: 10/2 | AI13: 8 | AJ13: 855 | AK13: 876 | AL13: 22 | AM13: انتظام | AN13: ادارة | AO13: 3/2 | AQ13: 8 | AR13: 1257 | AS13: 1274 | AT13: 18 | AU13: انتظام | AV13: قانون | AW13: 8/1
C14: 9 | D14: 1059 | E14: طالبة ادارة مسائى 9 | F14: 10/2 | I14: 9 | J14: 1081 | K14: طالبة ادارة مسائى 31 | L14: 10/2 | R14: توزيع الفترة المسائية | S14: البيان | U14: شعبة الادارة | Y14: شعبة القانون | AI14: 9 | AJ14: 877 | AK14: 898 | AL14: 22 | AM14: انتظام | AN14: ادارة | AO14: 4/2 | AQ14: 9 | AR14: 1301 | AS14: 1317 | AT14: 17 | AU14: خدمات | AV14: قانون | AW14: 9/1
C15: 10 | D15: 1060 | E15: طالبة ادارة مسائى 10 | F15: 10/2 | I15: 10 | J15: 1082 | K15: طالبة ادارة مسائى 32 | L15: 10/2 | U15: من | V15: الى | W15: العدد | X15: عدد اللجان | Y15: من | Z15: الى | AA15: العدد | AB15: عدد اللجان | AI15: 10 | AJ15: 899 | AK15: 920 | AL15: 22 | AM15: انتظام | AN15: ادارة | AO15: 5/2 | AQ15: 10 | AR15: 1318 | AS15: 1333 | AT15: 16 | AU15: خدمات | AV15: قانون | AW15: 10/1
C16: 11 | D16: 1061 | E16: طالبة ادارة مسائى 11 | F16: 10/2 | I16: 11 | J16: 1083 | K16: طالبة ادارة مسائى 33 | L16: 10/2 | S16: بنات | T16: انتظام | U16: 0 | Y16: 1201 | Z16: 1274 | AA16: 74 | AB16: 4 | AI16: 11 | AJ16: 921 | AK16: 942 | AL16: 22 | AM16: انتظام | AN16: ادارة | AO16: 6/2 | AQ16: 11
C17: 12 | D17: 1062 | E17: طالبة ادارة مسائى 12 | F17: 10/2 | I17: 12 | J17: 1084 | K17: طالبة ادارة مسائى 34 | L17: 10/2 | S17: بنات | T17: خدمات | U17: 1051 | V17: 1093 | W17: 43 | X17: 2 | Y17: 1301 | Z17: 1333 | AA17: 33 | AB17: 2 | AI17: 12 | AJ17: 943 | AK17: 964 | AL17: 22 | AM17: انتظام | AN17: ادارة | AO17: 7/2 | AQ17: 12
C18: 13 | D18: 1063 | E18: طالبة ادارة مسائى 13 | F18: 10/2 | I18: 13 | J18: 1085 | K18: طالبة ادارة مسائى 35 | L18: 10/2 | S18: بنين | T18: انتظام | U18: 1101 | V18: 1119 | W18: 19 | X18: 1 | Y18: 0 | AI18: 13 | AJ18: 965 | AK18: 985 | AL18: 21 | AM18: انتظام | AN18: ادارة | AO18: 8/2 | AQ18: 13
C19: 14 | D19: 1064 | E19: طالبة ادارة مسائى 14 | F19: 10/2 | I19: 14 | J19: 1086 | K19: طالبة ادارة مسائى 36 | L19: 10/2 | S19: بنين | T19: خدمات | U19: 1151 | V19: 1160 | W19: 10 | X19: 1 | Y19: 0 | AI19: 14 | AJ19: 986 | AK19: 1006 | AL19: 21 | AM19: انتظام | AN19: ادارة | AO19: 9/2 | AQ19: 14
C20: 15 | D20: 1065 | E20: طالبة ادارة مسائى 15 | F20: 10/2 | I20: 15 | J20: 1087 | K20: طالبة ادارة مسائى 37 | L20: 10/2 | U20: مجموع | W20: =SUM(W16:W19) -> 72 | X20: =SUM(X16:X19) -> 4 | Y20: مجموع | AA20: =SUM(AA16:AA19) -> 107 | AB20: =SUM(AB16:AB19) -> 6 | AI20: 15 | AQ20: 15
C21: 16 | D21: 1066 | E21: طالبة ادارة مسائى 16 | F21: 10/2 | I21: 16 | J21: 1088 | K21: طالبة ادارة مسائى 38 | L21: 10/2 | AI21: 16 | AQ21: 16
C22: 17 | D22: 1067 | E22: طالبة ادارة مسائى 17 | F22: 10/2 | I22: 17 | J22: 1089 | K22: طالبة ادارة مسائى 39 | L22: 10/2 | U22: اجمالى طالبات ادارة | W22: =SUM(W12,W20) -> 378 | Y22: اجمالى طالبات قانون | AA22: =SUM(AA12,AA20) -> 107 | AI22: 17 | AQ22: 17
C23: 18 | D23: 1068 | E23: طالبة ادارة مسائى 18 | F23: 10/2 | I23: 18 | J23: 1090 | K23: طالبة ادارة مسائى 40 | L23: 10/2 | AI23: 18 | AQ23: 18
C24: 19 | D24: 1069 | E24: طالبة ادارة مسائى 19 | F24: 10/2 | I24: 19 | J24: 1091 | K24: طالبة ادارة مسائى 41 | L24: 10/2 | AI24: 19 | AQ24: 19
C25: 20 | D25: 1070 | E25: طالبة ادارة مسائى 20 | F25: 10/2 | I25: 20 | J25: 1092 | K25: طالبة ادارة مسائى 42 | L25: 10/2 | AI25: 20 | AQ25: 20
C26: 21 | D26: 1071 | E26: طالبة ادارة مسائى 21 | F26: 10/2 | I26: 21 | J26: 1093 | K26: طالبة ادارة مسائى 43 | L26: 10/2 | AI26: 21 | AQ26: 21
C27: 22 | D27: 1072 | E27: طالبة ادارة مسائى 22 | F27: 10/2 | AI27: 22 | AQ27: 22
AI28: 23 | AQ28: 23
AI29: 24 | AQ29: 24
AI30: 25 | AQ30: 25
C31: كنترول الصف الثانى | F31: ادارة المدرسة | I31: كنترول الصف الثانى | L31: ادارة المدرسة | AI31: 26 | AQ31: 26
AI32: 27 | AQ32: 27
AI33: 28 | AQ33: 28
AI34: 29 | AQ34: 29
AI35: 30 | AQ35: 30
AI36: 31 | AQ36: 31
AI37: 32 | AQ37: 32
AI38: 33 | AQ38: 33
AI39: 34 | AQ39: 34
AI40: 35 | AQ40: 35
AI41: 36 | AQ41: 36
AI42: 37 | AQ42: 37
AI43: 38 | AQ43: 38
AI44: 39 | AQ44: 39
AI45: 40 | AQ45: 40
AI46: 41 | AQ46: 41
AI47: 42 | AQ47: 42
AI48: 43 | AQ48: 43
AI49: 44 | AQ49: 44
AI50: 45 | AQ50: 45
AI51: 46 | AQ51: 46
AI52: 47 | AQ52: 47
AI53: 48 | AQ53: 48
AI54: 49 | AQ54: 49
AI55: 50 | AQ55: 50

Sheet ارقام الجلوس
D1: ارقام جلوس الصف الثانى لعام 2017 / 2018 | N1: ورقة : | O1: 2 | R1: اختر الشعبة من القائمة | Z1: اضغط لملء البيانات
E2: جميع الشعب | R2: قانون
E4: اخطار برقم الجلوس | H4: مسائى | L4: اخطار برقم الجلوس | O4: مسائى
C5: مدرسة .......... التجارية | G5: رقم الجلوس / | H5: 1163 | J5: مدرسة .......... التجارية | N5: رقم الجلوس / | O5: 1169 | Y5: 101 | Z5: 200 | AA5: ادارة
C6: الاسم / | D6: طالبة قانون مسائى 13 | G6: رقم اللجنة / | H6: 5 | J6: الاسم / | K6: طالبة قانون مسائى 19 | N6: رقم اللجنة / | O6: 5 | Y6: 201 | Z6: 340 | AA6: تأمين
C7: الفصل / | D7: 9/2 | G7: مقر اللجنة / | H7: 5/1 | J7: الفصل / | K7: 8/2 | N7: مقر اللجنة / | O7: 5/1 | Y7: 401 | Z7: 580 | AA7: تسويق
Y8: 601 | Z8: 800 | AA8: قانون
E9: اخطار برقم الجلوس | H9: مسائى | L9: اخطار برقم الجلوس | O9: مسائى
C10: مدرسة .......... التجارية | G10: رقم الجلوس / | H10: 1164 | J10: مدرسة .......... التجارية | N10: رقم الجلوس / | O10: 1170
C11: الاسم / | D11: طالبة قانون مسائى 14 | G11: رقم اللجنة / | H11: 5 | J11: الاسم / | K11: طالبة قانون مسائى 20 | N11: رقم اللجنة / | O11: 6
C12: الفصل / | D12: 9/2 | G12: مقر اللجنة / | H12: 5/1 | J12: الفصل / | K12: 8/2 | N12: مقر اللجنة / | O12: 6/1
E14: اخطار برقم الجلوس | H14: مسائى | L14: اخطار برقم الجلوس | O14: مسائى
C15: مدرسة .......... التجارية | G15: رقم الجلوس / | H15: 1165 | J15: مدرسة .......... التجارية | N15: رقم الجلوس / | O15: 1171
C16: الاسم / | D16: طالبة قانون مسائى 15 | G16: رقم اللجنة / | H16: 5 | J16: الاسم / | K16: طالبة قانون مسائى 21 | N16: رقم اللجنة / | O16: 6
C17: الفصل / | D17: 9/2 | G17: مقر اللجنة / | H17: 5/1 | J17: الفصل / | K17: 9/2 | N17: مقر اللجنة / | O17: 6/1
E19: اخطار برقم الجلوس | H19: مسائى | L19: اخطار برقم الجلوس | O19: مسائى
C20: مدرسة .......... التجارية | G20: رقم الجلوس / | H20: 1166 | J20: مدرسة .......... التجارية | N20: رقم الجلوس / | O20: 1172
C21: الاسم / | D21: طالبة قانون مسائى 16 | G21: رقم اللجنة / | H21: 5 | J21: الاسم / | K21: طالبة قانون مسائى 22 | N21: رقم اللجنة / | O21: 6
C22: الفصل / | D22: 9/2 | G22: مقر اللجنة / | H22: 5/1 | J22: الفصل / | K22: 8/2 | N22: مقر اللجنة / | O22: 6/1
E24: اخطار برقم الجلوس | H24: مسائى | L24: اخطار برقم الجلوس | N24: صباحى | O24: مسائى
C25: مدرسة .......... التجارية | G25: رقم الجلوس / | H25: 1167 | J25: مدرسة .......... التجارية | N25: رقم الجلوس / | O25: 1173
C26: الاسم / | D26: طالبة قانون مسائى 17 | G26: رقم اللجنة / | H26: 5 | J26: الاسم / | K26: طالبة قانون مسائى 23 | N26: رقم اللجنة / | O26: 6
C27: الفصل / | D27: 8/2 | G27: مقر اللجنة / | H27: 5/1 | J27: الفصل / | K27: 9/2 | N27: مقر اللجنة / | O27: 6/1
E29: اخطار برقم الجلوس | H29: مسائى | L29: اخطار برقم الجلوس | O29: مسائى
C30: مدرسة .......... التجارية | G30: رقم الجلوس / | H30: 1168 | J30: مدرسة .......... التجارية | N30: رقم الجلوس / | O30: 1174
C31: الاسم / | D31: طالبة قانون مسائى 18 | G31: رقم اللجنة / | H31: 5 | J31: الاسم / | K31: طالبة قانون مسائى 24 | N31: رقم اللجنة / | O31: 6
C32: الفصل / | D32: 8/2 | G32: مقر اللجنة / | H32: 5/1 | J32: الفصل / | K32: 9/2 | N32: مقر اللجنة / | O32: 6/1
O535: 107
K536: طالب ادارة 7 | O536: 1
K537: 2017-01-02 | O537: 2017-01-03
O540: 108
K541: طالب ادارة 8 | O541: 1
K542: 2017-01-02 | O542: 2017-01-03
O545: 109
K546: طالب ادارة 9 | O546: 1
K547: 2017-01-02 | O547: 2017-01-03
O550: 110
K551: طالب ادارة 10 | O551: 1
K552: 2017-01-02 | O552: 2017-01-03
O555: 111
K556: طالب ادارة 11 | O556: 1
K557: 2017-01-02 | O557: 2017-01-03
O560: 112
K561: طالب ادارة 12 | O561: 1
K562: 2017-01-02 | O562: 2017-01-03
O595: 119
K596: طالب ادارة 19 | O596: 1
K597: 2017-01-02 | O597: 2017-01-03
O600: 120
K601: طالب ادارة 20 | O601: 1
K602: 2017-01-02 | O602: 2017-01-03
O605: 121
K606: طالب ادارة 21 | O606: 2
K607: 2017-01-02 | O607: 2017-02-03
O610: 122
K611: طالب ادارة 22 | O611: 2
K612: 2017-01-02 | O612: 2017-02-03
O615: 123
K616: طالب ادارة 23 | O616: 2
K617: 2017-01-02 | O617: 2017-02-03
O620: 124
K621: طالب ادارة 24 | O621: 2
K622: 2017-01-02 | O622: 2017-02-03

Sheet شعبة الادارة
B1: بسم الله الرحمن الرحيم | T1: شيت كنترول للعام الدراسى 2017 / 2018
C2: ادارة .......... التعليمية | W2: الصف الثانى - شعبة ادارة
C3: مدرسة ........ التجارية | X3: الشيت العام
A5: مسلسل | B5: رقم جلوس | C5: الاســــــــــــــم | D5: الفصــــــــــل | E5: الحالــــــــة | F5: السرى | G5: لغة عربية | K5: لغة انجليزية | O5: لغة فرنسية | S5: محاسبة مالية | W5: احصاء | AA5: رياضة مالية | AE5: اقتصاد | AI5: سكرتارية عربية | AM5: سكرتارية اجنبية | AQ5: ادارة مشروعات | AU5: ادارة مخازن | AY5: حاسب آلى | BH5: مجموع كلى | BI5: مواطنة وحقوق انسان | BM5: تربية دينية | BQ5: نتيجة | BR5: مواد الرسوب | BS5: عدد المواد | BX5: عربى | BY5: انجليزى | BZ5: فرنسى | CA5: محاسبة | CB5: احصاء | CC5: رياضة مالية | CD5: اقتصاد | CE5: سكرتارية . ع | CF5: سكرتارية . ف | CG5: مشروعات | CH5: مخازن | CI5: حاسب | CJ5: مواطنة | CK5: دين | CL5: مجموع | CN5: مجموع نصف العام
G6: اعمال السنة | H6: نصف العام | I6: آخر العام | J6: المجموع | K6: اعمال السنة | L6: نصف العام | M6: آخر العام | N6: المجموع | O6: اعمال السنة | P6: نصف العام | Q6: آخر العام | R6: المجموع | S6: اعمال السنة | T6: نصف العام | U6: آخر العام | V6: المجموع | W6: اعمال السنة | X6: نصف العام | Y6: آخر العام | Z6: المجموع | AA6: اعمال السنة | AB6: نصف العام | AC6: آخر العام | AD6: المجموع | AE6: اعمال السنة | AF6: نصف العام | AG6: آخر العام | AH6: المجموع | AI6: اعمال السنة | AJ6: نصف العام | AK6: آخر العام | AL6: المجموع | AM6: اعمال السنة | AN6: نصف العام | AO6: آخر العام | AP6: المجموع | AQ6: اعمال السنة | AR6: نصف العام | AS6: آخر العام | AT6: المجموع | AU6: اعمال السنة | AV6: نصف العام | AW6: آخر العام | AX6: المجموع | AY6: اعمال السنة | BA6: نصف العام | BC6: آخر العام | BE6: مجموع عملى | BF6: مجموع تحريرى | BG6: مجموع حاسب | BI6: اعمال السنة | BJ6: نصف العام | BK6: آخر العام | BL6: المجموع | BM6: اعمال السنة | BN6: نصف العام | BO6: آخر العام | BP6: المجموع
AY7: عملى | AZ7: تحريرى | BA7: عملى | BB7: تحريرى | BC7: عملى | BD7: تحريرى
F8: عظمى | G8: 10 | H8: 20 | I8: 20 | J8: 50 | K8: 10 | L8: 20 | M8: 20 | N8: 50 | O8: 6 | P8: 12 | Q8: 12 | R8: 30 | S8: 10 | T8: 20 | U8: 20 | V8: 50 | W8: 10 | X8: 20 | Y8: 20 | Z8: 50 | AA8: 10 | AB8: 20 | AC8: 20 | AD8: 50 | AE8: 10 | AF8: 20 | AG8: 20 | AH8: 50 | AI8: 10 | AJ8: 20 | AK8: 20 | AL8: 50 | AM8: 10 | AN8: 20 | AO8: 20 | AP8: 50 | AQ8: 10 | AR8: 20 | AS8: 20 | AT8: 50 | AU8: 10 | AV8: 20 | AW8: 20 | AX8: 50 | AY8: 4 | AZ8: 6 | BA8: 8 | BB8: 12 | BC8: 8 | BD8: 12 | BE8: 20 | BF8: 30 | BG8: 50 | BH8: 580 | BI8: 4 | BJ8: 8 | BK8: 8 | BL8: 20 | BM8: 4 | BN8: 8 | BO8: 8 | BP8: 20
F9: صغرى | G9: 0 | H9: 0 | I9: 5 | J9: 25 | K9: 0 | L9: 0 | M9: 5 | N9: 20 | O9: 0 | P9: 0 | Q9: 3 | R9: 9 | S9: 0 | T9: 0 | U9: 5 | V9: 25 | W9: 0 | X9: 0 | Y9: 5 | Z9: 25 | AA9: 0 | AB9: 0 | AC9: 5 | AD9: 25 | AE9: 0 | AF9: 0 | AG9: 5 | AH9: 25 | AI9: 0 | AJ9: 0 | AK9: 5 | AL9: 25 | AM9: 0 | AN9: 0 | AO9: 5 | AP9: 20 | AQ9: 0 | AR9: 0 | AS9: 5 | AT9: 25 | AU9: 0 | AV9: 0 | AW9: 5 | AX9: 25 | AY9: 0 | AZ9: 0 | BB9: 0 | BC9: 2 | BD9: 3 | BE9: 10 | BF9: 15 | BG9: 25 | BH9: 290 | BI9: 0 | BJ9: 0 | BK9: 2 | BL9: 10 | BM9: 0 | BN9: 0 | BO9: 2 | BP9: 10
A10: 1 | B10: 701 | C10: طالبة ادارة صباحى 1 | D10: 4/2 | F10: 203 | G10: 9 | H10: 12 | I10: 13 | J10: =IF($C10="","",SUM(G10,H10,I10)) -> 34 | K10: 8 | L10: 2 | M10: 10 | N10: =IF($C10="","",SUM(K10,L10,M10)) -> 20 | O10: 4 | P10: 4 | Q10: 7 | R10: =IF($C10="","",SUM(O10,P10,Q10)) -> 15 | S10: 9 | T10: 10 | U10: 13 | V10: =IF($C10="","",SUM(S10,T10,U10)) -> 32 | W10: 9 | X10: 6 | Y10: 14 | Z10: =IF($C10="","",SUM(W10,X10,Y10)) -> 29 | AA10: 9 | AB10: 7 | AC10: 17 | AD10: =IF($C10="","",SUM(AA10:AC10)) -> 33 | AE10: 9 | AF10: 13 | AG10: 15 | AH10: =IF($C10="","",SUM(AE10,AF10,AG10)) -> 37 | AI10: 9 | AJ10: 15 | AK10: 15 | AL10: =IF($C10="","",SUM(AI10,AJ10,AK10)) -> 39 | AM10: 9 | AN10: 9 | AO10: 16 | AP10: =IF($C10="","",SUM(AM10,AN10,AO10)) -> 34 | AQ10: 10 | AR10: 18 | AS10: 19 | AT10: =IF($C10="","",SUM(AQ10,AR10,AS10)) -> 47 | AU10: 10 | AV10: 17 | AW10: 19 | AX10: =IF($C10="","",SUM(AU10,AV10,AW10)) -> 46 | AY10: 2 | AZ10: 5 | BA10: 4 | BB10: 10 | BC10: 4 | BD10: 12 | BE10: =IF($C10="","",SUM(AY10,BA10,BC10)) -> 10 | BF10: =IF($C10="","",SUM(AZ10,BB10,BD10)) -> 27 | BG10: =IF($C10="","",SUM(BE10,BF10)) -> 37 | BH10: =IF($C10="","",SUM(J10,N10,R10,V10,Z10,AD10,AH10,AL10,AP10,AT10,AX10,BG10)) -> 403 | BI10: 3 | BJ10: 5 | BK10: 8 | BL10: =IF($C10="","",SUM(BI10,BJ10,BK10)) -> 16 | BM10: 3 | BN10: 6 | BO10: 8 | BP10: =IF($C10="","",SUM(BM10,BN10,BO10)) -> 17 | BQ10: =IF($C10="","",IF(BS10=0,"ناجحة",IF(BS10<=2,"دورثان","راسبة"))) -> ناجحة | BR10: =IF($C10="","",IF(BS10=0,"ومنقولة للصف الثالث",IF(BS10>0,"فى : "&CONCATENATE(BX10,BY10,BZ10,CA10,CB10,CC10,CD10,CE10,CF10,CG10,CH10,CI10,CJ10,CK10,CL10),CONCATENATE(BX10,BY10,BZ10,CA10,CB10,CC10,CD10,CE10,CF10,CG10,CH10,CI10,CJ10,CK10,CL10)))) -> ومنقولة للصف الثالث | BS10: =IF($C10="","",COUNTA($BX10:$CL10)-COUNTBLANK($BX10:$CL10)) -> 0 | BX10: =IF($C10="","",IF(OR(I10<$I$9,I10="غ",J10<$J$9),$BX$5&" - ","")) ->  | BY10: =IF($C10="","",IF(OR(M10<$M$9,M10="غ",N10<$N$9),$BY$5&" - ","")) ->  | BZ10: =IF($C10="","",IF(OR(Q10<$Q$9,Q10="غ",R10<$R$9),BZ$5&" - ","")) ->  | CA10: =IF($C10="","",IF(OR(U10<$U$9,U10="غ",V10<$V$9),CA$5&" - ","")) ->  | CB10: =IF($C10="","",IF(OR(Y10<$Y$9,Y10="غ",Z10<$Z$9),CB$5&" - ","")) ->  | CC10: =IF($C10="","",IF(OR(AC10<$AC$9,AC10="غ",AD10<$AD$9),CC$5&" - ","")) ->  | CD10: =IF($C10="","",IF(OR(AG10<$AG$9,AG10="غ",AH10<$AH$9),CD$5&" - ","")) ->  | CE10: =IF($C10="","",IF(OR(AK10<$AK$9,AK10="غ",AL10<$AL$9),CE$5&" - ","")) ->  | CF10: =IF($C10="","",IF(OR(AO10<$AO$9,AO10="غ",AP10<$AP$9),CF$5&" - ","")) ->  | CG10: =IF($C10="","",IF(OR(AS10<$AS$9,AS10="غ",AT10<$AT$9),CG$5&" - ","")) ->  | CH10: =IF($C10="","",IF(OR(AW10<$AW$9,AW10="غ",AX10<$AX$9),CH$5&" - ","")) ->  | CI10: =IF($C10="","",IF(OR(BE10<$BE$9,BE10="غ",BF10<$BF$9,BF10="غ",BG10<$BG$9),CI$5&" - ","")) ->  | CJ10: =IF($C10="","",IF(OR(BK10<$BK$9,BK10="غ",BL10<$BL$9),CJ$5&" - ","")) ->  | CK10: =IF($C10="","",IF(OR(BO10<$BO$9,BO10="غ",BP10<$BP$9),CK$5&" - ","")) ->  | CL10: =IF($C10="","",IF(BH10<$BH$9,CL$5,"")) ->  | CN10: =IF($C10="","",SUM(H10,L10,P10,T10,X10,AB10,AF10,AJ10,AN10,AR10,AV10,BA10,BB10)) -> 127
A11: 2 | B11: 702 | C11: طالبة ادارة صباحى 2 | D11: 1/2 | F11: 204 | G11: 9 | H11: 13 | I11: 15 | J11: 37 | K11: 8 | L11: 7 | M11: 12 | N11: 27 | O11: 4 | P11: 4 | Q11: 7 | R11: 15 | S11: 9 | T11: 15 | U11: 16 | V11: 40 | W11: 9 | X11: 17 | Y11: 18 | Z11: 44 | AA11: 9 | AB11: 12 | AC11: 20 | AD11: 41 | AE11: 9 | AF11: 16 | AG11: 17 | AH11: 42 | AI11: 10 | AJ11: 19 | AK11: 18 | AL11: 47 | AM11: 9 | AN11: 15 | AO11: 15 | AP11: 39 | AQ11: 10 | AR11: 18 | AS11: 19 | AT11: 47 | AU11: 9 | AV11: 17 | AW11: 18 | AX11: 44 | AY11: 4 | AZ11: 5 | BA11: 8 | BB11: 10 | BC11: 7 | BD11: 12 | BE11: 19 | BF11: 27 | BG11: 46 | BH11: 469 | BI11: 3 | BJ11: 5 | BK11: 8 | BL11: 16 | BM11: 3 | BN11: 8 | BO11: 7 | BP11: 18 | BQ11: ناجحة | BR11: ومنقولة للصف الثالث | BS11: 0 | CN11: 171
A12: 3 | B12: 703 | C12: طالبة ادارة صباحى 3 | D12: 4/2 | F12: 205 | G12: 9 | H12: 11 | I12: 13 | J12: 33 | K12: 8 | L12: 5 | M12: 9 | N12: 22 | O12: 4 | P12: 2 | Q12: 6 | R12: 12 | S12: 9 | T12: 15 | U12: 16 | V12: 40 | W12: 10 | X12: 20 | Y12: 19 | Z12: 49 | AA12: 9 | AB12: 20 | AC12: 20 | AD12: 49 | AE12: 9 | AF12: 17 | AG12: 17 | AH12: 43 | AI12: 9 | AJ12: 17 | AK12: 17 | AL12: 43 | AM12: 9 | AN12: 16 | AO12: 15 | AP12: 40 | AQ12: 9 | AR12: 18 | AS12: 17 | AT12: 44 | AU12: 10 | AV12: 19 | AW12: 19 | AX12: 48 | AY12: 4 | AZ12: 5 | BA12: 7 | BB12: 10 | BC12: 4 | BD12: 12 | BE12: 15 | BF12: 27 | BG12: 42 | BH12: 465 | BI12: 3 | BJ12: 6 | BK12: 8 | BL12: 17 | BM12: 3 | BN12: 8 | BO12: 6 | BP12: 17 | BQ12: ناجحة | BR12: ومنقولة للصف الثالث | BS12: 0 | CN12: 177
A13: 4 | B13: 704 | C13: طالبة ادارة صباحى 4 | D13: 4/2 | F13: 206 | G13: 9 | H13: 9 | I13: 13 | J13: 31 | K13: 8 | L13: 5 | M13: 7 | N13: 20 | O13: 4 | P13: 4 | Q13: 4 | R13: 12 | S13: 9 | T13: 11 | U13: 7 | V13: 27 | W13: 9 | X13: 10 | Y13: 16 | Z13: 35 | AA13: 9 | AB13: 8 | AC13: 8 | AD13: 25 | AE13: 9 | AF13: 15 | AG13: 18 | AH13: 42 | AI13: 9 | AJ13: 16 | AK13: 15 | AL13: 40 | AM13: 9 | AN13: 12 | AO13: 15 | AP13: 36 | AQ13: 9 | AR13: 18 | AS13: 17 | AT13: 44 | AU13: 10 | AV13: 20 | AW13: 19 | AX13: 49 | AY13: 3 | AZ13: 5 | BA13: 5 | BB13: 10 | BC13: 4 | BD13: 12 | BE13: 12 | BF13: 27 | BG13: 39 | BH13: 400 | BI13: 3 | BJ13: 5 | BK13: 8 | BL13: 16 | BM13: 3 | BN13: 5 | BO13: 3 | BP13: 11 | BQ13: ناجحة | BR13: ومنقولة للصف الثالث | BS13: 0 | CN13: 143
A14: 5 | B14: 705 | C14: طالبة ادارة صباحى 5 | D14: 1/2 | F14: 207 | G14: 9 | H14: 13 | I14: 17 | J14: 39 | K14: 8 | L14: 7 | M14: 8 | N14: 23 | O14: 4 | P14: 5 | Q14: 6 | R14: 15 | S14: 9 | T14: 9 | U14: 15 | V14: 33 | W14: 10 | X14: 20 | Y14: 20 | Z14: 50 | AA14: 9 | AB14: 16 | AC14: 19 | AD14: 44 | AE14: 9 | AF14: 16 | AG14: 19 | AH14: 44 | AI14: 10 | AJ14: 20 | AK14: 18 | AL14: 48 | AM14: 9 | AN14: 15 | AO14: 14 | AP14: 38 | AQ14: 10 | AR14: 18 | AS14: 19 | AT14: 47 | AU14: 10 | AV14: 19 | AW14: 18 | AX14: 47 | AY14: 3 | AZ14: 5 | BA14: 6 | BB14: 11 | BC14: 4 | BD14: 12 | BE14: 13 | BF14: 28 | BG14: 41 | BH14: 469 | BI14: 3 | BJ14: 7 | BK14: 8 | BL14: 18 | BM14: 3 | BN14: 5 | BO14: 5 | BP14: 13 | BQ14: ناجحة | BR14: ومنقولة للصف الثالث | BS14: 0 | CN14: 175
A15: 6 | B15: 706 | C15: طالبة ادارة صباحى 6 | D15: 6/2 | F15: 208 | G15: 9 | H15: 7 | I15: 9 | J15: 25 | K15: 8 | L15: 5 | M15: 7 | N15: 20 | O15: 4 | P15: 4 | Q15: 5 | R15: 13 | S15: 8 | T15: 11 | U15: 12 | V15: 31 | W15: 9 | X15: 4 | Y15: 20 | Z15: 33 | AA15: 9 | AB15: 12 | AC15: 16 | AD15: 37 | AE15: 9 | AF15: 11 | AG15: 19 | AH15: 39 | AI15: 9 | AJ15: 8 | AK15: 13 | AL15: 30 | AM15: 9 | AN15: 11 | AO15: 16 | AP15: 36 | AQ15: 9 | AR15: 18 | AS15: 14 | AT15: 41 | AU15: 10 | AV15: 19 | AW15: 18 | AX15: 47 | AY15: 2 | AZ15: 5 | BA15: 4 | BB15: 9 | BC15: 5 | BD15: 12 | BE15: 11 | BF15: 26 | BG15: 37 | BH15: 389 | BI15: 3 | BJ15: 3 | BK15: 7 | BL15: 13 | BM15: 3 | BN15: 4 | BO15: 3 | BP15: 10 | BQ15: ناجحة | BR15: ومنقولة للصف الثالث | BS15: 0 | CN15: 123
A16: 7 | B16: 707 | C16: طالبة ادارة صباحى 7 | D16: 5/2 | F16: 209 | G16: 9 | H16: 9 | I16: 12 | J16: 30 | K16: 8 | L16: 6 | M16: 6 | N16: 20 | O16: 4 | P16: 5 | Q16: 6 | R16: 15 | S16: 9 | T16: 7 | U16: 13 | V16: 29 | W16: 9 | X16: 8 | Y16: 20 | Z16: 37 | AA16: 10 | AB16: 18 | AC16: 19 | AD16: 47 | AE16: 9 | AF16: 8 | AG16: 20 | AH16: 37 | AI16: 9 | AJ16: 11 | AK16: 17 | AL16: 37 | AM16: 9 | AN16: 12 | AO16: 11 | AP16: 32 | AQ16: 9 | AR16: 17 | AS16: 18 | AT16: 44 | AU16: 9 | AV16: 17 | AW16: 18 | AX16: 44 | AY16: 2 | AZ16: 5 | BA16: 4 | BB16: 10 | BC16: 7 | BD16: 12 | BE16: 13 | BF16: 27 | BG16: 40 | BH16: 412 | BI16: 3 | BJ16: 5 | BK16: 8 | BL16: 16 | BM16: 3 | BN16: 4 | BO16: 6 | BP16: 13 | BQ16: ناجحة | BR16: ومنقولة للصف الثالث | BS16: 0 | CN16: 132
A17: 8 | B17: 708 | C17: طالبة ادارة صباحى 8 | D17: 7/2 | F17: 210 | G17: 9 | H17: 11 | I17: 13 | J17: 33 | K17: 8 | L17: 6 | M17: 6 | N17: 20 | O17: 4 | P17: 4 | Q17: 5 | R17: 13 | S17: 9 | T17: 9 | U17: 12 | V17: 30 | W17: 9 | X17: 10 | Y17: 19 | Z17: 38 | AA17: 9 | AB17: 9 | AC17: 19 | AD17: 37 | AE17: 9 | AF17: 15 | AG17: 20 | AH17: 44 | AI17: 9 | AJ17: 13 | AK17: 17 | AL17: 39 | AM17: 9 | AN17: 16 | AO17: 12 | AP17: 37 | AQ17: 9 | AR17: 17 | AS17: 16 | AT17: 42 | AU17: 10 | AV17: 17 | AW17: 19 | AX17: 46 | AY17: 3 | AZ17: 5 | BA17: 6 | BB17: 10 | BC17: 4 | BD17: 12 | BE17: 13 | BF17: 27 | BG17: 40 | BH17: 419 | BI17: 3 | BJ17: 6 | BK17: 8 | BL17: 17 | BM17: 3 | BN17: 3 | BO17: 6 | BP17: 12 | BQ17: ناجحة | BR17: ومنقولة للصف الثالث | BS17: 0 | CN17: 143
A18: 9 | B18: 709 | C18: طالبة ادارة صباحى 9 | D18: 1/2 | F18: 211 | G18: 9 | H18: 9 | I18: 9 | J18: 27 | K18: 8 | L18: 6 | M18: 6 | N18: 20 | O18: 4 | P18: 5 | Q18: 5 | R18: 14 | S18: 9 | T18: 16 | U18: 11 | V18: 36 | W18: 9 | X18: 14 | Y18: 20 | Z18: 43 | AA18: 9 | AB18: 16 | AC18: 14 | AD18: 39 | AE18: 10 | AF18: 16 | AG18: 20 | AH18: 46 | AI18: 9 | AJ18: 11 | AK18: 19 | AL18: 39 | AM18: 9 | AN18: 16 | AO18: 12 | AP18: 37 | AQ18: 10 | AR18: 18 | AS18: 19 | AT18: 47 | AU18: 10 | AV18: 19 | AW18: 17 | AX18: 46 | AY18: 3 | AZ18: 5 | BA18: 6 | BB18: 11 | BC18: 7 | BD18: 12 | BE18: 16 | BF18: 28 | BG18: 44 | BH18: 438 | BI18: 3 | BJ18: 5 | BK18: 7 | BL18: 15 | BM18: 3 | BN18: 3 | BO18: 4 | BP18: 10 | BQ18: ناجحة | BR18: ومنقولة للصف الثالث | BS18: 0 | CN18: 163
A19: 10 | B19: 710 | C19: طالبة ادارة صباحى 10 | D19: 1/2 | F19: 212 | G19: 9 | H19: 12 | I19: 15 | J19: 36 | K19: 8 | L19: 7 | M19: 8 | N19: 23 | O19: 5 | P19: 5 | Q19: 7 | R19: 17 | S19: 9 | T19: 12 | U19: 16 | V19: 37 | W19: 9 | X19: 14 | Y19: 20 | Z19: 43 | AA19: 9 | AB19: 12 | AC19: 18 | AD19: 39 | AE19: 10 | AF19: 16 | AG19: 20 | AH19: 46 | AI19: 9 | AJ19: 16 | AK19: 19 | AL19: 44 | AM19: 9 | AN19: 19 | AO19: 14 | AP19: 42 | AQ19: 10 | AR19: 18 | AS19: 18 | AT19: 46 | AU19: 10 | AV19: 19 | AW19: 18 | AX19: 47 | AY19: 4 | AZ19: 5 | BA19: 8 | BB19: 12 | BC19: 5 | BD19: 12 | BE19: 17 | BF19: 29 | BG19: 46 | BH19: 466 | BI19: 3 | BJ19: 6 | BK19: 8 | BL19: 17 | BM19: 3 | BN19: 6 | BO19: 5 | BP19: 14 | BQ19: ناجحة | BR19: ومنقولة للصف الثالث | BS19: 0 | CN19: 170
A20: 11 | B20: 711 | C20: طالبة ادارة صباحى 11 | D20: 1/2 | F20: 213 | G20: 9 | H20: 8 | I20: 14 | J20: 31 | K20: 8 | L20: 5 | M20: 7 | N20: 20 | O20: 4 | P20: 5 | Q20: 5 | R20: 14 | S20: 9 | T20: 11 | U20: 5 | V20: 25 | W20: 10 | X20: 17 | Y20: 19 | Z20: 46 | AA20: 9 | AB20: 8 | AC20: 8 | AD20: 25 | AE20: 9 | AF20: 14 | AG20: 19 | AH20: 42 | AI20: 9 | AJ20: 18 | AK20: 16 | AL20: 43 | AM20: 9 | AN20: 11 | AO20: 11 | AP20: 31 | AQ20: 10 | AR20: 18 | AS20: 19 | AT20: 47 | AU20: 9 | AV20: 16 | AW20: 17 | AX20: 42 | AY20: 4 | AZ20: 5 | BA20: 8 | BB20: 11 | BC20: 4 | BD20: 12 | BE20: 16 | BF20: 28 | BG20: 44 | BH20: 410 | BI20: 3 | BJ20: 5 | BK20: 8 | BL20: 16 | BM20: 3 | BN20: 4 | BO20: 7 | BP20: 14 | BQ20: ناجحة | BR20: ومنقولة للصف الثالث | BS20: 0 | CN20: 150
A21: 12 | B21: 712 | C21: طالبة ادارة صباحى 12 | D21: 3/2 | F21: 214 | G21: 9 | H21: 12 | I21: 15 | J21: 36 | K21: 8 | L21: 5 | M21: 11 | N21: 24 | O21: 4 | P21: 4 | Q21: 4 | R21: 12 | S21: 9 | T21: 11 | U21: 5 | V21: 25 | W21: 9 | X21: 7 | Y21: 14 | Z21: 30 | AA21: 9 | AB21: 5 | AC21: 12 | AD21: 26 | AE21: 9 | AF21: 9 | AG21: 18 | AH21: 36 | AI21: 9 | AJ21: 14 | AK21: 16 | AL21: 39 | AM21: 9 | AN21: 13 | AO21: 13 | AP21: 35 | AQ21: 10 | AR21: 18 | AS21: 19 | AT21: 47 | AU21: 10 | AV21: 17 | AW21: 19 | AX21: 46 | AY21: 2 | AZ21: 5 | BA21: 4 | BB21: 11 | BC21: 4 | BD21: 12 | BE21: 10 | BF21: 28 | BG21: 38 | BH21: 394 | BI21: 3 | BJ21: 5 | BK21: 8 | BL21: 16 | BM21: 3 | BN21: 5 | BO21: 7 | BP21: 15 | BQ21: ناجحة | BR21: ومنقولة للصف الثالث | BS21: 0 | CN21: 130
A22: 13 | B22: 713 | C22: طالبة ادارة صباحى 13 | D22: 4/2 | F22: 215 | G22: 9 | H22: 13 | I22: 13 | J22: 35 | K22: 8 | L22: 5 | M22: 10 | N22: 23 | O22: 4 | P22: 4 | Q22: 4 | R22: 12 | S22: 9 | T22: 13 | U22: 9 | V22: 31 | W22: 9 | X22: 10 | Y22: 17 | Z22: 36 | AA22: 9 | AB22: 6 | AC22: 14 | AD22: 29 | AE22: 9 | AF22: 14 | AG22: 19 | AH22: 42 | AI22: 9 | AJ22: 16 | AK22: 18 | AL22: 43 | AM22: 9 | AN22: 12 | AO22: 11 | AP22: 32 | AQ22: 10 | AR22: 19 | AS22: 17 | AT22: 46 | AU22: 10 | AV22: 17 | AW22: 19 | AX22: 46 | AY22: 2 | AZ22: 5 | BA22: 4 | BB22: 11 | BC22: 5 | BD22: 12 | BE22: 11 | BF22: 28 | BG22: 39 | BH22: 414 | BI22: 3 | BJ22: 5 | BK22: 8 | BL22: 16 | BM22: 3 | BN22: 6 | BO22: 6 | BP22: 15 | BQ22: ناجحة | BR22: ومنقولة للصف الثالث | BS22: 0 | CN22: 144
A23: 14 | B23: 714 | C23: طالبة ادارة صباحى 14 | D23: 6/2 | F23: 216 | G23: 9 | H23: 9 | I23: 13 | J23: 31 | K23: 8 | L23: 5 | M23: 7 | N23: 20 | O23: 4 | P23: 3 | Q23: 3 | R23: 10 | S23: 8 | T23: 10 | U23: 7 | V23: 25 | W23: 9 | X23: 6 | Y23: 10 | Z23: 25 | AA23: 9 | AB23: 9 | AC23: 7 | AD23: 25 | AE23: 9 | AF23: 15 | AG23: 11 | AH23: 35 | AI23: 9 | AJ23: 9 | AK23: 15 | AL23: 33 | AM23: 9 | AN23: 14 | AO23: 14 | AP23: 37 | AQ23: 9 | AR23: 13 | AS23: 17 | AT23: 39 | AU23: 9 | AV23: 17 | AW23: 16 | AX23: 42 | AY23: 3 | AZ23: 5 | BA23: 6 | BB23: 8 | BC23: 4 | BD23: 7 | BE23: 13 | BF23: 20 | BG23: 33 | BH23: 355 | BI23: 3 | BJ23: 4 | BK23: 8 | BL23: 15 | BM23: 3 | BN23: 7 | BO23: 4 | BP23: 14 | BQ23: ناجحة | BR23: ومنقولة للصف الثالث | BS23: 0 | CN23: 124
A24: 15 | B24: 715 | C24: طالبة ادارة صباحى 15 | D24: 4/2 | F24: 217 | G24: 9 | H24: 12 | I24: 14 | J24: 35 | K24: 8 | L24: 5 | M24: 8 | N24: 21 | O24: 4 | P24: 4 | Q24: 6 | R24: 14 | S24: 9 | T24: 17 | U24: 14 | V24: 40 | W24: 10 | X24: 20 | Y24: 20 | Z24: 50 | AA24: 10 | AB24: 19 | AC24: 20 | AD24: 49 | AE24: 9 | AF24: 17 | AG24: 17 | AH24: 43 | AI24: 10 | AJ24: 18 | AK24: 18 | AL24: 46 | AM24: 9 | AN24: 12 | AO24: 15 | AP24: 36 | AQ24: 9 | AR24: 18 | AS24: 16 | AT24: 43 | AU24: 10 | AV24: 19 | AW24: 17 | AX24: 46 | AY24: 2 | AZ24: 5 | BA24: 3 | BB24: 10 | BC24: 5 | BD24: 12 | BE24: 10 | BF24: 27 | BG24: 37 | BH24: 460 | BI24: 3 | BJ24: 8 | BK24: 8 | BL24: 19 | BM24: 3 | BN24: 4 | BO24: 3 | BP24: 10 | BQ24: ناجحة | BR24: ومنقولة للصف الثالث | BS24: 0 | CN24: 174
A25: 16 | B25: 716 | C25: طالبة ادارة صباحى 16 | D25: 3/2 | F25: 218 | G25: 9 | H25: 10 | I25: 14 | J25: 33 | K25: 8 | L25: 2 | M25: 10 | N25: 20 | O25: 4 | P25: 4 | Q25: 5 | R25: 13 | S25: 9 | T25: 8 | U25: 9 | V25: 26 | W25: 9 | X25: 7 | Y25: 14 | Z25: 30 | AA25: 9 | AB25: 6 | AC25: 19 | AD25: 34 | AE25: 9 | AF25: 10 | AG25: 18 | AH25: 37 | AI25: 9 | AJ25: 12 | AK25: 15 | AL25: 36 | AM25: 9 | AN25: 13 | AO25: 14 | AP25: 36 | AQ25: 9 | AR25: 18 | AS25: 16 | AT25: 43 | AU25: 9 | AV25: 16 | AW25: 17 | AX25: 42 | AY25: 3 | AZ25: 5 | BA25: 5 | BB25: 11 | BC25: 4 | BD25: 12 | BE25: 12 | BF25: 28 | BG25: 40 | BH25: 390 | BI25: 3 | BJ25: 5 | BK25: 8 | BL25: 16 | BM25: 3 | BN25: 4 | BO25: 6 | BP25: 13 | BQ25: ناجحة | BR25: ومنقولة للصف الثالث | BS25: 0 | CN25: 122
A26: 17 | B26: 717 | C26: طالبة ادارة صباحى 17 | D26: 4/2 | F26: 219 | G26: 9 | H26: 10 | I26: 6 | J26: 25 | K26: 8 | L26: 4 | M26: 8 | N26: 20 | O26: 4 | P26: 3 | Q26: 5 | R26: 12 | S26: 9 | T26: 11 | U26: 5 | V26: 25 | W26: 9 | X26: 3 | Y26: 13 | Z26: 25 | AA26: 9 | AB26: 3 | AC26: 14 | AD26: 26 | AE26: 9 | AF26: 10 | AG26: 17 | AH26: 36 | AI26: 9 | AJ26: 8 | AK26: 13 | AL26: 30 | AM26: 9 | AN26: 11 | AO26: 12 | AP26: 32 | AQ26: 9 | AR26: 18 | AS26: 16 | AT26: 43 | AU26: 9 | AV26: 17 | AW26: 14 | AX26: 40 | AY26: 2 | AZ26: 5 | BA26: 4 | BB26: 10 | BC26: 4 | BD26: 11 | BE26: 10 | BF26: 26 | BG26: 36 | BH26: 350 | BI26: 3 | BJ26: 5 | BK26: 8 | BL26: 16 | BM26: 3 | BN26: 4 | BO26: 3 | BP26: 10 | BQ26: ناجحة | BR26: ومنقولة للصف الثالث | BS26: 0 | CN26: 112
A27: 18 | B27: 718 | C27: طالبة ادارة صباحى 18 | D27: 1/2 | F27: 220 | G27: 9 | H27: 12 | I27: 14 | J27: 35 | K27: 8 | L27: 6 | M27: 9 | N27: 23 | O27: 4 | P27: 4 | Q27: 5 | R27: 13 | S27: 9 | T27: 10 | U27: 11 | V27: 30 | W27: 9 | X27: 8 | Y27: 15 | Z27: 32 | AA27: 9 | AB27: 7 | AC27: 18 | AD27: 34 | AE27: 9 | AF27: 16 | AG27: 19 | AH27: 44 | AI27: 9 | AJ27: 18 | AK27: 14 | AL27: 41 | AM27: 9 | AN27: 9 | AO27: 13 | AP27: 31 | AQ27: 10 | AR27: 19 | AS27: 20 | AT27: 49 | AU27: 10 | AV27: 17 | AW27: 19 | AX27: 46 | AY27: 3 | AZ27: 5 | BA27: 6 | BB27: 12 | BC27: 4 | BD27: 12 | BE27: 13 | BF27: 29 | BG27: 42 | BH27: 420 | BI27: 3 | BJ27: 5 | BK27: 8 | BL27: 16 | BM27: 3 | BN27: 6 | BO27: 7 | BP27: 16 | BQ27: ناجحة | BR27: ومنقولة للصف الثالث | BS27: 0 | CN27: 144
A28: 19 | B28: 719 | C28: طالبة ادارة صباحى 19 | D28: 5/2 | F28: 221 | G28: 9 | H28: 10 | I28: 12 | J28: 31 | K28: 8 | L28: 3 | M28: 9 | N28: 20 | O28: 4 | P28: 4 | Q28: 6 | R28: 14 | S28: 9 | T28: 12 | U28: 13 | V28: 34 | W28: 9 | X28: 13 | Y28: 17 | Z28: 39 | AA28: 9 | AB28: 10 | AC28: 19 | AD28: 38 | AE28: 9 | AF28: 11 | AG28: 18 | AH28: 38 | AI28: 9 | AJ28: 19 | AK28: 20 | AL28: 48 | AM28: 9 | AN28: 15 | AO28: 13 | AP28: 37 | AQ28: 9 | AR28: 17 | AS28: 17 | AT28: 43 | AU28: 10 | AV28: 19 | AW28: 18 | AX28: 47 | AY28: 2 | AZ28: 5 | BA28: 4 | BB28: 12 | BC28: 4 | BD28: 12 | BE28: 10 | BF28: 29 | BG28: 39 | BH28: 428 | BI28: 3 | BJ28: 5 | BK28: 8 | BL28: 16 | BM28: 3 | BN28: 5 | BO28: 5 | BP28: 13 | BQ28: ناجحة | BR28: ومنقولة للصف الثالث | BS28: 0 | CN28: 149
A29: 20 | B29: 720 | C29: طالبة ادارة صباحى 20 | D29: 3/2 | F29: 222 | G29: 9 | H29: 9 | I29: 11 | J29: 29 | K29: 8 | L29: 4 | M29: 8 | N29: 20 | O29: 4 | P29: 4 | Q29: 5 | R29: 13 | S29: 9 | T29: 4 | U29: 0 | V29: 13 | W29: 9 | X29: 2 | Y29: 1 | Z29: 12 | AA29: 9 | AB29: 0 | AC29: 6 | AD29: 15 | AE29: 9 | AF29: 6 | AG29: 15 | AH29: 30 | AI29: 9 | AJ29: 8 | AK29: 14 | AL29: 31 | AM29: 9 | AN29: 9 | AO29: 15 | AP29: 33 | AQ29: 9 | AR29: 17 | AS29: 18 | AT29: 44 | AU29: 9 | AV29: 15 | AW29: 20 | AX29: 44 | AY29: 2 | AZ29: 5 | BA29: 4 | BB29: 8 | BC29: 5 | BD29: 9 | BE29: 11 | BF29: 22 | BG29: 33 | BH29: 317 | BI29: 3 | BJ29: 4 | BK29: 8 | BL29: 15 | BM29: 3 | BN29: 4 | BO29: 4 | BP29: 11 | BQ29: راسبة | BR29: فى : محاسبة - احصاء - رياضة مالية - | BS29: 3 | CA29: محاسبة - | CB29: احصاء - | CC29: رياضة مالية - | CN29: 90
A30: 21 | B30: 721 | C30: طالبة ادارة صباحى 21 | D30: 4/2 | F30: 223 | G30: 9 | H30: 9 | I30: 12 | J30: 30 | K30: 8 | L30: 4 | M30: 8 | N30: 20 | O30: 4 | P30: 4 | Q30: 3 | R30: 11 | S30: 3 | T30: 8 | U30: 2 | V30: 13 | W30: 9 | X30: 5 | Y30: 4 | Z30: 18 | AA30: 9 | AB30: 9 | AC30: 7 | AD30: 25 | AE30: 9 | AF30: 8 | AG30: 16 | AH30: 33 | AI30: 9 | AJ30: 7 | AK30: 14 | AL30: 30 | AM30: 9 | AN30: 12 | AO30: 13 | AP30: 34 | AQ30: 9 | AR30: 17 | AS30: 18 | AT30: 44 | AU30: 9 | AV30: 13 | AW30: 17 | AX30: 39 | AY30: 2 | AZ30: 5 | BA30: 5 | BB30: 9 | BC30: 4 | BD30: 8 | BE30: 11 | BF30: 22 | BG30: 33 | BH30: 330 | BI30: 3 | BJ30: 5 | BK30: 8 | BL30: 16 | BM30: 3 | BN30: 5 | BO30: 3 | BP30: 11 | BQ30: دورثان | BR30: فى : محاسبة - احصاء - | BS30: 2 | CA30: محاسبة - | CB30: احصاء - | CN30: 110
A31: 22 | B31: 722 | C31: طالبة ادارة صباحى 22 | D31: 6/2 | F31: 224 | G31: 9 | H31: 10 | I31: 14 | J31: 33 | K31: 8 | L31: 5 | M31: 10 | N31: 23 | O31: 4 | P31: 5 | Q31: 4 | R31: 13 | S31: 9 | T31: 8 | U31: 13 | V31: 30 | W31: 9 | X31: 6 | Y31: 10 | Z31: 25 | AA31: 9 | AB31: 7 | AC31: 12 | AD31: 28 | AE31: 9 | AF31: 7 | AG31: 15 | AH31: 31 | AI31: 9 | AJ31: 11 | AK31: 15 | AL31: 35 | AM31: 9 | AN31: 11 | AO31: 13 | AP31: 33 | AQ31: 9 | AR31: 17 | AS31: 18 | AT31: 44 | AU31: 9 | AV31: 14 | AW31: 18 | AX31: 41 | AY31: 2 | AZ31: 5 | BA31: 4 | BB31: 9 | BC31: 4 | BD31: 9 | BE31: 10 | BF31: 23 | BG31: 33 | BH31: 369 | BI31: 3 | BJ31: 6 | BK31: 8 | BL31: 17 | BM31: 3 | BN31: 5 | BO31: 4 | BP31: 12 | BQ31: ناجحة | BR31: ومنقولة للصف الثالث | BS31: 0 | CN31: 114
A32: 23 | B32: 723 | C32: طالبة ادارة صباحى 23 | D32: 7/2 | F32: 225 | G32: 10 | H32: 14 | I32: 17 | J32: 41 | K32: 8 | L32: 7 | M32: 5 | N32: 20 | O32: 4 | P32: 4 | Q32: 5 | R32: 13 | S32: 9 | T32: 11 | U32: 8 | V32: 28 | W32: 9 | X32: 11 | Y32: 12 | Z32: 32 | AA32: 9 | AB32: 14 | AC32: 15 | AD32: 38 | AE32: 9 | AF32: 16 | AG32: 16 | AH32: 41 | AI32: 10 | AJ32: 18 | AK32: 18 | AL32: 46 | AM32: 9 | AN32: 16 | AO32: 14 | AP32: 39 | AQ32: 10 | AR32: 18 | AS32: 20 | AT32: 48 | AU32: 10 | AV32: 18 | AW32: 19 | AX32: 47 | AY32: 3 | AZ32: 5 | BA32: 5 | BB32: 7 | BC32: 4 | BD32: 7 | BE32: 12 | BF32: 19 | BG32: 31 | BH32: 424 | BI32: 3 | BJ32: 7 | BK32: 8 | BL32: 18 | BM32: 3 | BN32: 5 | BO32: 5 | BP32: 13 | BQ32: ناجحة | BR32: ومنقولة للصف الثالث | BS32: 0 | CN32: 159
A33: 24 | B33: 724 | C33: طالبة ادارة صباحى 24 | D33: 2/2 | F33: 226 | G33: 10 | H33: 15 | I33: 17 | J33: 42 | K33: 8 | L33: 7 | M33: 9 | N33: 24 | O33: 4 | P33: 5 | Q33: 5 | R33: 14 | S33: 10 | T33: 20 | U33: 20 | V33: 50 | W33: 10 | X33: 20 | Y33: 20 | Z33: 50 | AA33: 10 | AB33: 20 | AC33: 20 | AD33: 50 | AE33: 9 | AF33: 16 | AG33: 18 | AH33: 43 | AI33: 10 | AJ33: 20 | AK33: 18 | AL33: 48 | AM33: 9 | AN33: 17 | AO33: 15 | AP33: 41 | AQ33: 10 | AR33: 18 | AS33: 20 | AT33: 48 | AU33: 10 | AV33: 19 | AW33: 18 | AX33: 47 | AY33: 4 | AZ33: 5 | BA33: 8 | BB33: 8 | BC33: 4 | BD33: 5 | BE33: 16 | BF33: 18 | BG33: 34 | BH33: 491 | BI33: 3 | BJ33: 7 | BK33: 8 | BL33: 18 | BM33: 3 | BN33: 7 | BO33: 5 | BP33: 15 | BQ33: ناجحة | BR33: ومنقولة للصف الثالث | BS33: 0 | CN33: 193
A34: 25 | B34: 725 | C34: طالبة ادارة صباحى 25 | D34: 6/2 | F34: 227 | G34: 10 | H34: 13 | I34: 17 | J34: 40 | K34: 8 | L34: 6 | M34: 6 | N34: 20 | O34: 4 | P34: 5 | Q34: 6 | R34: 15 | S34: 9 | T34: 10 | U34: 16 | V34: 35 | W34: 9 | X34: 8 | Y34: 15 | Z34: 32 | AA34: 9 | AB34: 12 | AC34: 18 | AD34: 39 | AE34: 9 | AF34: 15 | AG34: 17 | AH34: 41 | AI34: 9 | AJ34: 12 | AK34: 14 | AL34: 35 | AM34: 9 | AN34: 13 | AO34: 14 | AP34: 36 | AQ34: 9 | AR34: 14 | AS34: 19 | AT34: 42 | AU34: 10 | AV34: 18 | AW34: 18 | AX34: 46 | AY34: 2 | AZ34: 5 | BA34: 4 | BB34: 5 | BC34: 4 | BD34: 5 | BE34: 10 | BF34: 15 | BG34: 25 | BH34: 406 | BI34: 3 | BJ34: 6 | BK34: 5 | BL34: 14 | BM34: 3 | BN34: 3 | BO34: 4 | BP34: 10 | BQ34: ناجحة | BR34: ومنقولة للصف الثالث | BS34: 0 | CN34: 135
A35: 26 | B35: 726 | C35: طالبة ادارة صباحى 26 | D35: 7/2 | F35: 228 | G35: 9 | H35: 9 | I35: 14 | J35: 32 | K35: 8 | L35: 2 | M35: 3 | N35: 13 | O35: 4 | P35: 5 | Q35: 5 | R35: 14 | S35: 9 | T35: 6 | U35: 11 | V35: 26 | W35: 9 | X35: 3 | Y35: 6 | Z35: 18 | AA35: 9 | AB35: 1 | AC35: 3 | AD35: 13 | AE35: 9 | AF35: 14 | AG35: 16 | AH35: 39 | AI35: 9 | AJ35: 6 | AK35: 12 | AL35: 27 | AM35: 9 | AN35: 8 | AO35: 14 | AP35: 31 | AQ35: 10 | AR35: 17 | AS35: 20 | AT35: 47 | AU35: 10 | AV35: 19 | AW35: 17 | AX35: 46 | AY35: 2 | AZ35: 5 | BA35: 4 | BB35: 5 | BC35: 5 | BD35: 5 | BE35: 11 | BF35: 15 | BG35: 26 | BH35: 332 | BI35: 3 | BJ35: 6 | BK35: 8 | BL35: 17 | BM35: 3 | BN35: 3 | BO35: 5 | BP35: 11 | BQ35: راسبة | BR35: فى : انجليزى - احصاء - رياضة مالية - | BS35: 3 | BY35: انجليزى - | CB35: احصاء - | CC35: رياضة مالية - | CN35: 99
A36: 27 | B36: 727 | C36: طالبة ادارة صباحى 27 | D36: 3/2 | F36: 229 | G36: 9 | H36: 11 | I36: 12 | J36: 32 | K36: 8 | L36: 5 | M36: 7 | N36: 20 | O36: 4 | P36: 4 | Q36: 6 | R36: 14 | S36: 9 | T36: 11 | U36: 13 | V36: 33 | W36: 9 | X36: 6 | Y36: 10 | Z36: 25 | AA36: 9 | AB36: 3 | AC36: 18 | AD36: 30 | AE36: 9 | AF36: 10 | AG36: 18 | AH36: 37 | AI36: 9 | AJ36: 8 | AK36: 17 | AL36: 34 | AM36: 9 | AN36: 9 | AO36: 14 | AP36: 32 | AQ36: 9 | AR36: 16 | AS36: 19 | AT36: 44 | AU36: 9 | AV36: 16 | AW36: 19 | AX36: 44 | AY36: 3 | AZ36: 5 | BA36: 6 | BB36: 9 | BC36: 4 | BD36: 10 | BE36: 13 | BF36: 24 | BG36: 37 | BH36: 382 | BI36: 3 | BJ36: 7 | BK36: 8 | BL36: 18 | BM36: 3 | BN36: 4 | BO36: 3 | BP36: 10 | BQ36: ناجحة | BR36: ومنقولة للصف الثالث | BS36: 0 | CN36: 114
A37: 28 | B37: 728 | C37: طالبة ادارة صباحى 28 | D37: 1/2 | F37: 230 | G37: 9 | H37: 10 | I37: 13 | J37: 32 | K37: 8 | L37: 7 | M37: 6 | N37: 21 | O37: 4 | P37: 5 | Q37: 5 | R37: 14 | S37: 9 | T37: 12 | U37: 16 | V37: 37 | W37: 9 | X37: 11 | Y37: 11 | Z37: 31 | AA37: 9 | AB37: 5 | AC37: 11 | AD37: 25 | AE37: 9 | AF37: 12 | AG37: 18 | AH37: 39 | AI37: 9 | AJ37: 15 | AK37: 17 | AL37: 41 | AM37: 9 | AN37: 14 | AO37: 15 | AP37: 38 | AQ37: 10 | AR37: 18 | AS37: 20 | AT37: 48 | AU37: 10 | AV37: 18 | AW37: 18 | AX37: 46 | AY37: 2 | AZ37: 5 | BA37: 4 | BB37: 10 | BC37: 4 | BD37: 10 | BE37: 10 | BF37: 25 | BG37: 35 | BH37: 407 | BI37: 3 | BJ37: 7 | BK37: 8 | BL37: 18 | BM37: 3 | BN37: 4 | BO37: 6 | BP37: 13 | BQ37: ناجحة | BR37: ومنقولة للصف الثالث | BS37: 0 | CN37: 141
A38: 29 | B38: 729 | C38: طالبة ادارة صباحى 29 | D38: 2/2 | F38: 231 | G38: 9 | H38: 13 | I38: 16 | J38: 38 | K38: 8 | L38: 5 | M38: 8 | N38: 21 | O38: 4 | P38: 5 | Q38: 6 | R38: 15 | S38: 9 | T38: 19 | U38: 13 | V38: 41 | W38: 9 | X38: 4 | Y38: 16 | Z38: 29 | AA38: 9 | AB38: 9 | AC38: 16 | AD38: 34 | AE38: 9 | AF38: 10 | AG38: 19 | AH38: 38 | AI38: 9 | AJ38: 15 | AK38: 19 | AL38: 43 | AM38: 9 | AN38: 15 | AO38: 15 | AP38: 39 | AQ38: 10 | AR38: 18 | AS38: 20 | AT38: 48 | AU38: 9 | AV38: 16 | AW38: 18 | AX38: 43 | AY38: 2 | AZ38: 5 | BA38: 4 | BB38: 9 | BC38: 4 | BD38: 10 | BE38: 10 | BF38: 24 | BG38: 34 | BH38: 423 | BI38: 3 | BJ38: 8 | BK38: 8 | BL38: 19 | BM38: 3 | BN38: 6 | BO38: 8 | BP38: 17 | BQ38: ناجحة | BR38: ومنقولة للصف الثالث | BS38: 0 | CN38: 142
A39: 30 | B39: 730 | C39: طالبة ادارة صباحى 30 | D39: 2/2 | F39: 232 | G39: 9 | H39: 12 | I39: 12 | J39: 33 | K39: 8 | L39: 7 | M39: 5 | N39: 20 | O39: 4 | P39: 5 | Q39: 6 | R39: 15 | S39: 9 | T39: 10 | U39: 14 | V39: 33 | W39: 9 | X39: 5 | Y39: 12 | Z39: 26 | AA39: 9 | AB39: 5 | AC39: 11 | AD39: 25 | AE39: 9 | AF39: 10 | AG39: 17 | AH39: 36 | AI39: 9 | AJ39: 13 | AK39: 14 | AL39: 36 | AM39: 9 | AN39: 16 | AO39: 13 | AP39: 38 | AQ39: 10 | AR39: 16 | AS39: 20 | AT39: 46 | AU39: 9 | AV39: 12 | AW39: 19 | AX39: 40 | AY39: 2 | AZ39: 5 | BA39: 4 | BB39: 7 | BC39: 4 | BD39: 8 | BE39: 10 | BF39: 20 | BG39: 30 | BH39: 378 | BI39: 3 | BJ39: 5 | BK39: 8 | BL39: 16 | BM39: 3 | BN39: 5 | BO39: 7 | BP39: 15 | BQ39: ناجحة | BR39: ومنقولة للصف الثالث | BS39: 0 | CN39: 122
A40: 31 | B40: 731 | C40: طالبة ادارة صباحى 31 | D40: 5/2 | F40: 233 | G40: 9 | H40: 7 | I40: 10 | J40: 26 | K40: 8 | L40: 1 | M40: 1 | N40: 10 | O40: 4 | P40: 2 | Q40: 4 | R40: 10 | S40: 9 | T40: 6 | U40: 2 | V40: 17 | W40: 9 | X40: 0 | Y40: 6 | Z40: 15 | AA40: 9 | AB40: 1 | AC40: 0 | AD40: 10 | AE40: 9 | AF40: 10 | AG40: 16 | AH40: 35 | AI40: 9 | AJ40: 5 | AK40: 11 | AL40: 25 | AM40: 9 | AN40: 9 | AO40: 11 | AP40: 29 | AQ40: 9 | AR40: 14 | AS40: 20 | AT40: 43 | AU40: 9 | AV40: 16 | AW40: 12 | AX40: 37 | AY40: 2 | AZ40: 5 | BA40: 4 | BB40: 8 | BC40: 4 | BD40: 6 | BE40: 10 | BF40: 19 | BG40: 29 | BH40: 286 | BI40: 3 | BJ40: 7 | BK40: 8 | BL40: 18 | BM40: 3 | BN40: 4 | BO40: 3 | BP40: 10 | BQ40: راسبة | BR40: فى : انجليزى - محاسبة - احصاء - رياضة مالية - مجموع | BS40: 5 | BY40: انجليزى - | CA40: محاسبة - | CB40: احصاء - | CC40: رياضة مالية - | CL40: مجموع | CN40: 83
A41: 32 | B41: 732 | C41: طالبة ادارة صباحى 32 | D41: 6/2 | F41: 234 | G41: غ | H41: غ | I41: غ | J41: 0 | K41: غ | L41: غ | M41: غ | N41: 0 | O41: غ | P41: غ | Q41: غ | R41: 0 | S41: غ | T41: غ | U41: غ | V41: 0 | W41: غ | X41: غ | Y41: غ | Z41: 0 | AA41: غ | AB41: غ | AC41: غ | AD41: 0 | AE41: غ | AF41: غ | AG41: غ | AH41: 0 | AI41: غ | AJ41: غ | AK41: غ | AL41: 0 | AM41: غ | AN41: غ | AO41: غ | AP41: 0 | AQ41: غ | AR41: غ | AS41: غ | AT41: 0 | AU41: غ | AV41: غ | AW41: غ | AX41: 0 | AY41: غ | AZ41: غ | BA41: غ | BB41: غ | BC41: غ | BD41: غ | BE41: 0 | BF41: 0 | BG41: 0 | BH41: 0 | BI41: غ | BJ41: غ | BK41: غ | BL41: 0 | BM41: غ | BN41: غ | BO41: غ | BP41: 0 | BQ41: راسبة | BR41: فى : عربى - انجليزى - فرنسى - محاسبة - احصاء - رياضة مالية - اقتصاد - سكرتارية . ع - سكرتارية . ف - مشروعات - مخازن - حاسب - مواطنة - دين - مجموع | BS41: 15 | BX41: عربى - | BY41: انجليزى - | BZ41: فرنسى - | CA41: محاسبة - | CB41: احصاء - | CC41: رياضة مالية - | CD41: اقتصاد - | CE41: سكرتارية . ع - | CF41: سكرتارية . ف - | CG41: مشروعات - | CH41: مخازن - | CI41: حاسب - | CJ41: مواطنة - | CK41: دين - | CL41: مجموع | CN41: 0
A42: 33 | B42: 733 | C42: طالبة ادارة صباحى 33 | D42: 4/2 | F42: 235 | G42: 9 | H42: 8 | I42: 12 | J42: 29 | K42: 8 | L42: 3 | M42: 5 | N42: 16 | O42: 4 | P42: 6 | Q42: 5 | R42: 15 | S42: 9 | T42: 7 | U42: 14 | V42: 30 | W42: 9 | X42: 6 | Y42: 10 | Z42: 25 | AA42: 9 | AB42: 1 | AC42: 8 | AD42: 18 | AE42: 9 | AF42: 9 | AG42: 17 | AH42: 35 | AI42: 9 | AJ42: 6 | AK42: 12 | AL42: 27 | AM42: 9 | AN42: 10 | AO42: 14 | AP42: 33 | AQ42: 10 | AR42: 19 | AS42: 19 | AT42: 48 | AU42: 9 | AV42: 15 | AW42: 19 | AX42: 43 | AY42: 3 | AZ42: 5 | BA42: 5 | BB42: 7 | BC42: 4 | BD42: 5 | BE42: 12 | BF42: 17 | BG42: 29 | BH42: 348 | BI42: 3 | BJ42: 6 | BK42: 8 | BL42: 17 | BM42: 3 | BN42: 4 | BO42: 3 | BP42: 10 | BQ42: دورثان | BR42: فى : انجليزى - رياضة مالية - | BS42: 2 | BY42: انجليزى - | CC42: رياضة مالية - | CN42: 102
A43: 34 | B43: 734 | C43: طالبة ادارة صباحى 34 | D43: 7/2 | F43: 236 | G43: 9 | H43: 14 | I43: 14 | J43: 37 | K43: 8 | L43: 5 | M43: 7 | N43: 20 | O43: 4 | P43: 4 | Q43: 6 | R43: 14 | S43: 9 | T43: 8 | U43: 15 | V43: 32 | W43: 9 | X43: 10 | Y43: 13 | Z43: 32 | AA43: 9 | AB43: 10 | AC43: 9 | AD43: 28 | AE43: 9 | AF43: 11 | AG43: 17 | AH43: 37 | AI43: 9 | AJ43: 18 | AK43: 17 | AL43: 44 | AM43: 9 | AN43: 14 | AO43: 15 | AP43: 38 | AQ43: 10 | AR43: 17 | AS43: 20 | AT43: 47 | AU43: 9 | AV43: 15 | AW43: 18 | AX43: 42 | AY43: 2 | AZ43: 5 | BA43: 4 | BB43: 8 | BC43: 7 | BD43: 9 | BE43: 13 | BF43: 22 | BG43: 35 | BH43: 406 | BI43: 3 | BJ43: 7 | BK43: 8 | BL43: 18 | BM43: 3 | BN43: 6 | BO43: 7 | BP43: 16 | BQ43: ناجحة | BR43: ومنقولة للصف الثالث | BS43: 0 | CN43: 138
A44: 35 | B44: 735 | C44: طالبة ادارة صباحى 35 | D44: 6/2 | F44: 237 | G44: 9 | H44: 12 | I44: 15 | J44: 36 | K44: 8 | L44: 5 | M44: 8 | N44: 21 | O44: 5 | P44: 6 | Q44: 7 | R44: 18 | S44: 9 | T44: 14 | U44: 16 | V44: 39 | W44: 10 | X44: 17 | Y44: 20 | Z44: 47 | AA44: 9 | AB44: 17 | AC44: 9 | AD44: 35 | AE44: 9 | AF44: 11 | AG44: 15 | AH44: 35 | AI44: 9 | AJ44: 14 | AK44: 19 | AL44: 42 | AM44: 9 | AN44: 13 | AO44: 13 | AP44: 35 | AQ44: 10 | AR44: 17 | AS44: 19 | AT44: 46 | AU44: 10 | AV44: 19 | AW44: 18 | AX44: 47 | AY44: 3 | AZ44: 5 | BA44: 6 | BB44: 6 | BC44: 5 | BD44: 4 | BE44: 14 | BF44: 15 | BG44: 29 | BH44: 430 | BI44: 3 | BJ44: 8 | BK44: 7 | BL44: 18 | BM44: 3 | BN44: 5 | BO44: 5 | BP44: 13 | BQ44: ناجحة | BR44: ومنقولة للصف الثالث | BS44: 0 | CN44: 157
A45: 36 | B45: 736 | C45: طالبة ادارة صباحى 36 | D45: 2/2 | F45: 238 | G45: 9 | H45: 13 | I45: 16 | J45: 38 | K45: 8 | L45: 5 | M45: 7 | N45: 20 | O45: 4 | P45: 4 | Q45: 5 | R45: 13 | S45: 9 | T45: 14 | U45: 17 | V45: 40 | W45: 10 | X45: 18 | Y45: 20 | Z45: 48 | AA45: 10 | AB45: 18 | AC45: 20 | AD45: 48 | AE45: 9 | AF45: 15 | AG45: 18 | AH45: 42 | AI45: 10 | AJ45: 18 | AK45: 19 | AL45: 47 | AM45: 9 | AN45: 13 | AO45: 14 | AP45: 36 | AQ45: 10 | AR45: 18 | AS45: 19 | AT45: 47 | AU45: 10 | AV45: 18 | AW45: 19 | AX45: 47 | AY45: 2 | AZ45: 5 | BA45: 4 | BB45: 10 | BC45: 4 | BD45: 8 | BE45: 10 | BF45: 23 | BG45: 33 | BH45: 459 | BI45: 3 | BJ45: 5 | BK45: 8 | BL45: 16 | BM45: 3 | BN45: 6 | BO45: 4 | BP45: 13 | BQ45: ناجحة | BR45: ومنقولة للصف الثالث | BS45: 0 | CN45: 168
A46: 37 | B46: 737 | C46: طالبة ادارة صباحى 37 | D46: 6/2 | F46: 239 | G46: 10 | H46: 15 | I46: 19 | J46: 44 | K46: 8 | L46: 8 | M46: 11 | N46: 27 | O46: 4 | P46: 5 | Q46: 6 | R46: 15 | S46: 9 | T46: 15 | U46: 17 | V46: 41 | W46: 9 | X46: 16 | Y46: 19 | Z46: 44 | AA46: 9 | AB46: 13 | AC46: 17 | AD46: 39 | AE46: 9 | AF46: 15 | AG46: 16 | AH46: 40 | AI46: 9 | AJ46: 19 | AK46: 17 | AL46: 45 | AM46: 9 | AN46: 18 | AO46: 14 | AP46: 41 | AQ46: 10 | AR46: 18 | AS46: 20 | AT46: 48 | AU46: 10 | AV46: 19 | AW46: 20 | AX46: 49 | AY46: 3 | AZ46: 5 | BA46: 5 | BB46: 8 | BC46: 5 | BD46: 4 | BE46: 13 | BF46: 17 | BG46: 30 | BH46: 463 | BI46: 3 | BJ46: 5 | BK46: 8 | BL46: 16 | BM46: 3 | BN46: 5 | BO46: 7 | BP46: 15 | BQ46: ناجحة | BR46: ومنقولة للصف الثالث | BS46: 0 | CN46: 174
A47: 38 | B47: 738 | C47: طالبة ادارة صباحى 38 | D47: 2/2 | F47: 240 | G47: 9 | H47: 13 | I47: 14 | J47: 36 | K47: 8 | L47: 6 | M47: 6 | N47: 20 | O47: 4 | P47: 5 | Q47: 5 | R47: 14 | S47: 9 | T47: 17 | U47: 15 | V47: 41 | W47: 9 | X47: 15 | Y47: 6 | Z47: 30 | AA47: 9 | AB47: 8 | AC47: 9 | AD47: 26 | AE47: 9 | AF47: 14 | AG47: 13 | AH47: 36 | AI47: 9 | AJ47: 19 | AK47: 12 | AL47: 40 | AM47: 9 | AN47: 17 | AO47: 16 | AP47: 42 | AQ47: 10 | AR47: 16 | AS47: 20 | AT47: 46 | AU47: 10 | AV47: 18 | AW47: 19 | AX47: 47 | AY47: 2 | AZ47: 5 | BA47: 4 | BB47: 6 | BC47: 6 | BD47: 8 | BE47: 12 | BF47: 19 | BG47: 31 | BH47: 409 | BI47: 3 | BJ47: 7 | BK47: 8 | BL47: 18 | BM47: 3 | BN47: 5 | BO47: 3 | BP47: 11 | BQ47: ناجحة | BR47: ومنقولة للصف الثالث | BS47: 0 | CN47: 158
A48: 39 | B48: 739 | C48: طالبة ادارة صباحى 39 | D48: 7/2 | F48: 241 | G48: غ | H48: غ | I48: غ | J48: 0 | K48: غ | L48: غ | M48: غ | N48: 0 | O48: غ | P48: غ | Q48: غ | R48: 0 | S48: غ | T48: غ | U48: غ | V48: 0 | W48: غ | X48: غ | Y48: غ | Z48: 0 | AA48: غ | AB48: غ | AC48: غ | AD48: 0 | AE48: غ | AF48: غ | AG48: غ | AH48: 0 | AI48: غ | AJ48: غ | AK48: غ | AL48: 0 | AM48: غ | AN48: غ | AO48: غ | AP48: 0 | AQ48: غ | AR48: غ | AS48: غ | AT48: 0 | AU48: غ | AV48: غ | AW48: غ | AX48: 0 | AY48: غ | AZ48: غ | BA48: غ | BB48: غ | BC48: غ | BD48: غ | BE48: 0 | BF48: 0 | BG48: 0 | BH48: 0 | BI48: غ | BJ48: غ | BK48: غ | BL48: 0 | BM48: غ | BN48: غ | BO48: غ | BP48: 0 | BQ48: راسبة | BR48: فى : عربى - انجليزى - فرنسى - محاسبة - احصاء - رياضة مالية - اقتصاد - سكرتارية . ع - سكرتارية . ف - مشروعات - مخازن - حاسب - مواطنة - دين - مجموع | BS48: 15 | BX48: عربى - | BY48: انجليزى - | BZ48: فرنسى - | CA48: محاسبة - | CB48: احصاء - | CC48: رياضة مالية - | CD48: اقتصاد - | CE48: سكرتارية . ع - | CF48: سكرتارية . ف - | CG48: مشروعات - | CH48: مخازن - | CI48: حاسب - | CJ48: مواطنة - | CK48: دين - | CL48: مجموع | CN48: 0
A49: 40 | B49: 740 | C49: طالبة ادارة صباحى 40 | D49: 4/2 | F49: 242 | G49: 9 | H49: 10 | I49: 13 | J49: 32 | K49: 8 | L49: 5 | M49: 7 | N49: 20 | O49: 4 | P49: 5 | Q49: 5 | R49: 14 | S49: 3 | T49: 13 | U49: 15 | V49: 31 | W49: 9 | X49: 14 | Y49: 20 | Z49: 43 | AA49: 9 | AB49: 12 | AC49: 20 | AD49: 41 | AE49: 9 | AF49: 15 | AG49: 17 | AH49: 41 | AI49: 10 | AJ49: 19 | AK49: 17 | AL49: 46 | AM49: 9 | AN49: 14 | AO49: 13 | AP49: 36 | AQ49: 10 | AR49: 18 | AS49: 18 | AT49: 46 | AU49: 10 | AV49: 18 | AW49: 18 | AX49: 46 | AY49: 3 | AZ49: 5 | BA49: 5 | BB49: 7 | BC49: 3 | BD49: 6 | BE49: 11 | BF49: 18 | BG49: 29 | BH49: 425 | BI49: 3 | BJ49: 7 | BK49: 8 | BL49: 18 | BM49: 3 | BN49: 5 | BO49: 4 | BP49: 12 | BQ49: ناجحة | BR49: ومنقولة للصف الثالث | BS49: 0 | CN49: 155
A50: 41 | B50: 741 | C50: طالبة ادارة صباحى 41 | D50: 1/2 | F50: 243 | G50: 9 | H50: 12 | I50: 14 | J50: 35 | K50: 8 | L50: 7 | M50: 9 | N50: 24 | O50: 4 | P50: 5 | Q50: 4 | R50: 13 | S50: 9 | T50: 14 | U50: 16 | V50: 39 | W50: 10 | X50: 20 | Y50: 18 | Z50: 48 | AA50: 9 | AB50: 16 | AC50: 20 | AD50: 45 | AE50: 9 | AF50: 16 | AG50: 14 | AH50: 39 | AI50: 9 | AJ50: 19 | AK50: 18 | AL50: 46 | AM50: 9 | AN50: 15 | AO50: 13 | AP50: 37 | AQ50: 10 | AR50: 17 | AS50: 19 | AT50: 46 | AU50: 10 | AV50: 19 | AW50: 18 | AX50: 47 | AY50: 3 | AZ50: 5 | BA50: 6 | BB50: 9 | BC50: 4 | BD50: 6 | BE50: 13 | BF50: 20 | BG50: 33 | BH50: 452 | BI50: 3 | BJ50: 7 | BK50: 8 | BL50: 18 | BM50: 3 | BN50: 5 | BO50: 3 | BP50: 11 | BQ50: ناجحة | BR50: ومنقولة للصف الثالث | BS50: 0 | CN50: 175
A51: 42 | B51: 742 | C51: طالبة ادارة صباحى 42 | D51: 4/2 | F51: 244 | G51: 9 | H51: 7 | I51: 11 | J51: 27 | K51: 9 | L51: 6 | M51: 5 | N51: 20 | O51: 4 | P51: 5 | Q51: 4 | R51: 13 | S51: 3 | T51: 8 | U51: 14 | V51: 25 | W51: 9 | X51: 11 | Y51: 5 | Z51: 25 | AA51: 9 | AB51: 5 | AC51: 11 | AD51: 25 | AE51: 9 | AF51: 14 | AG51: 9 | AH51: 32 | AI51: 9 | AJ51: 4 | AK51: 12 | AL51: 25 | AM51: 9 | AN51: 5 | AO51: 6 | AP51: 20 | AQ51: 9 | AR51: 11 | AS51: 18 | AT51: 38 | AU51: 9 | AV51: 17 | AW51: 16 | AX51: 42 | AY51: 3 | AZ51: 5 | BA51: 5 | BB51: 9 | BC51: 5 | BD51: 6 | BE51: 13 | BF51: 20 | BG51: 33 | BH51: 325 | BI51: 3 | BJ51: 4 | BK51: 5 | BL51: 12 | BM51: 3 | BN51: 4 | BO51: 3 | BP51: 10 | BQ51: ناجحة | BR51: ومنقولة للصف الثالث | BS51: 0 | CN51: 107
A52: 43 | B52: 743 | C52: طالبة ادارة صباحى 43 | D52: 4/2 | F52: 245 | G52: 9 | H52: 9 | I52: 13 | J52: 31 | K52: 8 | L52: 1 | M52: 2 | N52: 11 | O52: 4 | P52: 5 | Q52: 5 | R52: 14 | S52: 8 | T52: 12 | U52: 5 | V52: 25 | W52: 9 | X52: 11 | Y52: 5 | Z52: 25 | AA52: 9 | AB52: 0 | AC52: 8 | AD52: 17 | AE52: 9 | AF52: 13 | AG52: 12 | AH52: 34 | AI52: 9 | AJ52: 10 | AK52: 12 | AL52: 31 | AM52: 9 | AN52: 9 | AO52: 14 | AP52: 32 | AQ52: 9 | AR52: 16 | AS52: 18 | AT52: 43 | AU52: 10 | AV52: 17 | AW52: 20 | AX52: 47 | AY52: 3 | AZ52: 5 | BA52: 5 | BB52: 6 | BC52: 4 | BD52: 7 | BE52: 12 | BF52: 18 | BG52: 30 | BH52: 340 | BI52: 3 | BJ52: 7 | BK52: 8 | BL52: 18 | BM52: 3 | BN52: 4 | BO52: 5 | BP52: 12 | BQ52: دورثان | BR52: فى : انجليزى - رياضة مالية - | BS52: 2 | BY52: انجليزى - | CC52: رياضة مالية - | CN52: 114
A53: 44 | B53: 744 | C53: طالبة ادارة صباحى 44 | D53: 7/2 | F53: 246 | G53: 9 | H53: 11 | I53: 13 | J53: 33 | K53: 8 | L53: 2 | M53: 4 | N53: 14 | O53: 4 | P53: 4 | Q53: 4 | R53: 12 | S53: 9 | T53: 7 | U53: 11 | V53: 27 | W53: 9 | X53: 9 | Y53: 7 | Z53: 25 | AA53: 9 | AB53: 2 | AC53: 6 | AD53: 17 | AE53: 9 | AF53: 11 | AG53: 18 | AH53: 38 | AI53: 9 | AJ53: 16 | AK53: 13 | AL53: 38 | AM53: 9 | AN53: 12 | AO53: 16 | AP53: 37 | AQ53: 9 | AR53: 17 | AS53: 17 | AT53: 43 | AU53: 9 | AV53: 15 | AW53: 19 | AX53: 43 | AY53: 3 | AZ53: 5 | BA53: 5 | BB53: 8 | BC53: 4 | BD53: 6 | BE53: 12 | BF53: 19 | BG53: 31 | BH53: 358 | BI53: 3 | BJ53: 7 | BK53: 8 | BL53: 18 | BM53: 3 | BN53: 4 | BO53: 5 | BP53: 12 | BQ53: دورثان | BR53: فى : انجليزى - رياضة مالية - | BS53: 2 | BY53: انجليزى - | CC53: رياضة مالية - | CN53: 119
A54: 45 | B54: 745 | C54: طالبة ادارة صباحى 45 | D54: 4/2 | F54: 247 | G54: 9 | H54: 7 | I54: 13 | J54: 29 | K54: 8 | L54: 7 | M54: 5 | N54: 20 | O54: 4 | P54: 4 | Q54: 3 | R54: 11 | S54: 9 | T54: 9 | U54: 7 | V54: 25 | W54: 9 | X54: 14 | Y54: 15 | Z54: 38 | AA54: 9 | AB54: 5 | AC54: 16 | AD54: 30 | AE54: 9 | AF54: 11 | AG54: 16 | AH54: 36 | AI54: 9 | AJ54: 9 | AK54: 11 | AL54: 29 | AM54: 9 | AN54: 3 | AO54: 14 | AP54: 26 | AQ54: 10 | AR54: 19 | AS54: 18 | AT54: 47 | AU54: 9 | AV54: 14 | AW54: 20 | AX54: 43 | AY54: 3 | AZ54: 5 | BA54: 6 | BB54: 7 | BC54: 5 | BD54: 8 | BE54: 14 | BF54: 20 | BG54: 34 | BH54: 368 | BI54: 3 | BJ54: 4 | BK54: 7 | BL54: 14 | BM54: 3 | BN54: 4 | BO54: 4 | BP54: 11 | BQ54: ناجحة | BR54: ومنقولة للصف الثالث | BS54: 0 | CN54: 115
A55: 46 | B55: 746 | C55: طالبة ادارة صباحى 46 | D55: 6/2 | F55: 248 | G55: 9 | H55: 9 | I55: 12 | J55: 30 | K55: 8 | L55: 7 | M55: 5 | N55: 20 | O55: 4 | P55: 4 | Q55: 4 | R55: 12 | S55: 8 | T55: 11 | U55: 10 | V55: 29 | W55: 10 | X55: 19 | Y55: 18 | Z55: 47 | AA55: 10 | AB55: 20 | AC55: 19 | AD55: 49 | AE55: 9 | AF55: 9 | AG55: 15 | AH55: 33 | AI55: 9 | AJ55: 10 | AK55: 16 | AL55: 35 | AM55: 9 | AN55: 15 | AO55: 13 | AP55: 37 | AQ55: 10 | AR55: 18 | AS55: 18 | AT55: 46 | AU55: 9 | AV55: 15 | AW55: 20 | AX55: 44 | AY55: 3 | AZ55: 5 | BA55: 5 | BB55: 8 | BC55: 7 | BD55: 6 | BE55: 15 | BF55: 19 | BG55: 34 | BH55: 416 | BI55: 3 | BJ55: 7 | BK55: 7 | BL55: 17 | BM55: 3 | BN55: 4 | BO55: 5 | BP55: 12 | BQ55: ناجحة | BR55: ومنقولة للصف الثالث | BS55: 0 | CN55: 150
A56: 47 | B56: 747 | C56: طالبة ادارة صباحى 47 | D56: 1/2 | F56: 249 | G56: 9 | H56: 9 | I56: 11 | J56: 29 | K56: 8 | L56: 5 | M56: 7 | N56: 20 | O56: 4 | P56: 4 | Q56: 6 | R56: 14 | S56: 9 | T56: 8 | U56: 13 | V56: 30 | W56: 9 | X56: 19 | Y56: 11 | Z56: 39 | AA56: 9 | AB56: 7 | AC56: 14 | AD56: 30 | AE56: 9 | AF56: 11 | AG56: 11 | AH56: 31 | AI56: 9 | AJ56: 15 | AK56: 12 | AL56: 36 | AM56: 9 | AN56: 10 | AO56: 12 | AP56: 31 | AQ56: 9 | AR56: 18 | AS56: 14 | AT56: 41 | AU56: 10 | AV56: 17 | AW56: 20 | AX56: 47 | AY56: 3 | AZ56: 5 | BA56: 5 | BB56: 7 | BC56: 4 | BD56: 8 | BE56: 12 | BF56: 20 | BG56: 32 | BH56: 380 | BI56: 3 | BJ56: 7 | BK56: 8 | BL56: 18 | BM56: 3 | BN56: 7 | BO56: 8 | BP56: 18 | BQ56: ناجحة | BR56: ومنقولة للصف الثالث | BS56: 0 | CN56: 135
A57: 48 | B57: 748 | C57: طالبة ادارة صباحى 48 | D57: 5/2 | F57: 250 | G57: 9 | H57: 8 | I57: 8 | J57: 25 | K57: 8 | L57: 1 | M57: 3 | N57: 12 | O57: 4 | P57: 3 | Q57: 4 | R57: 11 | S57: 9 | T57: 9 | U57: 7 | V57: 25 | W57: 9 | X57: 16 | Y57: 12 | Z57: 37 | AA57: 9 | AB57: 4 | AC57: 13 | AD57: 26 | AE57: 9 | AF57: 11 | AG57: 11 | AH57: 31 | AI57: 9 | AJ57: 9 | AK57: 12 | AL57: 30 | AM57: 9 | AN57: 11 | AO57: 11 | AP57: 31 | AQ57: 9 | AR57: 15 | AS57: 17 | AT57: 41 | AU57: 9 | AV57: 15 | AW57: 18 | AX57: 42 | AY57: 3 | AZ57: 5 | BA57: 4 | BB57: 8 | BC57: 5 | BD57: 8 | BE57: 12 | BF57: 21 | BG57: 33 | BH57: 344 | BI57: 3 | BJ57: 6 | BK57: 8 | BL57: 17 | BM57: 3 | BN57: 3 | BO57: 4 | BP57: 10 | BQ57: دورثان | BR57: فى : انجليزى - | BS57: 1 | BY57: انجليزى - | CN57: 114
A58: 49 | B58: 749 | C58: طالبة ادارة صباحى 49 | D58: 7/2 | F58: 251 | G58: 9 | H58: 8 | I58: 11 | J58: 28 | K58: 8 | L58: 7 | M58: 5 | N58: 20 | O58: 4 | P58: 4 | Q58: 5 | R58: 13 | S58: 9 | T58: 8 | U58: 8 | V58: 25 | W58: 9 | X58: 0 | Y58: 9 | Z58: 18 | AA58: 9 | AB58: 0 | AC58: 3 | AD58: 12 | AE58: 9 | AF58: 7 | AG58: 9 | AH58: 25 | AI58: 9 | AJ58: 10 | AK58: 11 | AL58: 30 | AM58: 9 | AN58: 12 | AO58: 11 | AP58: 32 | AQ58: 9 | AR58: 15 | AS58: 13 | AT58: 37 | AU58: 9 | AV58: 13 | AW58: 19 | AX58: 41 | AY58: 4 | AZ58: 5 | BA58: 8 | BB58: 8 | BC58: 4 | BD58: 8 | BE58: 16 | BF58: 21 | BG58: 37 | BH58: 318 | BI58: 3 | BJ58: 6 | BK58: 8 | BL58: 17 | BM58: 3 | BN58: 4 | BO58: 7 | BP58: 14 | BQ58: دورثان | BR58: فى : احصاء - رياضة مالية - | BS58: 2 | CB58: احصاء - | CC58: رياضة مالية - | CN58: 100
A59: 50 | B59: 750 | C59: طالبة ادارة صباحى 50 | D59: 4/2 | F59: 252 | G59: 9 | H59: 8 | I59: 11 | J59: 28 | K59: 8 | L59: 2 | M59: 2 | N59: 12 | O59: 4 | P59: 3 | Q59: 6 | R59: 13 | S59: 9 | T59: 7 | U59: 11 | V59: 27 | W59: 9 | X59: 9 | Y59: 7 | Z59: 25 | AA59: 9 | AB59: 1 | AC59: 5 | AD59: 15 | AE59: 9 | AF59: 4 | AG59: 14 | AH59: 27 | AI59: 9 | AJ59: 9 | AK59: 12 | AL59: 30 | AM59: 9 | AN59: 10 | AO59: 12 | AP59: 31 | AQ59: 10 | AR59: 19 | AS59: 19 | AT59: 48 | AU59: 9 | AV59: 15 | AW59: 19 | AX59: 43 | AY59: 2 | AZ59: 5 | BA59: 4 | BB59: 6 | BC59: 4 | BD59: 10 | BE59: 10 | BF59: 21 | BG59: 31 | BH59: 330 | BI59: 3 | BJ59: 7 | BK59: 7 | BL59: 17 | BM59: 3 | BN59: 4 | BO59: 3 | BP59: 10 | BQ59: دورثان | BR59: فى : انجليزى - رياضة مالية - | BS59: 2 | BY59: انجليزى - | CC59: رياضة مالية - | CN59: 97
A60: 51 | B60: 751 | C60: طالبة ادارة صباحى 51 | D60: 4/2 | F60: 253 | G60: 9 | H60: 10 | I60: 15 | J60: 34 | K60: 8 | L60: 5 | M60: 9 | N60: 22 | O60: 4 | P60: 4 | Q60: 3 | R60: 11 | S60: 8 | T60: 8 | U60: 9 | V60: 25 | W60: 9 | X60: 10 | Y60: 12 | Z60: 31 | AA60: 9 | AB60: 10 | AC60: 11 | AD60: 30 | AE60: 9 | AF60: 13 | AG60: 15 | AH60: 37 | AI60: 9 | AJ60: 16 | AK60: 14 | AL60: 39 | AM60: 9 | AN60: 15 | AO60: 14 | AP60: 38 | AQ60: 9 | AR60: 16 | AS60: 19 | AT60: 44 | AU60: 10 | AV60: 17 | AW60: 19 | AX60: 46 | AY60: 3 | AZ60: 5 | BA60: 5 | BB60: 7 | BC60: 6 | BD60: 8 | BE60: 14 | BF60: 20 | BG60: 34 | BH60: 391 | BI60: 3 | BJ60: 5 | BK60: 8 | BL60: 16 | BM60: 3 | BN60: 5 | BO60: 6 | BP60: 14 | BQ60: ناجحة | BR60: ومنقولة للصف الثالث | BS60: 0 | CN60: 136
A61: 52 | B61: 752 | C61: طالبة ادارة صباحى 52 | D61: 5/2 | F61: 254 | G61: 9 | H61: 9 | I61: 12 | J61: 30 | K61: 8 | L61: 7 | M61: 5 | N61: 20 | O61: 4 | P61: 4 | Q61: 3 | R61: 11 | S61: 9 | T61: 12 | U61: 14 | V61: 35 | W61: 9 | X61: 9 | Y61: 13 | Z61: 31 | AA61: 9 | AB61: 9 | AC61: 15 | AD61: 33 | AE61: 9 | AF61: 16 | AG61: 18 | AH61: 43 | AI61: 9 | AJ61: 18 | AK61: 16 | AL61: 43 | AM61: 9 | AN61: 14 | AO61: 14 | AP61: 37 | AQ61: 9 | AR61: 18 | AS61: 14 | AT61: 41 | AU61: 10 | AV61: 17 | AW61: 19 | AX61: 46 | AY61: 3 | AZ61: 5 | BA61: 5 | BB61: 5 | BC61: 4 | BD61: 10 | BE61: 12 | BF61: 20 | BG61: 32 | BH61: 402 | BI61: 3 | BJ61: 7 | BK61: 8 | BL61: 18 | BM61: 3 | BN61: 5 | BO61: 5 | BP61: 13 | BQ61: ناجحة | BR61: ومنقولة للصف الثالث | BS61: 0 | CN61: 143
A62: 53 | B62: 753 | C62: طالبة ادارة صباحى 53 | D62: 6/2 | F62: 255 | G62: 9 | H62: 11 | I62: 18 | J62: 38 | K62: 8 | L62: 6 | M62: 6 | N62: 20 | O62: 4 | P62: 5 | Q62: 5 | R62: 14 | S62: 10 | T62: 7 | U62: 8 | V62: 25 | W62: 9 | X62: 2 | Y62: 6 | Z62: 17 | AA62: 9 | AB62: 7 | AC62: 9 | AD62: 25 | AE62: 9 | AF62: 10 | AG62: 16 | AH62: 35 | AI62: 9 | AJ62: 10 | AK62: 18 | AL62: 37 | AM62: 9 | AN62: 12 | AO62: 14 | AP62: 35 | AQ62: 9 | AR62: 17 | AS62: 18 | AT62: 44 | AU62: 10 | AV62: 17 | AW62: 19 | AX62: 46 | AY62: 4 | AZ62: 5 | BA62: 8 | BB62: 5 | BC62: 6 | BD62: 8 | BE62: 18 | BF62: 18 | BG62: 36 | BH62: 372 | BI62: 3 | BJ62: 7 | BK62: 8 | BL62: 18 | BM62: 3 | BN62: 5 | BO62: 7 | BP62: 15 | BQ62: دورثان | BR62: فى : احصاء - | BS62: 1 | CB62: احصاء - | CN62: 117
A63: 54 | B63: 754 | C63: طالبة ادارة صباحى 54 | D63: 2/2 | F63: 256 | G63: 9 | H63: 11 | I63: 14 | J63: 34 | K63: 8 | L63: 5 | M63: 7 | N63: 20 | O63: 4 | P63: 3 | Q63: 3 | R63: 10 | S63: 9 | T63: 3 | U63: 6 | V63: 18 | W63: 9 | X63: 0 | Y63: 5 | Z63: 14 | AA63: 9 | AB63: 8 | AC63: 8 | AD63: 25 | AE63: 9 | AF63: 7 | AG63: 16 | AH63: 32 | AI63: 9 | AJ63: 7 | AK63: 13 | AL63: 29 | AM63: 9 | AN63: 10 | AO63: 14 | AP63: 33 | AQ63: 9 | AR63: 12 | AS63: 16 | AT63: 37 | AU63: 9 | AV63: 13 | AW63: 19 | AX63: 41 | AY63: 2 | AZ63: 5 | BA63: 4 | BB63: 7 | BC63: 4 | BD63: 12 | BE63: 10 | BF63: 24 | BG63: 34 | BH63: 327 | BI63: 3 | BJ63: 7 | BK63: 8 | BL63: 18 | BM63: 3 | BN63: 4 | BO63: 4 | BP63: 11 | BQ63: دورثان | BR63: فى : محاسبة - احصاء - | BS63: 2 | CA63: محاسبة - | CB63: احصاء - | CN63: 90
A64: 55 | B64: 755 | C64: طالبة ادارة صباحى 55 | D64: 6/2 | F64: 257 | G64: 9 | H64: 9 | I64: 13 | J64: 31 | K64: 8 | L64: 7 | M64: 5 | N64: 20 | O64: 4 | P64: 5 | Q64: 4 | R64: 13 | S64: 9 | T64: 10 | U64: 13 | V64: 32 | W64: 9 | X64: 9 | Y64: 12 | Z64: 30 | AA64: 9 | AB64: 6 | AC64: 10 | AD64: 25 | AE64: 9 | AF64: 8 | AG64: 17 | AH64: 34 | AI64: 9 | AJ64: 12 | AK64: 12 | AL64: 33 | AM64: 9 | AN64: 14 | AO64: 15 | AP64: 38 | AQ64: 10 | AR64: 19 | AS64: 17 | AT64: 46 | AU64: 10 | AV64: 18 | AW64: 20 | AX64: 48 | AY64: 2 | AZ64: 5 | BA64: 4 | BB64: 9 | BC64: 5 | BD64: 8 | BE64: 11 | BF64: 22 | BG64: 33 | BH64: 383 | BI64: 3 | BJ64: 7 | BK64: 7 | BL64: 17 | BM64: 3 | BN64: 4 | BO64: 7 | BP64: 14 | BQ64: ناجحة | BR64: ومنقولة للصف الثالث | BS64: 0 | CN64: 130
A65: 56 | B65: 756 | C65: طالبة ادارة صباحى 56 | D65: 4/2 | F65: 258 | G65: 9 | H65: 10 | I65: 12 | J65: 31 | K65: 8 | L65: 6 | M65: 6 | N65: 20 | O65: 4 | P65: 4 | Q65: 4 | R65: 12 | S65: 9 | T65: 5 | U65: 11 | V65: 25 | W65: 9 | X65: 2 | Y65: 16 | Z65: 27 | AA65: 9 | AB65: 3 | AC65: 14 | AD65: 26 | AE65: 9 | AF65: 13 | AG65: 17 | AH65: 39 | AI65: 9 | AJ65: 12 | AK65: 10 | AL65: 31 | AM65: 9 | AN65: 13 | AO65: 15 | AP65: 37 | AQ65: 10 | AR65: 19 | AS65: 17 | AT65: 46 | AU65: 10 | AV65: 16 | AW65: 20 | AX65: 46 | AY65: 3 | AZ65: 5 | BA65: 5 | BB65: 9 | BC65: 5 | BD65: 8 | BE65: 13 | BF65: 22 | BG65: 35 | BH65: 375 | BI65: 3 | BJ65: 5 | BK65: 7 | BL65: 15 | BM65: 3 | BN65: 5 | BO65: 8 | BP65: 16 | BQ65: ناجحة | BR65: ومنقولة للصف الثالث | BS65: 0 | CN65: 117
A66: 57 | B66: 757 | C66: طالبة ادارة صباحى 57 | D66: 5/2 | F66: 259 | G66: 9 | H66: 13 | I66: 14 | J66: 36 | K66: 8 | L66: 4 | M66: 8 | N66: 20 | O66: 4 | P66: 4 | Q66: 3 | R66: 11 | S66: 9 | T66: 10 | U66: 14 | V66: 33 | W66: 9 | X66: 4 | Y66: 17 | Z66: 30 | AA66: 9 | AB66: 6 | AC66: 16 | AD66: 31 | AE66: 9 | AF66: 9 | AG66: 18 | AH66: 36 | AI66: 9 | AJ66: 11 | AK66: 9 | AL66: 29 | AM66: 9 | AN66: 12 | AO66: 15 | AP66: 36 | AQ66: 10 | AR66: 20 | AS66: 16 | AT66: 46 | AU66: 10 | AV66: 17 | AW66: 20 | AX66: 47 | AY66: 3 | AZ66: 5 | BA66: 5 | BB66: 9 | BC66: 7 | BD66: 12 | BE66: 15 | BF66: 26 | BG66: 41 | BH66: 396 | BI66: 3 | BJ66: 6 | BK66: 8 | BL66: 17 | BM66: 3 | BN66: 7 | BO66: 8 | BP66: 18 | BQ66: ناجحة | BR66: ومنقولة للصف الثالث | BS66: 0 | CN66: 124
A67: 58 | B67: 758 | C67: طالبة ادارة صباحى 58 | D67: 3/2 | F67: 260 | G67: 9 | H67: 12 | I67: 13 | J67: 34 | K67: 8 | L67: 7 | M67: 8 | N67: 23 | O67: 4 | P67: 4 | Q67: 5 | R67: 13 | S67: 9 | T67: 11 | U67: 16 | V67: 36 | W67: 9 | X67: 8 | Y67: 14 | Z67: 31 | AA67: 9 | AB67: 17 | AC67: 17 | AD67: 43 | AE67: 9 | AF67: 15 | AG67: 17 | AH67: 41 | AI67: 9 | AJ67: 19 | AK67: 17 | AL67: 45 | AM67: 9 | AN67: 15 | AO67: 15 | AP67: 39 | AQ67: 10 | AR67: 19 | AS67: 20 | AT67: 49 | AU67: 10 | AV67: 16 | AW67: 20 | AX67: 46 | AY67: 4 | AZ67: 5 | BA67: 8 | BB67: 10 | BC67: 4 | BD67: 12 | BE67: 16 | BF67: 27 | BG67: 43 | BH67: 443 | BI67: 3 | BJ67: 7 | BK67: 8 | BL67: 18 | BM67: 3 | BN67: 5 | BO67: 7 | BP67: 15 | BQ67: ناجحة | BR67: ومنقولة للصف الثالث | BS67: 0 | CN67: 161
A68: 59 | B68: 759 | C68: طالبة ادارة صباحى 59 | D68: 2/2 | F68: 261 | G68: 9 | H68: 10 | I68: 12 | J68: 31 | K68: 8 | L68: 6 | M68: 6 | N68: 20 | O68: 4 | P68: 5 | Q68: 5 | R68: 14 | S68: 9 | T68: 6 | U68: 2 | V68: 17 | W68: 9 | X68: 5 | Y68: 11 | Z68: 25 | AA68: 9 | AB68: 10 | AC68: 6 | AD68: 25 | AE68: 9 | AF68: 7 | AG68: 11 | AH68: 27 | AI68: 9 | AJ68: 11 | AK68: 11 | AL68: 31 | AM68: 9 | AN68: 11 | AO68: 14 | AP68: 34 | AQ68: 9 | AR68: 15 | AS68: 16 | AT68: 40 | AU68: 9 | AV68: 15 | AW68: 18 | AX68: 42 | AY68: 3 | AZ68: 5 | BA68: 4 | BB68: 7 | BC68: 6 | BD68: 8 | BE68: 13 | BF68: 20 | BG68: 33 | BH68: 339 | BI68: 3 | BJ68: 7 | BK68: 7 | BL68: 17 | BM68: 3 | BN68: 5 | BO68: 5 | BP68: 13 | BQ68: دورثان | BR68: فى : محاسبة - | BS68: 1 | CA68: محاسبة - | CN68: 112
A69: 60 | B69: 760 | C69: طالبة ادارة صباحى 60 | D69: 1/2 | F69: 262 | G69: 9 | H69: 9 | I69: 16 | J69: 34 | K69: 8 | L69: 4 | M69: 8 | N69: 20 | O69: 4 | P69: 4 | Q69: 4 | R69: 12 | S69: 9 | T69: 8 | U69: 12 | V69: 29 | W69: 9 | X69: 11 | Y69: 16 | Z69: 36 | AA69: 9 | AB69: 6 | AC69: 16 | AD69: 31 | AE69: 9 | AF69: 14 | AG69: 13 | AH69: 36 | AI69: 9 | AJ69: 19 | AK69: 16 | AL69: 44 | AM69: 9 | AN69: 11 | AO69: 15 | AP69: 35 | AQ69: 10 | AR69: 20 | AS69: 17 | AT69: 47 | AU69: 10 | AV69: 17 | AW69: 20 | AX69: 47 | AY69: 2 | AZ69: 5 | BA69: 4 | BB69: 9 | BC69: 5 | BD69: 8 | BE69: 11 | BF69: 22 | BG69: 33 | BH69: 404 | BI69: 3 | BJ69: 6 | BK69: 8 | BL69: 17 | BM69: 3 | BN69: 5 | BO69: 7 | BP69: 15 | BQ69: ناجحة | BR69: ومنقولة للصف الثالث | BS69: 0 | CN69: 136
A70: 61 | B70: 761 | C70: طالبة ادارة صباحى 61 | D70: 5/2 | F70: 263 | G70: 9 | H70: 11 | I70: 16 | J70: 36 | K70: 8 | L70: 5 | M70: 9 | N70: 22 | O70: 4 | P70: 4 | Q70: 4 | R70: 12 | S70: 9 | T70: 10 | U70: 6 | V70: 25 | W70: 9 | X70: 4 | Y70: 12 | Z70: 25 | AA70: 9 | AB70: 4 | AC70: 19 | AD70: 32 | AE70: 9 | AF70: 17 | AG70: 15 | AH70: 41 | AI70: 9 | AJ70: 15 | AK70: 16 | AL70: 40 | AM70: 9 | AN70: 11 | AO70: 15 | AP70: 35 | AQ70: 9 | AR70: 18 | AS70: 17 | AT70: 44 | AU70: 9 | AV70: 14 | AW70: 20 | AX70: 43 | AY70: 2 | AZ70: 5 | BA70: 4 | BB70: 8 | BC70: 4 | BD70: 8 | BE70: 10 | BF70: 21 | BG70: 31 | BH70: 386 | BI70: 3 | BJ70: 6 | BK70: 8 | BL70: 17 | BM70: 3 | BN70: 4 | BO70: 7 | BP70: 14 | BQ70: ناجحة | BR70: ومنقولة للصف الثالث | BS70: 0 | CN70: 125
A71: 62 | B71: 762 | C71: طالبة ادارة صباحى 62 | D71: 5/2 | F71: 264 | G71: 10 | H71: 14 | I71: 18 | J71: 42 | K71: 8 | L71: 7 | M71: 10 | N71: 25 | O71: 4 | P71: 4 | Q71: 3 | R71: 11 | S71: 9 | T71: 10 | U71: 17 | V71: 36 | W71: 10 | X71: 16 | Y71: 20 | Z71: 46 | AA71: 9 | AB71: 5 | AC71: 19 | AD71: 33 | AE71: 9 | AF71: 14 | AG71: 17 | AH71: 40 | AI71: 9 | AJ71: 18 | AK71: 16 | AL71: 43 | AM71: 9 | AN71: 16 | AO71: 15 | AP71: 40 | AQ71: 10 | AR71: 20 | AS71: 18 | AT71: 48 | AU71: 10 | AV71: 18 | AW71: 20 | AX71: 48 | AY71: 3 | AZ71: 5 | BA71: 5 | BB71: 9 | BC71: 4 | BD71: 7 | BE71: 12 | BF71: 21 | BG71: 33 | BH71: 445 | BI71: 3 | BJ71: 8 | BK71: 8 | BL71: 19 | BM71: 3 | BN71: 7 | BO71: 8 | BP71: 18 | BQ71: ناجحة | BR71: ومنقولة للصف الثالث | BS71: 0 | CN71: 156
A72: 63 | B72: 763 | C72: طالبة ادارة صباحى 63 | D72: 7/2 | F72: 265 | G72: 9 | H72: 7 | I72: 9 | J72: 25 | K72: 8 | L72: 5 | M72: 7 | N72: 20 | O72: 4 | P72: 4 | Q72: 3 | R72: 11 | S72: 9 | T72: 8 | U72: 12 | V72: 29 | W72: 9 | X72: 1 | Y72: 6 | Z72: 16 | AA72: 9 | AB72: 2 | AC72: 7 | AD72: 18 | AE72: 9 | AF72: 7 | AG72: 9 | AH72: 25 | AI72: 9 | AJ72: 18 | AK72: 8 | AL72: 35 | AM72: 9 | AN72: 10 | AO72: 13 | AP72: 32 | AQ72: 10 | AR72: 18 | AS72: 18 | AT72: 46 | AU72: 10 | AV72: 18 | AW72: 20 | AX72: 48 | AY72: 3 | AZ72: 5 | BA72: 7 | BB72: 9 | BC72: 5 | BD72: 5 | BE72: 15 | BF72: 19 | BG72: 34 | BH72: 339 | BI72: 3 | BJ72: 4 | BK72: 6 | BL72: 13 | BM72: 3 | BN72: 3 | BO72: 5 | BP72: 11 | BQ72: دورثان | BR72: فى : احصاء - رياضة مالية - | BS72: 2 | CB72: احصاء - | CC72: رياضة مالية - | CN72: 114
A73: 64 | B73: 764 | C73: طالبة ادارة صباحى 64 | D73: 2/2 | F73: 266 | G73: 9 | H73: 8 | I73: 12 | J73: 29 | K73: 8 | L73: 6 | M73: 6 | N73: 20 | O73: 4 | P73: 4 | Q73: 4 | R73: 12 | S73: 9 | T73: 13 | U73: 15 | V73: 37 | W73: 9 | X73: 11 | Y73: 16 | Z73: 36 | AA73: 9 | AB73: 17 | AC73: 18 | AD73: 44 | AE73: 9 | AF73: 11 | AG73: 16 | AH73: 36 | AI73: 9 | AJ73: 19 | AK73: 14 | AL73: 42 | AM73: 9 | AN73: 14 | AO73: 15 | AP73: 38 | AQ73: 10 | AR73: 20 | AS73: 20 | AT73: 50 | AU73: 10 | AV73: 17 | AW73: 20 | AX73: 47 | AY73: 3 | AZ73: 5 | BA73: 4 | BB73: 9 | BC73: 4 | BD73: 12 | BE73: 11 | BF73: 26 | BG73: 37 | BH73: 428 | BI73: 3 | BJ73: 6 | BK73: 8 | BL73: 17 | BM73: 3 | BN73: 4 | BO73: 8 | BP73: 15 | BQ73: ناجحة | BR73: ومنقولة للصف الثالث | BS73: 0 | CN73: 153
A74: 65 | B74: 765 | C74: طالبة ادارة صباحى 65 | D74: 1/2 | F74: 267 | G74: 9 | H74: 10 | I74: 13 | J74: =IF($C74="","",SUM(G74,H74,I74)) -> 32 | K74: 8 | L74: 6 | M74: 6 | N74: =IF($C74="","",SUM(K74,L74,M74)) -> 20 | O74: 4 | P74: 3 | Q74: 4 | R74: =IF($C74="","",SUM(O74,P74,Q74)) -> 11 | S74: 9 | T74: 12 | U74: 11 | V74: =IF($C74="","",SUM(S74,T74,U74)) -> 32 | W74: 9 | X74: 6 | Y74: 13 | Z74: =IF($C74="","",SUM(W74,X74,Y74)) -> 28 | AA74: 9 | AB74: 13 | AC74: 13 | AD74: =IF($C74="","",SUM(AA74:AC74)) -> 35 | AE74: 9 | AF74: 12 | AG74: 10 | AH74: =IF($C74="","",SUM(AE74,AF74,AG74)) -> 31 | AI74: 9 | AJ74: 18 | AK74: 14 | AL74: =IF($C74="","",SUM(AI74,AJ74,AK74)) -> 41 | AM74: 9 | AN74: 15 | AO74: 14 | AP74: =IF($C74="","",SUM(AM74,AN74,AO74)) -> 38 | AQ74: 9 | AR74: 15 | AS74: 11 | AT74: =IF($C74="","",SUM(AQ74,AR74,AS74)) -> 35 | AU74: 9 | AV74: 14 | AW74: 20 | AX74: =IF($C74="","",SUM(AU74,AV74,AW74)) -> 43 | AY74: 2 | AZ74: 5 | BA74: 4 | BB74: 9 | BC74: 5 | BD74: 10 | BE74: =IF($C74="","",SUM(AY74,BA74,BC74)) -> 11 | BF74: =IF($C74="","",SUM(AZ74,BB74,BD74)) -> 24 | BG74: =IF($C74="","",SUM(BE74,BF74)) -> 35 | BH74: =IF($C74="","",SUM(J74,N74,R74,V74,Z74,AD74,AH74,AL74,AP74,AT74,AX74,BG74)) -> 381 | BI74: 3 | BJ74: 6 | BK74: 7 | BL74: =IF($C74="","",SUM(BI74,BJ74,BK74)) -> 16 | BM74: 3 | BN74: 5 | BO74: 6 | BP74: =IF($C74="","",SUM(BM74,BN74,BO74)) -> 14 | BQ74: =IF($C74="","",IF(BS74=0,"ناجحة",IF(BS74<=2,"دورثان","راسبة"))) -> ناجحة | BR74: =IF($C74="","",IF(BS74=0,"ومنقولة للصف الثالث",IF(BS74>0,"فى : "&CONCATENATE(BX74,BY74,BZ74,CA74,CB74,CC74,CD74,CE74,CF74,CG74,CH74,CI74,CJ74,CK74,CL74),CONCATENATE(BX74,BY74,BZ74,CA74,CB74,CC74,CD74,CE74,CF74,CG74,CH74,CI74,CJ74,CK74,CL74)))) -> ومنقولة للصف الثالث | BS74: =IF($C74="","",COUNTA($BX74:$CL74)-COUNTBLANK($BX74:$CL74)) -> 0 | BX74: =IF($C74="","",IF(OR(I74<$I$9,I74="غ",J74<$J$9),$BX$5&" - ","")) ->  | BY74: =IF($C74="","",IF(OR(M74<$M$9,M74="غ",N74<$N$9),$BY$5&" - ","")) ->  | BZ74: =IF($C74="","",IF(OR(Q74<$Q$9,Q74="غ",R74<$R$9),BZ$5&" - ","")) ->  | CA74: =IF($C74="","",IF(OR(U74<$U$9,U74="غ",V74<$V$9),CA$5&" - ","")) ->  | CB74: =IF($C74="","",IF(OR(Y74<$Y$9,Y74="غ",Z74<$Z$9),CB$5&" - ","")) ->  | CC74: =IF($C74="","",IF(OR(AC74<$AC$9,AC74="غ",AD74<$AD$9),CC$5&" - ","")) ->  | CD74: =IF($C74="","",IF(OR(AG74<$AG$9,AG74="غ",AH74<$AH$9),CD$5&" - ","")) ->  | CE74: =IF($C74="","",IF(OR(AK74<$AK$9,AK74="غ",AL74<$AL$9),CE$5&" - ","")) ->  | CF74: =IF($C74="","",IF(OR(AO74<$AO$9,AO74="غ",AP74<$AP$9),CF$5&" - ","")) ->  | CG74: =IF($C74="","",IF(OR(AS74<$AS$9,AS74="غ",AT74<$AT$9),CG$5&" - ","")) ->  | CH74: =IF($C74="","",IF(OR(AW74<$AW$9,AW74="غ",AX74<$AX$9),CH$5&" - ","")) ->  | CI74: =IF($C74="","",IF(OR(BE74<$BE$9,BE74="غ",BF74<$BF$9,BF74="غ",BG74<$BG$9),CI$5&" - ","")) ->  | CJ74: =IF($C74="","",IF(OR(BK74<$BK$9,BK74="غ",BL74<$BL$9),CJ$5&" - ","")) ->  | CK74: =IF($C74="","",IF(OR(BO74<$BO$9,BO74="غ",BP74<$BP$9),CK$5&" - ","")) ->  | CL74: =IF($C74="","",IF(BH74<$BH$9,CL$5,"")) ->  | CN74: =IF($C74="","",SUM(H74,L74,P74,T74,X74,AB74,AF74,AJ74,AN74,AR74,AV74,BA74,BB74)) -> 137
A75: 66 | B75: 766 | C75: طالبة ادارة صباحى 66 | D75: 4/2 | F75: 268 | G75: 9 | H75: 8 | I75: 8 | J75: 25 | K75: 8 | L75: 6 | M75: 6 | N75: 20 | O75: 4 | P75: 4 | Q75: 4 | R75: 12 | S75: 8 | T75: 5 | U75: 12 | V75: 25 | W75: 9 | X75: 3 | Y75: 13 | Z75: 25 | AA75: 9 | AB75: 7 | AC75: 18 | AD75: 34 | AE75: 9 | AF75: 10 | AG75: 9 | AH75: 28 | AI75: 9 | AJ75: 10 | AK75: 10 | AL75: 29 | AM75: 9 | AN75: 14 | AO75: 11 | AP75: 34 | AQ75: 9 | AR75: 18 | AS75: 17 | AT75: 44 | AU75: 9 | AV75: 11 | AW75: 20 | AX75: 40 | AY75: 3 | AZ75: 5 | BA75: 5 | BB75: 8 | BC75: 4 | BD75: 11 | BE75: 12 | BF75: 24 | BG75: 36 | BH75: 352 | BI75: 3 | BJ75: 4 | BK75: 8 | BL75: 15 | BM75: 3 | BN75: 5 | BO75: 5 | BP75: 13 | BQ75: ناجحة | BR75: ومنقولة للصف الثالث | BS75: 0 | CN75: 109
A76: 67 | B76: 767 | C76: طالبة ادارة صباحى 67 | D76: 7/2 | F76: 269 | G76: 9 | H76: 13 | I76: 14 | J76: 36 | K76: 8 | L76: 5 | M76: 8 | N76: 21 | O76: 4 | P76: 4 | Q76: 4 | R76: 12 | S76: 9 | T76: 10 | U76: 6 | V76: 25 | W76: 9 | X76: 2 | Y76: 18 | Z76: 29 | AA76: 9 | AB76: 3 | AC76: 13 | AD76: 25 | AE76: 9 | AF76: 8 | AG76: 17 | AH76: 34 | AI76: 9 | AJ76: 15 | AK76: 13 | AL76: 37 | AM76: 9 | AN76: 16 | AO76: 16 | AP76: 41 | AQ76: 10 | AR76: 20 | AS76: 17 | AT76: 47 | AU76: 9 | AV76: 15 | AW76: 19 | AX76: 43 | AY76: 3 | AZ76: 5 | BA76: 5 | BB76: 9 | BC76: 7 | BD76: 12 | BE76: 15 | BF76: 26 | BG76: 41 | BH76: 391 | BI76: 3 | BJ76: 6 | BK76: 6 | BL76: 15 | BM76: 3 | BN76: 5 | BO76: 7 | BP76: 15 | BQ76: ناجحة | BR76: ومنقولة للصف الثالث | BS76: 0 | CN76: 125
A77: 68 | B77: 768 | C77: طالبة ادارة صباحى 68 | D77: 2/2 | F77: 270 | G77: 9 | H77: 14 | I77: 14 | J77: 37 | K77: 8 | L77: 5 | M77: 7 | N77: 20 | O77: 4 | P77: 6 | Q77: 4 | R77: 14 | S77: 9 | T77: 5 | U77: 4 | V77: 18 | W77: 9 | X77: 4 | Y77: 13 | Z77: 26 | AA77: 9 | AB77: 2 | AC77: 5 | AD77: 16 | AE77: 9 | AF77: 3 | AG77: 13 | AH77: 25 | AI77: 9 | AJ77: 16 | AK77: 13 | AL77: 38 | AM77: 9 | AN77: 11 | AO77: 16 | AP77: 36 | AQ77: 10 | AR77: 20 | AS77: 17 | AT77: 47 | AU77: 9 | AV77: 15 | AW77: 19 | AX77: 43 | AY77: 3 | AZ77: 5 | BA77: 4 | BB77: 9 | BC77: 5 | BD77: 12 | BE77: 12 | BF77: 26 | BG77: 38 | BH77: 358 | BI77: 3 | BJ77: 5 | BK77: 8 | BL77: 16 | BM77: 3 | BN77: 4 | BO77: 5 | BP77: 12 | BQ77: دورثان | BR77: فى : محاسبة - رياضة مالية - | BS77: 2 | CA77: محاسبة - | CC77: رياضة مالية - | CN77: 114
A78: 69 | B78: 769 | C78: طالبة ادارة صباحى 69 | D78: 6/2 | F78: 271 | G78: 10 | H78: 13 | I78: 19 | J78: 42 | K78: 8 | L78: 6 | M78: 8 | N78: 22 | O78: 4 | P78: 4 | Q78: 7 | R78: 15 | S78: 10 | T78: 19 | U78: 20 | V78: 49 | W78: 10 | X78: 20 | Y78: 20 | Z78: 50 | AA78: 10 | AB78: 19 | AC78: 19 | AD78: 48 | AE78: 9 | AF78: 18 | AG78: 19 | AH78: 46 | AI78: 9 | AJ78: 20 | AK78: 17 | AL78: 46 | AM78: 10 | AN78: 18 | AO78: 19 | AP78: 47 | AQ78: 10 | AR78: 20 | AS78: 20 | AT78: 50 | AU78: 9 | AV78: 15 | AW78: 20 | AX78: 44 | AY78: 3 | AZ78: 5 | BA78: 6 | BB78: 10 | BC78: 5 | BD78: 11 | BE78: 14 | BF78: 26 | BG78: 40 | BH78: 499 | BI78: 3 | BJ78: 8 | BK78: 8 | BL78: 19 | BM78: 3 | BN78: 7 | BO78: 8 | BP78: 18 | BQ78: ناجحة | BR78: ومنقولة للصف الثالث | BS78: 0 | CN78: 188
A79: 70 | B79: 770 | C79: طالبة ادارة صباحى 70 | D79: 2/2 | F79: 272 | G79: 9 | H79: 7 | I79: 9 | J79: 25 | K79: 8 | L79: 7 | M79: 5 | N79: 20 | O79: 4 | P79: 5 | Q79: 5 | R79: 14 | S79: 10 | T79: 20 | U79: 19 | V79: 49 | W79: 10 | X79: 20 | Y79: 20 | Z79: 50 | AA79: 10 | AB79: 20 | AC79: 20 | AD79: 50 | AE79: 9 | AF79: 13 | AG79: 19 | AH79: 41 | AI79: 10 | AJ79: 19 | AK79: 18 | AL79: 47 | AM79: 10 | AN79: 17 | AO79: 19 | AP79: 46 | AQ79: 10 | AR79: 20 | AS79: 20 | AT79: 50 | AU79: 10 | AV79: 17 | AW79: 20 | AX79: 47 | AY79: 3 | AZ79: 5 | BA79: 4 | BB79: 10 | BC79: 5 | BD79: 11 | BE79: 12 | BF79: 26 | BG79: 38 | BH79: 477 | BI79: 3 | BJ79: 6 | BK79: 6 | BL79: 15 | BM79: 3 | BN79: 5 | BO79: 2 | BP79: 10 | BQ79: ناجحة | BR79: ومنقولة للصف الثالث | BS79: 0 | CN79: 179
A80: 71 | B80: 771 | C80: طالبة ادارة صباحى 71 | D80: 3/2 | F80: 273 | G80: 9 | H80: 9 | I80: 16 | J80: 34 | K80: 8 | L80: 9 | M80: 8 | N80: 25 | O80: 4 | P80: 4 | Q80: 7 | R80: 15 | S80: 9 | T80: 14 | U80: 18 | V80: 41 | W80: 9 | X80: 19 | Y80: 16 | Z80: 44 | AA80: 10 | AB80: 20 | AC80: 19 | AD80: 49 | AE80: 9 | AF80: 15 | AG80: 19 | AH80: 43 | AI80: 10 | AJ80: 18 | AK80: 20 | AL80: 48 | AM80: 9 | AN80: 19 | AO80: 14 | AP80: 42 | AQ80: 10 | AR80: 20 | AS80: 20 | AT80: 50 | AU80: 10 | AV80: 18 | AW80: 20 | AX80: 48 | AY80: 3 | AZ80: 5 | BA80: 5 | BB80: 10 | BC80: 7 | BD80: 12 | BE80: 15 | BF80: 27 | BG80: 42 | BH80: 481 | BI80: 3 | BJ80: 7 | BK80: 8 | BL80: 18 | BM80: 3 | BN80: 7 | BO80: 8 | BP80: 18 | BQ80: ناجحة | BR80: ومنقولة للصف الثالث | BS80: 0 | CN80: 180
A81: 72 | B81: 772 | C81: طالبة ادارة صباحى 72 | D81: 3/2 | F81: 274 | G81: 9 | H81: 14 | I81: 13 | J81: 36 | K81: 8 | L81: 7 | M81: 6 | N81: 21 | O81: 4 | P81: 4 | Q81: 6 | R81: 14 | S81: 10 | T81: 18 | U81: 20 | V81: 48 | W81: 9 | X81: 18 | Y81: 17 | Z81: 44 | AA81: 10 | AB81: 20 | AC81: 20 | AD81: 50 | AE81: 9 | AF81: 16 | AG81: 18 | AH81: 43 | AI81: 10 | AJ81: 19 | AK81: 20 | AL81: 49 | AM81: 9 | AN81: 19 | AO81: 15 | AP81: 43 | AQ81: 10 | AR81: 20 | AS81: 20 | AT81: 50 | AU81: 10 | AV81: 18 | AW81: 20 | AX81: 48 | AY81: 4 | AZ81: 5 | BA81: 8 | BB81: 8 | BC81: 5 | BD81: 12 | BE81: 17 | BF81: 25 | BG81: 42 | BH81: 488 | BI81: 3 | BJ81: 6 | BK81: 7 | BL81: 16 | BM81: 3 | BN81: 7 | BO81: 7 | BP81: 17 | BQ81: ناجحة | BR81: ومنقولة للصف الثالث | BS81: 0 | CN81: 189
A82: 73 | B82: 773 | C82: طالبة ادارة صباحى 73 | D82: 6/2 | F82: 275 | G82: 10 | H82: 13 | I82: 17 | J82: 40 | K82: 8 | L82: 10 | M82: 12 | N82: 30 | O82: 4 | P82: 5 | Q82: 5 | R82: 14 | S82: 10 | T82: 19 | U82: 17 | V82: 46 | W82: 9 | X82: 20 | Y82: 20 | Z82: 49 | AA82: 10 | AB82: 20 | AC82: 20 | AD82: 50 | AE82: 9 | AF82: 5 | AG82: 19 | AH82: 33 | AI82: 9 | AJ82: 16 | AK82: 18 | AL82: 43 | AM82: 9 | AN82: 17 | AO82: 17 | AP82: 43 | AQ82: 10 | AR82: 19 | AS82: 20 | AT82: 49 | AU82: 10 | AV82: 17 | AW82: 20 | AX82: 47 | AY82: 3 | AZ82: 5 | BA82: 5 | BB82: 9 | BC82: 7 | BD82: 12 | BE82: 15 | BF82: 26 | BG82: 41 | BH82: 485 | BI82: 3 | BJ82: 8 | BK82: 8 | BL82: 19 | BM82: 3 | BN82: 6 | BO82: 5 | BP82: 14 | BQ82: ناجحة | BR82: ومنقولة للصف الثالث | BS82: 0 | CN82: 175
A83: 74 | B83: 774 | C83: طالبة ادارة صباحى 74 | D83: 7/2 | F83: 276 | G83: 9 | H83: 12 | I83: 14 | J83: 35 | K83: 8 | L83: 7 | M83: 6 | N83: 21 | O83: 4 | P83: 4 | Q83: 5 | R83: 13 | S83: 9 | T83: 15 | U83: 11 | V83: 35 | W83: 10 | X83: 20 | Y83: 20 | Z83: 50 | AA83: 10 | AB83: 20 | AC83: 19 | AD83: 49 | AE83: 9 | AF83: 10 | AG83: 19 | AH83: 38 | AI83: 10 | AJ83: 19 | AK83: 20 | AL83: 49 | AM83: 9 | AN83: 15 | AO83: 15 | AP83: 39 | AQ83: 10 | AR83: 19 | AS83: 20 | AT83: 49 | AU83: 10 | AV83: 19 | AW83: 20 | AX83: 49 | AY83: 3 | AZ83: 5 | BA83: 5 | BB83: 9 | BC83: 5 | BD83: 12 | BE83: 13 | BF83: 26 | BG83: 39 | BH83: 466 | BI83: 3 | BJ83: 7 | BK83: 7 | BL83: 17 | BM83: 3 | BN83: 7 | BO83: 5 | BP83: 15 | BQ83: ناجحة | BR83: ومنقولة للصف الثالث | BS83: 0 | CN83: 174
A84: 75 | B84: 775 | C84: طالبة ادارة صباحى 75 | D84: 4/2 | F84: 277 | G84: 9 | H84: 12 | I84: 16 | J84: 37 | K84: 8 | L84: 6 | M84: 8 | N84: 22 | O84: 4 | P84: 4 | Q84: 6 | R84: 14 | S84: 8 | T84: 15 | U84: 17 | V84: 40 | W84: 9 | X84: 13 | Y84: 18 | Z84: 40 | AA84: 9 | AB84: 14 | AC84: 18 | AD84: 41 | AE84: 9 | AF84: 13 | AG84: 18 | AH84: 40 | AI84: 10 | AJ84: 18 | AK84: 19 | AL84: 47 | AM84: 9 | AN84: 19 | AO84: 14 | AP84: 42 | AQ84: 10 | AR84: 20 | AS84: 20 | AT84: 50 | AU84: 10 | AV84: 19 | AW84: 20 | AX84: 49 | AY84: 3 | AZ84: 5 | BA84: 5 | BB84: 9 | BC84: 5 | BD84: 12 | BE84: 13 | BF84: 26 | BG84: 39 | BH84: 461 | BI84: 3 | BJ84: 8 | BK84: 8 | BL84: 19 | BM84: 3 | BN84: 7 | BO84: 6 | BP84: 16 | BQ84: ناجحة | BR84: ومنقولة للصف الثالث | BS84: 0 | CN84: 167
A85: 76 | B85: 776 | C85: طالبة ادارة صباحى 76 | D85: 7/2 | F85: 278 | G85: 9 | H85: 11 | I85: 16 | J85: 36 | K85: 8 | L85: 9 | M85: 8 | N85: 25 | O85: 4 | P85: 5 | Q85: 5 | R85: 14 | S85: 10 | T85: 18 | U85: 20 | V85: 48 | W85: 10 | X85: 20 | Y85: 20 | Z85: 50 | AA85: 9 | AB85: 20 | AC85: 16 | AD85: 45 | AE85: 9 | AF85: 17 | AG85: 19 | AH85: 45 | AI85: 10 | AJ85: 20 | AK85: 20 | AL85: 50 | AM85: 9 | AN85: 17 | AO85: 16 | AP85: 42 | AQ85: 10 | AR85: 17 | AS85: 20 | AT85: 47 | AU85: 10 | AV85: 19 | AW85: 20 | AX85: 49 | AY85: 3 | AZ85: 5 | BA85: 6 | BB85: 9 | BC85: 5 | BD85: 12 | BE85: 14 | BF85: 26 | BG85: 40 | BH85: 491 | BI85: 3 | BJ85: 6 | BK85: 8 | BL85: 17 | BM85: 3 | BN85: 6 | BO85: 5 | BP85: 14 | BQ85: ناجحة | BR85: ومنقولة للصف الثالث | BS85: 0 | CN85: 188
A86: 77 | B86: 777 | C86: طالبة ادارة صباحى 77 | D86: 3/2 | F86: 279 | G86: 10 | H86: 15 | I86: 17 | J86: 42 | K86: 8 | L86: 14 | M86: 10 | N86: 32 | O86: 5 | P86: 7 | Q86: 5 | R86: 17 | S86: 9 | T86: 17 | U86: 18 | V86: 44 | W86: 10 | X86: 20 | Y86: 17 | Z86: 47 | AA86: 9 | AB86: 14 | AC86: 14 | AD86: 37 | AE86: 9 | AF86: 16 | AG86: 19 | AH86: 44 | AI86: 10 | AJ86: 19 | AK86: 19 | AL86: 48 | AM86: 9 | AN86: 19 | AO86: 15 | AP86: 43 | AQ86: 10 | AR86: 19 | AS86: 20 | AT86: 49 | AU86: 10 | AV86: 18 | AW86: 20 | AX86: 48 | AY86: 4 | AZ86: 5 | BA86: 8 | BB86: 10 | BC86: 5 | BD86: 12 | BE86: 17 | BF86: 27 | BG86: 44 | BH86: 495 | BI86: 3 | BJ86: 7 | BK86: 8 | BL86: 18 | BM86: 3 | BN86: 6 | BO86: 8 | BP86: 17 | BQ86: ناجحة | BR86: ومنقولة للصف الثالث | BS86: 0 | CN86: 196
A87: 78 | B87: 778 | C87: طالبة ادارة صباحى 78 | D87: 7/2 | F87: 280 | G87: 9 | H87: 10 | I87: 15 | J87: 34 | K87: 8 | L87: 10 | M87: 6 | N87: 24 | O87: 4 | P87: 6 | Q87: 4 | R87: 14 | S87: 9 | T87: 13 | U87: 13 | V87: 35 | W87: 9 | X87: 13 | Y87: 15 | Z87: 37 | AA87: 9 | AB87: 15 | AC87: 13 | AD87: 37 | AE87: 9 | AF87: 12 | AG87: 18 | AH87: 39 | AI87: 10 | AJ87: 19 | AK87: 17 | AL87: 46 | AM87: 9 | AN87: 16 | AO87: 15 | AP87: 40 | AQ87: 10 | AR87: 20 | AS87: 20 | AT87: 50 | AU87: 10 | AV87: 18 | AW87: 20 | AX87: 48 | AY87: 3 | AZ87: 5 | BA87: 6 | BB87: 10 | BC87: 5 | BD87: 12 | BE87: 14 | BF87: 27 | BG87: 41 | BH87: 445 | BI87: 3 | BJ87: 7 | BK87: 6 | BL87: 16 | BM87: 3 | BN87: 5 | BO87: 2 | BP87: 10 | BQ87: ناجحة | BR87: ومنقولة للصف الثالث | BS87: 0 | CN87: 168
A88: 79 | B88: 779 | C88: طالبة ادارة صباحى 79 | D88: 3/2 | F88: 281 | G88: 9 | H88: 11 | I88: 13 | J88: 33 | K88: 8 | L88: 6 | M88: 6 | N88: 20 | O88: 4 | P88: 4 | Q88: 5 | R88: 13 | S88: 9 | T88: 7 | U88: 9 | V88: 25 | W88: 9 | X88: 8 | Y88: 8 | Z88: 25 | AA88: 9 | AB88: 11 | AC88: 5 | AD88: 25 | AE88: 9 | AF88: 6 | AG88: 17 | AH88: 32 | AI88: 10 | AJ88: 19 | AK88: 17 | AL88: 46 | AM88: 9 | AN88: 15 | AO88: 14 | AP88: 38 | AQ88: 10 | AR88: 19 | AS88: 20 | AT88: 49 | AU88: 10 | AV88: 18 | AW88: 20 | AX88: 48 | AY88: 3 | AZ88: 5 | BA88: 5 | BB88: 10 | BC88: 6 | BD88: 12 | BE88: 14 | BF88: 27 | BG88: 41 | BH88: 395 | BI88: 3 | BJ88: 7 | BK88: 8 | BL88: 18 | BM88: 3 | BN88: 6 | BO88: 4 | BP88: 13 | BQ88: ناجحة | BR88: ومنقولة للصف الثالث | BS88: 0 | CN88: 139
A89: 80 | B89: 780 | C89: طالبة ادارة صباحى 80 | D89: 2/2 | F89: 282 | G89: 9 | H89: 12 | I89: 15 | J89: 36 | K89: 8 | L89: 6 | M89: 7 | N89: 21 | O89: 4 | P89: 4 | Q89: 4 | R89: 12 | S89: 9 | T89: 10 | U89: 15 | V89: 34 | W89: 9 | X89: 11 | Y89: 16 | Z89: 36 | AA89: 9 | AB89: 17 | AC89: 18 | AD89: 44 | AE89: 9 | AF89: 8 | AG89: 18 | AH89: 35 | AI89: 10 | AJ89: 19 | AK89: 19 | AL89: 48 | AM89: 9 | AN89: 16 | AO89: 14 | AP89: 39 | AQ89: 10 | AR89: 18 | AS89: 18 | AT89: 46 | AU89: 10 | AV89: 19 | AW89: 20 | AX89: 49 | AY89: 2 | AZ89: 5 | BA89: 4 | BB89: 10 | BC89: 5 | BD89: 12 | BE89: 11 | BF89: 27 | BG89: 38 | BH89: 438 | BI89: 3 | BJ89: 7 | BK89: 8 | BL89: 18 | BM89: 3 | BN89: 6 | BO89: 3 | BP89: 12 | BQ89: ناجحة | BR89: ومنقولة للصف الثالث | BS89: 0 | CN89: 154
A90: 81 | B90: 781 | C90: طالبة ادارة صباحى 81 | D90: 2/2 | F90: 283 | G90: 9 | H90: 12 | I90: 13 | J90: 34 | K90: 8 | L90: 6 | M90: 6 | N90: 20 | O90: 4 | P90: 5 | Q90: 4 | R90: 13 | S90: 9 | T90: 11 | U90: 5 | V90: 25 | W90: 9 | X90: 7 | Y90: 15 | Z90: 31 | AA90: 9 | AB90: 10 | AC90: 6 | AD90: 25 | AE90: 9 | AF90: 10 | AG90: 18 | AH90: 37 | AI90: 9 | AJ90: 14 | AK90: 11 | AL90: 34 | AM90: 9 | AN90: 16 | AO90: 14 | AP90: 39 | AQ90: 10 | AR90: 19 | AS90: 18 | AT90: 47 | AU90: 10 | AV90: 19 | AW90: 20 | AX90: 49 | AY90: 2 | AZ90: 5 | BA90: 4 | BB90: 9 | BC90: 4 | BD90: 12 | BE90: 10 | BF90: 26 | BG90: 36 | BH90: 390 | BI90: 3 | BJ90: 8 | BK90: 8 | BL90: 19 | BM90: 3 | BN90: 6 | BO90: 6 | BP90: 15 | BQ90: ناجحة | BR90: ومنقولة للصف الثالث | BS90: 0 | CN90: 142
A91: 82 | B91: 782 | C91: طالبة ادارة صباحى 82 | D91: 7/2 | F91: 284 | G91: 9 | H91: 9 | I91: 11 | J91: 29 | K91: 8 | L91: 2 | M91: 3 | N91: 13 | O91: 4 | P91: 4 | Q91: 3 | R91: 11 | S91: 9 | T91: 8 | U91: 1 | V91: 18 | W91: 9 | X91: 3 | Y91: 1 | Z91: 13 | AA91: 9 | AB91: 1 | AC91: 2 | AD91: 12 | AE91: 9 | AF91: 7 | AG91: 18 | AH91: 34 | AI91: 9 | AJ91: 9 | AK91: 10 | AL91: 28 | AM91: 9 | AN91: 16 | AO91: 13 | AP91: 38 | AQ91: 10 | AR91: 20 | AS91: 18 | AT91: 48 | AU91: 9 | AV91: 14 | AW91: 20 | AX91: 43 | AY91: 3 | AZ91: 5 | BA91: 5 | BB91: 9 | BC91: 5 | BD91: 12 | BE91: 13 | BF91: 26 | BG91: 39 | BH91: 326 | BI91: 3 | BJ91: 6 | BK91: 7 | BL91: 16 | BM91: 3 | BN91: 5 | BO91: 4 | BP91: 12 | BQ91: راسبة | BR91: فى : انجليزى - محاسبة - احصاء - رياضة مالية - | BS91: 4 | BY91: انجليزى - | CA91: محاسبة - | CB91: احصاء - | CC91: رياضة مالية - | CN91: 107
A92: 83 | B92: 783 | C92: طالبة ادارة صباحى 83 | D92: 2/2 | F92: 285 | G92: 9 | H92: 12 | I92: 13 | J92: 34 | K92: 8 | L92: 6 | M92: 6 | N92: 20 | O92: 4 | P92: 6 | Q92: 5 | R92: 15 | S92: 9 | T92: 8 | U92: 14 | V92: 31 | W92: 9 | X92: 17 | Y92: 12 | Z92: 38 | AA92: 10 | AB92: 20 | AC92: 19 | AD92: 49 | AE92: 9 | AF92: 13 | AG92: 18 | AH92: 40 | AI92: 10 | AJ92: 17 | AK92: 19 | AL92: 46 | AM92: 9 | AN92: 16 | AO92: 13 | AP92: 38 | AQ92: 10 | AR92: 19 | AS92: 18 | AT92: 47 | AU92: 10 | AV92: 19 | AW92: 20 | AX92: 49 | AY92: 2 | AZ92: 5 | BA92: 4 | BB92: 10 | BC92: 5 | BD92: 12 | BE92: 11 | BF92: 27 | BG92: 38 | BH92: 445 | BI92: 3 | BJ92: 7 | BK92: 8 | BL92: 18 | BM92: 3 | BN92: 5 | BO92: 4 | BP92: 12 | BQ92: ناجحة | BR92: ومنقولة للصف الثالث | BS92: 0 | CN92: 167
A93: 84 | B93: 784 | C93: طالبة ادارة صباحى 84 | D93: 3/2 | F93: 286 | G93: 10 | H93: 13 | I93: 17 | J93: 40 | K93: 8 | L93: 5 | M93: 7 | N93: 20 | O93: 4 | P93: 6 | Q93: 5 | R93: 15 | S93: 9 | T93: 14 | U93: 15 | V93: 38 | W93: 10 | X93: 19 | Y93: 20 | Z93: 49 | AA93: 10 | AB93: 18 | AC93: 20 | AD93: 48 | AE93: 9 | AF93: 12 | AG93: 17 | AH93: 38 | AI93: 10 | AJ93: 19 | AK93: 20 | AL93: 49 | AM93: 9 | AN93: 17 | AO93: 16 | AP93: 42 | AQ93: 10 | AR93: 19 | AS93: 18 | AT93: 47 | AU93: 10 | AV93: 18 | AW93: 20 | AX93: 48 | AY93: 2 | AZ93: 5 | BA93: 4 | BB93: 10 | BC93: 6 | BD93: 12 | BE93: 12 | BF93: 27 | BG93: 39 | BH93: 473 | BI93: 3 | BJ93: 8 | BK93: 8 | BL93: 19 | BM93: 3 | BN93: 7 | BO93: 6 | BP93: 16 | BQ93: ناجحة | BR93: ومنقولة للصف الثالث | BS93: 0 | CN93: 174
A94: 85 | B94: 785 | C94: طالبة ادارة صباحى 85 | D94: 7/2 | F94: 287 | G94: 9 | H94: 8 | I94: 8 | J94: 25 | K94: 8 | L94: 1 | M94: 4 | N94: 13 | O94: 4 | P94: 4 | Q94: 5 | R94: 13 | S94: 9 | T94: 8 | U94: 8 | V94: 25 | W94: 9 | X94: 9 | Y94: 7 | Z94: 25 | AA94: 9 | AB94: 7 | AC94: 3 | AD94: 19 | AE94: 9 | AF94: 6 | AG94: 17 | AH94: 32 | AI94: 9 | AJ94: 15 | AK94: 17 | AL94: 41 | AM94: 9 | AN94: 11 | AO94: 16 | AP94: 36 | AQ94: 10 | AR94: 19 | AS94: 18 | AT94: 47 | AU94: 10 | AV94: 20 | AW94: 20 | AX94: 50 | AY94: 3 | AZ94: 5 | BA94: 5 | BB94: 10 | BC94: 5 | BD94: 11 | BE94: 13 | BF94: 26 | BG94: 39 | BH94: 365 | BI94: 3 | BJ94: 5 | BK94: 8 | BL94: 16 | BM94: 3 | BN94: 5 | BO94: 6 | BP94: 14 | BQ94: دورثان | BR94: فى : انجليزى - رياضة مالية - | BS94: 2 | BY94: انجليزى - | CC94: رياضة مالية - | CN94: 123
A95: 86 | B95: 786 | C95: طالبة ادارة صباحى 86 | D95: 5/2 | F95: 288 | G95: 9 | H95: 12 | I95: 13 | J95: 34 | K95: 8 | L95: 8 | M95: 6 | N95: 22 | O95: 4 | P95: 5 | Q95: 5 | R95: 14 | S95: 9 | T95: 15 | U95: 13 | V95: 37 | W95: 9 | X95: 20 | Y95: 10 | Z95: 39 | AA95: 9 | AB95: 8 | AC95: 14 | AD95: 31 | AE95: 9 | AF95: 13 | AG95: 19 | AH95: 41 | AI95: 9 | AJ95: 15 | AK95: 19 | AL95: 43 | AM95: 9 | AN95: 14 | AO95: 17 | AP95: 40 | AQ95: 9 | AR95: 17 | AS95: 18 | AT95: 44 | AU95: 10 | AV95: 19 | AW95: 20 | AX95: 49 | AY95: 3 | AZ95: 5 | BA95: 5 | BB95: 10 | BC95: 4 | BD95: 12 | BE95: 12 | BF95: 27 | BG95: 39 | BH95: 433 | BI95: 3 | BJ95: 6 | BK95: 8 | BL95: 17 | BM95: 3 | BN95: 6 | BO95: 4 | BP95: 13 | BQ95: ناجحة | BR95: ومنقولة للصف الثالث | BS95: 0 | CN95: 161
A96: 87 | B96: 787 | C96: طالبة ادارة صباحى 87 | D96: 4/2 | F96: 289 | G96: 9 | H96: 11 | I96: 16 | J96: 36 | K96: 8 | L96: 8 | M96: 7 | N96: 23 | O96: 4 | P96: 5 | Q96: 5 | R96: 14 | S96: 5 | T96: 13 | U96: 10 | V96: 28 | W96: 9 | X96: 18 | Y96: 12 | Z96: 39 | AA96: 9 | AB96: 15 | AC96: 12 | AD96: 36 | AE96: 9 | AF96: 13 | AG96: 19 | AH96: 41 | AI96: 9 | AJ96: 14 | AK96: 17 | AL96: 40 | AM96: 9 | AN96: 15 | AO96: 17 | AP96: 41 | AQ96: 9 | AR96: 15 | AS96: 18 | AT96: 42 | AU96: 10 | AV96: 19 | AW96: 20 | AX96: 49 | AY96: 3 | AZ96: 5 | BA96: 5 | BB96: 10 | BC96: 8 | BD96: 12 | BE96: 16 | BF96: 27 | BG96: 43 | BH96: 432 | BI96: 3 | BJ96: 8 | BK96: 8 | BL96: 19 | BM96: 3 | BN96: 6 | BO96: 4 | BP96: 13 | BQ96: ناجحة | BR96: ومنقولة للصف الثالث | BS96: 0 | CN96: 161
A97: 88 | B97: 788 | C97: طالبة ادارة صباحى 88 | D97: 6/2 | F97: 290 | G97: 9 | H97: 9 | I97: 12 | J97: 30 | K97: 8 | L97: 6 | M97: 6 | N97: 20 | O97: 4 | P97: 5 | Q97: 5 | R97: 14 | S97: 9 | T97: 14 | U97: 14 | V97: 37 | W97: 9 | X97: 15 | Y97: 16 | Z97: 40 | AA97: 9 | AB97: 15 | AC97: 10 | AD97: 34 | AE97: 9 | AF97: 10 | AG97: 19 | AH97: 38 | AI97: 9 | AJ97: 14 | AK97: 17 | AL97: 40 | AM97: 9 | AN97: 15 | AO97: 16 | AP97: 40 | AQ97: 10 | AR97: 19 | AS97: 20 | AT97: 49 | AU97: 10 | AV97: 19 | AW97: 20 | AX97: 49 | AY97: 3 | AZ97: 5 | BA97: 6 | BB97: 10 | BC97: 6 | BD97: 12 | BE97: 15 | BF97: 27 | BG97: 42 | BH97: 433 | BI97: 3 | BJ97: 6 | BK97: 6 | BL97: 15 | BM97: 3 | BN97: 5 | BO97: 3 | BP97: 11 | BQ97: ناجحة | BR97: ومنقولة للصف الثالث | BS97: 0 | CN97: 157
A98: 89 | B98: 789 | C98: طالبة ادارة صباحى 89 | D98: 4/2 | F98: 291 | G98: 9 | H98: 9 | I98: 13 | J98: 31 | K98: 8 | L98: 4 | M98: 9 | N98: 21 | O98: 4 | P98: 4 | Q98: 5 | R98: 13 | S98: 6 | T98: 10 | U98: 9 | V98: 25 | W98: 10 | X98: 17 | Y98: 19 | Z98: 46 | AA98: 9 | AB98: 10 | AC98: 16 | AD98: 35 | AE98: 9 | AF98: 14 | AG98: 19 | AH98: 42 | AI98: 9 | AJ98: 12 | AK98: 18 | AL98: 39 | AM98: 9 | AN98: 13 | AO98: 17 | AP98: 39 | AQ98: 10 | AR98: 19 | AS98: 17 | AT98: 46 | AU98: 10 | AV98: 19 | AW98: 19 | AX98: 48 | AY98: 3 | AZ98: 5 | BA98: 5 | BB98: 10 | BC98: 5 | BD98: 9 | BE98: 13 | BF98: 24 | BG98: 37 | BH98: 422 | BI98: 3 | BJ98: 8 | BK98: 8 | BL98: 19 | BM98: 3 | BN98: 6 | BO98: 5 | BP98: 14 | BQ98: ناجحة | BR98: ومنقولة للصف الثالث | BS98: 0 | CN98: 146
A99: 90 | B99: 790 | C99: طالبة ادارة صباحى 90 | D99: 6/2 | F99: 292 | G99: 9 | H99: 13 | I99: 14 | J99: 36 | K99: 8 | L99: 4 | M99: 8 | N99: 20 | O99: 4 | P99: 5 | Q99: 4 | R99: 13 | S99: 9 | T99: 8 | U99: 13 | V99: 30 | W99: 9 | X99: 16 | Y99: 18 | Z99: 43 | AA99: 9 | AB99: 10 | AC99: 14 | AD99: 33 | AE99: 9 | AF99: 15 | AG99: 19 | AH99: 43 | AI99: 9 | AJ99: 13 | AK99: 19 | AL99: 41 | AM99: 9 | AN99: 16 | AO99: 17 | AP99: 42 | AQ99: 10 | AR99: 19 | AS99: 17 | AT99: 46 | AU99: 10 | AV99: 19 | AW99: 18 | AX99: 47 | AY99: 3 | AZ99: 5 | BA99: 5 | BB99: 11 | BC99: 5 | BD99: 9 | BE99: 13 | BF99: 25 | BG99: 38 | BH99: 432 | BI99: 3 | BJ99: 8 | BK99: 8 | BL99: 19 | BM99: 3 | BN99: 6 | BO99: 5 | BP99: 14 | BQ99: ناجحة | BR99: ومنقولة للصف الثالث | BS99: 0 | CN99: 154
A100: 91 | B100: 791 | C100: طالبة ادارة صباحى 91 | D100: 1/2 | F100: 293 | G100: 9 | H100: 12 | I100: 15 | J100: 36 | K100: 8 | L100: 4 | M100: 9 | N100: 21 | O100: 4 | P100: 4 | Q100: 5 | R100: 13 | S100: 9 | T100: 19 | U100: 14 | V100: 42 | W100: 9 | X100: 17 | Y100: 20 | Z100: 46 | AA100: 9 | AB100: 10 | AC100: 15 | AD100: 34 | AE100: 9 | AF100: 16 | AG100: 19 | AH100: 44 | AI100: 10 | AJ100: 17 | AK100: 20 | AL100: 47 | AM100: 9 | AN100: 11 | AO100: 14 | AP100: 34 | AQ100: 10 | AR100: 19 | AS100: 18 | AT100: 47 | AU100: 10 | AV100: 20 | AW100: 20 | AX100: 50 | AY100: 3 | AZ100: 5 | BA100: 6 | BB100: 7 | BC100: 8 | BD100: 9 | BE100: 17 | BF100: 21 | BG100: 38 | BH100: 452 | BI100: 3 | BJ100: 4 | BK100: 8 | BL100: 15 | BM100: 3 | BN100: 7 | BO100: 6 | BP100: 16 | BQ100: ناجحة | BR100: ومنقولة للصف الثالث | BS100: 0 | CN100: 162
A101: 92 | B101: 792 | C101: طالبة ادارة صباحى 92 | D101: 1/2 | F101: 294 | G101: 9 | H101: 12 | I101: 14 | J101: 35 | K101: 8 | L101: 6 | M101: 7 | N101: 21 | O101: 4 | P101: 4 | Q101: 5 | R101: 13 | S101: 9 | T101: 10 | U101: 12 | V101: 31 | W101: 10 | X101: 16 | Y101: 20 | Z101: 46 | AA101: 9 | AB101: 11 | AC101: 20 | AD101: 40 | AE101: 9 | AF101: 14 | AG101: 18 | AH101: 41 | AI101: 9 | AJ101: 16 | AK101: 19 | AL101: 44 | AM101: 9 | AN101: 18 | AO101: 14 | AP101: 41 | AQ101: 10 | AR101: 19 | AS101: 18 | AT101: 47 | AU101: 9 | AV101: 8 | AW101: 20 | AX101: 37 | AY101: 3 | AZ101: 5 | BA101: 7 | BB101: 9 | BC101: 5 | BD101: 9 | BE101: 15 | BF101: 23 | BG101: 38 | BH101: 434 | BI101: 3 | BJ101: 8 | BK101: 8 | BL101: 19 | BM101: 3 | BN101: 7 | BO101: 5 | BP101: 15 | BQ101: ناجحة | BR101: ومنقولة للصف الثالث | BS101: 0 | CN101: 150
A102: 93 | B102: 793 | C102: طالبة ادارة صباحى 93 | D102: 1/2 | F102: 295 | G102: 9 | H102: 10 | I102: 14 | J102: 33 | K102: 8 | L102: 8 | M102: 8 | N102: 24 | O102: 4 | P102: 5 | Q102: 5 | R102: 14 | S102: 9 | T102: 15 | U102: 15 | V102: 39 | W102: 10 | X102: 20 | Y102: 20 | Z102: 50 | AA102: 9 | AB102: 7 | AC102: 19 | AD102: 35 | AE102: 9 | AF102: 14 | AG102: 18 | AH102: 41 | AI102: 10 | AJ102: 19 | AK102: 19 | AL102: 48 | AM102: 9 | AN102: 16 | AO102: 14 | AP102: 39 | AQ102: 10 | AR102: 18 | AS102: 18 | AT102: 46 | AU102: 10 | AV102: 18 | AW102: 20 | AX102: 48 | AY102: 4 | AZ102: 5 | BA102: 8 | BB102: 8 | BC102: 6 | BD102: 10 | BE102: 18 | BF102: 23 | BG102: 41 | BH102: 458 | BI102: 3 | BJ102: 7 | BK102: 8 | BL102: 18 | BM102: 3 | BN102: 4 | BO102: 7 | BP102: 14 | BQ102: ناجحة | BR102: ومنقولة للصف الثالث | BS102: 0 | CN102: 166
A103: 94 | B103: 794 | C103: طالبة ادارة صباحى 94 | D103: 6/2 | F103: 296 | G103: 9 | H103: 9 | I103: 13 | J103: 31 | K103: 8 | L103: 7 | M103: 5 | N103: 20 | O103: 4 | P103: 5 | Q103: 4 | R103: 13 | S103: 6 | T103: 13 | U103: 6 | V103: 25 | W103: 10 | X103: 16 | Y103: 20 | Z103: 46 | AA103: 9 | AB103: 15 | AC103: 20 | AD103: 44 | AE103: 9 | AF103: 13 | AG103: 19 | AH103: 41 | AI103: 9 | AJ103: 15 | AK103: 11 | AL103: 35 | AM103: 9 | AN103: 13 | AO103: 14 | AP103: 36 | AQ103: 10 | AR103: 19 | AS103: 18 | AT103: 47 | AU103: 10 | AV103: 16 | AW103: 20 | AX103: 46 | AY103: 3 | AZ103: 5 | BA103: 7 | BB103: 8 | BC103: 4 | BD103: 12 | BE103: 14 | BF103: 25 | BG103: 39 | BH103: 423 | BI103: 3 | BJ103: 7 | BK103: 7 | BL103: 17 | BM103: 3 | BN103: 5 | BO103: 4 | BP103: 12 | BQ103: ناجحة | BR103: ومنقولة للصف الثالث | BS103: 0 | CN103: 156
A104: 95 | B104: 795 | C104: طالبة ادارة صباحى 95 | D104: 3/2 | F104: 297 | G104: 9 | H104: 7 | I104: 12 | J104: 28 | K104: 8 | L104: 6 | M104: 6 | N104: 20 | O104: 4 | P104: 4 | Q104: 6 | R104: 14 | S104: 9 | T104: 9 | U104: 7 | V104: 25 | W104: 9 | X104: 6 | Y104: 15 | Z104: 30 | AA104: 9 | AB104: 12 | AC104: 15 | AD104: 36 | AE104: 9 | AF104: 8 | AG104: 17 | AH104: 34 | AI104: 9 | AJ104: 12 | AK104: 11 | AL104: 32 | AM104: 9 | AN104: 12 | AO104: 13 | AP104: 34 | AQ104: 9 | AR104: 16 | AS104: 17 | AT104: 42 | AU104: 9 | AV104: 14 | AW104: 20 | AX104: 43 | AY104: 3 | AZ104: 5 | BA104: 6 | BB104: 2 | BC104: 4 | BD104: 8 | BE104: 13 | BF104: 15 | BG104: 28 | BH104: 366 | BI104: 3 | BJ104: 3 | BK104: 8 | BL104: 14 | BM104: 3 | BN104: 5 | BO104: 2 | BP104: 10 | BQ104: ناجحة | BR104: ومنقولة للصف الثالث | BS104: 0 | CN104: 114
A105: 96 | B105: 796 | C105: طالبة ادارة صباحى 96 | D105: 1/2 | F105: 298 | G105: 9 | H105: 9 | I105: 13 | J105: 31 | K105: 8 | L105: 6 | M105: 6 | N105: 20 | O105: 4 | P105: 4 | Q105: 4 | R105: 12 | S105: 9 | T105: 11 | U105: 5 | V105: 25 | W105: 9 | X105: 4 | Y105: 17 | Z105: 30 | AA105: 9 | AB105: 8 | AC105: 10 | AD105: 27 | AE105: 9 | AF105: 5 | AG105: 18 | AH105: 32 | AI105: 9 | AJ105: 16 | AK105: 7 | AL105: 32 | AM105: 9 | AN105: 15 | AO105: 11 | AP105: 35 | AQ105: 9 | AR105: 16 | AS105: 17 | AT105: 42 | AU105: 9 | AV105: 12 | AW105: 20 | AX105: 41 | AY105: 4 | AZ105: 5 | BA105: 8 | BB105: 3 | BC105: 5 | BD105: 7 | BE105: 17 | BF105: 15 | BG105: 32 | BH105: 359 | BI105: 3 | BJ105: 5 | BK105: 6 | BL105: 14 | BM105: 3 | BN105: 5 | BO105: 3 | BP105: 11 | BQ105: ناجحة | BR105: ومنقولة للصف الثالث | BS105: 0 | CN105: 117
A106: 97 | B106: 797 | C106: طالبة ادارة صباحى 97 | D106: 7/2 | F106: 299 | G106: 9 | H106: 11 | I106: 15 | J106: 35 | K106: 8 | L106: 6 | M106: 6 | N106: 20 | O106: 4 | P106: 4 | Q106: 6 | R106: 14 | S106: 9 | T106: 15 | U106: 15 | V106: 39 | W106: 10 | X106: 19 | Y106: 19 | Z106: 48 | AA106: 9 | AB106: 12 | AC106: 20 | AD106: 41 | AE106: 9 | AF106: 15 | AG106: 18 | AH106: 42 | AI106: 9 | AJ106: 13 | AK106: 14 | AL106: 36 | AM106: 9 | AN106: 16 | AO106: 14 | AP106: 39 | AQ106: 9 | AR106: 17 | AS106: 18 | AT106: 44 | AU106: 10 | AV106: 18 | AW106: 20 | AX106: 48 | AY106: 3 | AZ106: 5 | BA106: 5 | BB106: 9 | BC106: 5 | BD106: 10 | BE106: 13 | BF106: 24 | BG106: 37 | BH106: 443 | BI106: 3 | BJ106: 7 | BK106: 8 | BL106: 18 | BM106: 3 | BN106: 6 | BO106: 5 | BP106: 14 | BQ106: ناجحة | BR106: ومنقولة للصف الثالث | BS106: 0 | CN106: 160
A107: 98 | B107: 798 | C107: طالبة ادارة صباحى 98 | D107: 3/2 | F107: 300 | G107: 9 | H107: 10 | I107: 12 | J107: 31 | K107: 8 | L107: 5 | M107: 7 | N107: 20 | O107: 4 | P107: 4 | Q107: 3 | R107: 11 | S107: 9 | T107: 11 | U107: 13 | V107: 33 | W107: 9 | X107: 8 | Y107: 20 | Z107: 37 | AA107: 9 | AB107: 14 | AC107: 19 | AD107: 42 | AE107: 9 | AF107: 11 | AG107: 19 | AH107: 39 | AI107: 9 | AJ107: 12 | AK107: 15 | AL107: 36 | AM107: 9 | AN107: 12 | AO107: 14 | AP107: 35 | AQ107: 9 | AR107: 16 | AS107: 16 | AT107: 41 | AU107: 9 | AV107: 12 | AW107: 20 | AX107: 41 | AY107: 3 | AZ107: 5 | BA107: 7 | BB107: 9 | BC107: 6 | BD107: 7 | BE107: 16 | BF107: 21 | BG107: 37 | BH107: 403 | BI107: 3 | BJ107: 6 | BK107: 8 | BL107: 17 | BM107: 3 | BN107: 4 | BO107: 4 | BP107: 11 | BQ107: ناجحة | BR107: ومنقولة للصف الثالث | BS107: 0 | CN107: 131
A108: 99 | B108: 799 | C108: طالبة ادارة صباحى 99 | D108: 3/2 | F108: 301 | G108: 9 | H108: 8 | I108: 10 | J108: 27 | K108: 8 | L108: 4 | M108: 8 | N108: 20 | O108: 4 | P108: 5 | Q108: 4 | R108: 13 | S108: 9 | T108: 14 | U108: 17 | V108: 40 | W108: 10 | X108: 18 | Y108: 20 | Z108: 48 | AA108: 10 | AB108: 16 | AC108: 20 | AD108: 46 | AE108: 9 | AF108: 12 | AG108: 19 | AH108: 40 | AI108: 9 | AJ108: 12 | AK108: 19 | AL108: 40 | AM108: 9 | AN108: 17 | AO108: 14 | AP108: 40 | AQ108: 10 | AR108: 19 | AS108: 18 | AT108: 47 | AU108: 10 | AV108: 17 | AW108: 20 | AX108: 47 | AY108: 3 | AZ108: 5 | BA108: 5 | BB108: 11 | BC108: 5 | BD108: 9 | BE108: 13 | BF108: 25 | BG108: 38 | BH108: 446 | BI108: 3 | BJ108: 8 | BK108: 7 | BL108: 18 | BM108: 3 | BN108: 5 | BO108: 6 | BP108: 14 | BQ108: ناجحة | BR108: ومنقولة للصف الثالث | BS108: 0 | CN108: 158
A109: 100 | B109: 800 | C109: طالبة ادارة صباحى 100 | D109: 3/2 | F109: 302 | G109: 9 | H109: 9 | I109: 13 | J109: 31 | K109: 8 | L109: 7 | M109: 5 | N109: 20 | O109: 4 | P109: 5 | Q109: 4 | R109: 13 | S109: 9 | T109: 13 | U109: 18 | V109: 40 | W109: 10 | X109: 16 | Y109: 20 | Z109: 46 | AA109: 9 | AB109: 15 | AC109: 20 | AD109: 44 | AE109: 9 | AF109: 13 | AG109: 19 | AH109: 41 | AI109: 9 | AJ109: 16 | AK109: 16 | AL109: 41 | AM109: 9 | AN109: 14 | AO109: 14 | AP109: 37 | AQ109: 9 | AR109: 18 | AS109: 17 | AT109: 44 | AU109: 10 | AV109: 17 | AW109: 20 | AX109: 47 | AY109: 3 | AZ109: 5 | BA109: 7 | BB109: 8 | BC109: 6 | BD109: 8 | BE109: 16 | BF109: 21 | BG109: 37 | BH109: 441 | BI109: 3 | BJ109: 8 | BK109: 7 | BL109: 18 | BM109: 3 | BN109: 5 | BO109: 7 | BP109: 15 | BQ109: ناجحة | BR109: ومنقولة للصف الثالث | BS109: 0 | CN109: 158
A110: 101 | B110: 801 | C110: طالبة ادارة صباحى 101 | D110: 6/2 | F110: 303 | G110: غ | H110: غ | I110: غ | J110: 0 | K110: غ | L110: غ | M110: غ | N110: 0 | O110: غ | P110: غ | Q110: غ | R110: 0 | S110: غ | T110: غ | U110: غ | V110: 0 | W110: غ | X110: غ | Y110: غ | Z110: 0 | AA110: غ | AB110: غ | AC110: غ | AD110: 0 | AE110: غ | AF110: غ | AG110: غ | AH110: 0 | AI110: غ | AJ110: غ | AK110: غ | AL110: 0 | AM110: غ | AN110: غ | AO110: غ | AP110: 0 | AQ110: غ | AR110: غ | AS110: غ | AT110: 0 | AU110: غ | AV110: غ | AW110: غ | AX110: 0 | AY110: غ | AZ110: غ | BA110: غ | BB110: غ | BC110: غ | BD110: غ | BE110: 0 | BF110: 0 | BG110: 0 | BH110: 0 | BI110: غ | BJ110: غ | BK110: غ | BL110: 0 | BM110: غ | BN110: غ | BO110: غ | BP110: 0 | BQ110: راسبة | BR110: فى : عربى - انجليزى - فرنسى - محاسبة - احصاء - رياضة مالية - اقتصاد - سكرتارية . ع - سكرتارية . ف - مشروعات - مخازن - حاسب - مواطنة - دين - مجموع | BS110: 15 | BX110: عربى - | BY110: انجليزى - | BZ110: فرنسى - | CA110: محاسبة - | CB110: احصاء - | CC110: رياضة مالية - | CD110: اقتصاد - | CE110: سكرتارية . ع - | CF110: سكرتارية . ف - | CG110: مشروعات - | CH110: مخازن - | CI110: حاسب - | CJ110: مواطنة - | CK110: دين - | CL110: مجموع | CN110: 0
A111: 102 | B111: 802 | C111: طالبة ادارة صباحى 102 | D111: 2/2 | F111: 304 | G111: 9 | H111: 13 | I111: 16 | J111: 38 | K111: 8 | L111: 6 | M111: 8 | N111: 22 | O111: 4 | P111: 6 | Q111: 5 | R111: 15 | S111: 10 | T111: 18 | U111: 20 | V111: 48 | W111: 10 | X111: 17 | Y111: 20 | Z111: 47 | AA111: 9 | AB111: 16 | AC111: 19 | AD111: 44 | AE111: 9 | AF111: 12 | AG111: 19 | AH111: 40 | AI111: 10 | AJ111: 16 | AK111: 20 | AL111: 46 | AM111: 9 | AN111: 19 | AO111: 16 | AP111: 44 | AQ111: 10 | AR111: 20 | AS111: 20 | AT111: 50 | AU111: 10 | AV111: 18 | AW111: 20 | AX111: 48 | AY111: 3 | AZ111: 5 | BA111: 6 | BB111: 11 | BC111: 5 | BD111: 9 | BE111: 14 | BF111: 25 | BG111: 39 | BH111: 481 | BI111: 3 | BJ111: 8 | BK111: 8 | BL111: 19 | BM111: 3 | BN111: 7 | BO111: 8 | BP111: 18 | BQ111: ناجحة | BR111: ومنقولة للصف الثالث | BS111: 0 | CN111: 178
A112: 103 | B112: 803 | C112: طالبة ادارة صباحى 103 | D112: 7/2 | F112: 305 | G112: 9 | H112: 11 | I112: 10 | J112: 30 | K112: 8 | L112: 6 | M112: 8 | N112: 22 | O112: 4 | P112: 6 | Q112: 6 | R112: 16 | S112: 9 | T112: 11 | U112: 5 | V112: 25 | W112: 9 | X112: 12 | Y112: 20 | Z112: 41 | AA112: 9 | AB112: 12 | AC112: 13 | AD112: 34 | AE112: 9 | AF112: 16 | AG112: 17 | AH112: 42 | AI112: 9 | AJ112: 17 | AK112: 18 | AL112: 44 | AM112: 9 | AN112: 16 | AO112: 17 | AP112: 42 | AQ112: 10 | AR112: 18 | AS112: 19 | AT112: 47 | AU112: 10 | AV112: 19 | AW112: 20 | AX112: 49 | AY112: 3 | AZ112: 5 | BA112: 6 | BB112: 9 | BC112: 5 | BD112: 8 | BE112: 14 | BF112: 22 | BG112: 36 | BH112: 428 | BI112: 3 | BJ112: 8 | BK112: 8 | BL112: 19 | BM112: 3 | BN112: 5 | BO112: 6 | BP112: 14 | BQ112: ناجحة | BR112: ومنقولة للصف الثالث | BS112: 0 | CN112: 159
A113: 104 | B113: 804 | C113: طالبة ادارة صباحى 104 | D113: 3/2 | F113: 306 | G113: 10 | H113: 13 | I113: 18 | J113: 41 | K113: 8 | L113: 8 | M113: 10 | N113: 26 | O113: 4 | P113: 5 | Q113: 6 | R113: 15 | S113: 9 | T113: 15 | U113: 19 | V113: 43 | W113: 10 | X113: 17 | Y113: 20 | Z113: 47 | AA113: 9 | AB113: 14 | AC113: 20 | AD113: 43 | AE113: 9 | AF113: 15 | AG113: 20 | AH113: 44 | AI113: 9 | AJ113: 14 | AK113: 18 | AL113: 41 | AM113: 9 | AN113: 18 | AO113: 18 | AP113: 45 | AQ113: 10 | AR113: 19 | AS113: 19 | AT113: 48 | AU113: 10 | AV113: 19 | AW113: 20 | AX113: 49 | AY113: 3 | AZ113: 5 | BA113: 5 | BB113: 11 | BC113: 5 | BD113: 9 | BE113: 13 | BF113: 25 | BG113: 38 | BH113: 480 | BI113: 3 | BJ113: 8 | BK113: 8 | BL113: 19 | BM113: 3 | BN113: 6 | BO113: 8 | BP113: 17 | BQ113: ناجحة | BR113: ومنقولة للصف الثالث | BS113: 0 | CN113: 173
A114: 105 | B114: 805 | C114: طالبة ادارة صباحى 105 | D114: 1/2 | F114: 307 | G114: 9 | H114: 13 | I114: 14 | J114: 36 | K114: 8 | L114: 7 | M114: 10 | N114: 25 | O114: 4 | P114: 6 | Q114: 6 | R114: 16 | S114: 9 | T114: 16 | U114: 16 | V114: 41 | W114: 9 | X114: 15 | Y114: 20 | Z114: 44 | AA114: 9 | AB114: 13 | AC114: 20 | AD114: 42 | AE114: 9 | AF114: 15 | AG114: 20 | AH114: 44 | AI114: 9 | AJ114: 12 | AK114: 16 | AL114: 37 | AM114: 9 | AN114: 18 | AO114: 15 | AP114: 42 | AQ114: 10 | AR114: 19 | AS114: 19 | AT114: 48 | AU114: 10 | AV114: 18 | AW114: 20 | AX114: 48 | AY114: 3 | AZ114: 5 | BA114: 6 | BB114: 10 | BC114: 5 | BD114: 9 | BE114: 14 | BF114: 24 | BG114: 38 | BH114: 461 | BI114: 3 | BJ114: 7 | BK114: 8 | BL114: 18 | BM114: 3 | BN114: 6 | BO114: 7 | BP114: 16 | BQ114: ناجحة | BR114: ومنقولة للصف الثالث | BS114: 0 | CN114: 168
A115: 106 | B115: 806 | C115: طالبة ادارة صباحى 106 | D115: 1/2 | F115: 308 | G115: 9 | H115: 11 | I115: 13 | J115: 33 | K115: 8 | L115: 6 | M115: 9 | N115: 23 | O115: 4 | P115: 5 | Q115: 6 | R115: 15 | S115: 9 | T115: 13 | U115: 11 | V115: 33 | W115: 9 | X115: 14 | Y115: 20 | Z115: 43 | AA115: 9 | AB115: 12 | AC115: 20 | AD115: 41 | AE115: 9 | AF115: 16 | AG115: 20 | AH115: 45 | AI115: 9 | AJ115: 13 | AK115: 17 | AL115: 39 | AM115: 9 | AN115: 14 | AO115: 15 | AP115: 38 | AQ115: 10 | AR115: 19 | AS115: 19 | AT115: 48 | AU115: 10 | AV115: 18 | AW115: 20 | AX115: 48 | AY115: 3 | AZ115: 5 | BA115: 6 | BB115: 9 | BC115: 5 | BD115: 9 | BE115: 14 | BF115: 23 | BG115: 37 | BH115: 443 | BI115: 3 | BJ115: 7 | BK115: 8 | BL115: 18 | BM115: 3 | BN115: 7 | BO115: 8 | BP115: 18 | BQ115: ناجحة | BR115: ومنقولة للصف الثالث | BS115: 0 | CN115: 156
A116: 107 | B116: 807 | C116: طالبة ادارة صباحى 107 | D116: 7/2 | F116: 309 | G116: 9 | H116: 11 | I116: 14 | J116: 34 | K116: 8 | L116: 6 | M116: 9 | N116: 23 | O116: 4 | P116: 4 | Q116: 7 | R116: 15 | S116: 9 | T116: 15 | U116: 13 | V116: 37 | W116: 10 | X116: 19 | Y116: 20 | Z116: 49 | AA116: 9 | AB116: 16 | AC116: 19 | AD116: 44 | AE116: 9 | AF116: 13 | AG116: 20 | AH116: 42 | AI116: 9 | AJ116: 17 | AK116: 18 | AL116: 44 | AM116: 9 | AN116: 16 | AO116: 15 | AP116: 40 | AQ116: 10 | AR116: 19 | AS116: 19 | AT116: 48 | AU116: 9 | AV116: 14 | AW116: 20 | AX116: 43 | AY116: 3 | AZ116: 5 | BA116: 5 | BB116: 9 | BC116: 5 | BD116: 8 | BE116: 13 | BF116: 22 | BG116: 35 | BH116: 454 | BI116: 3 | BJ116: 7 | BK116: 8 | BL116: 18 | BM116: 3 | BN116: 7 | BO116: 6 | BP116: 16 | BQ116: ناجحة | BR116: ومنقولة للصف الثالث | BS116: 0 | CN116: 164
A117: 108 | B117: 808 | C117: طالبة ادارة صباحى 108 | D117: 4/2 | F117: 310 | G117: 9 | H117: 10 | I117: 12 | J117: 31 | K117: 8 | L117: 4 | M117: 6 | N117: 18 | O117: 4 | P117: 3 | Q117: 4 | R117: 11 | S117: 9 | T117: 3 | U117: 0 | V117: 12 | W117: 10 | X117: 18 | Y117: 20 | Z117: 48 | AA117: 9 | AB117: 16 | AC117: 19 | AD117: 44 | AE117: 9 | AF117: 14 | AG117: 20 | AH117: 43 | AI117: 9 | AJ117: 13 | AK117: 16 | AL117: 38 | AM117: 9 | AN117: 16 | AO117: 15 | AP117: 40 | AQ117: 10 | AR117: 19 | AS117: 19 | AT117: 48 | AU117: 9 | AV117: 15 | AW117: 20 | AX117: 44 | AY117: 3 | AZ117: 5 | BA117: 5 | BB117: 8 | BC117: 5 | BD117: 4 | BE117: 13 | BF117: 17 | BG117: 30 | BH117: 407 | BI117: 3 | BJ117: 7 | BK117: 8 | BL117: 18 | BM117: 3 | BN117: 4 | BO117: 4 | BP117: 11 | BQ117: دورثان | BR117: فى : انجليزى - محاسبة - | BS117: 2 | BY117: انجليزى - | CA117: محاسبة - | CN117: 144
A118: 109 | B118: 809 | C118: طالبة ادارة صباحى 109 | D118: 3/2 | F118: 311 | G118: 9 | H118: 10 | I118: 11 | J118: 30 | K118: 8 | L118: 7 | M118: 5 | N118: 20 | O118: 4 | P118: 4 | Q118: 4 | R118: 12 | S118: 9 | T118: 12 | U118: 9 | V118: 30 | W118: 10 | X118: 16 | Y118: 20 | Z118: 46 | AA118: 10 | AB118: 16 | AC118: 20 | AD118: 46 | AE118: 9 | AF118: 14 | AG118: 20 | AH118: 43 | AI118: 9 | AJ118: 13 | AK118: 17 | AL118: 39 | AM118: 9 | AN118: 19 | AO118: 15 | AP118: 43 | AQ118: 9 | AR118: 18 | AS118: 16 | AT118: 43 | AU118: 10 | AV118: 18 | AW118: 20 | AX118: 48 | AY118: 3 | AZ118: 5 | BA118: 4 | BB118: 9 | BC118: 5 | BD118: 9 | BE118: 12 | BF118: 23 | BG118: 35 | BH118: 435 | BI118: 3 | BJ118: 6 | BK118: 8 | BL118: 17 | BM118: 3 | BN118: 6 | BO118: 4 | BP118: 13 | BQ118: ناجحة | BR118: ومنقولة للصف الثالث | BS118: 0 | CN118: 160
A119: 110 | B119: 810 | C119: طالبة ادارة صباحى 110 | D119: 2/2 | F119: 312 | G119: 9 | H119: 4 | I119: 4 | J119: 17 | K119: 8 | L119: 2 | M119: 3 | N119: 13 | O119: 4 | P119: 6 | Q119: 4 | R119: 14 | S119: 9 | T119: 2 | U119: 1 | V119: 12 | W119: 9 | X119: 0 | Y119: 20 | Z119: 29 | AA119: 9 | AB119: 5 | AC119: 11 | AD119: 25 | AE119: 9 | AF119: 5 | AG119: 20 | AH119: 34 | AI119: 9 | AJ119: 12 | AK119: 12 | AL119: 33 | AM119: 9 | AN119: 12 | AO119: 16 | AP119: 37 | AQ119: 9 | AR119: 16 | AS119: 18 | AT119: 43 | AU119: 10 | AV119: 18 | AW119: 20 | AX119: 48 | AY119: 2 | AZ119: 5 | BA119: 4 | BB119: 7 | BC119: 4 | BD119: 7 | BE119: 10 | BF119: 19 | BG119: 29 | BH119: 334 | BI119: 3 | BJ119: 4 | BK119: 7 | BL119: 14 | BM119: 3 | BN119: 4 | BO119: 3 | BP119: 10 | BQ119: راسبة | BR119: فى : عربى - انجليزى - محاسبة - | BS119: 3 | BX119: عربى - | BY119: انجليزى - | CA119: محاسبة - | CN119: 93
A120: 111 | B120: 811 | C120: طالبة ادارة صباحى 111 | D120: 1/2 | F120: 313 | G120: 9 | H120: 11 | I120: 15 | J120: 35 | K120: 8 | L120: 6 | M120: 9 | N120: 23 | O120: 5 | P120: 7 | Q120: 7 | R120: 19 | S120: 9 | T120: 15 | U120: 18 | V120: 42 | W120: 10 | X120: 20 | Y120: 20 | Z120: 50 | AA120: 10 | AB120: 19 | AC120: 20 | AD120: 49 | AE120: 9 | AF120: 14 | AG120: 19 | AH120: 42 | AI120: 10 | AJ120: 19 | AK120: 17 | AL120: 46 | AM120: 9 | AN120: 15 | AO120: 14 | AP120: 38 | AQ120: 10 | AR120: 18 | AS120: 19 | AT120: 47 | AU120: 10 | AV120: 20 | AW120: 20 | AX120: 50 | AY120: 4 | AZ120: 5 | BA120: 8 | BB120: 5 | BC120: 6 | BD120: 12 | BE120: 18 | BF120: 22 | BG120: 40 | BH120: 481 | BI120: 3 | BJ120: 4 | BK120: 8 | BL120: 15 | BM120: 3 | BN120: 7 | BO120: 5 | BP120: 15 | BQ120: ناجحة | BR120: ومنقولة للصف الثالث | BS120: 0 | CN120: 177
A121: 112 | B121: 812 | C121: طالبة ادارة صباحى 112 | D121: 7/2 | F121: 314 | G121: 9 | H121: 10 | I121: 14 | J121: 33 | K121: 8 | L121: 7 | M121: 5 | N121: 20 | O121: 5 | P121: 7 | Q121: 6 | R121: 18 | S121: 9 | T121: 13 | U121: 13 | V121: 35 | W121: 9 | X121: 15 | Y121: 17 | Z121: 41 | AA121: 10 | AB121: 19 | AC121: 20 | AD121: 49 | AE121: 9 | AF121: 7 | AG121: 18 | AH121: 34 | AI121: 9 | AJ121: 18 | AK121: 13 | AL121: 40 | AM121: 9 | AN121: 12 | AO121: 18 | AP121: 39 | AQ121: 10 | AR121: 19 | AS121: 18 | AT121: 47 | AU121: 10 | AV121: 20 | AW121: 20 | AX121: 50 | AY121: 3 | AZ121: 5 | BA121: 5 | BB121: 6 | BC121: 4 | BD121: 12 | BE121: 12 | BF121: 23 | BG121: 35 | BH121: 441 | BI121: 3 | BJ121: 5 | BK121: 8 | BL121: 16 | BM121: 3 | BN121: 5 | BO121: 5 | BP121: 13 | BQ121: ناجحة | BR121: ومنقولة للصف الثالث | BS121: 0 | CN121: 158
A122: 113 | B122: 813 | C122: طالبة ادارة صباحى 113 | D122: 2/2 | F122: 315 | G122: 9 | H122: 10 | I122: 14 | J122: 33 | K122: 8 | L122: 7 | M122: 5 | N122: 20 | O122: 4 | P122: 6 | Q122: 6 | R122: 16 | S122: 9 | T122: 11 | U122: 13 | V122: 33 | W122: 9 | X122: 13 | Y122: 17 | Z122: 39 | AA122: 9 | AB122: 17 | AC122: 16 | AD122: 42 | AE122: 9 | AF122: 17 | AG122: 16 | AH122: 42 | AI122: 9 | AJ122: 17 | AK122: 14 | AL122: 40 | AM122: 9 | AN122: 11 | AO122: 14 | AP122: 34 | AQ122: 10 | AR122: 20 | AS122: 17 | AT122: 47 | AU122: 10 | AV122: 16 | AW122: 20 | AX122: 46 | AY122: 2 | AZ122: 5 | BA122: 4 | BB122: 11 | BC122: 5 | BD122: 12 | BE122: 11 | BF122: 28 | BG122: 39 | BH122: 431 | BI122: 3 | BJ122: 7 | BK122: 8 | BL122: 18 | BM122: 3 | BN122: 5 | BO122: 6 | BP122: 14 | BQ122: ناجحة | BR122: ومنقولة للصف الثالث | BS122: 0 | CN122: 160
A123: 114 | B123: 814 | C123: طالبة ادارة صباحى 114 | D123: 1/2 | F123: 316 | G123: 9 | H123: 9 | I123: 14 | J123: 32 | K123: 8 | L123: 7 | M123: 5 | N123: 20 | O123: 4 | P123: 4 | Q123: 4 | R123: 12 | S123: 9 | T123: 9 | U123: 7 | V123: 25 | W123: 9 | X123: 9 | Y123: 11 | Z123: 29 | AA123: 9 | AB123: 15 | AC123: 19 | AD123: 43 | AE123: 9 | AF123: 7 | AG123: 11 | AH123: 27 | AI123: 9 | AJ123: 16 | AK123: 15 | AL123: 40 | AM123: 9 | AN123: 13 | AO123: 15 | AP123: 37 | AQ123: 9 | AR123: 13 | AS123: 20 | AT123: 42 | AU123: 9 | AV123: 13 | AW123: 18 | AX123: 40 | AY123: 3 | AZ123: 5 | BA123: 7 | BB123: 10 | BC123: 5 | BD123: 12 | BE123: 15 | BF123: 27 | BG123: 42 | BH123: 389 | BI123: 3 | BJ123: 5 | BK123: 8 | BL123: 16 | BM123: 3 | BN123: 3 | BO123: 6 | BP123: 12 | BQ123: ناجحة | BR123: ومنقولة للصف الثالث | BS123: 0 | CN123: 132
A124: 115 | B124: 815 | C124: طالبة ادارة صباحى 115 | D124: 2/2 | F124: 317 | G124: 9 | H124: 8 | I124: 8 | J124: 25 | K124: 8 | L124: 1 | M124: 5 | N124: 14 | O124: 4 | P124: 6 | Q124: 5 | R124: 15 | S124: 9 | T124: 1 | U124: 0 | V124: 10 | W124: 9 | X124: 3 | Y124: 18 | Z124: 30 | AA124: 9 | AB124: 0 | AC124: 16 | AD124: 25 | AE124: 9 | AF124: 7 | AG124: 9 | AH124: 25 | AI124: 9 | AJ124: 9 | AK124: 10 | AL124: 28 | AM124: 9 | AN124: 9 | AO124: 14 | AP124: 32 | AQ124: 10 | AR124: 18 | AS124: 19 | AT124: 47 | AU124: 9 | AV124: 17 | AW124: 18 | AX124: 44 | AY124: 2 | AZ124: 5 | BA124: 4 | BB124: 7 | BC124: 4 | BD124: 12 | BE124: 10 | BF124: 24 | BG124: 34 | BH124: 329 | BI124: 3 | BJ124: 3 | BK124: 5 | BL124: 11 | BM124: 3 | BN124: 3 | BO124: 5 | BP124: 11 | BQ124: دورثان | BR124: فى : انجليزى - محاسبة - | BS124: 2 | BY124: انجليزى - | CA124: محاسبة - | CN124: 90
A125: 116 | B125: 816 | C125: طالبة ادارة صباحى 116 | D125: 4/2 | F125: 318 | G125: 9 | H125: 10 | I125: 13 | J125: 32 | K125: 8 | L125: 6 | M125: 6 | N125: 20 | O125: 4 | P125: 6 | Q125: 4 | R125: 14 | S125: 9 | T125: 17 | U125: 16 | V125: 42 | W125: 9 | X125: 15 | Y125: 17 | Z125: 41 | AA125: 9 | AB125: 9 | AC125: 18 | AD125: 36 | AE125: 9 | AF125: 10 | AG125: 20 | AH125: 39 | AI125: 9 | AJ125: 14 | AK125: 17 | AL125: 40 | AM125: 9 | AN125: 15 | AO125: 14 | AP125: 38 | AQ125: 10 | AR125: 18 | AS125: 19 | AT125: 47 | AU125: 10 | AV125: 17 | AW125: 19 | AX125: 46 | AY125: 3 | AZ125: 5 | BA125: 5 | BB125: 6 | BC125: 4 | BD125: 12 | BE125: 12 | BF125: 23 | BG125: 35 | BH125: 430 | BI125: 3 | BJ125: 6 | BK125: 8 | BL125: 17 | BM125: 3 | BN125: 5 | BO125: 6 | BP125: 14 | BQ125: ناجحة | BR125: ومنقولة للصف الثالث | BS125: 0 | CN125: 148
A126: 117 | B126: 817 | C126: طالبة ادارة صباحى 117 | D126: 3/2 | F126: 319 | G126: 9 | H126: 13 | I126: 13 | J126: 35 | K126: 8 | L126: 7 | M126: 7 | N126: 22 | O126: 4 | P126: 5 | Q126: 6 | R126: 15 | S126: 9 | T126: 13 | U126: 12 | V126: 34 | W126: 9 | X126: 3 | Y126: 19 | Z126: 31 | AA126: 9 | AB126: 8 | AC126: 17 | AD126: 34 | AE126: 9 | AF126: 10 | AG126: 7 | AH126: 26 | AI126: 9 | AJ126: 17 | AK126: 17 | AL126: 43 | AM126: 9 | AN126: 17 | AO126: 14 | AP126: 40 | AQ126: 10 | AR126: 18 | AS126: 19 | AT126: 47 | AU126: 10 | AV126: 19 | AW126: 19 | AX126: 48 | AY126: 3 | AZ126: 5 | BA126: 5 | BB126: 5 | BC126: 4 | BD126: 12 | BE126: 12 | BF126: 22 | BG126: 34 | BH126: 409 | BI126: 3 | BJ126: 7 | BK126: 7 | BL126: 17 | BM126: 3 | BN126: 8 | BO126: 4 | BP126: 15 | BQ126: ناجحة | BR126: ومنقولة للصف الثالث | BS126: 0 | CN126: 140
A127: 118 | B127: 818 | C127: طالبة ادارة صباحى 118 | D127: 3/2 | F127: 320 | G127: 10 | H127: 16 | I127: 16 | J127: 42 | K127: 8 | L127: 8 | M127: 8 | N127: 24 | O127: 4 | P127: 5 | Q127: 4 | R127: 13 | S127: 9 | T127: 16 | U127: 17 | V127: 42 | W127: 10 | X127: 17 | Y127: 19 | Z127: 46 | AA127: 9 | AB127: 15 | AC127: 20 | AD127: 44 | AE127: 9 | AF127: 14 | AG127: 20 | AH127: 43 | AI127: 10 | AJ127: 17 | AK127: 19 | AL127: 46 | AM127: 9 | AN127: 15 | AO127: 17 | AP127: 41 | AQ127: 10 | AR127: 18 | AS127: 20 | AT127: 48 | AU127: 10 | AV127: 20 | AW127: 19 | AX127: 49 | AY127: 4 | AZ127: 5 | BA127: 8 | BB127: 9 | BC127: 6 | BD127: 12 | BE127: 18 | BF127: 26 | BG127: 44 | BH127: 482 | BI127: 3 | BJ127: 7 | BK127: 8 | BL127: 18 | BM127: 3 | BN127: 7 | BO127: 4 | BP127: 14 | BQ127: ناجحة | BR127: ومنقولة للصف الثالث | BS127: 0 | CN127: 178
A128: 119 | B128: 819 | C128: طالبة ادارة صباحى 119 | D128: 3/2 | F128: 321 | G128: 9 | H128: 10 | I128: 12 | J128: 31 | K128: 8 | L128: 7 | M128: 5 | N128: 20 | O128: 4 | P128: 6 | Q128: 4 | R128: 14 | S128: 9 | T128: 8 | U128: 8 | V128: 25 | W128: 9 | X128: 15 | Y128: 19 | Z128: 43 | AA128: 9 | AB128: 10 | AC128: 16 | AD128: 35 | AE128: 9 | AF128: 9 | AG128: 13 | AH128: 31 | AI128: 9 | AJ128: 13 | AK128: 11 | AL128: 33 | AM128: 9 | AN128: 11 | AO128: 16 | AP128: 36 | AQ128: 9 | AR128: 15 | AS128: 20 | AT128: 44 | AU128: 10 | AV128: 17 | AW128: 19 | AX128: 46 | AY128: 4 | AZ128: 5 | BA128: 8 | BB128: 10 | BC128: 5 | BD128: 11 | BE128: 17 | BF128: 26 | BG128: 43 | BH128: 401 | BI128: 3 | BJ128: 5 | BK128: 8 | BL128: 16 | BM128: 3 | BN128: 4 | BO128: 5 | BP128: 12 | BQ128: ناجحة | BR128: ومنقولة للصف الثالث | BS128: 0 | CN128: 139
A129: 120 | B129: 820 | C129: طالبة ادارة صباحى 120 | D129: 2/2 | F129: 322 | G129: 9 | H129: 7 | I129: 9 | J129: 25 | K129: 8 | L129: 7 | M129: 5 | N129: 20 | O129: 4 | P129: 2 | Q129: 4 | R129: 10 | S129: 9 | T129: 9 | U129: 7 | V129: 25 | W129: 9 | X129: 1 | Y129: 15 | Z129: 25 | AA129: 9 | AB129: 3 | AC129: 17 | AD129: 29 | AE129: 9 | AF129: 8 | AG129: 14 | AH129: 31 | AI129: 9 | AJ129: 12 | AK129: 12 | AL129: 33 | AM129: 9 | AN129: 9 | AO129: 17 | AP129: 35 | AQ129: 9 | AR129: 13 | AS129: 19 | AT129: 41 | AU129: 10 | AV129: 17 | AW129: 19 | AX129: 46 | AY129: 3 | AZ129: 5 | BA129: 5 | BB129: 9 | BC129: 5 | BD129: 11 | BE129: 13 | BF129: 25 | BG129: 38 | BH129: 358 | BI129: 3 | BJ129: 5 | BK129: 8 | BL129: 16 | BM129: 3 | BN129: 3 | BO129: 4 | BP129: 10 | BQ129: ناجحة | BR129: ومنقولة للصف الثالث | BS129: 0 | CN129: 102
A130: 121 | B130: 821 | C130: طالبة ادارة صباحى 121 | D130: 7/2 | F130: 323 | G130: 9 | H130: 14 | I130: 13 | J130: 36 | K130: 8 | L130: 7 | M130: 8 | N130: 23 | O130: 4 | P130: 6 | Q130: 4 | R130: 14 | S130: 9 | T130: 12 | U130: 16 | V130: 37 | W130: 9 | X130: 15 | Y130: 16 | Z130: 40 | AA130: 9 | AB130: 15 | AC130: 20 | AD130: 44 | AE130: 9 | AF130: 9 | AG130: 19 | AH130: 37 | AI130: 10 | AJ130: 20 | AK130: 16 | AL130: 46 | AM130: 9 | AN130: 15 | AO130: 15 | AP130: 39 | AQ130: 10 | AR130: 17 | AS130: 19 | AT130: 46 | AU130: 10 | AV130: 20 | AW130: 18 | AX130: 48 | AY130: 3 | AZ130: 5 | BA130: 5 | BB130: 8 | BC130: 4 | BD130: 11 | BE130: 12 | BF130: 24 | BG130: 36 | BH130: 446 | BI130: 3 | BJ130: 7 | BK130: 7 | BL130: 17 | BM130: 3 | BN130: 8 | BO130: 7 | BP130: 18 | BQ130: ناجحة | BR130: ومنقولة للصف الثالث | BS130: 0 | CN130: 163
A131: 122 | B131: 822 | C131: طالبة ادارة صباحى 122 | D131: 1/2 | F131: 324 | G131: 9 | H131: 12 | I131: 13 | J131: 34 | K131: 8 | L131: 6 | M131: 6 | N131: 20 | O131: 4 | P131: 6 | Q131: 6 | R131: 16 | S131: 9 | T131: 17 | U131: 20 | V131: 46 | W131: 9 | X131: 17 | Y131: 17 | Z131: 43 | AA131: 10 | AB131: 17 | AC131: 20 | AD131: 47 | AE131: 9 | AF131: 12 | AG131: 19 | AH131: 40 | AI131: 9 | AJ131: 18 | AK131: 17 | AL131: 44 | AM131: 9 | AN131: 14 | AO131: 17 | AP131: 40 | AQ131: 10 | AR131: 18 | AS131: 19 | AT131: 47 | AU131: 10 | AV131: 19 | AW131: 18 | AX131: 47 | AY131: 2 | AZ131: 5 | BA131: 4 | BB131: 10 | BC131: 4 | BD131: 12 | BE131: 10 | BF131: 27 | BG131: 37 | BH131: 461 | BI131: 3 | BJ131: 6 | BK131: 7 | BL131: 16 | BM131: 3 | BN131: 4 | BO131: 6 | BP131: 13 | BQ131: ناجحة | BR131: ومنقولة للصف الثالث | BS131: 0 | CN131: 170
A132: 123 | B132: 823 | C132: طالبة ادارة صباحى 123 | D132: 3/2 | F132: 325 | G132: 9 | H132: 13 | I132: 13 | J132: 35 | K132: 8 | L132: 7 | M132: 6 | N132: 21 | O132: 4 | P132: 6 | Q132: 3 | R132: 13 | S132: 9 | T132: 14 | U132: 13 | V132: 36 | W132: 9 | X132: 8 | Y132: 14 | Z132: 31 | AA132: 9 | AB132: 12 | AC132: 18 | AD132: 39 | AE132: 9 | AF132: 5 | AG132: 17 | AH132: 31 | AI132: 9 | AJ132: 17 | AK132: 15 | AL132: 41 | AM132: 9 | AN132: 16 | AO132: 14 | AP132: 39 | AQ132: 9 | AR132: 15 | AS132: 16 | AT132: 40 | AU132: 10 | AV132: 18 | AW132: 17 | AX132: 45 | AY132: 3 | AZ132: 5 | BA132: 4 | BB132: 8 | BC132: 4 | BD132: 9 | BE132: 11 | BF132: 22 | BG132: 33 | BH132: 404 | BI132: 3 | BJ132: 5 | BK132: 8 | BL132: 16 | BM132: 3 | BN132: 5 | BO132: 2 | BP132: 10 | BQ132: ناجحة | BR132: ومنقولة للصف الثالث | BS132: 0 | CN132: 143
A133: 124 | B133: 824 | C133: طالبة ادارة صباحى 124 | D133: 6/2 | F133: 326 | G133: 9 | H133: 11 | I133: 17 | J133: 37 | K133: 8 | L133: 6 | M133: 6 | N133: 20 | O133: 4 | P133: 5 | Q133: 8 | R133: 17 | S133: 6 | T133: 15 | U133: 17 | V133: 38 | W133: 9 | X133: 12 | Y133: 18 | Z133: 39 | AA133: 10 | AB133: 20 | AC133: 18 | AD133: 48 | AE133: 9 | AF133: 4 | AG133: 17 | AH133: 30 | AI133: 9 | AJ133: 18 | AK133: 17 | AL133: 44 | AM133: 9 | AN133: 12 | AO133: 18 | AP133: 39 | AQ133: 9 | AR133: 13 | AS133: 20 | AT133: 42 | AU133: 10 | AV133: 19 | AW133: 17 | AX133: 46 | AY133: 3 | AZ133: 5 | BA133: 5 | BB133: 10 | BC133: 5 | BD133: 12 | BE133: 13 | BF133: 27 | BG133: 40 | BH133: 440 | BI133: 3 | BJ133: 5 | BK133: 8 | BL133: 16 | BM133: 3 | BN133: 6 | BO133: 6 | BP133: 15 | BQ133: ناجحة | BR133: ومنقولة للصف الثالث | BS133: 0 | CN133: 150
A134: 125 | B134: 825 | C134: طالبة ادارة صباحى 125 | D134: 1/2 | F134: 327 | G134: 9 | H134: 13 | I134: 13 | J134: 35 | K134: 8 | L134: 8 | M134: 10 | N134: 26 | O134: 5 | P134: 7 | Q134: 7 | R134: 19 | S134: 9 | T134: 13 | U134: 10 | V134: 32 | W134: 9 | X134: 10 | Y134: 18 | Z134: 37 | AA134: 10 | AB134: 20 | AC134: 20 | AD134: 50 | AE134: 9 | AF134: 9 | AG134: 17 | AH134: 35 | AI134: 9 | AJ134: 19 | AK134: 16 | AL134: 44 | AM134: 9 | AN134: 13 | AO134: 18 | AP134: 40 | AQ134: 10 | AR134: 18 | AS134: 19 | AT134: 47 | AU134: 10 | AV134: 20 | AW134: 19 | AX134: 49 | AY134: 4 | AZ134: 5 | BA134: 8 | BB134: 5 | BC134: 4 | BD134: 12 | BE134: 16 | BF134: 22 | BG134: 38 | BH134: 452 | BI134: 3 | BJ134: 5 | BK134: 7 | BL134: 15 | BM134: 3 | BN134: 8 | BO134: 7 | BP134: 18 | BQ134: ناجحة | BR134: ومنقولة للصف الثالث | BS134: 0 | CN134: 163
A135: 126 | B135: 826 | C135: طالبة ادارة صباحى 126 | D135: 1/2 | F135: 328 | G135: 10 | H135: 13 | I135: 17 | J135: 40 | K135: 8 | L135: 6 | M135: 10 | N135: 24 | O135: 5 | P135: 7 | Q135: 7 | R135: 19 | S135: 10 | T135: 19 | U135: 20 | V135: 49 | W135: 9 | X135: 17 | Y135: 18 | Z135: 44 | AA135: 10 | AB135: 20 | AC135: 20 | AD135: 50 | AE135: 9 | AF135: 10 | AG135: 18 | AH135: 37 | AI135: 9 | AJ135: 18 | AK135: 17 | AL135: 44 | AM135: 9 | AN135: 15 | AO135: 16 | AP135: 40 | AQ135: 10 | AR135: 18 | AS135: 19 | AT135: 47 | AU135: 10 | AV135: 20 | AW135: 19 | AX135: 49 | AY135: 3 | AZ135: 5 | BA135: 7 | BB135: 4 | BC135: 4 | BD135: 12 | BE135: 14 | BF135: 21 | BG135: 35 | BH135: 478 | BI135: 3 | BJ135: 7 | BK135: 8 | BL135: 18 | BM135: 3 | BN135: 8 | BO135: 7 | BP135: 18 | BQ135: ناجحة | BR135: ومنقولة للصف الثالث | BS135: 0 | CN135: 174
A136: 127 | B136: 827 | C136: طالبة ادارة صباحى 127 | D136: 6/2 | F136: 329 | G136: 10 | H136: 13 | I136: 17 | J136: 40 | K136: 8 | L136: 5 | M136: 9 | N136: 22 | O136: 4 | P136: 5 | Q136: 6 | R136: 15 | S136: 9 | T136: 18 | U136: 20 | V136: 47 | W136: 10 | X136: 18 | Y136: 20 | Z136: 48 | AA136: 10 | AB136: 20 | AC136: 20 | AD136: 50 | AE136: 9 | AF136: 10 | AG136: 19 | AH136: 38 | AI136: 10 | AJ136: 19 | AK136: 17 | AL136: 46 | AM136: 9 | AN136: 16 | AO136: 17 | AP136: 42 | AQ136: 10 | AR136: 18 | AS136: 20 | AT136: 48 | AU136: 10 | AV136: 19 | AW136: 20 | AX136: 49 | AY136: 4 | AZ136: 5 | BA136: 8 | BB136: 11 | BC136: 4 | BD136: 12 | BE136: 16 | BF136: 28 | BG136: 44 | BH136: 489 | BI136: 3 | BJ136: 5 | BK136: 8 | BL136: 16 | BM136: 3 | BN136: 7 | BO136: 6 | BP136: 16 | BQ136: ناجحة | BR136: ومنقولة للصف الثالث | BS136: 0 | CN136: 180
A137: 128 | B137: 828 | C137: طالبة ادارة صباحى 128 | D137: 2/2 | F137: 330 | G137: 10 | H137: 13 | I137: 17 | J137: 40 | K137: 8 | L137: 7 | M137: 8 | N137: 23 | O137: 4 | P137: 6 | Q137: 4 | R137: 14 | S137: 9 | T137: 12 | U137: 19 | V137: 40 | W137: 10 | X137: 18 | Y137: 20 | Z137: 48 | AA137: 10 | AB137: 20 | AC137: 20 | AD137: 50 | AE137: 9 | AF137: 10 | AG137: 19 | AH137: 38 | AI137: 9 | AJ137: 19 | AK137: 15 | AL137: 43 | AM137: 9 | AN137: 15 | AO137: 17 | AP137: 41 | AQ137: 10 | AR137: 18 | AS137: 20 | AT137: 48 | AU137: 10 | AV137: 19 | AW137: 20 | AX137: 49 | AY137: 2 | AZ137: 5 | BA137: 4 | BB137: 10 | BC137: 5 | BD137: 11 | BE137: 11 | BF137: 26 | BG137: 37 | BH137: 471 | BI137: 3 | BJ137: 6 | BK137: 8 | BL137: 17 | BM137: 3 | BN137: 5 | BO137: 7 | BP137: 15 | BQ137: ناجحة | BR137: ومنقولة للصف الثالث | BS137: 0 | CN137: 171
A138: 129 | B138: 829 | C138: طالبة ادارة صباحى 129 | D138: 3/2 | F138: 331 | G138: 9 | H138: 10 | I138: 16 | J138: =IF($C138="","",SUM(G138,H138,I138)) -> 35 | K138: 8 | L138: 6 | M138: 6 | N138: =IF($C138="","",SUM(K138,L138,M138)) -> 20 | O138: 4 | P138: 6 | Q138: 4 | R138: =IF($C138="","",SUM(O138,P138,Q138)) -> 14 | S138: 9 | T138: 10 | U138: 9 | V138: =IF($C138="","",SUM(S138,T138,U138)) -> 28 | W138: 9 | X138: 3 | Y138: 20 | Z138: =IF($C138="","",SUM(W138,X138,Y138)) -> 32 | AA138: 9 | AB138: 1 | AC138: 20 | AD138: =IF($C138="","",SUM(AA138:AC138)) -> 30 | AE138: 9 | AF138: 8 | AG138: 19 | AH138: =IF($C138="","",SUM(AE138,AF138,AG138)) -> 36 | AI138: 9 | AJ138: 17 | AK138: 18 | AL138: =IF($C138="","",SUM(AI138,AJ138,AK138)) -> 44 | AM138: 9 | AN138: 12 | AO138: 17 | AP138: =IF($C138="","",SUM(AM138,AN138,AO138)) -> 38 | AQ138: 10 | AR138: 17 | AS138: 20 | AT138: =IF($C138="","",SUM(AQ138,AR138,AS138)) -> 47 | AU138: 10 | AV138: 19 | AW138: 20 | AX138: =IF($C138="","",SUM(AU138,AV138,AW138)) -> 49 | AY138: 3 | AZ138: 5 | BA138: 6 | BB138: 8 | BC138: 4 | BD138: 11 | BE138: =IF($C138="","",SUM(AY138,BA138,BC138)) -> 13 | BF138: =IF($C138="","",SUM(AZ138,BB138,BD138)) -> 24 | BG138: =IF($C138="","",SUM(BE138,BF138)) -> 37 | BH138: =IF($C138="","",SUM(J138,N138,R138,V138,Z138,AD138,AH138,AL138,AP138,AT138,AX138,BG138)) -> 410 | BI138: 3 | BJ138: 7 | BK138: 8 | BL138: =IF($C138="","",SUM(BI138,BJ138,BK138)) -> 18 | BM138: 3 | BN138: 6 | BO138: 7 | BP138: =IF($C138="","",SUM(BM138,BN138,BO138)) -> 16 | BQ138: =IF($C138="","",IF(BS138=0,"ناجحة",IF(BS138<=2,"دورثان","راسبة"))) -> ناجحة | BR138: =IF($C138="","",IF(BS138=0,"ومنقولة للصف الثالث",IF(BS138>0,"فى : "&CONCATENATE(BX138,BY138,BZ138,CA138,CB138,CC138,CD138,CE138,CF138,CG138,CH138,CI138,CJ138,CK138,CL138),CONCATENATE(BX138,BY138,BZ138,CA138,CB138,CC138,CD138,CE138,CF138,CG138,CH138,CI138,CJ138,CK138,CL138)))) -> ومنقولة للصف الثالث | BS138: =IF($C138="","",COUNTA($BX138:$CL138)-COUNTBLANK($BX138:$CL138)) -> 0 | BX138: =IF($C138="","",IF(OR(I138<$I$9,I138="غ",J138<$J$9),$BX$5&" - ","")) ->  | BY138: =IF($C138="","",IF(OR(M138<$M$9,M138="غ",N138<$N$9),$BY$5&" - ","")) ->  | BZ138: =IF($C138="","",IF(OR(Q138<$Q$9,Q138="غ",R138<$R$9),BZ$5&" - ","")) ->  | CA138: =IF($C138="","",IF(OR(U138<$U$9,U138="غ",V138<$V$9),CA$5&" - ","")) ->  | CB138: =IF($C138="","",IF(OR(Y138<$Y$9,Y138="غ",Z138<$Z$9),CB$5&" - ","")) ->  | CC138: =IF($C138="","",IF(OR(AC138<$AC$9,AC138="غ",AD138<$AD$9),CC$5&" - ","")) ->  | CD138: =IF($C138="","",IF(OR(AG138<$AG$9,AG138="غ",AH138<$AH$9),CD$5&" - ","")) ->  | CE138: =IF($C138="","",IF(OR(AK138<$AK$9,AK138="غ",AL138<$AL$9),CE$5&" - ","")) ->  | CF138: =IF($C138="","",IF(OR(AO138<$AO$9,AO138="غ",AP138<$AP$9),CF$5&" - ","")) ->  | CG138: =IF($C138="","",IF(OR(AS138<$AS$9,AS138="غ",AT138<$AT$9),CG$5&" - ","")) ->  | CH138: =IF($C138="","",IF(OR(AW138<$AW$9,AW138="غ",AX138<$AX$9),CH$5&" - ","")) ->  | CI138: =IF($C138="","",IF(OR(BE138<$BE$9,BE138="غ",BF138<$BF$9,BF138="غ",BG138<$BG$9),CI$5&" - ","")) ->  | CJ138: =IF($C138="","",IF(OR(BK138<$BK$9,BK138="غ",BL138<$BL$9),CJ$5&" - ","")) ->  | CK138: =IF($C138="","",IF(OR(BO138<$BO$9,BO138="غ",BP138<$BP$9),CK$5&" - ","")) ->  | CL138: =IF($C138="","",IF(BH138<$BH$9,CL$5,"")) ->  | CN138: =IF($C138="","",SUM(H138,L138,P138,T138,X138,AB138,AF138,AJ138,AN138,AR138,AV138,BA138,BB138)) -> 123
A139: 130 | B139: 830 | C139: طالبة ادارة صباحى 130 | D139: 3/2 | F139: 332 | G139: 9 | H139: 12 | I139: 13 | J139: 34 | K139: 8 | L139: 7 | M139: 5 | N139: 20 | O139: 4 | P139: 6 | Q139: 5 | R139: 15 | S139: 9 | T139: 7 | U139: 13 | V139: 29 | W139: 9 | X139: 9 | Y139: 20 | Z139: 38 | AA139: 9 | AB139: 14 | AC139: 20 | AD139: 43 | AE139: 9 | AF139: 7 | AG139: 20 | AH139: 36 | AI139: 9 | AJ139: 16 | AK139: 18 | AL139: 43 | AM139: 9 | AN139: 10 | AO139: 17 | AP139: 36 | AQ139: 10 | AR139: 17 | AS139: 20 | AT139: 47 | AU139: 10 | AV139: 19 | AW139: 17 | AX139: 46 | AY139: 3 | AZ139: 5 | BA139: 6 | BB139: 8 | BC139: 5 | BD139: 11 | BE139: 14 | BF139: 24 | BG139: 38 | BH139: 425 | BI139: 3 | BJ139: 8 | BK139: 8 | BL139: 19 | BM139: 3 | BN139: 5 | BO139: 7 | BP139: 15 | BQ139: ناجحة | BR139: ومنقولة للصف الثالث | BS139: 0 | CN139: 138
A140: 131 | B140: 831 | C140: طالبة ادارة صباحى 131 | D140: 3/2 | F140: 333 | G140: 9 | H140: 8 | I140: 12 | J140: 29 | K140: 8 | L140: 5 | M140: 7 | N140: 20 | O140: 4 | P140: 6 | Q140: 4 | R140: 14 | S140: 9 | T140: 11 | U140: 19 | V140: 39 | W140: 9 | X140: 8 | Y140: 20 | Z140: 37 | AA140: 9 | AB140: 15 | AC140: 20 | AD140: 44 | AE140: 9 | AF140: 8 | AG140: 18 | AH140: 35 | AI140: 9 | AJ140: 15 | AK140: 18 | AL140: 42 | AM140: 9 | AN140: 15 | AO140: 16 | AP140: 40 | AQ140: 10 | AR140: 17 | AS140: 19 | AT140: 46 | AU140: 9 | AV140: 16 | AW140: 18 | AX140: 43 | AY140: 3 | AZ140: 5 | BA140: 7 | BB140: 5 | BC140: 5 | BD140: 12 | BE140: 15 | BF140: 22 | BG140: 37 | BH140: 426 | BI140: 3 | BJ140: 7 | BK140: 8 | BL140: 18 | BM140: 3 | BN140: 5 | BO140: 5 | BP140: 13 | BQ140: ناجحة | BR140: ومنقولة للصف الثالث | BS140: 0 | CN140: 136
A141: 132 | B141: 832 | C141: طالبة ادارة صباحى 132 | D141: 1/2 | F141: 334 | G141: 9 | H141: 13 | I141: 16 | J141: 38 | K141: 8 | L141: 5 | M141: 7 | N141: 20 | O141: 4 | P141: 6 | Q141: 4 | R141: 14 | S141: 9 | T141: 15 | U141: 20 | V141: 44 | W141: 9 | X141: 19 | Y141: 20 | Z141: 48 | AA141: 10 | AB141: 20 | AC141: 20 | AD141: 50 | AE141: 9 | AF141: 12 | AG141: 20 | AH141: 41 | AI141: 10 | AJ141: 19 | AK141: 18 | AL141: 47 | AM141: 9 | AN141: 17 | AO141: 17 | AP141: 43 | AQ141: 10 | AR141: 16 | AS141: 20 | AT141: 46 | AU141: 9 | AV141: 16 | AW141: 17 | AX141: 42 | AY141: 4 | AZ141: 5 | BA141: 8 | BB141: 7 | BC141: 5 | BD141: 12 | BE141: 17 | BF141: 24 | BG141: 41 | BH141: 474 | BI141: 3 | BJ141: 8 | BK141: 8 | BL141: 19 | BM141: 3 | BN141: 6 | BO141: 8 | BP141: 17 | BQ141: ناجحة | BR141: ومنقولة للصف الثالث | BS141: 0 | CN141: 173
A142: 133 | B142: 833 | C142: طالبة ادارة صباحى 133 | D142: 5/2 | F142: 335 | G142: 10 | H142: 15 | I142: 18 | J142: 43 | K142: 8 | L142: 6 | M142: 9 | N142: 23 | O142: 4 | P142: 6 | Q142: 5 | R142: 15 | S142: 9 | T142: 14 | U142: 17 | V142: 40 | W142: 9 | X142: 15 | Y142: 20 | Z142: 44 | AA142: 9 | AB142: 8 | AC142: 20 | AD142: 37 | AE142: 9 | AF142: 11 | AG142: 20 | AH142: 40 | AI142: 10 | AJ142: 19 | AK142: 17 | AL142: 46 | AM142: 9 | AN142: 15 | AO142: 16 | AP142: 40 | AQ142: 10 | AR142: 17 | AS142: 20 | AT142: 47 | AU142: 10 | AV142: 17 | AW142: 19 | AX142: 46 | AY142: 2 | AZ142: 5 | BA142: 4 | BB142: 12 | BC142: 8 | BD142: 9 | BE142: 14 | BF142: 26 | BG142: 40 | BH142: 461 | BI142: 3 | BJ142: 6 | BK142: 8 | BL142: 17 | BM142: 3 | BN142: 7 | BO142: 5 | BP142: 15 | BQ142: ناجحة | BR142: ومنقولة للصف الثالث | BS142: 0 | CN142: 159
A143: 134 | B143: 834 | C143: طالبة ادارة صباحى 134 | D143: 4/2 | F143: 336 | G143: 9 | H143: 10 | I143: 13 | J143: 32 | K143: 8 | L143: 7 | M143: 5 | N143: 20 | O143: 4 | P143: 4 | Q143: 5 | R143: 13 | S143: 9 | T143: 10 | U143: 10 | V143: 29 | W143: 9 | X143: 1 | Y143: 18 | Z143: 28 | AA143: 9 | AB143: 9 | AC143: 7 | AD143: 25 | AE143: 9 | AF143: 5 | AG143: 11 | AH143: 25 | AI143: 9 | AJ143: 12 | AK143: 13 | AL143: 34 | AM143: 9 | AN143: 12 | AO143: 14 | AP143: 35 | AQ143: 9 | AR143: 14 | AS143: 15 | AT143: 38 | AU143: 10 | AV143: 18 | AW143: 18 | AX143: 46 | AY143: 3 | AZ143: 5 | BA143: 6 | BB143: 6 | BC143: 5 | BD143: 9 | BE143: 14 | BF143: 20 | BG143: 34 | BH143: 359 | BI143: 3 | BJ143: 5 | BK143: 8 | BL143: 16 | BM143: 3 | BN143: 5 | BO143: 7 | BP143: 15 | BQ143: ناجحة | BR143: ومنقولة للصف الثالث | BS143: 0 | CN143: 114
A144: 135 | B144: 835 | C144: طالبة ادارة صباحى 135 | D144: 3/2 | F144: 337 | G144: 9 | H144: 10 | I144: 12 | J144: 31 | K144: 8 | L144: 3 | M144: 4 | N144: 15 | O144: 4 | P144: 5 | Q144: 4 | R144: 13 | S144: 9 | T144: 11 | U144: 5 | V144: 25 | W144: 9 | X144: 8 | Y144: 19 | Z144: 36 | AA144: 9 | AB144: 2 | AC144: 7 | AD144: 18 | AE144: 9 | AF144: 7 | AG144: 12 | AH144: 28 | AI144: 9 | AJ144: 13 | AK144: 16 | AL144: 38 | AM144: 9 | AN144: 12 | AO144: 17 | AP144: 38 | AQ144: 9 | AR144: 17 | AS144: 15 | AT144: 41 | AU144: 10 | AV144: 18 | AW144: 18 | AX144: 46 | AY144: 3 | AZ144: 5 | BA144: 6 | BB144: 9 | BC144: 5 | BD144: 9 | BE144: 14 | BF144: 23 | BG144: 37 | BH144: 366 | BI144: 3 | BJ144: 3 | BK144: 8 | BL144: 14 | BM144: 3 | BN144: 4 | BO144: 3 | BP144: 10 | BQ144: دورثان | BR144: فى : انجليزى - رياضة مالية - | BS144: 2 | BY144: انجليزى - | CC144: رياضة مالية - | CN144: 121
A145: 136 | B145: 836 | C145: طالبة ادارة صباحى 136 | D145: 3/2 | F145: 338 | G145: 9 | H145: 10 | I145: 11 | J145: 30 | K145: 8 | L145: 7 | M145: 5 | N145: 20 | O145: 4 | P145: 5 | Q145: 5 | R145: 14 | S145: 9 | T145: 11 | U145: 5 | V145: 25 | W145: 9 | X145: 13 | Y145: 20 | Z145: 42 | AA145: 9 | AB145: 11 | AC145: 18 | AD145: 38 | AE145: 9 | AF145: 6 | AG145: 13 | AH145: 28 | AI145: 9 | AJ145: 13 | AK145: 17 | AL145: 39 | AM145: 9 | AN145: 9 | AO145: 17 | AP145: 35 | AQ145: 10 | AR145: 18 | AS145: 18 | AT145: 46 | AU145: 9 | AV145: 14 | AW145: 17 | AX145: 40 | AY145: 3 | AZ145: 5 | BA145: 5 | BB145: 11 | BC145: 4 | BD145: 9 | BE145: 12 | BF145: 25 | BG145: 37 | BH145: 394 | BI145: 3 | BJ145: 4 | BK145: 8 | BL145: 15 | BM145: 3 | BN145: 4 | BO145: 3 | BP145: 10 | BQ145: ناجحة | BR145: ومنقولة للصف الثالث | BS145: 0 | CN145: 133
A146: 137 | B146: 837 | C146: طالبة ادارة صباحى 137 | D146: 7/2 | F146: 339 | G146: 9 | H146: 8 | I146: 10 | J146: 27 | K146: 8 | L146: 4 | M146: 3 | N146: 15 | O146: 4 | P146: 6 | Q146: 4 | R146: 14 | S146: 9 | T146: 11 | U146: 5 | V146: 25 | W146: 9 | X146: 4 | Y146: 17 | Z146: 30 | AA146: 5 | AB146: 0 | AC146: 11 | AD146: 16 | AE146: 9 | AF146: 6 | AG146: 10 | AH146: 25 | AI146: 9 | AJ146: 9 | AK146: 16 | AL146: 34 | AM146: 9 | AN146: 13 | AO146: 17 | AP146: 39 | AQ146: 10 | AR146: 19 | AS146: 18 | AT146: 47 | AU146: 9 | AV146: 16 | AW146: 18 | AX146: 43 | AY146: 2 | AZ146: 5 | BA146: 4 | BB146: 9 | BC146: 5 | BD146: 9 | BE146: 11 | BF146: 23 | BG146: 34 | BH146: 349 | BI146: 3 | BJ146: 2 | BK146: 8 | BL146: 13 | BM146: 3 | BN146: 4 | BO146: 4 | BP146: 11 | BQ146: دورثان | BR146: فى : انجليزى - رياضة مالية - | BS146: 2 | BY146: انجليزى - | CC146: رياضة مالية - | CN146: 109
A147: 138 | B147: 838 | C147: طالبة ادارة صباحى 138 | D147: 6/2 | F147: 340 | G147: 9 | H147: 9 | I147: 10 | J147: 28 | K147: 8 | L147: 7 | M147: 5 | N147: 20 | O147: 4 | P147: 5 | Q147: 5 | R147: 14 | S147: 7 | T147: 5 | U147: 17 | V147: 29 | W147: 9 | X147: 12 | Y147: 17 | Z147: 38 | AA147: 9 | AB147: 12 | AC147: 12 | AD147: 33 | AE147: 9 | AF147: 9 | AG147: 12 | AH147: 30 | AI147: 9 | AJ147: 16 | AK147: 15 | AL147: 40 | AM147: 9 | AN147: 9 | AO147: 14 | AP147: 32 | AQ147: 9 | AR147: 17 | AS147: 16 | AT147: 42 | AU147: 10 | AV147: 17 | AW147: 19 | AX147: 46 | AY147: 2 | AZ147: 5 | BA147: 4 | BB147: 7 | BC147: 4 | BD147: 8 | BE147: 10 | BF147: 20 | BG147: 30 | BH147: 382 | BI147: 3 | BJ147: 4 | BK147: 8 | BL147: 15 | BM147: 3 | BN147: 4 | BO147: 5 | BP147: 12 | BQ147: ناجحة | BR147: ومنقولة للصف الثالث | BS147: 0 | CN147: 129
A148: 139 | B148: 839 | C148: طالبة ادارة صباحى 139 | D148: 4/2 | F148: 341 | G148: 9 | H148: 12 | I148: 14 | J148: 35 | K148: 8 | L148: 6 | M148: 8 | N148: 22 | O148: 5 | P148: 7 | Q148: 8 | R148: 20 | S148: 9 | T148: 19 | U148: 19 | V148: 47 | W148: 10 | X148: 19 | Y148: 20 | Z148: 49 | AA148: 10 | AB148: 19 | AC148: 20 | AD148: 49 | AE148: 9 | AF148: 9 | AG148: 17 | AH148: 35 | AI148: 9 | AJ148: 15 | AK148: 15 | AL148: 39 | AM148: 9 | AN148: 16 | AO148: 14 | AP148: 39 | AQ148: 10 | AR148: 19 | AS148: 19 | AT148: 48 | AU148: 9 | AV148: 16 | AW148: 18 | AX148: 43 | AY148: 3 | AZ148: 5 | BA148: 7 | BB148: 12 | BC148: 6 | BD148: 8 | BE148: 16 | BF148: 25 | BG148: 41 | BH148: 467 | BI148: 3 | BJ148: 4 | BK148: 8 | BL148: 15 | BM148: 3 | BN148: 4 | BO148: 5 | BP148: 12 | BQ148: ناجحة | BR148: ومنقولة للصف الثالث | BS148: 0 | CN148: 176
A149: 140 | B149: 840 | C149: طالبة ادارة صباحى 140 | D149: 2/2 | F149: 342 | G149: 9 | H149: 12 | I149: 16 | J149: 37 | K149: 8 | L149: 6 | M149: 8 | N149: 22 | O149: 4 | P149: 6 | Q149: 7 | R149: 17 | S149: 9 | T149: 16 | U149: 18 | V149: 43 | W149: 9 | X149: 15 | Y149: 17 | Z149: 41 | AA149: 9 | AB149: 13 | AC149: 19 | AD149: 41 | AE149: 9 | AF149: 11 | AG149: 20 | AH149: 40 | AI149: 10 | AJ149: 20 | AK149: 16 | AL149: 46 | AM149: 9 | AN149: 16 | AO149: 17 | AP149: 42 | AQ149: 10 | AR149: 19 | AS149: 18 | AT149: 47 | AU149: 10 | AV149: 17 | AW149: 19 | AX149: 46 | AY149: 3 | AZ149: 5 | BA149: 6 | BB149: 12 | BC149: 5 | BD149: 9 | BE149: 14 | BF149: 26 | BG149: 40 | BH149: 462 | BI149: 3 | BJ149: 6 | BK149: 8 | BL149: 17 | BM149: 3 | BN149: 5 | BO149: 7 | BP149: 15 | BQ149: ناجحة | BR149: ومنقولة للصف الثالث | BS149: 0 | CN149: 169
A150: 141 | B150: 841 | C150: طالبة ادارة صباحى 141 | D150: 5/2 | F150: 343 | G150: 9 | H150: 13 | I150: 15 | J150: 37 | K150: 8 | L150: 7 | M150: 5 | N150: 20 | O150: 5 | P150: 7 | Q150: 8 | R150: 20 | S150: 9 | T150: 17 | U150: 20 | V150: 46 | W150: 9 | X150: 14 | Y150: 18 | Z150: 41 | AA150: 9 | AB150: 10 | AC150: 13 | AD150: 32 | AE150: 9 | AF150: 11 | AG150: 15 | AH150: 35 | AI150: 10 | AJ150: 19 | AK150: 17 | AL150: 46 | AM150: 9 | AN150: 13 | AO150: 17 | AP150: 39 | AQ150: 10 | AR150: 19 | AS150: 18 | AT150: 47 | AU150: 10 | AV150: 17 | AW150: 19 | AX150: 46 | AY150: 3 | AZ150: 5 | BA150: 6 | BB150: 12 | BC150: 5 | BD150: 9 | BE150: 14 | BF150: 26 | BG150: 40 | BH150: 449 | BI150: 3 | BJ150: 3 | BK150: 8 | BL150: 14 | BM150: 3 | BN150: 5 | BO150: 6 | BP150: 14 | BQ150: ناجحة | BR150: ومنقولة للصف الثالث | BS150: 0 | CN150: 165
A151: 142 | B151: 842 | C151: طالبة ادارة صباحى 142 | D151: 2/2 | F151: 344 | G151: 9 | H151: 13 | I151: 10 | J151: 32 | K151: 8 | L151: 9 | M151: 8 | N151: 25 | O151: 5 | P151: 8 | Q151: 7 | R151: 20 | S151: 10 | T151: 19 | U151: 19 | V151: 48 | W151: 10 | X151: 20 | Y151: 18 | Z151: 48 | AA151: 10 | AB151: 20 | AC151: 20 | AD151: 50 | AE151: 9 | AF151: 16 | AG151: 15 | AH151: 40 | AI151: 9 | AJ151: 19 | AK151: 16 | AL151: 44 | AM151: 10 | AN151: 19 | AO151: 18 | AP151: 47 | AQ151: 10 | AR151: 19 | AS151: 19 | AT151: 48 | AU151: 9 | AV151: 16 | AW151: 19 | AX151: 44 | AY151: 3 | AZ151: 5 | BA151: 5 | BB151: 12 | BC151: 7 | BD151: 11 | BE151: 15 | BF151: 28 | BG151: 43 | BH151: 489 | BI151: 3 | BJ151: 5 | BK151: 8 | BL151: 16 | BM151: 3 | BN151: 6 | BO151: 5 | BP151: 14 | BQ151: ناجحة | BR151: ومنقولة للصف الثالث | BS151: 0 | CN151: 195
A152: 143 | B152: 843 | C152: طالبة ادارة صباحى 143 | D152: 3/2 | F152: 345 | G152: 9 | H152: 11 | I152: 12 | J152: 32 | K152: 8 | L152: 7 | M152: 5 | N152: 20 | O152: 5 | P152: 7 | Q152: 5 | R152: 17 | S152: 9 | T152: 6 | U152: 15 | V152: 30 | W152: 9 | X152: 12 | Y152: 17 | Z152: 38 | AA152: 9 | AB152: 7 | AC152: 14 | AD152: 30 | AE152: 9 | AF152: 13 | AG152: 16 | AH152: 38 | AI152: 9 | AJ152: 18 | AK152: 15 | AL152: 42 | AM152: 9 | AN152: 10 | AO152: 17 | AP152: 36 | AQ152: 9 | AR152: 16 | AS152: 19 | AT152: 44 | AU152: 9 | AV152: 16 | AW152: 19 | AX152: 44 | AY152: 3 | AZ152: 5 | BA152: 5 | BB152: 10 | BC152: 6 | BD152: 9 | BE152: 14 | BF152: 24 | BG152: 38 | BH152: 409 | BI152: 3 | BJ152: 5 | BK152: 7 | BL152: 15 | BM152: 3 | BN152: 5 | BO152: 4 | BP152: 12 | BQ152: ناجحة | BR152: ومنقولة للصف الثالث | BS152: 0 | CN152: 138
A153: 144 | B153: 844 | C153: طالبة ادارة صباحى 144 | D153: 4/2 | F153: 346 | G153: 9 | H153: 10 | I153: 11 | J153: 30 | K153: 8 | L153: 6 | M153: 6 | N153: 20 | O153: 4 | P153: 6 | Q153: 6 | R153: 16 | S153: 8 | T153: 8 | U153: 1 | V153: 17 | W153: 9 | X153: 5 | Y153: 18 | Z153: 32 | AA153: 9 | AB153: 1 | AC153: 5 | AD153: 15 | AE153: 9 | AF153: 7 | AG153: 10 | AH153: 26 | AI153: 9 | AJ153: 14 | AK153: 12 | AL153: 35 | AM153: 9 | AN153: 8 | AO153: 14 | AP153: 31 | AQ153: 9 | AR153: 15 | AS153: 14 | AT153: 38 | AU153: 9 | AV153: 14 | AW153: 18 | AX153: 41 | AY153: 2 | AZ153: 5 | BA153: 4 | BB153: 9 | BC153: 4 | BD153: 9 | BE153: 10 | BF153: 23 | BG153: 33 | BH153: 334 | BI153: 3 | BJ153: 5 | BK153: 8 | BL153: 16 | BM153: 3 | BN153: 3 | BO153: 4 | BP153: 10 | BQ153: دورثان | BR153: فى : محاسبة - رياضة مالية - | BS153: 2 | CA153: محاسبة - | CC153: رياضة مالية - | CN153: 107
A154: 145 | B154: 845 | C154: طالبة ادارة صباحى 145 | D154: 3/2 | F154: 347 | G154: 9 | H154: 13 | I154: 14 | J154: 36 | K154: 8 | L154: 7 | M154: 5 | N154: 20 | O154: 4 | P154: 6 | Q154: 4 | R154: 14 | S154: 9 | T154: 15 | U154: 13 | V154: 37 | W154: 10 | X154: 20 | Y154: 20 | Z154: 50 | AA154: 10 | AB154: 17 | AC154: 20 | AD154: 47 | AE154: 9 | AF154: 9 | AG154: 10 | AH154: 28 | AI154: 9 | AJ154: 15 | AK154: 16 | AL154: 40 | AM154: 9 | AN154: 13 | AO154: 17 | AP154: 39 | AQ154: 10 | AR154: 18 | AS154: 18 | AT154: 46 | AU154: 9 | AV154: 15 | AW154: 16 | AX154: 40 | AY154: 2 | AZ154: 5 | BA154: 4 | BB154: 11 | BC154: 4 | BD154: 10 | BE154: 10 | BF154: 26 | BG154: 36 | BH154: 433 | BI154: 3 | BJ154: 6 | BK154: 6 | BL154: 15 | BM154: 3 | BN154: 4 | BO154: 4 | BP154: 11 | BQ154: ناجحة | BR154: ومنقولة للصف الثالث | BS154: 0 | CN154: 163
A155: 146 | B155: 846 | C155: طالبة ادارة صباحى 146 | D155: 5/2 | F155: 348 | G155: 9 | H155: 11 | I155: 11 | J155: 31 | K155: 8 | L155: 7 | M155: 5 | N155: 20 | O155: 4 | P155: 5 | Q155: 5 | R155: 14 | S155: 9 | T155: 10 | U155: 9 | V155: 28 | W155: 10 | X155: 20 | Y155: 20 | Z155: 50 | AA155: 10 | AB155: 19 | AC155: 20 | AD155: 49 | AE155: 9 | AF155: 5 | AG155: 18 | AH155: 32 | AI155: 9 | AJ155: 14 | AK155: 13 | AL155: 36 | AM155: 9 | AN155: 14 | AO155: 17 | AP155: 40 | AQ155: 10 | AR155: 19 | AS155: 18 | AT155: 47 | AU155: 9 | AV155: 17 | AW155: 17 | AX155: 43 | AY155: 2 | AZ155: 5 | BA155: 4 | BB155: 10 | BC155: 4 | BD155: 8 | BE155: 10 | BF155: 23 | BG155: 33 | BH155: 423 | BI155: 3 | BJ155: 6 | BK155: 7 | BL155: 16 | BM155: 3 | BN155: 4 | BO155: 5 | BP155: 12 | BQ155: ناجحة | BR155: ومنقولة للصف الثالث | BS155: 0 | CN155: 155
A156: 147 | B156: 847 | C156: طالبة ادارة صباحى 147 | D156: 5/2 | F156: 349 | G156: 9 | H156: 12 | I156: 14 | J156: 35 | K156: 8 | L156: 7 | M156: 5 | N156: 20 | O156: 5 | P156: 6 | Q156: 9 | R156: 20 | S156: 9 | T156: 15 | U156: 10 | V156: 34 | W156: 10 | X156: 18 | Y156: 20 | Z156: 48 | AA156: 10 | AB156: 17 | AC156: 20 | AD156: 47 | AE156: 9 | AF156: 5 | AG156: 18 | AH156: 32 | AI156: 9 | AJ156: 14 | AK156: 11 | AL156: 34 | AM156: 9 | AN156: 15 | AO156: 17 | AP156: 41 | AQ156: 10 | AR156: 19 | AS156: 18 | AT156: 47 | AU156: 10 | AV156: 18 | AW156: 19 | AX156: 47 | AY156: 2 | AZ156: 5 | BA156: 4 | BB156: 10 | BC156: 4 | BD156: 9 | BE156: 10 | BF156: 24 | BG156: 34 | BH156: 439 | BI156: 3 | BJ156: 8 | BK156: 8 | BL156: 19 | BM156: 3 | BN156: 4 | BO156: 6 | BP156: 13 | BQ156: ناجحة | BR156: ومنقولة للصف الثالث | BS156: 0 | CN156: 160
A157: 148 | B157: 848 | C157: طالبة ادارة صباحى 148 | D157: 5/2 | F157: 350 | G157: 9 | H157: 14 | I157: 9 | J157: 32 | K157: 8 | L157: 5 | M157: 7 | N157: 20 | O157: 4 | P157: 6 | Q157: 4 | R157: 14 | S157: 9 | T157: 16 | U157: 19 | V157: 44 | W157: 10 | X157: 20 | Y157: 20 | Z157: 50 | AA157: 10 | AB157: 19 | AC157: 20 | AD157: 49 | AE157: 9 | AF157: 6 | AG157: 19 | AH157: 34 | AI157: 10 | AJ157: 18 | AK157: 18 | AL157: 46 | AM157: 9 | AN157: 14 | AO157: 17 | AP157: 40 | AQ157: 10 | AR157: 19 | AS157: 20 | AT157: 49 | AU157: 9 | AV157: 16 | AW157: 19 | AX157: 44 | AY157: 3 | AZ157: 5 | BA157: 5 | BB157: 10 | BC157: 4 | BD157: 9 | BE157: 12 | BF157: 24 | BG157: 36 | BH157: 458 | BI157: 3 | BJ157: 8 | BK157: 8 | BL157: 19 | BM157: 3 | BN157: 4 | BO157: 5 | BP157: 12 | BQ157: ناجحة | BR157: ومنقولة للصف الثالث | BS157: 0 | CN157: 168
A158: 149 | B158: 849 | C158: طالبة ادارة صباحى 149 | D158: 5/2 | F158: 351 | G158: 9 | H158: 7 | I158: 11 | J158: 27 | K158: 8 | L158: 7 | M158: 5 | N158: 20 | O158: 4 | P158: 5 | Q158: 4 | R158: 13 | S158: 9 | T158: 6 | U158: 10 | V158: 25 | W158: 9 | X158: 6 | Y158: 20 | Z158: 35 | AA158: 9 | AB158: 3 | AC158: 18 | AD158: 30 | AE158: 9 | AF158: 9 | AG158: 16 | AH158: 34 | AI158: 9 | AJ158: 12 | AK158: 13 | AL158: 34 | AM158: 9 | AN158: 13 | AO158: 16 | AP158: 38 | AQ158: 10 | AR158: 18 | AS158: 20 | AT158: 48 | AU158: 9 | AV158: 15 | AW158: 18 | AX158: 42 | AY158: 3 | AZ158: 5 | BA158: 5 | BB158: 11 | BC158: 4 | BD158: 8 | BE158: 12 | BF158: 24 | BG158: 36 | BH158: 382 | BI158: 3 | BJ158: 5 | BK158: 8 | BL158: 16 | BM158: 3 | BN158: 4 | BO158: 3 | BP158: 10 | BQ158: ناجحة | BR158: ومنقولة للصف الثالث | BS158: 0 | CN158: 117
A159: 150 | B159: 850 | C159: طالبة ادارة صباحى 150 | D159: 5/2 | F159: 352 | G159: 9 | H159: 6 | I159: 10 | J159: 25 | K159: 8 | L159: 6 | M159: 6 | N159: 20 | O159: 4 | P159: 2 | Q159: 4 | R159: 10 | S159: 9 | T159: 5 | U159: 11 | V159: 25 | W159: 9 | X159: 7 | Y159: 20 | Z159: 36 | AA159: 9 | AB159: 5 | AC159: 17 | AD159: 31 | AE159: 9 | AF159: 8 | AG159: 12 | AH159: 29 | AI159: 9 | AJ159: 15 | AK159: 11 | AL159: 35 | AM159: 9 | AN159: 18 | AO159: 16 | AP159: 43 | AQ159: 10 | AR159: 19 | AS159: 19 | AT159: 48 | AU159: 9 | AV159: 16 | AW159: 19 | AX159: 44 | AY159: 3 | AZ159: 5 | BA159: 5 | BB159: 12 | BC159: 7 | BD159: 8 | BE159: 15 | BF159: 25 | BG159: 40 | BH159: 386 | BI159: 3 | BJ159: 4 | BK159: 5 | BL159: 12 | BM159: 3 | BN159: 3 | BO159: 6 | BP159: 12 | BQ159: ناجحة | BR159: ومنقولة للصف الثالث | BS159: 0 | CN159: 124
A160: 151 | B160: 851 | C160: طالبة ادارة صباحى 151 | D160: 1/2 | F160: 353 | G160: 9 | H160: 13 | I160: 12 | J160: 34 | K160: 8 | L160: 5 | M160: 7 | N160: 20 | O160: 4 | P160: 5 | Q160: 4 | R160: 13 | S160: 9 | T160: 9 | U160: 7 | V160: 25 | W160: 9 | X160: 9 | Y160: 19 | Z160: 37 | AA160: 9 | AB160: 3 | AC160: 20 | AD160: 32 | AE160: 9 | AF160: 9 | AG160: 17 | AH160: 35 | AI160: 9 | AJ160: 18 | AK160: 16 | AL160: 43 | AM160: 9 | AN160: 11 | AO160: 15 | AP160: 35 | AQ160: 9 | AR160: 17 | AS160: 16 | AT160: 42 | AU160: 9 | AV160: 18 | AW160: 19 | AX160: 46 | AY160: 3 | AZ160: 5 | BA160: 8 | BB160: 7 | BC160: 5 | BD160: 9 | BE160: 16 | BF160: 21 | BG160: 37 | BH160: 399 | BI160: 3 | BJ160: 4 | BK160: 6 | BL160: 13 | BM160: 3 | BN160: 7 | BO160: 7 | BP160: 17 | BQ160: ناجحة | BR160: ومنقولة للصف الثالث | BS160: 0 | CN160: 132
A161: 152 | B161: 852 | C161: طالبة ادارة صباحى 152 | D161: 2/2 | F161: 354 | G161: 9 | H161: 12 | I161: 17 | J161: 38 | K161: 8 | L161: 9 | M161: 10 | N161: 27 | O161: 5 | P161: 7 | Q161: 8 | R161: 20 | S161: 9 | T161: 15 | U161: 14 | V161: 38 | W161: 10 | X161: 20 | Y161: 18 | Z161: 48 | AA161: 9 | AB161: 20 | AC161: 20 | AD161: 49 | AE161: 9 | AF161: 11 | AG161: 19 | AH161: 39 | AI161: 9 | AJ161: 16 | AK161: 18 | AL161: 43 | AM161: 9 | AN161: 15 | AO161: 18 | AP161: 42 | AQ161: 9 | AR161: 17 | AS161: 17 | AT161: 43 | AU161: 9 | AV161: 15 | AW161: 19 | AX161: 43 | AY161: 3 | AZ161: 5 | BA161: 5 | BB161: 12 | BC161: 4 | BD161: 9 | BE161: 12 | BF161: 26 | BG161: 38 | BH161: 468 | BI161: 3 | BJ161: 7 | BK161: 7 | BL161: 17 | BM161: 3 | BN161: 5 | BO161: 6 | BP161: 14 | BQ161: ناجحة | BR161: ومنقولة للصف الثالث | BS161: 0 | CN161: 174
A162: 153 | B162: 853 | C162: طالبة ادارة صباحى 153 | D162: 3/2 | F162: 355 | G162: 9 | H162: 10 | I162: 14 | J162: 33 | K162: 8 | L162: 7 | M162: 5 | N162: 20 | O162: 5 | P162: 7 | Q162: 6 | R162: 18 | S162: 9 | T162: 15 | U162: 15 | V162: 39 | W162: 10 | X162: 17 | Y162: 20 | Z162: 47 | AA162: 9 | AB162: 17 | AC162: 20 | AD162: 46 | AE162: 9 | AF162: 11 | AG162: 15 | AH162: 35 | AI162: 9 | AJ162: 16 | AK162: 15 | AL162: 40 | AM162: 9 | AN162: 14 | AO162: 17 | AP162: 40 | AQ162: 10 | AR162: 18 | AS162: 19 | AT162: 47 | AU162: 9 | AV162: 14 | AW162: 19 | AX162: 42 | AY162: 3 | AZ162: 5 | BA162: 5 | BB162: 12 | BC162: 4 | BD162: 9 | BE162: 12 | BF162: 26 | BG162: 38 | BH162: 445 | BI162: 3 | BJ162: 7 | BK162: 8 | BL162: 18 | BM162: 3 | BN162: 7 | BO162: 5 | BP162: 15 | BQ162: ناجحة | BR162: ومنقولة للصف الثالث | BS162: 0 | CN162: 163
A163: 154 | B163: 854 | C163: طالبة ادارة صباحى 154 | D163: 1/2 | F163: 356 | G163: 9 | H163: 10 | I163: 14 | J163: 33 | K163: 8 | L163: 7 | M163: 5 | N163: 20 | O163: 5 | P163: 6 | Q163: 6 | R163: 17 | S163: 9 | T163: 5 | U163: 11 | V163: 25 | W163: 9 | X163: 7 | Y163: 17 | Z163: 33 | AA163: 9 | AB163: 1 | AC163: 17 | AD163: 27 | AE163: 9 | AF163: 8 | AG163: 15 | AH163: 32 | AI163: 9 | AJ163: 14 | AK163: 16 | AL163: 39 | AM163: 9 | AN163: 10 | AO163: 16 | AP163: 35 | AQ163: 10 | AR163: 19 | AS163: 18 | AT163: 47 | AU163: 10 | AV163: 18 | AW163: 19 | AX163: 47 | AY163: 2 | AZ163: 5 | BA163: 4 | BB163: 10 | BC163: 4 | BD163: 6 | BE163: 10 | BF163: 21 | BG163: 31 | BH163: 386 | BI163: 3 | BJ163: 6 | BK163: 6 | BL163: 15 | BM163: 3 | BN163: 6 | BO163: 6 | BP163: 15 | BQ163: ناجحة | BR163: ومنقولة للصف الثالث | BS163: 0 | CN163: 119
A164: 155 | B164: 855 | C164: طالبة ادارة صباحى 155 | D164: 6/2 | F164: 357 | G164: 9 | H164: 9 | I164: 13 | J164: 31 | K164: 8 | L164: 7 | M164: 6 | N164: 21 | O164: 4 | P164: 5 | Q164: 6 | R164: 15 | S164: 9 | T164: 5 | U164: 13 | V164: 27 | W164: 9 | X164: 6 | Y164: 20 | Z164: 35 | AA164: 9 | AB164: 6 | AC164: 20 | AD164: 35 | AE164: 10 | AF164: 19 | AG164: 19 | AH164: 48 | AI164: 9 | AJ164: 19 | AK164: 16 | AL164: 44 | AM164: 9 | AN164: 17 | AO164: 14 | AP164: 40 | AQ164: 10 | AR164: 17 | AS164: 19 | AT164: 46 | AU164: 10 | AV164: 18 | AW164: 19 | AX164: 47 | AY164: 3 | AZ164: 5 | BA164: 6 | BB164: 10 | BC164: 6 | BD164: 12 | BE164: 15 | BF164: 27 | BG164: 42 | BH164: 431 | BI164: 3 | BJ164: 5 | BK164: 8 | BL164: 16 | BM164: 3 | BN164: 6 | BO164: 6 | BP164: 15 | BQ164: ناجحة | BR164: ومنقولة للصف الثالث | BS164: 0 | CN164: 144
A165: 156 | B165: 856 | C165: طالبة ادارة صباحى 156 | D165: 1/2 | F165: 358 | G165: 9 | H165: 11 | I165: 15 | J165: 35 | K165: 8 | L165: 11 | M165: 5 | N165: 24 | O165: 4 | P165: 4 | Q165: 5 | R165: 13 | S165: 10 | T165: 17 | U165: 19 | V165: 46 | W165: 9 | X165: 2 | Y165: 20 | Z165: 31 | AA165: 9 | AB165: 3 | AC165: 20 | AD165: 32 | AE165: 10 | AF165: 19 | AG165: 20 | AH165: 49 | AI165: 10 | AJ165: 18 | AK165: 18 | AL165: 46 | AM165: 9 | AN165: 11 | AO165: 15 | AP165: 35 | AQ165: 9 | AR165: 16 | AS165: 19 | AT165: 44 | AU165: 9 | AV165: 16 | AW165: 19 | AX165: 44 | AY165: 4 | AZ165: 5 | BA165: 8 | BB165: 11 | BC165: 5 | BD165: 12 | BE165: 17 | BF165: 28 | BG165: 45 | BH165: 444 | BI165: 3 | BJ165: 5 | BK165: 7 | BL165: 15 | BM165: 3 | BN165: 7 | BO165: 7 | BP165: 17 | BQ165: ناجحة | BR165: ومنقولة للصف الثالث | BS165: 0 | CN165: 147
A166: 157 | B166: 857 | C166: طالبة ادارة صباحى 157 | D166: 6/2 | F166: 359 | G166: 10 | H166: 14 | I166: 18 | J166: 42 | K166: 8 | L166: 8 | M166: 7 | N166: 23 | O166: 4 | P166: 5 | Q166: 6 | R166: 15 | S166: 9 | T166: 14 | U166: 15 | V166: 38 | W166: 9 | X166: 10 | Y166: 13 | Z166: 32 | AA166: 9 | AB166: 7 | AC166: 16 | AD166: 32 | AE166: 10 | AF166: 18 | AG166: 20 | AH166: 48 | AI166: 9 | AJ166: 18 | AK166: 17 | AL166: 44 | AM166: 9 | AN166: 11 | AO166: 13 | AP166: 33 | AQ166: 9 | AR166: 16 | AS166: 19 | AT166: 44 | AU166: 9 | AV166: 10 | AW166: 19 | AX166: 38 | AY166: 3 | AZ166: 5 | BA166: 5 | BB166: 8 | BC166: 5 | BD166: 12 | BE166: 13 | BF166: 25 | BG166: 38 | BH166: 427 | BI166: 3 | BJ166: 8 | BK166: 7 | BL166: 18 | BM166: 3 | BN166: 6 | BO166: 7 | BP166: 16 | BQ166: ناجحة | BR166: ومنقولة للصف الثالث | BS166: 0 | CN166: 144
A167: 158 | B167: 858 | C167: طالبة ادارة صباحى 158 | D167: 7/2 | F167: 360 | G167: 10 | H167: 19 | I167: 19 | J167: 48 | K167: 8 | L167: 9 | M167: 12 | N167: 29 | O167: 4 | P167: 5 | Q167: 6 | R167: 15 | S167: 9 | T167: 17 | U167: 18 | V167: 44 | W167: 10 | X167: 20 | Y167: 20 | Z167: 50 | AA167: 10 | AB167: 18 | AC167: 19 | AD167: 47 | AE167: 10 | AF167: 19 | AG167: 20 | AH167: 49 | AI167: 10 | AJ167: 19 | AK167: 17 | AL167: 46 | AM167: 9 | AN167: 19 | AO167: 16 | AP167: 44 | AQ167: 10 | AR167: 17 | AS167: 19 | AT167: 46 | AU167: 10 | AV167: 17 | AW167: 19 | AX167: 46 | AY167: 3 | AZ167: 5 | BA167: 5 | BB167: 12 | BC167: 5 | BD167: 12 | BE167: 13 | BF167: 29 | BG167: 42 | BH167: 506 | BI167: 3 | BJ167: 8 | BK167: 8 | BL167: 19 | BM167: 3 | BN167: 8 | BO167: 7 | BP167: 18 | BQ167: ناجحة | BR167: ومنقولة للصف الثالث | BS167: 0 | CN167: 196
A168: 159 | B168: 859 | C168: طالبة ادارة صباحى 159 | D168: 6/2 | F168: 361 | G168: 9 | H168: 11 | I168: 13 | J168: 33 | K168: 8 | L168: 6 | M168: 6 | N168: 20 | O168: 4 | P168: 6 | Q168: 4 | R168: 14 | S168: 9 | T168: 6 | U168: 10 | V168: 25 | W168: 9 | X168: 2 | Y168: 15 | Z168: 26 | AA168: 9 | AB168: 6 | AC168: 10 | AD168: 25 | AE168: 9 | AF168: 15 | AG168: 18 | AH168: 42 | AI168: 9 | AJ168: 14 | AK168: 15 | AL168: 38 | AM168: 9 | AN168: 9 | AO168: 13 | AP168: 31 | AQ168: 9 | AR168: 15 | AS168: 16 | AT168: 40 | AU168: 10 | AV168: 18 | AW168: 19 | AX168: 47 | AY168: 2 | AZ168: 5 | BA168: 4 | BB168: 8 | BC168: 5 | BD168: 9 | BE168: 11 | BF168: 22 | BG168: 33 | BH168: 374 | BI168: 3 | BJ168: 5 | BK168: 8 | BL168: 16 | BM168: 3 | BN168: 6 | BO168: 8 | BP168: 17 | BQ168: ناجحة | BR168: ومنقولة للصف الثالث | BS168: 0 | CN168: 120
A169: 160 | B169: 860 | C169: طالبة ادارة صباحى 160 | D169: 5/2 | F169: 362 | G169: 9 | H169: 10 | I169: 15 | J169: 34 | K169: 8 | L169: 9 | M169: 6 | N169: 23 | O169: 4 | P169: 4 | Q169: 4 | R169: 12 | S169: 9 | T169: 10 | U169: 11 | V169: 30 | W169: 9 | X169: 13 | Y169: 14 | Z169: 36 | AA169: 9 | AB169: 8 | AC169: 8 | AD169: 25 | AE169: 9 | AF169: 17 | AG169: 18 | AH169: 44 | AI169: 9 | AJ169: 15 | AK169: 15 | AL169: 39 | AM169: 9 | AN169: 14 | AO169: 14 | AP169: 37 | AQ169: 9 | AR169: 12 | AS169: 16 | AT169: 37 | AU169: 10 | AV169: 17 | AW169: 19 | AX169: 46 | AY169: 3 | AZ169: 5 | BA169: 6 | BB169: 7 | BC169: 5 | BD169: 9 | BE169: 14 | BF169: 21 | BG169: 35 | BH169: 398 | BI169: 3 | BJ169: 5 | BK169: 8 | BL169: 16 | BM169: 3 | BN169: 5 | BO169: 5 | BP169: 13 | BQ169: ناجحة | BR169: ومنقولة للصف الثالث | BS169: 0 | CN169: 142
A170: 161 | B170: 861 | C170: طالبة ادارة صباحى 161 | D170: 2/2 | F170: 363 | G170: 9 | H170: 15 | I170: 14 | J170: 38 | K170: 8 | L170: 7 | M170: 6 | N170: 21 | O170: 4 | P170: 4 | Q170: 5 | R170: 13 | S170: 9 | T170: 9 | U170: 7 | V170: 25 | W170: 9 | X170: 11 | Y170: 15 | Z170: 35 | AA170: 9 | AB170: 8 | AC170: 18 | AD170: 35 | AE170: 9 | AF170: 16 | AG170: 19 | AH170: 44 | AI170: 9 | AJ170: 15 | AK170: 17 | AL170: 41 | AM170: 9 | AN170: 18 | AO170: 15 | AP170: 42 | AQ170: 9 | AR170: 15 | AS170: 20 | AT170: 44 | AU170: 9 | AV170: 16 | AW170: 19 | AX170: 44 | AY170: 2 | AZ170: 5 | BA170: 4 | BB170: 8 | BC170: 5 | BD170: 8 | BE170: 11 | BF170: 21 | BG170: 32 | BH170: 414 | BI170: 3 | BJ170: 3 | BK170: 8 | BL170: 14 | BM170: 3 | BN170: 7 | BO170: 7 | BP170: 17 | BQ170: ناجحة | BR170: ومنقولة للصف الثالث | BS170: 0 | CN170: 146
A171: 162 | B171: 862 | C171: طالبة ادارة صباحى 162 | D171: 4/2 | F171: 364 | G171: 9 | H171: 10 | I171: 12 | J171: 31 | K171: 8 | L171: 9 | M171: 5 | N171: 22 | O171: 4 | P171: 6 | Q171: 3 | R171: 13 | S171: 9 | T171: 9 | U171: 7 | V171: 25 | W171: 9 | X171: 1 | Y171: 15 | Z171: 25 | AA171: 9 | AB171: 6 | AC171: 15 | AD171: 30 | AE171: 9 | AF171: 16 | AG171: 17 | AH171: 42 | AI171: 9 | AJ171: 10 | AK171: 14 | AL171: 33 | AM171: 9 | AN171: 9 | AO171: 15 | AP171: 33 | AQ171: 9 | AR171: 15 | AS171: 16 | AT171: 40 | AU171: 9 | AV171: 14 | AW171: 19 | AX171: 42 | AY171: 2 | AZ171: 5 | BA171: 4 | BB171: 8 | BC171: 4 | BD171: 7 | BE171: 10 | BF171: 20 | BG171: 30 | BH171: 366 | BI171: 3 | BJ171: 7 | BK171: 8 | BL171: 18 | BM171: 3 | BN171: 6 | BO171: 5 | BP171: 14 | BQ171: ناجحة | BR171: ومنقولة للصف الثالث | BS171: 0 | CN171: 117
A172: 163 | B172: 863 | C172: طالبة ادارة صباحى 163 | D172: 5/2 | F172: 365 | G172: 9 | H172: 10 | I172: 15 | J172: 34 | K172: 8 | L172: 7 | M172: 5 | N172: 20 | O172: 4 | P172: 7 | Q172: 4 | R172: 15 | S172: 9 | T172: 12 | U172: 5 | V172: 26 | W172: 9 | X172: 10 | Y172: 6 | Z172: 25 | AA172: 9 | AB172: 12 | AC172: 15 | AD172: 36 | AE172: 9 | AF172: 10 | AG172: 18 | AH172: 37 | AI172: 9 | AJ172: 12 | AK172: 17 | AL172: 38 | AM172: 9 | AN172: 10 | AO172: 14 | AP172: 33 | AQ172: 9 | AR172: 14 | AS172: 15 | AT172: 38 | AU172: 9 | AV172: 19 | AW172: 18 | AX172: 46 | AY172: 3 | AZ172: 5 | BA172: 6 | BB172: 7 | BC172: 4 | BD172: 4 | BE172: 13 | BF172: 16 | BG172: 29 | BH172: 377 | BI172: 3 | BJ172: 6 | BK172: 7 | BL172: 16 | BM172: 3 | BN172: 7 | BO172: 6 | BP172: 16 | BQ172: ناجحة | BR172: ومنقولة للصف الثالث | BS172: 0 | CN172: 136
A173: 164 | B173: 864 | C173: طالبة ادارة صباحى 164 | D173: 5/2 | F173: 366 | G173: 9 | H173: 12 | I173: 17 | J173: 38 | K173: 8 | L173: 13 | M173: 6 | N173: 27 | O173: 4 | P173: 5 | Q173: 6 | R173: 15 | S173: 9 | T173: 6 | U173: 10 | V173: 25 | W173: 9 | X173: 11 | Y173: 17 | Z173: 37 | AA173: 9 | AB173: 8 | AC173: 18 | AD173: 35 | AE173: 9 | AF173: 18 | AG173: 16 | AH173: 43 | AI173: 9 | AJ173: 16 | AK173: 16 | AL173: 41 | AM173: 9 | AN173: 16 | AO173: 15 | AP173: 40 | AQ173: 9 | AR173: 18 | AS173: 16 | AT173: 43 | AU173: 9 | AV173: 14 | AW173: 18 | AX173: 41 | AY173: 3 | AZ173: 5 | BA173: 6 | BB173: 8 | BC173: 5 | BD173: 9 | BE173: 14 | BF173: 22 | BG173: 36 | BH173: 421 | BI173: 3 | BJ173: 7 | BK173: 8 | BL173: 18 | BM173: 3 | BN173: 6 | BO173: 8 | BP173: 17 | BQ173: ناجحة | BR173: ومنقولة للصف الثالث | BS173: 0 | CN173: 151
A174: 165 | B174: 865 | C174: طالبة ادارة صباحى 165 | D174: 1/2 | F174: 367 | G174: 9 | H174: 9 | I174: 13 | J174: 31 | K174: 8 | L174: 11 | M174: 6 | N174: 25 | O174: 4 | P174: 5 | Q174: 4 | R174: 13 | S174: 9 | T174: 5 | U174: 0 | V174: 14 | W174: 9 | X174: 3 | Y174: 13 | Z174: 25 | AA174: 9 | AB174: 1 | AC174: 2 | AD174: 12 | AE174: 9 | AF174: 18 | AG174: 16 | AH174: 43 | AI174: 9 | AJ174: 16 | AK174: 17 | AL174: 42 | AM174: 9 | AN174: 14 | AO174: 13 | AP174: 36 | AQ174: 9 | AR174: 17 | AS174: 16 | AT174: 42 | AU174: 10 | AV174: 18 | AW174: 19 | AX174: 47 | AY174: 3 | AZ174: 5 | BA174: 7 | BB174: 9 | BC174: 5 | BD174: 8 | BE174: 15 | BF174: 22 | BG174: 37 | BH174: 367 | BI174: 3 | BJ174: 6 | BK174: 8 | BL174: 17 | BM174: 3 | BN174: 6 | BO174: 7 | BP174: 16 | BQ174: دورثان | BR174: فى : محاسبة - رياضة مالية - | BS174: 2 | CA174: محاسبة - | CC174: رياضة مالية - | CN174: 133
A175: 166 | B175: 866 | C175: طالبة ادارة صباحى 166 | D175: 1/2 | F175: 368 | G175: 9 | H175: 11 | I175: 13 | J175: 33 | K175: 8 | L175: 14 | M175: 11 | N175: 33 | O175: 4 | P175: 2 | Q175: 5 | R175: 11 | S175: 9 | T175: 11 | U175: 11 | V175: 31 | W175: 9 | X175: 3 | Y175: 13 | Z175: 25 | AA175: 9 | AB175: 16 | AC175: 17 | AD175: 42 | AE175: 9 | AF175: 17 | AG175: 17 | AH175: 43 | AI175: 9 | AJ175: 18 | AK175: 17 | AL175: 44 | AM175: 9 | AN175: 18 | AO175: 13 | AP175: 40 | AQ175: 10 | AR175: 17 | AS175: 20 | AT175: 47 | AU175: 10 | AV175: 19 | AW175: 19 | AX175: 48 | AY175: 2 | AZ175: 5 | BA175: 4 | BB175: 11 | BC175: 4 | BD175: 9 | BE175: 10 | BF175: 25 | BG175: 35 | BH175: 432 | BI175: 3 | BJ175: 6 | BK175: 8 | BL175: 17 | BM175: 3 | BN175: 6 | BO175: 6 | BP175: 15 | BQ175: ناجحة | BR175: ومنقولة للصف الثالث | BS175: 0 | CN175: 161
A176: 167 | B176: 867 | C176: طالبة ادارة صباحى 167 | D176: 7/2 | F176: 369 | G176: 9 | H176: 7 | I176: 9 | J176: 25 | K176: 8 | L176: 8 | M176: 5 | N176: 21 | O176: 4 | P176: 4 | Q176: 5 | R176: 13 | S176: 9 | T176: 1 | U176: 1 | V176: 11 | W176: 9 | X176: 4 | Y176: 12 | Z176: 25 | AA176: 9 | AB176: 2 | AC176: 14 | AD176: 25 | AE176: 9 | AF176: 16 | AG176: 16 | AH176: 41 | AI176: 9 | AJ176: 5 | AK176: 16 | AL176: 30 | AM176: 9 | AN176: 7 | AO176: 15 | AP176: 31 | AQ176: 10 | AR176: 17 | AS176: 19 | AT176: 46 | AU176: 9 | AV176: 15 | AW176: 19 | AX176: 43 | AY176: 3 | AZ176: 5 | BA176: 5 | BB176: 8 | BC176: 5 | BD176: 10 | BE176: 13 | BF176: 23 | BG176: 36 | BH176: 347 | BI176: 3 | BJ176: 2 | BK176: 8 | BL176: 13 | BM176: 3 | BN176: 4 | BO176: 3 | BP176: 10 | BQ176: دورثان | BR176: فى : محاسبة - | BS176: 1 | CA176: محاسبة - | CN176: 99
A177: 168 | B177: 868 | C177: طالبة ادارة صباحى 168 | D177: 4/2 | F177: 370 | G177: 9 | H177: 6 | I177: 12 | J177: 27 | K177: 8 | L177: 7 | M177: 5 | N177: 20 | O177: 4 | P177: 4 | Q177: 5 | R177: 13 | S177: 9 | T177: 4 | U177: 4 | V177: 17 | W177: 9 | X177: 3 | Y177: 13 | Z177: 25 | AA177: 9 | AB177: 3 | AC177: 16 | AD177: 28 | AE177: 10 | AF177: 17 | AG177: 19 | AH177: 46 | AI177: 9 | AJ177: 12 | AK177: 15 | AL177: 36 | AM177: 9 | AN177: 12 | AO177: 15 | AP177: 36 | AQ177: 10 | AR177: 18 | AS177: 20 | AT177: 48 | AU177: 9 | AV177: 13 | AW177: 18 | AX177: 40 | AY177: 3 | AZ177: 5 | BA177: 5 | BB177: 10 | BC177: 6 | BD177: 11 | BE177: 14 | BF177: 26 | BG177: 40 | BH177: 376 | BI177: 3 | BJ177: 3 | BK177: 4 | BL177: 10 | BM177: 3 | BN177: 3 | BO177: 5 | BP177: 11 | BQ177: دورثان | BR177: فى : محاسبة - | BS177: 1 | CA177: محاسبة - | CN177: 114
A178: 169 | B178: 869 | C178: طالبة ادارة صباحى 169 | D178: 3/2 | F178: 371 | G178: 9 | H178: 11 | I178: 17 | J178: 37 | K178: 8 | L178: 10 | M178: 6 | N178: 24 | O178: 4 | P178: 6 | Q178: 6 | R178: 16 | S178: 9 | T178: 14 | U178: 13 | V178: 36 | W178: 9 | X178: 15 | Y178: 19 | Z178: 43 | AA178: 9 | AB178: 12 | AC178: 19 | AD178: 40 | AE178: 10 | AF178: 18 | AG178: 20 | AH178: 48 | AI178: 9 | AJ178: 18 | AK178: 17 | AL178: 44 | AM178: 9 | AN178: 19 | AO178: 14 | AP178: 42 | AQ178: 10 | AR178: 18 | AS178: 20 | AT178: 48 | AU178: 10 | AV178: 19 | AW178: 19 | AX178: 48 | AY178: 4 | AZ178: 5 | BA178: 8 | BB178: 11 | BC178: 5 | BD178: 12 | BE178: 17 | BF178: 28 | BG178: 45 | BH178: 471 | BI178: 3 | BJ178: 7 | BK178: 8 | BL178: 18 | BM178: 3 | BN178: 8 | BO178: 5 | BP178: 16 | BQ178: ناجحة | BR178: ومنقولة للصف الثالث | BS178: 0 | CN178: 179
A179: 170 | B179: 870 | C179: طالبة ادارة صباحى 170 | D179: 2/2 | F179: 372 | G179: 9 | H179: 10 | I179: 17 | J179: 36 | K179: 8 | L179: 9 | M179: 6 | N179: 23 | O179: 4 | P179: 5 | Q179: 6 | R179: 15 | S179: 9 | T179: 15 | U179: 17 | V179: 41 | W179: 9 | X179: 10 | Y179: 20 | Z179: 39 | AA179: 9 | AB179: 8 | AC179: 19 | AD179: 36 | AE179: 10 | AF179: 18 | AG179: 20 | AH179: 48 | AI179: 9 | AJ179: 17 | AK179: 17 | AL179: 43 | AM179: 9 | AN179: 16 | AO179: 15 | AP179: 40 | AQ179: 10 | AR179: 18 | AS179: 20 | AT179: 48 | AU179: 10 | AV179: 20 | AW179: 19 | AX179: 49 | AY179: 3 | AZ179: 5 | BA179: 4 | BB179: 10 | BC179: 5 | BD179: 12 | BE179: 12 | BF179: 27 | BG179: 39 | BH179: 457 | BI179: 3 | BJ179: 7 | BK179: 7 | BL179: 17 | BM179: 3 | BN179: 5 | BO179: 7 | BP179: 15 | BQ179: ناجحة | BR179: ومنقولة للصف الثالث | BS179: 0 | CN179: 160
A180: 171 | B180: 871 | C180: طالبة ادارة صباحى 171 | D180: 6/2 | F180: 373 | G180: 9 | H180: 10 | I180: 15 | J180: 34 | K180: 8 | L180: 8 | M180: 6 | N180: 22 | O180: 4 | P180: 6 | Q180: 6 | R180: 16 | S180: 9 | T180: 16 | U180: 10 | V180: 35 | W180: 9 | X180: 4 | Y180: 19 | Z180: 32 | AA180: 9 | AB180: 7 | AC180: 19 | AD180: 35 | AE180: 10 | AF180: 17 | AG180: 20 | AH180: 47 | AI180: 9 | AJ180: 17 | AK180: 18 | AL180: 44 | AM180: 9 | AN180: 15 | AO180: 14 | AP180: 38 | AQ180: 10 | AR180: 18 | AS180: 20 | AT180: 48 | AU180: 10 | AV180: 20 | AW180: 19 | AX180: 49 | AY180: 2 | AZ180: 5 | BA180: 4 | BB180: 10 | BC180: 6 | BD180: 12 | BE180: 12 | BF180: 27 | BG180: 39 | BH180: 439 | BI180: 3 | BJ180: 6 | BK180: 7 | BL180: 16 | BM180: 3 | BN180: 6 | BO180: 7 | BP180: 16 | BQ180: ناجحة | BR180: ومنقولة للصف الثالث | BS180: 0 | CN180: 152
A181: 172 | B181: 872 | C181: طالبة ادارة صباحى 172 | D181: 6/2 | F181: 374 | G181: 9 | H181: 7 | I181: 15 | J181: 31 | K181: 8 | L181: 11 | M181: 6 | N181: 25 | O181: 4 | P181: 4 | Q181: 5 | R181: 13 | S181: 9 | T181: 14 | U181: 15 | V181: 38 | W181: 9 | X181: 11 | Y181: 17 | Z181: 37 | AA181: 9 | AB181: 7 | AC181: 14 | AD181: 30 | AE181: 9 | AF181: 19 | AG181: 16 | AH181: 44 | AI181: 9 | AJ181: 15 | AK181: 16 | AL181: 40 | AM181: 9 | AN181: 16 | AO181: 15 | AP181: 40 | AQ181: 10 | AR181: 17 | AS181: 20 | AT181: 47 | AU181: 10 | AV181: 17 | AW181: 19 | AX181: 46 | AY181: 3 | AZ181: 5 | BA181: 6 | BB181: 8 | BC181: 4 | BD181: 12 | BE181: 13 | BF181: 25 | BG181: 38 | BH181: 429 | BI181: 3 | BJ181: 7 | BK181: 7 | BL181: 17 | BM181: 3 | BN181: 6 | BO181: 7 | BP181: 16 | BQ181: ناجحة | BR181: ومنقولة للصف الثالث | BS181: 0 | CN181: 152
A182: 173 | B182: 873 | C182: طالبة ادارة صباحى 173 | D182: 5/2 | F182: 375 | G182: 9 | H182: 11 | I182: 15 | J182: 35 | K182: 8 | L182: 7 | M182: 5 | N182: 20 | O182: 4 | P182: 6 | Q182: 5 | R182: 15 | S182: 9 | T182: 8 | U182: 8 | V182: 25 | W182: 9 | X182: 11 | Y182: 17 | Z182: 37 | AA182: 9 | AB182: 5 | AC182: 16 | AD182: 30 | AE182: 9 | AF182: 18 | AG182: 14 | AH182: 41 | AI182: 9 | AJ182: 14 | AK182: 16 | AL182: 39 | AM182: 9 | AN182: 16 | AO182: 14 | AP182: 39 | AQ182: 10 | AR182: 18 | AS182: 19 | AT182: 47 | AU182: 10 | AV182: 18 | AW182: 19 | AX182: 47 | AY182: 4 | AZ182: 5 | BA182: 8 | BB182: 7 | BC182: 4 | BD182: 11 | BE182: 16 | BF182: 23 | BG182: 39 | BH182: 414 | BI182: 3 | BJ182: 8 | BK182: 7 | BL182: 18 | BM182: 3 | BN182: 7 | BO182: 6 | BP182: 16 | BQ182: ناجحة | BR182: ومنقولة للصف الثالث | BS182: 0 | CN182: 147
A183: 174 | B183: 874 | C183: طالبة ادارة صباحى 174 | D183: 5/2 | F183: 376 | G183: 9 | H183: 12 | I183: 14 | J183: 35 | K183: 8 | L183: 11 | M183: 6 | N183: 25 | O183: 4 | P183: 5 | Q183: 6 | R183: 15 | S183: 9 | T183: 9 | U183: 7 | V183: 25 | W183: 9 | X183: 13 | Y183: 10 | Z183: 32 | AA183: 9 | AB183: 7 | AC183: 15 | AD183: 31 | AE183: 10 | AF183: 18 | AG183: 20 | AH183: 48 | AI183: 9 | AJ183: 15 | AK183: 19 | AL183: 43 | AM183: 9 | AN183: 16 | AO183: 13 | AP183: 38 | AQ183: 10 | AR183: 19 | AS183: 19 | AT183: 48 | AU183: 10 | AV183: 18 | AW183: 19 | AX183: 47 | AY183: 4 | AZ183: 5 | BA183: 8 | BB183: 8 | BC183: 4 | BD183: 11 | BE183: 16 | BF183: 24 | BG183: 40 | BH183: 427 | BI183: 3 | BJ183: 7 | BK183: 7 | BL183: 17 | BM183: 3 | BN183: 5 | BO183: 5 | BP183: 13 | BQ183: ناجحة | BR183: ومنقولة للصف الثالث | BS183: 0 | CN183: 159
A184: 175 | B184: 875 | C184: طالبة ادارة صباحى 175 | D184: 2/2 | F184: 377 | G184: 9 | H184: 10 | I184: 15 | J184: 34 | K184: 8 | L184: 8 | M184: 9 | N184: 25 | O184: 4 | P184: 6 | Q184: 6 | R184: 16 | S184: 9 | T184: 17 | U184: 17 | V184: 43 | W184: 9 | X184: 12 | Y184: 20 | Z184: 41 | AA184: 9 | AB184: 11 | AC184: 18 | AD184: 38 | AE184: 9 | AF184: 18 | AG184: 17 | AH184: 44 | AI184: 9 | AJ184: 15 | AK184: 16 | AL184: 40 | AM184: 9 | AN184: 15 | AO184: 16 | AP184: 40 | AQ184: 9 | AR184: 16 | AS184: 19 | AT184: 44 | AU184: 10 | AV184: 17 | AW184: 19 | AX184: 46 | AY184: 3 | AZ184: 5 | BA184: 5 | BB184: 10 | BC184: 5 | BD184: 6 | BE184: 13 | BF184: 21 | BG184: 34 | BH184: 445 | BI184: 3 | BJ184: 6 | BK184: 7 | BL184: 16 | BM184: 3 | BN184: 4 | BO184: 6 | BP184: 13 | BQ184: ناجحة | BR184: ومنقولة للصف الثالث | BS184: 0 | CN184: 160
A185: 176 | B185: 876 | C185: طالبة ادارة صباحى 176 | D185: 5/2 | F185: 378 | G185: 9 | H185: 8 | I185: 13 | J185: 30 | K185: 8 | L185: 11 | M185: 6 | N185: 25 | O185: 4 | P185: 4 | Q185: 4 | R185: 12 | S185: 9 | T185: 2 | U185: 1 | V185: 12 | W185: 9 | X185: 12 | Y185: 16 | Z185: 37 | AA185: 9 | AB185: 6 | AC185: 18 | AD185: 33 | AE185: 9 | AF185: 16 | AG185: 17 | AH185: 42 | AI185: 9 | AJ185: 12 | AK185: 14 | AL185: 35 | AM185: 9 | AN185: 8 | AO185: 14 | AP185: 31 | AQ185: 9 | AR185: 11 | AS185: 16 | AT185: 36 | AU185: 9 | AV185: 14 | AW185: 18 | AX185: 41 | AY185: 2 | AZ185: 5 | BA185: 4 | BB185: 6 | BC185: 4 | BD185: 11 | BE185: 10 | BF185: 22 | BG185: 32 | BH185: 366 | BI185: 3 | BJ185: 6 | BK185: 7 | BL185: 16 | BM185: 3 | BN185: 6 | BO185: 6 | BP185: 15 | BQ185: دورثان | BR185: فى : محاسبة - | BS185: 1 | CA185: محاسبة - | CN185: 114
A186: 177 | B186: 877 | C186: طالبة ادارة صباحى 177 | D186: 4/2 | F186: 379 | G186: 9 | H186: 10 | I186: 17 | J186: 36 | K186: 8 | L186: 7 | M186: 7 | N186: 22 | O186: 5 | P186: 7 | Q186: 6 | R186: 18 | S186: 9 | T186: 14 | U186: 12 | V186: 35 | W186: 9 | X186: 12 | Y186: 20 | Z186: 41 | AA186: 9 | AB186: 17 | AC186: 19 | AD186: 45 | AE186: 9 | AF186: 8 | AG186: 19 | AH186: 36 | AI186: 10 | AJ186: 19 | AK186: 17 | AL186: 46 | AM186: 9 | AN186: 13 | AO186: 15 | AP186: 37 | AQ186: 9 | AR186: 17 | AS186: 17 | AT186: 43 | AU186: 10 | AV186: 20 | AW186: 19 | AX186: 49 | AY186: 3 | AZ186: 5 | BA186: 5 | BB186: 5 | BC186: 6 | BD186: 11 | BE186: 14 | BF186: 21 | BG186: 35 | BH186: 443 | BI186: 3 | BJ186: 7 | BK186: 8 | BL186: 18 | BM186: 3 | BN186: 7 | BO186: 6 | BP186: 16 | BQ186: ناجحة | BR186: ومنقولة للصف الثالث | BS186: 0 | CN186: 154
A187: 178 | B187: 878 | C187: طالبة ادارة صباحى 178 | D187: 3/2 | F187: 380 | G187: 9 | H187: 12 | I187: 15 | J187: 36 | K187: 8 | L187: 5 | M187: 7 | N187: 20 | O187: 4 | P187: 5 | Q187: 6 | R187: 15 | S187: 9 | T187: 13 | U187: 15 | V187: 37 | W187: 9 | X187: 12 | Y187: 16 | Z187: 37 | AA187: 9 | AB187: 12 | AC187: 13 | AD187: 34 | AE187: 9 | AF187: 10 | AG187: 18 | AH187: 37 | AI187: 9 | AJ187: 18 | AK187: 17 | AL187: 44 | AM187: 9 | AN187: 17 | AO187: 14 | AP187: 40 | AQ187: 10 | AR187: 17 | AS187: 20 | AT187: 47 | AU187: 10 | AV187: 19 | AW187: 18 | AX187: 47 | AY187: 3 | AZ187: 5 | BA187: 5 | BB187: 7 | BC187: 5 | BD187: 10 | BE187: 13 | BF187: 22 | BG187: 35 | BH187: 429 | BI187: 3 | BJ187: 6 | BK187: 8 | BL187: 17 | BM187: 3 | BN187: 6 | BO187: 5 | BP187: 14 | BQ187: ناجحة | BR187: ومنقولة للصف الثالث | BS187: 0 | CN187: 152
A188: 179 | B188: 879 | C188: طالبة ادارة صباحى 179 | D188: 1/2 | F188: 381 | G188: 9 | H188: 10 | I188: 15 | J188: 34 | K188: 8 | L188: 6 | M188: 6 | N188: 20 | O188: 5 | P188: 8 | Q188: 4 | R188: 17 | S188: 9 | T188: 6 | U188: 2 | V188: 17 | W188: 9 | X188: 3 | Y188: 2 | Z188: 14 | AA188: 9 | AB188: 16 | AC188: 6 | AD188: 31 | AE188: 9 | AF188: 9 | AG188: 17 | AH188: 35 | AI188: 10 | AJ188: 19 | AK188: 17 | AL188: 46 | AM188: 9 | AN188: 12 | AO188: 15 | AP188: 36 | AQ188: 9 | AR188: 14 | AS188: 14 | AT188: 37 | AU188: 9 | AV188: 19 | AW188: 15 | AX188: 43 | AY188: 2 | AZ188: 5 | BA188: 4 | BB188: 8 | BC188: 4 | BD188: 11 | BE188: 10 | BF188: 24 | BG188: 34 | BH188: 364 | BI188: 3 | BJ188: 4 | BK188: 5 | BL188: 12 | BM188: 3 | BN188: 5 | BO188: 4 | BP188: 12 | BQ188: دورثان | BR188: فى : محاسبة - احصاء - | BS188: 2 | CA188: محاسبة - | CB188: احصاء - | CN188: 134
A189: 180 | B189: 880 | C189: طالبة ادارة صباحى 180 | D189: 7/2 | F189: 382 | G189: 9 | H189: 9 | I189: 13 | J189: 31 | K189: 8 | L189: 7 | M189: 5 | N189: 20 | O189: 4 | P189: 6 | Q189: 5 | R189: 15 | S189: 9 | T189: 11 | U189: 5 | V189: 25 | W189: 9 | X189: 1 | Y189: 4 | Z189: 14 | AA189: 9 | AB189: 2 | AC189: 5 | AD189: 16 | AE189: 9 | AF189: 6 | AG189: 14 | AH189: 29 | AI189: 9 | AJ189: 10 | AK189: 14 | AL189: 33 | AM189: 9 | AN189: 10 | AO189: 13 | AP189: 32 | AQ189: 9 | AR189: 11 | AS189: 17 | AT189: 37 | AU189: 9 | AV189: 13 | AW189: 10 | AX189: 32 | AY189: 3 | AZ189: 5 | BA189: 6 | BB189: 5 | BC189: 4 | BD189: 8 | BE189: 13 | BF189: 18 | BG189: 31 | BH189: 315 | BI189: 3 | BJ189: 5 | BK189: 8 | BL189: 16 | BM189: 3 | BN189: 6 | BO189: 4 | BP189: 13 | BQ189: دورثان | BR189: فى : احصاء - رياضة مالية - | BS189: 2 | CB189: احصاء - | CC189: رياضة مالية - | CN189: 97
A190: 181 | B190: 881 | C190: طالبة ادارة صباحى 181 | D190: 6/2 | F190: 383 | G190: 9 | H190: 9 | I190: 14 | J190: 32 | K190: 8 | L190: 3 | M190: 4 | N190: 15 | O190: 4 | P190: 6 | Q190: 3 | R190: 13 | S190: 9 | T190: 10 | U190: 0 | V190: 19 | W190: 9 | X190: 6 | Y190: 10 | Z190: 25 | AA190: 9 | AB190: 4 | AC190: 14 | AD190: 27 | AE190: 9 | AF190: 13 | AG190: 14 | AH190: 36 | AI190: 9 | AJ190: 13 | AK190: 16 | AL190: 38 | AM190: 9 | AN190: 8 | AO190: 15 | AP190: 32 | AQ190: 9 | AR190: 13 | AS190: 15 | AT190: 37 | AU190: 9 | AV190: 12 | AW190: 15 | AX190: 36 | AY190: 2 | AZ190: 5 | BA190: 4 | BB190: 7 | BC190: 5 | BD190: 8 | BE190: 11 | BF190: 20 | BG190: 31 | BH190: 341 | BI190: 3 | BJ190: 4 | BK190: 7 | BL190: 14 | BM190: 3 | BN190: 5 | BO190: 6 | BP190: 14 | BQ190: دورثان | BR190: فى : انجليزى - محاسبة - | BS190: 2 | BY190: انجليزى - | CA190: محاسبة - | CN190: 108
A191: 182 | B191: 882 | C191: طالبة ادارة صباحى 182 | D191: 6/2 | F191: 384 | G191: 9 | H191: 11 | I191: 14 | J191: 34 | K191: 8 | L191: 7 | M191: 5 | N191: 20 | O191: 4 | P191: 5 | Q191: 5 | R191: 14 | S191: 9 | T191: 12 | U191: 7 | V191: 28 | W191: 9 | X191: 5 | Y191: 11 | Z191: 25 | AA191: 9 | AB191: 9 | AC191: 14 | AD191: 32 | AE191: 9 | AF191: 5 | AG191: 13 | AH191: 27 | AI191: 9 | AJ191: 15 | AK191: 17 | AL191: 41 | AM191: 9 | AN191: 11 | AO191: 16 | AP191: 36 | AQ191: 9 | AR191: 14 | AS191: 16 | AT191: 39 | AU191: 9 | AV191: 15 | AW191: 15 | AX191: 39 | AY191: 3 | AZ191: 5 | BA191: 5 | BB191: 11 | BC191: 5 | BD191: 10 | BE191: 13 | BF191: 26 | BG191: 39 | BH191: 374 | BI191: 3 | BJ191: 7 | BK191: 7 | BL191: 17 | BM191: 3 | BN191: 5 | BO191: 5 | BP191: 13 | BQ191: ناجحة | BR191: ومنقولة للصف الثالث | BS191: 0 | CN191: 125
A192: 183 | B192: 883 | C192: طالبة ادارة صباحى 183 | D192: 2/2 | F192: 385 | G192: 9 | H192: 10 | I192: 10 | J192: 29 | K192: 8 | L192: 7 | M192: 5 | N192: 20 | O192: 4 | P192: 5 | Q192: 4 | R192: 13 | S192: 9 | T192: 8 | U192: 8 | V192: 25 | W192: 9 | X192: 14 | Y192: 18 | Z192: 41 | AA192: 10 | AB192: 17 | AC192: 19 | AD192: 46 | AE192: 9 | AF192: 4 | AG192: 15 | AH192: 28 | AI192: 9 | AJ192: 16 | AK192: 17 | AL192: 42 | AM192: 9 | AN192: 9 | AO192: 14 | AP192: 32 | AQ192: 9 | AR192: 14 | AS192: 15 | AT192: 38 | AU192: 9 | AV192: 18 | AW192: 17 | AX192: 44 | AY192: 2 | AZ192: 5 | BA192: 4 | BB192: 9 | BC192: 4 | BD192: 9 | BE192: 10 | BF192: 23 | BG192: 33 | BH192: 391 | BI192: 3 | BJ192: 7 | BK192: 7 | BL192: 17 | BM192: 3 | BN192: 6 | BO192: 4 | BP192: 13 | BQ192: ناجحة | BR192: ومنقولة للصف الثالث | BS192: 0 | CN192: 135
A193: 184 | B193: 884 | C193: طالبة ادارة صباحى 184 | D193: 4/2 | F193: 386 | G193: غ | H193: غ | I193: غ | J193: 0 | K193: غ | L193: غ | M193: غ | N193: 0 | O193: غ | P193: غ | Q193: غ | R193: 0 | S193: غ | T193: غ | U193: غ | V193: 0 | W193: غ | X193: غ | Y193: غ | Z193: 0 | AA193: غ | AB193: غ | AC193: غ | AD193: 0 | AE193: غ | AF193: غ | AG193: غ | AH193: 0 | AI193: غ | AJ193: غ | AK193: غ | AL193: 0 | AM193: غ | AN193: غ | AO193: غ | AP193: 0 | AQ193: غ | AR193: غ | AS193: غ | AT193: 0 | AU193: غ | AV193: غ | AW193: غ | AX193: 0 | AY193: غ | AZ193: غ | BA193: غ | BB193: غ | BC193: غ | BD193: غ | BE193: 0 | BF193: 0 | BG193: 0 | BH193: 0 | BI193: غ | BJ193: غ | BK193: غ | BL193: 0 | BM193: غ | BN193: غ | BO193: غ | BP193: 0 | BQ193: راسبة | BR193: فى : عربى - انجليزى - فرنسى - محاسبة - احصاء - رياضة مالية - اقتصاد - سكرتارية . ع - سكرتارية . ف - مشروعات - مخازن - حاسب - مواطنة - دين - مجموع | BS193: 15 | BX193: عربى - | BY193: انجليزى - | BZ193: فرنسى - | CA193: محاسبة - | CB193: احصاء - | CC193: رياضة مالية - | CD193: اقتصاد - | CE193: سكرتارية . ع - | CF193: سكرتارية . ف - | CG193: مشروعات - | CH193: مخازن - | CI193: حاسب - | CJ193: مواطنة - | CK193: دين - | CL193: مجموع | CN193: 0
A194: 185 | B194: 885 | C194: طالبة ادارة صباحى 185 | D194: 3/2 | F194: 387 | G194: 10 | H194: 13 | I194: 17 | J194: 40 | K194: 8 | L194: 5 | M194: 7 | N194: 20 | O194: 5 | P194: 8 | Q194: 5 | R194: 18 | S194: 9 | T194: 14 | U194: 17 | V194: 40 | W194: 10 | X194: 19 | Y194: 20 | Z194: 49 | AA194: 10 | AB194: 20 | AC194: 20 | AD194: 50 | AE194: 9 | AF194: 10 | AG194: 17 | AH194: 36 | AI194: 9 | AJ194: 17 | AK194: 18 | AL194: 44 | AM194: 9 | AN194: 19 | AO194: 16 | AP194: 44 | AQ194: 10 | AR194: 19 | AS194: 17 | AT194: 46 | AU194: 9 | AV194: 16 | AW194: 18 | AX194: 43 | AY194: 3 | AZ194: 5 | BA194: 5 | BB194: 7 | BC194: 8 | BD194: 12 | BE194: 16 | BF194: 24 | BG194: 40 | BH194: 470 | BI194: 3 | BJ194: 8 | BK194: 8 | BL194: 19 | BM194: 3 | BN194: 8 | BO194: 7 | BP194: 18 | BQ194: ناجحة | BR194: ومنقولة للصف الثالث | BS194: 0 | CN194: 172
A195: 186 | B195: 886 | C195: طالبة ادارة صباحى 186 | D195: 2/2 | F195: 388 | G195: 9 | H195: 13 | I195: 15 | J195: 37 | K195: 8 | L195: 4 | M195: 8 | N195: 20 | O195: 4 | P195: 6 | Q195: 5 | R195: 15 | S195: 9 | T195: 15 | U195: 13 | V195: 37 | W195: 9 | X195: 13 | Y195: 18 | Z195: 40 | AA195: 9 | AB195: 13 | AC195: 16 | AD195: 38 | AE195: 9 | AF195: 12 | AG195: 19 | AH195: 40 | AI195: 10 | AJ195: 19 | AK195: 18 | AL195: 47 | AM195: 9 | AN195: 17 | AO195: 15 | AP195: 41 | AQ195: 9 | AR195: 15 | AS195: 17 | AT195: 41 | AU195: 9 | AV195: 18 | AW195: 16 | AX195: 43 | AY195: 2 | AZ195: 5 | BA195: 4 | BB195: 10 | BC195: 6 | BD195: 12 | BE195: 12 | BF195: 27 | BG195: 39 | BH195: 438 | BI195: 3 | BJ195: 7 | BK195: 7 | BL195: 17 | BM195: 3 | BN195: 8 | BO195: 7 | BP195: 18 | BQ195: ناجحة | BR195: ومنقولة للصف الثالث | BS195: 0 | CN195: 159
A196: 187 | B196: 887 | C196: طالبة ادارة صباحى 187 | D196: 7/2 | F196: 389 | G196: 10 | H196: 17 | I196: 19 | J196: 46 | K196: 8 | L196: 10 | M196: 13 | N196: 31 | O196: 4 | P196: 5 | Q196: 5 | R196: 14 | S196: 9 | T196: 17 | U196: 16 | V196: 42 | W196: 9 | X196: 18 | Y196: 20 | Z196: 47 | AA196: 10 | AB196: 20 | AC196: 18 | AD196: 48 | AE196: 9 | AF196: 18 | AG196: 20 | AH196: 47 | AI196: 10 | AJ196: 19 | AK196: 17 | AL196: 46 | AM196: 9 | AN196: 17 | AO196: 13 | AP196: 39 | AQ196: 10 | AR196: 19 | AS196: 20 | AT196: 49 | AU196: 10 | AV196: 19 | AW196: 18 | AX196: 47 | AY196: 3 | AZ196: 5 | BA196: 6 | BB196: 11 | BC196: 7 | BD196: 12 | BE196: 16 | BF196: 28 | BG196: 44 | BH196: 500 | BI196: 3 | BJ196: 7 | BK196: 8 | BL196: 18 | BM196: 3 | BN196: 8 | BO196: 5 | BP196: 16 | BQ196: ناجحة | BR196: ومنقولة للصف الثالث | BS196: 0 | CN196: 196
A197: 188 | B197: 888 | C197: طالبة ادارة صباحى 188 | D197: 6/2 | F197: 390 | G197: 9 | H197: 12 | I197: 17 | J197: 38 | K197: 8 | L197: 6 | M197: 6 | N197: 20 | O197: 4 | P197: 6 | Q197: 4 | R197: 14 | S197: 9 | T197: 15 | U197: 19 | V197: 43 | W197: 9 | X197: 11 | Y197: 16 | Z197: 36 | AA197: 9 | AB197: 16 | AC197: 18 | AD197: 43 | AE197: 9 | AF197: 6 | AG197: 20 | AH197: 35 | AI197: 9 | AJ197: 15 | AK197: 16 | AL197: 40 | AM197: 9 | AN197: 15 | AO197: 13 | AP197: 37 | AQ197: 10 | AR197: 17 | AS197: 19 | AT197: 46 | AU197: 9 | AV197: 19 | AW197: 16 | AX197: 44 | AY197: 2 | AZ197: 5 | BA197: 4 | BB197: 8 | BC197: 5 | BD197: 11 | BE197: 11 | BF197: 24 | BG197: 35 | BH197: 431 | BI197: 3 | BJ197: 7 | BK197: 7 | BL197: 17 | BM197: 3 | BN197: 5 | BO197: 6 | BP197: 14 | BQ197: ناجحة | BR197: ومنقولة للصف الثالث | BS197: 0 | CN197: 150
A198: 189 | B198: 889 | C198: طالبة ادارة صباحى 189 | D198: 4/2 | F198: 391 | G198: 10 | H198: 14 | I198: 16 | J198: 40 | K198: 8 | L198: 8 | M198: 12 | N198: 28 | O198: 5 | P198: 7 | Q198: 5 | R198: 17 | S198: 9 | T198: 19 | U198: 15 | V198: 43 | W198: 10 | X198: 20 | Y198: 20 | Z198: 50 | AA198: 10 | AB198: 20 | AC198: 20 | AD198: 50 | AE198: 9 | AF198: 6 | AG198: 17 | AH198: 32 | AI198: 9 | AJ198: 19 | AK198: 16 | AL198: 44 | AM198: 9 | AN198: 15 | AO198: 16 | AP198: 40 | AQ198: 9 | AR198: 17 | AS198: 15 | AT198: 41 | AU198: 10 | AV198: 20 | AW198: 18 | AX198: 48 | AY198: 4 | AZ198: 5 | BA198: 8 | BB198: 10 | BC198: 8 | BD198: 11 | BE198: 20 | BF198: 26 | BG198: 46 | BH198: 479 | BI198: 3 | BJ198: 7 | BK198: 8 | BL198: 18 | BM198: 3 | BN198: 6 | BO198: 7 | BP198: 16 | BQ198: ناجحة | BR198: ومنقولة للصف الثالث | BS198: 0 | CN198: 183
A199: 190 | B199: 890 | C199: طالبة ادارة صباحى 190 | D199: 2/2 | F199: 392 | G199: 9 | H199: 10 | I199: 14 | J199: 33 | K199: 8 | L199: 9 | M199: 8 | N199: 25 | O199: 4 | P199: 7 | Q199: 3 | R199: 14 | S199: 9 | T199: 12 | U199: 9 | V199: 30 | W199: 9 | X199: 13 | Y199: 15 | Z199: 37 | AA199: 9 | AB199: 11 | AC199: 18 | AD199: 38 | AE199: 9 | AF199: 11 | AG199: 18 | AH199: 38 | AI199: 10 | AJ199: 20 | AK199: 18 | AL199: 48 | AM199: 9 | AN199: 15 | AO199: 15 | AP199: 39 | AQ199: 10 | AR199: 18 | AS199: 19 | AT199: 47 | AU199: 10 | AV199: 19 | AW199: 18 | AX199: 47 | AY199: 3 | AZ199: 5 | BA199: 5 | BB199: 8 | BC199: 5 | BD199: 11 | BE199: 13 | BF199: 24 | BG199: 37 | BH199: 433 | BI199: 3 | BJ199: 7 | BK199: 7 | BL199: 17 | BM199: 3 | BN199: 5 | BO199: 5 | BP199: 13 | BQ199: ناجحة | BR199: ومنقولة للصف الثالث | BS199: 0 | CN199: 158
A200: 191 | B200: 891 | C200: طالبة ادارة صباحى 191 | D200: 3/2 | F200: 393 | G200: 10 | H200: 15 | I200: 18 | J200: 43 | K200: 8 | L200: 17 | M200: 18 | N200: 43 | O200: 5 | P200: 9 | Q200: 6 | R200: 20 | S200: 9 | T200: 16 | U200: 15 | V200: 40 | W200: 10 | X200: 19 | Y200: 20 | Z200: 49 | AA200: 10 | AB200: 20 | AC200: 20 | AD200: 50 | AE200: 9 | AF200: 14 | AG200: 18 | AH200: 41 | AI200: 9 | AJ200: 20 | AK200: 15 | AL200: 44 | AM200: 9 | AN200: 16 | AO200: 14 | AP200: 39 | AQ200: 10 | AR200: 18 | AS200: 19 | AT200: 47 | AU200: 10 | AV200: 19 | AW200: 18 | AX200: 47 | AY200: 3 | AZ200: 5 | BA200: 5 | BB200: 10 | BC200: 5 | BD200: 11 | BE200: 13 | BF200: 26 | BG200: 39 | BH200: 502 | BI200: 3 | BJ200: 8 | BK200: 8 | BL200: 19 | BM200: 3 | BN200: 8 | BO200: 6 | BP200: 17 | BQ200: ناجحة | BR200: ومنقولة للصف الثالث | BS200: 0 | CN200: 198
A201: 192 | B201: 892 | C201: طالبة ادارة صباحى 192 | D201: 7/2 | F201: 394 | G201: 9 | H201: 11 | I201: 14 | J201: 34 | K201: 8 | L201: 7 | M201: 5 | N201: 20 | O201: 5 | P201: 9 | Q201: 4 | R201: 18 | S201: 9 | T201: 11 | U201: 12 | V201: 32 | W201: 9 | X201: 5 | Y201: 11 | Z201: 25 | AA201: 9 | AB201: 9 | AC201: 16 | AD201: 34 | AE201: 9 | AF201: 17 | AG201: 16 | AH201: 42 | AI201: 9 | AJ201: 13 | AK201: 18 | AL201: 40 | AM201: 9 | AN201: 10 | AO201: 13 | AP201: 32 | AQ201: 9 | AR201: 17 | AS201: 17 | AT201: 43 | AU201: 9 | AV201: 16 | AW201: 19 | AX201: 44 | AY201: 3 | AZ201: 5 | BA201: 5 | BB201: 6 | BC201: 6 | BD201: 9 | BE201: 14 | BF201: 20 | BG201: 34 | BH201: 398 | BI201: 3 | BJ201: 7 | BK201: 7 | BL201: 17 | BM201: 3 | BN201: 8 | BO201: 6 | BP201: 17 | BQ201: ناجحة | BR201: ومنقولة للصف الثالث | BS201: 0 | CN201: 136
... 203 more rows

Sheet شعبة القانون
B1: بسم الله الرحمن الرحيم | T1: شيت كنترول للعام الدراسى 2017 / 2018
C2: ادارة .......... التعليمية | W2: الصف الثانى - شعبة قانون
C3: مدرسة .......... التجارية | X3: الشيت العام
A5: مسلسل | B5: رقم جلوس | C5: الاســــــــــــــم | D5: الفصــــــــــل | E5: الحالــــــــة | F5: السرى | G5: لغة عربية | K5: لغة انجليزية | O5: لغة فرنسية | S5: محاسبة مالية | W5: احصاء | AA5: اعمال وساطة | AE5: قانون تجارى | AI5: قانون مدنى | AM5: قانون عقوبات | AQ5: قانون مرافعات | AU5: علم نفس | AY5: حاسب آلى | BH5: مجموع كلى | BI5: مواطنة وحقوق انسان | BM5: تربية دينية | BQ5: نتيجة | BR5: مواد الرسوب | BS5: عدد المواد | BX5: عربى | BY5: انجليزى | BZ5: فرنسى | CA5: محاسبة | CB5: احصاء | CC5: اعمال وساطة | CD5: قانون تجارى | CE5: قانون مدنى | CF5: قانون عقوبات | CG5: قانون مرافعات | CH5: علم نفس | CI5: حاسب | CJ5: مواطنة | CK5: دين | CL5: مجموع | CN5: مجموع نصف العام
G6: اعمال السنة | H6: نصف العام | I6: آخر العام | J6: المجموع | K6: اعمال السنة | L6: نصف العام | M6: آخر العام | N6: المجموع | O6: اعمال السنة | P6: نصف العام | Q6: آخر العام | R6: المجموع | S6: اعمال السنة | T6: نصف العام | U6: آخر العام | V6: المجموع | W6: اعمال السنة | X6: نصف العام | Y6: آخر العام | Z6: المجموع | AA6: اعمال السنة | AB6: نصف العام | AC6: آخر العام | AD6: المجموع | AE6: اعمال السنة | AF6: نصف العام | AG6: آخر العام | AH6: المجموع | AI6: اعمال السنة | AJ6: نصف العام | AK6: آخر العام | AL6: المجموع | AM6: اعمال السنة | AN6: نصف العام | AO6: آخر العام | AP6: المجموع | AQ6: اعمال السنة | AR6: نصف العام | AS6: آخر العام | AT6: المجموع | AU6: اعمال السنة | AV6: نصف العام | AW6: آخر العام | AX6: المجموع | AY6: اعمال السنة | BA6: نصف العام | BC6: آخر العام | BE6: مجموع عملى | BF6: مجموع تحريرى | BG6: مجموع | BI6: اعمال السنة | BJ6: نصف العام | BK6: آخر العام | BL6: المجموع | BM6: اعمال السنة | BN6: نصف العام | BO6: آخر العام | BP6: المجموع
AY7: عملى | AZ7: تحريرى | BA7: عملى | BB7: تحريرى | BC7: عملى | BD7: تحريرى
F8: عظمى | G8: 10 | H8: 20 | I8: 20 | J8: 50 | K8: 10 | L8: 20 | M8: 20 | N8: 50 | O8: 6 | P8: 12 | Q8: 12 | R8: 30 | S8: 10 | T8: 20 | U8: 20 | V8: 50 | W8: 10 | X8: 20 | Y8: 20 | Z8: 50 | AA8: 10 | AB8: 20 | AC8: 20 | AD8: 50 | AE8: 10 | AF8: 20 | AG8: 20 | AH8: 50 | AI8: 10 | AJ8: 20 | AK8: 20 | AL8: 50 | AM8: 10 | AN8: 20 | AO8: 20 | AP8: 50 | AQ8: 10 | AR8: 20 | AS8: 20 | AT8: 50 | AU8: 10 | AV8: 20 | AW8: 20 | AX8: 50 | AY8: 4 | AZ8: 6 | BA8: 8 | BB8: 12 | BC8: 8 | BD8: 12 | BE8: 20 | BF8: 30 | BG8: 50 | BH8: 580 | BI8: 4 | BJ8: 8 | BK8: 8 | BL8: 20 | BM8: 4 | BN8: 8 | BO8: 8 | BP8: 20
F9: صغرى | H9: 0 | J9: 25 | K9: 0 | L9: 0 | M9: 5 | N9: 20 | O9: 0 | P9: 0 | Q9: 3 | R9: 9 | S9: 0 | T9: 0 | U9: 5 | V9: 25 | W9: 0 | X9: 0 | Y9: 5 | Z9: 25 | AA9: 0 | AB9: 0 | AC9: 5 | AD9: 25 | AE9: 0 | AF9: 0 | AG9: 5 | AH9: 25 | AI9: 0 | AJ9: 0 | AK9: 5 | AL9: 25 | AM9: 0 | AN9: 0 | AO9: 5 | AP9: 20 | AQ9: 0 | AR9: 0 | AS9: 5 | AT9: 25 | AU9: 0 | AV9: 0 | AW9: 5 | AX9: 25 | AY9: 0 | AZ9: 0 | BA9: 0 | BB9: 0 | BC9: 2 | BD9: 3 | BE9: 10 | BF9: 15 | BG9: 25 | BH9: 290 | BI9: 0 | BJ9: 0 | BK9: 2 | BL9: 10 | BM9: 0 | BN9: 0 | BO9: 2 | BP9: 10
A10: 1 | B10: 1151 | C10: طالبة قانون مسائى 1 | D10: 9/2 | F10: 638 | G10: 9 | H10: 9 | I10: 9 | J10: =IF($C10="","",SUM(G10,H10,I10)) -> 27 | K10: 9 | L10: 6 | M10: 7 | N10: =IF($C10="","",SUM(K10,L10,M10)) -> 22 | O10: 5 | P10: 7 | Q10: 4 | R10: =IF($C10="","",SUM(O10,P10,Q10)) -> 16 | S10: 9 | T10: 9 | U10: 7 | V10: =IF($C10="","",SUM(S10,T10,U10)) -> 25 | W10: 9 | X10: 5 | Y10: 18 | Z10: =IF($C10="","",SUM(W10,X10,Y10)) -> 32 | AA10: 9 | AB10: 16 | AC10: 13 | AD10: =IF($C10="","",SUM(AA10:AC10)) -> 38 | AE10: 9 | AF10: 13 | AG10: 19 | AH10: =IF($C10="","",SUM(AE10,AF10,AG10)) -> 41 | AI10: 9 | AJ10: 20 | AK10: 19 | AL10: =IF($C10="","",SUM(AI10,AJ10,AK10)) -> 48 | AM10: 9 | AN10: 19 | AO10: 19 | AP10: =IF($C10="","",SUM(AM10,AN10,AO10)) -> 47 | AQ10: 9 | AR10: 16 | AS10: 19 | AT10: =IF($C10="","",SUM(AQ10,AR10,AS10)) -> 44 | AU10: 9 | AV10: 18 | AW10: 19 | AX10: =IF($C10="","",SUM(AU10,AV10,AW10)) -> 46 | AY10: 3 | AZ10: 5 | BA10: 6 | BB10: 7 | BC10: 5 | BD10: 12 | BE10: =IF($C10="","",SUM(AY10,BA10,BC10)) -> 14 | BF10: =IF($C10="","",SUM(AZ10,BB10,BD10)) -> 24 | BG10: =IF($C10="","",SUM(BE10,BF10)) -> 38 | BH10: =IF($C10="","",SUM(J10,N10,R10,V10,Z10,AD10,AH10,AL10,AP10,AT10,AX10,BG10)) -> 424 | BI10: 3 | BJ10: 6 | BK10: 8 | BL10: =IF($C10="","",SUM(BI10,BJ10,BK10)) -> 17 | BM10: 3 | BN10: 8 | BO10: 3 | BP10: =IF($C10="","",SUM(BM10,BN10,BO10)) -> 14 | BQ10: =IF($C10="","",IF(BS10=0,"ناجحة",IF(BS10<=2,"دورثان","راسبة"))) -> ناجحة | BR10: =IF($C10="","",IF(BS10=0,"ومنقولة للصف الثالث",IF(BS10>0,"فى : "&CONCATENATE(BX10,BY10,BZ10,CA10,CB10,CC10,CD10,CE10,CF10,CG10,CH10,CI10,CJ10,CK10,CL10),CONCATENATE(BX10,BY10,BZ10,CA10,CB10,CC10,CD10,CE10,CF10,CG10,CH10,CI10,CJ10,CK10,CL10)))) -> ومنقولة للصف الثالث | BS10: =IF($C10="","",COUNTA($BX10:$CL10)-COUNTBLANK($BX10:$CL10)) -> 0 | BX10: =IF($C10="","",IF(OR(I10<$I$9,I10="غ",J10<$J$9),$BX$5&" - ","")) ->  | BY10: =IF($C10="","",IF(OR(M10<$M$9,M10="غ",N10<$N$9),$BY$5&" - ","")) ->  | BZ10: =IF($C10="","",IF(OR(Q10<$Q$9,Q10="غ",R10<$R$9),BZ$5&" - ","")) ->  | CA10: =IF($C10="","",IF(OR(U10<$U$9,U10="غ",V10<$V$9),CA$5&" - ","")) ->  | CB10: =IF($C10="","",IF(OR(Y10<$Y$9,Y10="غ",Z10<$Z$9),CB$5&" - ","")) ->  | CC10: =IF($C10="","",IF(OR(AC10<$AC$9,AC10="غ",AD10<$AD$9),CC$5&" - ","")) ->  | CD10: =IF($C10="","",IF(OR(AG10<$AG$9,AG10="غ",AH10<$AH$9),CD$5&" - ","")) ->  | CE10: =IF($C10="","",IF(OR(AK10<$AK$9,AK10="غ",AL10<$AL$9),CE$5&" - ","")) ->  | CF10: =IF($C10="","",IF(OR(AO10<$AO$9,AO10="غ",AP10<$AP$9),CF$5&" - ","")) ->  | CG10: =IF($C10="","",IF(OR(AS10<$AS$9,AS10="غ",AT10<$AT$9),CG$5&" - ","")) ->  | CH10: =IF($C10="","",IF(OR(AW10<$AW$9,AW10="غ",AX10<$AX$9),CH$5&" - ","")) ->  | CI10: =IF($C10="","",IF(OR(BE10<$BE$9,BE10="غ",BF10<$BF$9,BF10="غ",BG10<$BG$9),CI$5&" - ","")) ->  | CJ10: =IF($C10="","",IF(OR(BK10<$BK$9,BK10="غ",BL10<$BL$9),CJ$5&" - ","")) ->  | CK10: =IF($C10="","",IF(OR(BO10<$BO$9,BO10="غ",BP10<$BP$9),CK$5&" - ","")) ->  | CL10: =IF($C10="","",IF(BH10<$BH$9,CL$5,"")) ->  | CN10: =IF($C10="","",SUM(H10,L10,P10,T10,X10,AB10,AF10,AJ10,AN10,AR10,AV10,BA10,BB10)) -> 151
A11: 2 | B11: 1152 | C11: طالبة قانون مسائى 2 | D11: 9/2 | F11: 639 | G11: 9 | H11: 9 | I11: 7 | J11: 25 | K11: 9 | L11: 4 | M11: 7 | N11: 20 | O11: 5 | P11: 10 | Q11: 6 | R11: 21 | S11: 9 | T11: 6 | U11: 3 | V11: 18 | W11: 9 | X11: 13 | Y11: 9 | Z11: 31 | AA11: 9 | AB11: 16 | AC11: 17 | AD11: 42 | AE11: 9 | AF11: 11 | AG11: 17 | AH11: 37 | AI11: 9 | AJ11: 17 | AK11: 19 | AL11: 45 | AM11: 9 | AN11: 18 | AO11: 12 | AP11: 39 | AQ11: 9 | AR11: 15 | AS11: 19 | AT11: 43 | AU11: 9 | AV11: 9 | AW11: 19 | AX11: 37 | AY11: 3 | AZ11: 5 | BA11: 4 | BB11: 7 | BC11: 4 | BD11: 8 | BE11: 11 | BF11: 20 | BG11: 31 | BH11: 389 | BI11: 3 | BJ11: 5 | BK11: 8 | BL11: 16 | BM11: 3 | BN11: 4 | BO11: 4 | BP11: 11 | BQ11: دورثان | BR11: فى : محاسبة - | BS11: 1 | CA11: محاسبة - | CN11: 139
A12: 3 | B12: 1153 | C12: طالبة قانون مسائى 3 | D12: 8/2 | F12: 640 | G12: 9 | H12: 10 | I12: 11 | J12: 30 | K12: 9 | L12: 4 | M12: 8 | N12: 21 | O12: 5 | P12: 11 | Q12: 6 | R12: 22 | S12: 9 | T12: 8 | U12: 8 | V12: 25 | W12: 9 | X12: 19 | Y12: 16 | Z12: 44 | AA12: 9 | AB12: 18 | AC12: 16 | AD12: 43 | AE12: 9 | AF12: 20 | AG12: 18 | AH12: 47 | AI12: 9 | AJ12: 20 | AK12: 20 | AL12: 49 | AM12: 9 | AN12: 17 | AO12: 18 | AP12: 44 | AQ12: 9 | AR12: 16 | AS12: 19 | AT12: 44 | AU12: 9 | AV12: 10 | AW12: 20 | AX12: 39 | AY12: 3 | AZ12: 5 | BA12: 5 | BB12: 8 | BC12: 5 | BD12: 8 | BE12: 13 | BF12: 21 | BG12: 34 | BH12: 442 | BI12: 3 | BJ12: 6 | BK12: 8 | BL12: 17 | BM12: 3 | BN12: 6 | BO12: 4 | BP12: 13 | BQ12: ناجحة | BR12: ومنقولة للصف الثالث | BS12: 0 | CN12: 166
A13: 4 | B13: 1154 | C13: طالبة قانون مسائى 4 | D13: 9/2 | F13: 641 | G13: 9 | H13: 12 | I13: 13 | J13: 34 | K13: 9 | L13: 4 | M13: 9 | N13: 22 | O13: 5 | P13: 11 | Q13: 7 | R13: 23 | S13: 9 | T13: 6 | U13: 12 | V13: 27 | W13: 9 | X13: 15 | Y13: 16 | Z13: 40 | AA13: 9 | AB13: 18 | AC13: 16 | AD13: 43 | AE13: 9 | AF13: 20 | AG13: 20 | AH13: 49 | AI13: 9 | AJ13: 20 | AK13: 20 | AL13: 49 | AM13: 9 | AN13: 18 | AO13: 19 | AP13: 46 | AQ13: 9 | AR13: 18 | AS13: 19 | AT13: 46 | AU13: 9 | AV13: 13 | AW13: 20 | AX13: 42 | AY13: 3 | AZ13: 5 | BA13: 5 | BB13: 8 | BC13: 5 | BD13: 5 | BE13: 13 | BF13: 18 | BG13: 31 | BH13: 452 | BI13: 3 | BJ13: 7 | BK13: 8 | BL13: 18 | BM13: 3 | BN13: 7 | BO13: 4 | BP13: 14 | BQ13: ناجحة | BR13: ومنقولة للصف الثالث | BS13: 0 | CN13: 168
A14: 5 | B14: 1155 | C14: طالبة قانون مسائى 5 | D14: 9/2 | F14: 642 | G14: 9 | H14: 11 | I14: 11 | J14: 31 | K14: 9 | L14: 3 | M14: 8 | N14: 20 | O14: 5 | P14: 10 | Q14: 8 | R14: 23 | S14: 9 | T14: 2 | U14: 14 | V14: 25 | W14: 9 | X14: 17 | Y14: 18 | Z14: 44 | AA14: 9 | AB14: 20 | AC14: 15 | AD14: 44 | AE14: 9 | AF14: 19 | AG14: 19 | AH14: 47 | AI14: 9 | AJ14: 20 | AK14: 20 | AL14: 49 | AM14: 9 | AN14: 16 | AO14: 19 | AP14: 44 | AQ14: 9 | AR14: 18 | AS14: 19 | AT14: 46 | AU14: 9 | AV14: 14 | AW14: 20 | AX14: 43 | AY14: 3 | AZ14: 5 | BA14: 4 | BB14: 8 | BC14: 4 | BD14: 5 | BE14: 11 | BF14: 18 | BG14: 29 | BH14: 445 | BI14: 3 | BJ14: 7 | BK14: 8 | BL14: 18 | BM14: 3 | BN14: 7 | BO14: 4 | BP14: 14 | BQ14: ناجحة | BR14: ومنقولة للصف الثالث | BS14: 0 | CN14: 162
A15: 6 | B15: 1156 | C15: طالبة قانون مسائى 6 | D15: 8/2 | F15: 643 | G15: 9 | H15: 11 | I15: 12 | J15: 32 | K15: 9 | L15: 3 | M15: 8 | N15: 20 | O15: 5 | P15: 10 | Q15: 7 | R15: 22 | S15: 9 | T15: 3 | U15: 4 | V15: 16 | W15: 9 | X15: 5 | Y15: 17 | Z15: 31 | AA15: 9 | AB15: 20 | AC15: 14 | AD15: 43 | AE15: 9 | AF15: 18 | AG15: 19 | AH15: 46 | AI15: 9 | AJ15: 20 | AK15: 20 | AL15: 49 | AM15: 9 | AN15: 18 | AO15: 19 | AP15: 46 | AQ15: 9 | AR15: 16 | AS15: 19 | AT15: 44 | AU15: 9 | AV15: 11 | AW15: 19 | AX15: 39 | AY15: 3 | AZ15: 5 | BA15: 5 | BB15: 8 | BC15: 4 | BD15: 9 | BE15: 12 | BF15: 22 | BG15: 34 | BH15: 422 | BI15: 3 | BJ15: 6 | BK15: 8 | BL15: 17 | BM15: 3 | BN15: 7 | BO15: 5 | BP15: 15 | BQ15: دورثان | BR15: فى : محاسبة - | BS15: 1 | CA15: محاسبة - | CN15: 148
A16: 7 | B16: 1157 | C16: طالبة قانون مسائى 7 | D16: 8/2 | F16: 644 | G16: 9 | H16: 9 | I16: 9 | J16: 27 | K16: 9 | L16: 2 | M16: 4 | N16: 15 | O16: 5 | P16: 11 | Q16: 5 | R16: 21 | S16: 9 | T16: 4 | U16: 4 | V16: 17 | W16: 9 | X16: 2 | Y16: 0 | Z16: 11 | AA16: 9 | AB16: 12 | AC16: 14 | AD16: 35 | AE16: 9 | AF16: 16 | AG16: 16 | AH16: 41 | AI16: 9 | AJ16: 16 | AK16: 15 | AL16: 40 | AM16: 9 | AN16: 18 | AO16: 15 | AP16: 42 | AQ16: 9 | AR16: 15 | AS16: 19 | AT16: 43 | AU16: 9 | AV16: 14 | AW16: 16 | AX16: 39 | AY16: 3 | AZ16: 5 | BA16: 4 | BB16: 8 | BC16: 4 | BD16: 11 | BE16: 11 | BF16: 24 | BG16: 35 | BH16: 366 | BI16: 3 | BJ16: 4 | BK16: 7 | BL16: 14 | BM16: 3 | BN16: 7 | BO16: 4 | BP16: 14 | BQ16: راسبة | BR16: فى : انجليزى - محاسبة - احصاء - | BS16: 3 | BY16: انجليزى - | CA16: محاسبة - | CB16: احصاء - | CN16: 131
A17: 8 | B17: 1158 | C17: طالبة قانون مسائى 8 | D17: 9/2 | F17: 645 | G17: 9 | H17: 4 | I17: 6 | J17: 19 | K17: 9 | L17: 0 | M17: 2 | N17: 11 | O17: 5 | P17: 8 | Q17: 4 | R17: 17 | S17: 9 | T17: 6 | U17: 2 | V17: 17 | W17: 9 | X17: 2 | Y17: 0 | Z17: 11 | AA17: 9 | AB17: 7 | AC17: 14 | AD17: 30 | AE17: 9 | AF17: 10 | AG17: 10 | AH17: 29 | AI17: 9 | AJ17: 11 | AK17: 15 | AL17: 35 | AM17: 9 | AN17: 18 | AO17: 13 | AP17: 40 | AQ17: 9 | AR17: 10 | AS17: 19 | AT17: 38 | AU17: 9 | AV17: 8 | AW17: 17 | AX17: 34 | AY17: 3 | AZ17: 5 | BA17: 4 | BB17: 6 | BC17: 5 | BD17: 11 | BE17: 12 | BF17: 22 | BG17: 34 | BH17: 315 | BI17: 3 | BJ17: 3 | BK17: 5 | BL17: 11 | BM17: 3 | BN17: 4 | BO17: 3 | BP17: 10 | BQ17: راسبة | BR17: فى : عربى - انجليزى - محاسبة - احصاء - | BS17: 4 | BX17: عربى - | BY17: انجليزى - | CA17: محاسبة - | CB17: احصاء - | CN17: 94
A18: 9 | B18: 1159 | C18: طالبة قانون مسائى 9 | D18: 8/2 | F18: 646 | G18: 9 | H18: 9 | I18: 11 | J18: 29 | K18: 9 | L18: 4 | M18: 7 | N18: 20 | O18: 5 | P18: 10 | Q18: 6 | R18: 21 | S18: 9 | T18: 2 | U18: 2 | V18: 13 | W18: 9 | X18: 2 | Y18: 17 | Z18: 28 | AA18: 9 | AB18: 17 | AC18: 14 | AD18: 40 | AE18: 9 | AF18: 14 | AG18: 19 | AH18: 42 | AI18: 9 | AJ18: 19 | AK18: 19 | AL18: 47 | AM18: 9 | AN18: 18 | AO18: 19 | AP18: 46 | AQ18: 9 | AR18: 17 | AS18: 19 | AT18: 45 | AU18: 9 | AV18: 10 | AW18: 19 | AX18: 38 | AY18: 3 | AZ18: 5 | BA18: 5 | BB18: 8 | BC18: 4 | BD18: 10 | BE18: 12 | BF18: 23 | BG18: 35 | BH18: 404 | BI18: 3 | BJ18: 5 | BK18: 8 | BL18: 16 | BM18: 3 | BN18: 5 | BO18: 3 | BP18: 11 | BQ18: دورثان | BR18: فى : محاسبة - | BS18: 1 | CA18: محاسبة - | CN18: 135
A19: 10 | B19: 1160 | C19: طالبة قانون مسائى 10 | D19: 8/2 | F19: 647 | G19: 9 | H19: 11 | I19: 14 | J19: 34 | K19: 9 | L19: 6 | M19: 8 | N19: 23 | O19: 5 | P19: 11 | Q19: 7 | R19: 23 | S19: 9 | T19: 7 | U19: 14 | V19: 30 | W19: 9 | X19: 15 | Y19: 14 | Z19: 38 | AA19: 9 | AB19: 17 | AC19: 15 | AD19: 41 | AE19: 9 | AF19: 17 | AG19: 19 | AH19: 45 | AI19: 9 | AJ19: 20 | AK19: 18 | AL19: 47 | AM19: 9 | AN19: 19 | AO19: 19 | AP19: 47 | AQ19: 9 | AR19: 18 | AS19: 19 | AT19: 46 | AU19: 9 | AV19: 16 | AW19: 20 | AX19: 45 | AY19: 3 | AZ19: 5 | BA19: 7 | BB19: 8 | BC19: 5 | BD19: 11 | BE19: 15 | BF19: 24 | BG19: 39 | BH19: 458 | BI19: 3 | BJ19: 6 | BK19: 7 | BL19: 16 | BM19: 3 | BN19: 7 | BO19: 5 | BP19: 15 | BQ19: ناجحة | BR19: ومنقولة للصف الثالث | BS19: 0 | CN19: 172
A20: 11 | B20: 1161 | C20: طالبة قانون مسائى 11 | D20: 8/2 | F20: 648 | G20: 9 | H20: 9 | I20: 10 | J20: 28 | K20: 9 | L20: 6 | M20: 7 | N20: 22 | O20: 5 | P20: 11 | Q20: 7 | R20: 23 | S20: 9 | T20: 6 | U20: 9 | V20: 24 | W20: 9 | X20: 5 | Y20: 13 | Z20: 27 | AA20: 9 | AB20: 19 | AC20: 14 | AD20: 42 | AE20: 9 | AF20: 17 | AG20: 19 | AH20: 45 | AI20: 9 | AJ20: 19 | AK20: 19 | AL20: 47 | AM20: 9 | AN20: 16 | AO20: 17 | AP20: 42 | AQ20: 9 | AR20: 18 | AS20: 19 | AT20: 46 | AU20: 9 | AV20: 14 | AW20: 18 | AX20: 41 | AY20: 3 | AZ20: 5 | BA20: 7 | BB20: 8 | BC20: 6 | BD20: 11 | BE20: 16 | BF20: 24 | BG20: 40 | BH20: 427 | BI20: 3 | BJ20: 6 | BK20: 8 | BL20: 17 | BM20: 3 | BN20: 4 | BO20: 3 | BP20: 10 | BQ20: دورثان | BR20: فى : محاسبة - | BS20: 1 | CA20: محاسبة - | CN20: 155
A21: 12 | B21: 1162 | C21: طالبة قانون مسائى 12 | D21: 9/2 | F21: 649 | G21: 9 | H21: 11 | I21: 14 | J21: 34 | K21: 9 | L21: 3 | M21: 8 | N21: 20 | O21: 5 | P21: 11 | Q21: 7 | R21: 23 | S21: 9 | T21: 5 | U21: 15 | V21: 29 | W21: 9 | X21: 16 | Y21: 14 | Z21: 39 | AA21: 9 | AB21: 18 | AC21: 15 | AD21: 42 | AE21: 9 | AF21: 18 | AG21: 20 | AH21: 47 | AI21: 9 | AJ21: 20 | AK21: 19 | AL21: 48 | AM21: 9 | AN21: 18 | AO21: 18 | AP21: 45 | AQ21: 9 | AR21: 19 | AS21: 19 | AT21: 47 | AU21: 9 | AV21: 13 | AW21: 20 | AX21: 42 | AY21: 3 | AZ21: 5 | BA21: 7 | BB21: 8 | BC21: 6 | BD21: 11 | BE21: 16 | BF21: 24 | BG21: 40 | BH21: 456 | BI21: 3 | BJ21: 4 | BK21: 8 | BL21: 15 | BM21: 3 | BN21: 7 | BO21: 5 | BP21: 15 | BQ21: ناجحة | BR21: ومنقولة للصف الثالث | BS21: 0 | CN21: 167
A22: 13 | B22: 1163 | C22: طالبة قانون مسائى 13 | D22: 9/2 | F22: 650 | G22: 9 | H22: 13 | I22: 13 | J22: 35 | K22: 9 | L22: 5 | M22: 8 | N22: 22 | O22: 5 | P22: 11 | Q22: 7 | R22: 23 | S22: 9 | T22: 14 | U22: 12 | V22: 35 | W22: 9 | X22: 19 | Y22: 19 | Z22: 47 | AA22: 9 | AB22: 19 | AC22: 14 | AD22: 42 | AE22: 9 | AF22: 18 | AG22: 19 | AH22: 46 | AI22: 9 | AJ22: 20 | AK22: 19 | AL22: 48 | AM22: 9 | AN22: 18 | AO22: 19 | AP22: 46 | AQ22: 9 | AR22: 19 | AS22: 19 | AT22: 47 | AU22: 9 | AV22: 13 | AW22: 20 | AX22: 42 | AY22: 3 | AZ22: 5 | BA22: 8 | BB22: 8 | BC22: 6 | BD22: 6 | BE22: 17 | BF22: 19 | BG22: 36 | BH22: 469 | BI22: 3 | BJ22: 6 | BK22: 7 | BL22: 16 | BM22: 3 | BN22: 8 | BO22: 8 | BP22: 19 | BQ22: ناجحة | BR22: ومنقولة للصف الثالث | BS22: 0 | CN22: 185
A23: 14 | B23: 1164 | C23: طالبة قانون مسائى 14 | D23: 9/2 | F23: 651 | G23: 9 | H23: 12 | I23: 15 | J23: 36 | K23: 9 | L23: 6 | M23: 9 | N23: 24 | O23: 5 | P23: 11 | Q23: 7 | R23: 23 | S23: 9 | T23: 13 | U23: 5 | V23: 27 | W23: 9 | X23: 19 | Y23: 5 | Z23: 33 | AA23: 9 | AB23: 19 | AC23: 13 | AD23: 41 | AE23: 9 | AF23: 12 | AG23: 18 | AH23: 39 | AI23: 9 | AJ23: 20 | AK23: 19 | AL23: 48 | AM23: 9 | AN23: 19 | AO23: 12 | AP23: 40 | AQ23: 9 | AR23: 13 | AS23: 19 | AT23: 41 | AU23: 9 | AV23: 13 | AW23: 17 | AX23: 39 | AY23: 3 | AZ23: 5 | BA23: 4 | BB23: 7 | BC23: 5 | BD23: 5 | BE23: 12 | BF23: 17 | BG23: 29 | BH23: 420 | BI23: 3 | BJ23: 3 | BK23: 8 | BL23: 14 | BM23: 3 | BN23: 8 | BO23: 8 | BP23: 19 | BQ23: ناجحة | BR23: ومنقولة للصف الثالث | BS23: 0 | CN23: 168
A24: 15 | B24: 1165 | C24: طالبة قانون مسائى 15 | D24: 9/2 | F24: 652 | G24: 9 | H24: 12 | I24: 14 | J24: 35 | K24: 9 | L24: 5 | M24: 10 | N24: 24 | O24: 5 | P24: 11 | Q24: 7 | R24: 23 | S24: 9 | T24: 11 | U24: 13 | V24: 33 | W24: 9 | X24: 20 | Y24: 20 | Z24: 49 | AA24: 9 | AB24: 20 | AC24: 14 | AD24: 43 | AE24: 9 | AF24: 18 | AG24: 18 | AH24: 45 | AI24: 9 | AJ24: 20 | AK24: 19 | AL24: 48 | AM24: 9 | AN24: 19 | AO24: 19 | AP24: 47 | AQ24: 9 | AR24: 18 | AS24: 19 | AT24: 46 | AU24: 9 | AV24: 14 | AW24: 17 | AX24: 40 | AY24: 3 | AZ24: 5 | BA24: 8 | BB24: 8 | BC24: 8 | BD24: 5 | BE24: 19 | BF24: 18 | BG24: 37 | BH24: 470 | BI24: 3 | BJ24: 6 | BK24: 8 | BL24: 17 | BM24: 3 | BN24: 8 | BO24: 8 | BP24: 19 | BQ24: ناجحة | BR24: ومنقولة للصف الثالث | BS24: 0 | CN24: 184
A25: 16 | B25: 1166 | C25: طالبة قانون مسائى 16 | D25: 9/2 | F25: 653 | G25: 9 | H25: 9 | I25: 10 | J25: 28 | K25: 9 | L25: 3 | M25: 8 | N25: 20 | O25: 5 | P25: 10 | Q25: 6 | R25: 21 | S25: 9 | T25: 11 | U25: 5 | V25: 25 | W25: 9 | X25: 20 | Y25: 15 | Z25: 44 | AA25: 9 | AB25: 18 | AC25: 15 | AD25: 42 | AE25: 9 | AF25: 16 | AG25: 19 | AH25: 44 | AI25: 9 | AJ25: 20 | AK25: 19 | AL25: 48 | AM25: 9 | AN25: 17 | AO25: 19 | AP25: 45 | AQ25: 9 | AR25: 17 | AS25: 19 | AT25: 45 | AU25: 9 | AV25: 12 | AW25: 19 | AX25: 40 | AY25: 3 | AZ25: 5 | BA25: 4 | BB25: 7 | BC25: 4 | BD25: 5 | BE25: 11 | BF25: 17 | BG25: 28 | BH25: 430 | BI25: 3 | BJ25: 5 | BK25: 8 | BL25: 16 | BM25: 3 | BN25: 5 | BO25: 4 | BP25: 12 | BQ25: ناجحة | BR25: ومنقولة للصف الثالث | BS25: 0 | CN25: 164
A26: 17 | B26: 1167 | C26: طالبة قانون مسائى 17 | D26: 8/2 | F26: 654 | G26: 9 | H26: 14 | I26: 14 | J26: 37 | K26: 9 | L26: 7 | M26: 10 | N26: 26 | O26: 5 | P26: 11 | Q26: 8 | R26: 24 | S26: 9 | T26: 11 | U26: 14 | V26: 34 | W26: 9 | X26: 20 | Y26: 19 | Z26: 48 | AA26: 9 | AB26: 20 | AC26: 14 | AD26: 43 | AE26: 9 | AF26: 19 | AG26: 18 | AH26: 46 | AI26: 9 | AJ26: 20 | AK26: 19 | AL26: 48 | AM26: 9 | AN26: 18 | AO26: 19 | AP26: 46 | AQ26: 9 | AR26: 17 | AS26: 19 | AT26: 45 | AU26: 9 | AV26: 15 | AW26: 17 | AX26: 41 | AY26: 3 | AZ26: 5 | BA26: 5 | BB26: 8 | BC26: 7 | BD26: 5 | BE26: 15 | BF26: 18 | BG26: 33 | BH26: 471 | BI26: 3 | BJ26: 6 | BK26: 8 | BL26: 17 | BM26: 3 | BN26: 8 | BO26: 8 | BP26: 19 | BQ26: ناجحة | BR26: ومنقولة للصف الثالث | BS26: 0 | CN26: 185
A27: 18 | B27: 1168 | C27: طالبة قانون مسائى 18 | D27: 8/2 | F27: 655 | G27: غ | H27: غ | I27: غ | J27: 0 | K27: غ | L27: غ | M27: غ | N27: 0 | O27: غ | P27: غ | Q27: غ | R27: 0 | S27: غ | T27: غ | U27: غ | V27: 0 | W27: غ | X27: غ | Y27: غ | Z27: 0 | AA27: غ | AB27: غ | AC27: غ | AD27: 0 | AE27: غ | AF27: غ | AG27: غ | AH27: 0 | AI27: غ | AJ27: غ | AK27: غ | AL27: 0 | AM27: غ | AN27: غ | AO27: غ | AP27: 0 | AQ27: غ | AR27: غ | AS27: غ | AT27: 0 | AU27: غ | AV27: غ | AW27: غ | AX27: 0 | AY27: غ | AZ27: غ | BA27: غ | BB27: غ | BC27: غ | BD27: غ | BE27: 0 | BF27: 0 | BG27: 0 | BH27: 0 | BI27: غ | BJ27: غ | BK27: غ | BL27: 0 | BM27: غ | BN27: غ | BO27: غ | BP27: 0 | BQ27: راسبة | BR27: فى : عربى - انجليزى - فرنسى - محاسبة - احصاء - اعمال وساطة - قانون تجارى - قانون مدنى - قانون عقوبات - قانون مرافعات - علم نفس - حاسب - مواطنة - دين - مجموع | BS27: 15 | BX27: عربى - | BY27: انجليزى - | BZ27: فرنسى - | CA27: محاسبة - | CB27: احصاء - | CC27: اعمال وساطة - | CD27: قانون تجارى - | CE27: قانون مدنى - | CF27: قانون عقوبات - | CG27: قانون مرافعات - | CH27: علم نفس - | CI27: حاسب - | CJ27: مواطنة - | CK27: دين - | CL27: مجموع | CN27: 0
A28: 19 | B28: 1169 | C28: طالبة قانون مسائى 19 | D28: 8/2 | F28: 656 | G28: 9 | H28: 7 | I28: 12 | J28: 28 | K28: 9 | L28: 3 | M28: 8 | N28: 20 | O28: 5 | P28: 7 | Q28: 6 | R28: 18 | S28: 9 | T28: 5 | U28: 0 | V28: 14 | W28: 9 | X28: 17 | Y28: 16 | Z28: 42 | AA28: 9 | AB28: 20 | AC28: 15 | AD28: 44 | AE28: 9 | AF28: 18 | AG28: 18 | AH28: 45 | AI28: 9 | AJ28: 20 | AK28: 19 | AL28: 48 | AM28: 9 | AN28: 17 | AO28: 19 | AP28: 45 | AQ28: 9 | AR28: 16 | AS28: 19 | AT28: 44 | AU28: 9 | AV28: 13 | AW28: 20 | AX28: 42 | AY28: 3 | AZ28: 5 | BA28: 5 | BB28: 7 | BC28: 4 | BD28: 5 | BE28: 12 | BF28: 17 | BG28: 29 | BH28: 419 | BI28: 3 | BJ28: 3 | BK28: 8 | BL28: 14 | BM28: 3 | BN28: 4 | BO28: 3 | BP28: 10 | BQ28: دورثان | BR28: فى : محاسبة - | BS28: 1 | CA28: محاسبة - | CN28: 155
A29: 20 | B29: 1170 | C29: طالبة قانون مسائى 20 | D29: 8/2 | F29: 657 | G29: 9 | H29: 8 | I29: غ | J29: 17 | K29: 9 | L29: 3 | M29: غ | N29: 12 | O29: 5 | P29: 6 | Q29: غ | R29: 11 | S29: 9 | T29: 4 | U29: غ | V29: 13 | W29: 9 | X29: 6 | Y29: غ | Z29: 15 | AA29: 9 | AB29: 13 | AC29: غ | AD29: 22 | AE29: 9 | AF29: 10 | AG29: غ | AH29: 19 | AI29: 9 | AJ29: 9 | AK29: غ | AL29: 18 | AM29: 9 | AN29: 13 | AO29: غ | AP29: 22 | AQ29: 9 | AR29: 15 | AS29: غ | AT29: 24 | AU29: 9 | AV29: 17 | AW29: غ | AX29: 26 | AY29: 3 | AZ29: 5 | BA29: 4 | BB29: 5 | BC29: 4 | BD29: غ | BE29: 11 | BF29: 10 | BG29: 21 | BH29: 220 | BI29: 3 | BJ29: 4 | BK29: غ | BL29: 7 | BM29: 3 | BN29: 6 | BO29: غ | BP29: 9 | BQ29: راسبة | BR29: فى : عربى - انجليزى - فرنسى - محاسبة - احصاء - اعمال وساطة - قانون تجارى - قانون مدنى - قانون عقوبات - قانون مرافعات - علم نفس - حاسب - مواطنة - دين - مجموع | BS29: 15 | BX29: عربى - | BY29: انجليزى - | BZ29: فرنسى - | CA29: محاسبة - | CB29: احصاء - | CC29: اعمال وساطة - | CD29: قانون تجارى - | CE29: قانون مدنى - | CF29: قانون عقوبات - | CG29: قانون مرافعات - | CH29: علم نفس - | CI29: حاسب - | CJ29: مواطنة - | CK29: دين - | CL29: مجموع | CN29: 113
A30: 21 | B30: 1171 | C30: طالبة قانون مسائى 21 | D30: 9/2 | F30: 658 | G30: 9 | H30: 9 | I30: 13 | J30: 31 | K30: 9 | L30: 5 | M30: 9 | N30: 23 | O30: 5 | P30: 6 | Q30: 5 | R30: 16 | S30: 9 | T30: 11 | U30: 15 | V30: 35 | W30: 9 | X30: 15 | Y30: 17 | Z30: 41 | AA30: 9 | AB30: 16 | AC30: 16 | AD30: 41 | AE30: 9 | AF30: 12 | AG30: 20 | AH30: 41 | AI30: 9 | AJ30: 12 | AK30: 17 | AL30: 38 | AM30: 9 | AN30: 17 | AO30: 19 | AP30: 45 | AQ30: 9 | AR30: 16 | AS30: 19 | AT30: 44 | AU30: 9 | AV30: 19 | AW30: 19 | AX30: 47 | AY30: 3 | AZ30: 5 | BA30: 6 | BB30: 9 | BC30: 6 | BD30: 11 | BE30: 15 | BF30: 25 | BG30: 40 | BH30: 442 | BI30: 3 | BJ30: 6 | BK30: 7 | BL30: 16 | BM30: 3 | BN30: 5 | BO30: 4 | BP30: 12 | BQ30: ناجحة | BR30: ومنقولة للصف الثالث | BS30: 0 | CN30: 153
A31: 22 | B31: 1172 | C31: طالبة قانون مسائى 22 | D31: 8/2 | F31: 659 | G31: 9 | H31: 7 | I31: 9 | J31: 25 | K31: 9 | L31: 6 | M31: 6 | N31: 21 | O31: 5 | P31: 4 | Q31: 5 | R31: 14 | S31: 9 | T31: 2 | U31: 4 | V31: 15 | W31: 9 | X31: 9 | Y31: 13 | Z31: 31 | AA31: 9 | AB31: 15 | AC31: 15 | AD31: 39 | AE31: 9 | AF31: 10 | AG31: 20 | AH31: 39 | AI31: 9 | AJ31: 8 | AK31: 16 | AL31: 33 | AM31: 9 | AN31: 16 | AO31: 19 | AP31: 44 | AQ31: 9 | AR31: 14 | AS31: 19 | AT31: 42 | AU31: 9 | AV31: 18 | AW31: 17 | AX31: 44 | AY31: 3 | AZ31: 5 | BA31: 4 | BB31: 9 | BC31: 6 | BD31: 10 | BE31: 13 | BF31: 24 | BG31: 37 | BH31: 384 | BI31: 3 | BJ31: 6 | BK31: 7 | BL31: 16 | BM31: 3 | BN31: 5 | BO31: 2 | BP31: 10 | BQ31: دورثان | BR31: فى : محاسبة - | BS31: 1 | CA31: محاسبة - | CN31: 122
A32: 23 | B32: 1173 | C32: طالبة قانون مسائى 23 | D32: 9/2 | F32: 660 | G32: 9 | H32: 10 | I32: 12 | J32: 31 | K32: 9 | L32: 10 | M32: 10 | N32: 29 | O32: 5 | P32: 5 | Q32: 9 | R32: 19 | S32: 9 | T32: 9 | U32: 7 | V32: 25 | W32: 9 | X32: 12 | Y32: 17 | Z32: 38 | AA32: 9 | AB32: 16 | AC32: 15 | AD32: 40 | AE32: 9 | AF32: 15 | AG32: 20 | AH32: 44 | AI32: 9 | AJ32: 19 | AK32: 16 | AL32: 44 | AM32: 9 | AN32: 19 | AO32: 19 | AP32: 47 | AQ32: 9 | AR32: 17 | AS32: 19 | AT32: 45 | AU32: 9 | AV32: 16 | AW32: 18 | AX32: 43 | AY32: 3 | AZ32: 5 | BA32: 7 | BB32: 11 | BC32: 5 | BD32: 10 | BE32: 15 | BF32: 26 | BG32: 41 | BH32: 446 | BI32: 3 | BJ32: 5 | BK32: 6 | BL32: 14 | BM32: 3 | BN32: 4 | BO32: 3 | BP32: 10 | BQ32: ناجحة | BR32: ومنقولة للصف الثالث | BS32: 0 | CN32: 166
A33: 24 | B33: 1174 | C33: طالبة قانون مسائى 24 | D33: 9/2 | F33: 661 | G33: 9 | H33: 7 | I33: 10 | J33: 26 | K33: 9 | L33: 4 | M33: 8 | N33: 21 | O33: 5 | P33: 5 | Q33: 4 | R33: 14 | S33: 9 | T33: 5 | U33: 1 | V33: 15 | W33: 9 | X33: 1 | Y33: 15 | Z33: 25 | AA33: 9 | AB33: 15 | AC33: 17 | AD33: 41 | AE33: 9 | AF33: 11 | AG33: 20 | AH33: 40 | AI33: 9 | AJ33: 13 | AK33: 17 | AL33: 39 | AM33: 9 | AN33: 11 | AO33: 19 | AP33: 39 | AQ33: 9 | AR33: 16 | AS33: 19 | AT33: 44 | AU33: 9 | AV33: 19 | AW33: 19 | AX33: 47 | AY33: 3 | AZ33: 5 | BA33: 4 | BB33: 11 | BC33: 5 | BD33: 10 | BE33: 12 | BF33: 26 | BG33: 38 | BH33: 389 | BI33: 3 | BJ33: 5 | BK33: 8 | BL33: 16 | BM33: 3 | BN33: 4 | BO33: 3 | BP33: 10 | BQ33: دورثان | BR33: فى : محاسبة - | BS33: 1 | CA33: محاسبة - | CN33: 122
A34: 25 | B34: 1175 | C34: طالبة قانون مسائى 25 | D34: 9/2 | F34: 662 | G34: 9 | H34: 8 | I34: 9 | J34: 26 | K34: 9 | L34: 4 | M34: 7 | N34: 20 | O34: 5 | P34: 5 | Q34: 3 | R34: 13 | S34: 9 | T34: 11 | U34: 13 | V34: 33 | W34: 9 | X34: 18 | Y34: 17 | Z34: 44 | AA34: 9 | AB34: 16 | AC34: 15 | AD34: 40 | AE34: 9 | AF34: 13 | AG34: 19 | AH34: 41 | AI34: 9 | AJ34: 19 | AK34: 17 | AL34: 45 | AM34: 9 | AN34: 18 | AO34: 18 | AP34: 45 | AQ34: 9 | AR34: 14 | AS34: 19 | AT34: 42 | AU34: 9 | AV34: 17 | AW34: 18 | AX34: 44 | AY34: 3 | AZ34: 5 | BA34: 7 | BB34: 11 | BC34: 6 | BD34: 7 | BE34: 16 | BF34: 23 | BG34: 39 | BH34: 432 | BI34: 3 | BJ34: 8 | BK34: 6 | BL34: 17 | BM34: 3 | BN34: 4 | BO34: 6 | BP34: 13 | BQ34: ناجحة | BR34: ومنقولة للصف الثالث | BS34: 0 | CN34: 161
A35: 26 | B35: 1176 | C35: طالبة قانون مسائى 26 | D35: 8/2 | F35: 663 | G35: 9 | H35: 8 | I35: 9 | J35: 26 | K35: 9 | L35: 5 | M35: 7 | N35: 21 | O35: 5 | P35: 4 | Q35: 5 | R35: 14 | S35: 9 | T35: 8 | U35: 8 | V35: 25 | W35: 9 | X35: 10 | Y35: 13 | Z35: 32 | AA35: 9 | AB35: 15 | AC35: 16 | AD35: 40 | AE35: 9 | AF35: 11 | AG35: 20 | AH35: 40 | AI35: 9 | AJ35: 11 | AK35: 17 | AL35: 37 | AM35: 9 | AN35: 11 | AO35: 13 | AP35: 33 | AQ35: 9 | AR35: 14 | AS35: 19 | AT35: 42 | AU35: 9 | AV35: 16 | AW35: 20 | AX35: 45 | AY35: 3 | AZ35: 5 | BA35: 4 | BB35: 7 | BC35: 6 | BD35: 3 | BE35: 13 | BF35: 15 | BG35: 28 | BH35: 383 | BI35: 3 | BJ35: 5 | BK35: 8 | BL35: 16 | BM35: 3 | BN35: 5 | BO35: 3 | BP35: 11 | BQ35: ناجحة | BR35: ومنقولة للصف الثالث | BS35: 0 | CN35: 124
A36: 27 | B36: 1177 | C36: طالبة قانون مسائى 27 | D36: 9/2 | F36: 664 | G36: 9 | H36: 11 | I36: 14 | J36: 34 | K36: 9 | L36: 6 | M36: 10 | N36: 25 | O36: 5 | P36: 6 | Q36: 5 | R36: 16 | S36: 9 | T36: 12 | U36: 18 | V36: 39 | W36: 9 | X36: 15 | Y36: 16 | Z36: 40 | AA36: 9 | AB36: 15 | AC36: 15 | AD36: 39 | AE36: 9 | AF36: 17 | AG36: 20 | AH36: 46 | AI36: 9 | AJ36: 19 | AK36: 17 | AL36: 45 | AM36: 9 | AN36: 18 | AO36: 17 | AP36: 44 | AQ36: 9 | AR36: 18 | AS36: 19 | AT36: 46 | AU36: 9 | AV36: 18 | AW36: 19 | AX36: 46 | AY36: 3 | AZ36: 5 | BA36: 5 | BB36: 10 | BC36: 6 | BD36: 11 | BE36: 14 | BF36: 26 | BG36: 40 | BH36: 460 | BI36: 3 | BJ36: 7 | BK36: 7 | BL36: 17 | BM36: 3 | BN36: 7 | BO36: 4 | BP36: 14 | BQ36: ناجحة | BR36: ومنقولة للصف الثالث | BS36: 0 | CN36: 170
A37: 28 | B37: 1178 | C37: طالبة قانون مسائى 28 | D37: 9/2 | F37: 665 | G37: غ | H37: غ | I37: غ | J37: 0 | K37: غ | L37: غ | M37: غ | N37: 0 | O37: غ | P37: غ | Q37: غ | R37: 0 | S37: غ | T37: غ | U37: غ | V37: 0 | W37: غ | X37: غ | Y37: غ | Z37: 0 | AA37: غ | AB37: غ | AC37: غ | AD37: 0 | AE37: غ | AF37: غ | AG37: غ | AH37: 0 | AI37: غ | AJ37: غ | AK37: غ | AL37: 0 | AM37: غ | AN37: غ | AO37: غ | AP37: 0 | AQ37: غ | AR37: غ | AS37: غ | AT37: 0 | AU37: غ | AV37: غ | AW37: غ | AX37: 0 | AY37: غ | AZ37: غ | BA37: غ | BB37: غ | BC37: غ | BD37: غ | BE37: 0 | BF37: 0 | BG37: 0 | BH37: 0 | BI37: غ | BJ37: غ | BK37: غ | BL37: 0 | BM37: غ | BN37: غ | BO37: غ | BP37: 0 | BQ37: راسبة | BR37: فى : عربى - انجليزى - فرنسى - محاسبة - احصاء - اعمال وساطة - قانون تجارى - قانون مدنى - قانون عقوبات - قانون مرافعات - علم نفس - حاسب - مواطنة - دين - مجموع | BS37: 15 | BX37: عربى - | BY37: انجليزى - | BZ37: فرنسى - | CA37: محاسبة - | CB37: احصاء - | CC37: اعمال وساطة - | CD37: قانون تجارى - | CE37: قانون مدنى - | CF37: قانون عقوبات - | CG37: قانون مرافعات - | CH37: علم نفس - | CI37: حاسب - | CJ37: مواطنة - | CK37: دين - | CL37: مجموع | CN37: 0
A38: 29 | B38: 1179 | C38: طالبة قانون مسائى 29 | D38: 8/2 | F38: 666 | G38: 9 | H38: 9 | I38: 11 | J38: 29 | K38: 9 | L38: 4 | M38: 8 | N38: 21 | O38: 5 | P38: 5 | Q38: 4 | R38: 14 | S38: 9 | T38: 7 | U38: 9 | V38: 25 | W38: 9 | X38: 14 | Y38: 17 | Z38: 40 | AA38: 9 | AB38: 15 | AC38: 13 | AD38: 37 | AE38: 9 | AF38: 14 | AG38: 20 | AH38: 43 | AI38: 9 | AJ38: 14 | AK38: 18 | AL38: 41 | AM38: 9 | AN38: 12 | AO38: 18 | AP38: 39 | AQ38: 9 | AR38: 16 | AS38: 19 | AT38: 44 | AU38: 9 | AV38: 17 | AW38: 20 | AX38: 46 | AY38: 3 | AZ38: 5 | BA38: 6 | BB38: 9 | BC38: 5 | BD38: 7 | BE38: 14 | BF38: 21 | BG38: 35 | BH38: 414 | BI38: 3 | BJ38: 6 | BK38: 8 | BL38: 17 | BM38: 3 | BN38: 5 | BO38: 3 | BP38: 11 | BQ38: ناجحة | BR38: ومنقولة للصف الثالث | BS38: 0 | CN38: 142
A39: 30 | B39: 1180 | C39: طالبة قانون مسائى 30 | D39: 9/2 | F39: 667 | G39: 9 | H39: 8 | I39: 11 | J39: 28 | K39: 9 | L39: 3 | M39: 8 | N39: 20 | O39: 5 | P39: 6 | Q39: 5 | R39: 16 | S39: 9 | T39: 11 | U39: 5 | V39: 25 | W39: 9 | X39: 8 | Y39: 8 | Z39: 25 | AA39: 9 | AB39: 15 | AC39: 13 | AD39: 37 | AE39: 9 | AF39: 10 | AG39: 20 | AH39: 39 | AI39: 9 | AJ39: 11 | AK39: 15 | AL39: 35 | AM39: 9 | AN39: 15 | AO39: 19 | AP39: 43 | AQ39: 9 | AR39: 16 | AS39: 19 | AT39: 44 | AU39: 9 | AV39: 19 | AW39: 20 | AX39: 48 | AY39: 3 | AZ39: 5 | BA39: 4 | BB39: 9 | BC39: 6 | BD39: 7 | BE39: 13 | BF39: 21 | BG39: 34 | BH39: 394 | BI39: 3 | BJ39: 6 | BK39: 8 | BL39: 17 | BM39: 3 | BN39: 4 | BO39: 3 | BP39: 10 | BQ39: ناجحة | BR39: ومنقولة للصف الثالث | BS39: 0 | CN39: 135
A40: 31 | B40: 1181 | C40: طالبة قانون مسائى 31 | D40: 8/2 | F40: 668 | G40: 9 | H40: 6 | I40: 11 | J40: 26 | K40: 9 | L40: 3 | M40: 8 | N40: 20 | O40: 5 | P40: 7 | Q40: 6 | R40: 18 | S40: 9 | T40: 9 | U40: 7 | V40: 25 | W40: 9 | X40: 9 | Y40: 18 | Z40: 36 | AA40: 9 | AB40: 18 | AC40: 13 | AD40: 40 | AE40: 9 | AF40: 10 | AG40: 20 | AH40: 39 | AI40: 9 | AJ40: 9 | AK40: 14 | AL40: 32 | AM40: 9 | AN40: 10 | AO40: 16 | AP40: 35 | AQ40: 9 | AR40: 13 | AS40: 19 | AT40: 41 | AU40: 9 | AV40: 18 | AW40: 19 | AX40: 46 | AY40: 3 | AZ40: 5 | BA40: 5 | BB40: 9 | BC40: 5 | BD40: 8 | BE40: 13 | BF40: 22 | BG40: 35 | BH40: 393 | BI40: 3 | BJ40: 5 | BK40: 8 | BL40: 16 | BM40: 3 | BN40: 5 | BO40: 2 | BP40: 10 | BQ40: ناجحة | BR40: ومنقولة للصف الثالث | BS40: 0 | CN40: 126
A41: 32 | B41: 1182 | C41: طالبة قانون مسائى 32 | D41: 8/2 | F41: 669 | G41: 9 | H41: 7 | I41: 12 | J41: 28 | K41: 9 | L41: 5 | M41: 8 | N41: 22 | O41: 5 | P41: 6 | Q41: 5 | R41: 16 | S41: 9 | T41: 11 | U41: 11 | V41: 31 | W41: 9 | X41: 16 | Y41: 14 | Z41: 39 | AA41: 9 | AB41: 17 | AC41: 14 | AD41: 40 | AE41: 9 | AF41: 12 | AG41: 19 | AH41: 40 | AI41: 9 | AJ41: 14 | AK41: 15 | AL41: 38 | AM41: 9 | AN41: 19 | AO41: 17 | AP41: 45 | AQ41: 9 | AR41: 16 | AS41: 19 | AT41: 44 | AU41: 9 | AV41: 18 | AW41: 19 | AX41: 46 | AY41: 3 | AZ41: 5 | BA41: 5 | BB41: 10 | BC41: 5 | BD41: 7 | BE41: 13 | BF41: 22 | BG41: 35 | BH41: 424 | BI41: 3 | BJ41: 4 | BK41: 7 | BL41: 14 | BM41: 3 | BN41: 5 | BO41: 2 | BP41: 10 | BQ41: ناجحة | BR41: ومنقولة للصف الثالث | BS41: 0 | CN41: 156
A42: 33 | B42: 1183 | C42: طالبة قانون مسائى 33 | D42: 8/2 | F42: 670 | G42: 9 | H42: 12 | I42: 11 | J42: =IF($C42="","",SUM(G42,H42,I42)) -> 32 | K42: 9 | L42: 4 | M42: 7 | N42: =IF($C42="","",SUM(K42,L42,M42)) -> 20 | O42: 5 | P42: 7 | Q42: 4 | R42: =IF($C42="","",SUM(O42,P42,Q42)) -> 16 | S42: 9 | T42: 4 | U42: 3 | V42: =IF($C42="","",SUM(S42,T42,U42)) -> 16 | W42: 9 | X42: 7 | Y42: 14 | Z42: =IF($C42="","",SUM(W42,X42,Y42)) -> 30 | AA42: 9 | AB42: 15 | AC42: 17 | AD42: =IF($C42="","",SUM(AA42:AC42)) -> 41 | AE42: 9 | AF42: 11 | AG42: 19 | AH42: =IF($C42="","",SUM(AE42,AF42,AG42)) -> 39 | AI42: 9 | AJ42: 9 | AK42: 14 | AL42: =IF($C42="","",SUM(AI42,AJ42,AK42)) -> 32 | AM42: 9 | AN42: 16 | AO42: 18 | AP42: =IF($C42="","",SUM(AM42,AN42,AO42)) -> 43 | AQ42: 9 | AR42: 17 | AS42: 19 | AT42: =IF($C42="","",SUM(AQ42,AR42,AS42)) -> 45 | AU42: 9 | AV42: 18 | AW42: 18 | AX42: =IF($C42="","",SUM(AU42,AV42,AW42)) -> 45 | AY42: 3 | AZ42: 5 | BA42: 5 | BB42: 8 | BC42: 5 | BD42: 7 | BE42: =IF($C42="","",SUM(AY42,BA42,BC42)) -> 13 | BF42: =IF($C42="","",SUM(AZ42,BB42,BD42)) -> 20 | BG42: =IF($C42="","",SUM(BE42,BF42)) -> 33 | BH42: =IF($C42="","",SUM(J42,N42,R42,V42,Z42,AD42,AH42,AL42,AP42,AT42,AX42,BG42)) -> 392 | BI42: 3 | BJ42: 5 | BK42: 7 | BL42: =IF($C42="","",SUM(BI42,BJ42,BK42)) -> 15 | BM42: 3 | BN42: 6 | BO42: 2 | BP42: =IF($C42="","",SUM(BM42,BN42,BO42)) -> 11 | BQ42: =IF($C42="","",IF(BS42=0,"ناجحة",IF(BS42<=2,"دورثان","راسبة"))) -> دورثان | BR42: =IF($C42="","",IF(BS42=0,"ومنقولة للصف الثالث",IF(BS42>0,"فى : "&CONCATENATE(BX42,BY42,BZ42,CA42,CB42,CC42,CD42,CE42,CF42,CG42,CH42,CI42,CJ42,CK42,CL42),CONCATENATE(BX42,BY42,BZ42,CA42,CB42,CC42,CD42,CE42,CF42,CG42,CH42,CI42,CJ42,CK42,CL42)))) -> فى : محاسبة - | BS42: =IF($C42="","",COUNTA($BX42:$CL42)-COUNTBLANK($BX42:$CL42)) -> 1 | BX42: =IF($C42="","",IF(OR(I42<$I$9,I42="غ",J42<$J$9),$BX$5&" - ","")) ->  | BY42: =IF($C42="","",IF(OR(M42<$M$9,M42="غ",N42<$N$9),$BY$5&" - ","")) ->  | BZ42: =IF($C42="","",IF(OR(Q42<$Q$9,Q42="غ",R42<$R$9),BZ$5&" - ","")) ->  | CA42: =IF($C42="","",IF(OR(U42<$U$9,U42="غ",V42<$V$9),CA$5&" - ","")) -> محاسبة - | CB42: =IF($C42="","",IF(OR(Y42<$Y$9,Y42="غ",Z42<$Z$9),CB$5&" - ","")) ->  | CC42: =IF($C42="","",IF(OR(AC42<$AC$9,AC42="غ",AD42<$AD$9),CC$5&" - ","")) ->  | CD42: =IF($C42="","",IF(OR(AG42<$AG$9,AG42="غ",AH42<$AH$9),CD$5&" - ","")) ->  | CE42: =IF($C42="","",IF(OR(AK42<$AK$9,AK42="غ",AL42<$AL$9),CE$5&" - ","")) ->  | CF42: =IF($C42="","",IF(OR(AO42<$AO$9,AO42="غ",AP42<$AP$9),CF$5&" - ","")) ->  | CG42: =IF($C42="","",IF(OR(AS42<$AS$9,AS42="غ",AT42<$AT$9),CG$5&" - ","")) ->  | CH42: =IF($C42="","",IF(OR(AW42<$AW$9,AW42="غ",AX42<$AX$9),CH$5&" - ","")) ->  | CI42: =IF($C42="","",IF(OR(BE42<$BE$9,BE42="غ",BF42<$BF$9,BF42="غ",BG42<$BG$9),CI$5&" - ","")) ->  | CJ42: =IF($C42="","",IF(OR(BK42<$BK$9,BK42="غ",BL42<$BL$9),CJ$5&" - ","")) ->  | CK42: =IF($C42="","",IF(OR(BO42<$BO$9,BO42="غ",BP42<$BP$9),CK$5&" - ","")) ->  | CL42: =IF($C42="","",IF(BH42<$BH$9,CL$5,"")) ->  | CN42: =IF($C42="","",SUM(H42,L42,P42,T42,X42,AB42,AF42,AJ42,AN42,AR42,AV42,BA42,BB42)) -> 133
A43: 34 | B43: 1184 | C43: طالبة قانون مسائى 34 | D43: 8/2 | F43: 671 | G43: 9 | H43: 8 | I43: 9 | J43: 26 | K43: 9 | L43: 4 | M43: 8 | N43: 21 | O43: 5 | P43: 5 | Q43: 9 | R43: 19 | S43: 9 | T43: 11 | U43: 5 | V43: 25 | W43: 9 | X43: 18 | Y43: 14 | Z43: 41 | AA43: 9 | AB43: 16 | AC43: 16 | AD43: 41 | AE43: 9 | AF43: 18 | AG43: 20 | AH43: 47 | AI43: 9 | AJ43: 10 | AK43: 16 | AL43: 35 | AM43: 9 | AN43: 16 | AO43: 18 | AP43: 43 | AQ43: 9 | AR43: 18 | AS43: 19 | AT43: 46 | AU43: 9 | AV43: 18 | AW43: 18 | AX43: 45 | AY43: 3 | AZ43: 5 | BA43: 5 | BB43: 8 | BC43: 5 | BD43: 10 | BE43: 13 | BF43: 23 | BG43: 36 | BH43: 425 | BI43: 3 | BJ43: 6 | BK43: 8 | BL43: 17 | BM43: 3 | BN43: 6 | BO43: 4 | BP43: 13 | BQ43: ناجحة | BR43: ومنقولة للصف الثالث | BS43: 0 | CN43: 155
A44: 35 | B44: 1185 | C44: طالبة قانون مسائى 35 | D44: 9/2 | F44: 672 | G44: 9 | H44: 12 | I44: 13 | J44: 34 | K44: 9 | L44: 7 | M44: 10 | N44: 26 | O44: 5 | P44: 6 | Q44: 5 | R44: 16 | S44: 9 | T44: 15 | U44: 17 | V44: 41 | W44: 9 | X44: 16 | Y44: 17 | Z44: 42 | AA44: 9 | AB44: 17 | AC44: 15 | AD44: 41 | AE44: 9 | AF44: 18 | AG44: 20 | AH44: 47 | AI44: 9 | AJ44: 19 | AK44: 16 | AL44: 44 | AM44: 9 | AN44: 16 | AO44: 18 | AP44: 43 | AQ44: 9 | AR44: 18 | AS44: 19 | AT44: 46 | AU44: 9 | AV44: 19 | AW44: 18 | AX44: 46 | AY44: 3 | AZ44: 5 | BA44: 8 | BB44: 8 | BC44: 6 | BD44: 8 | BE44: 17 | BF44: 21 | BG44: 38 | BH44: 464 | BI44: 3 | BJ44: 4 | BK44: 7 | BL44: 14 | BM44: 3 | BN44: 6 | BO44: 3 | BP44: 12 | BQ44: ناجحة | BR44: ومنقولة للصف الثالث | BS44: 0 | CN44: 179
A45: 36 | B45: 1186 | C45: طالبة قانون مسائى 36 | D45: 9/2 | F45: 673 | G45: 9 | H45: 9 | I45: 8 | J45: 26 | K45: 9 | L45: 6 | M45: 5 | N45: 20 | O45: 5 | P45: 6 | Q45: 4 | R45: 15 | S45: 9 | T45: 3 | U45: 0 | V45: 12 | W45: 9 | X45: 8 | Y45: 8 | Z45: 25 | AA45: 9 | AB45: 10 | AC45: 15 | AD45: 34 | AE45: 9 | AF45: 12 | AG45: 18 | AH45: 39 | AI45: 9 | AJ45: 9 | AK45: 14 | AL45: 32 | AM45: 9 | AN45: 11 | AO45: 14 | AP45: 34 | AQ45: 9 | AR45: 18 | AS45: 19 | AT45: 46 | AU45: 9 | AV45: 17 | AW45: 17 | AX45: 43 | AY45: 3 | AZ45: 5 | BA45: 5 | BB45: 6 | BC45: 6 | BD45: 5 | BE45: 14 | BF45: 16 | BG45: 30 | BH45: 356 | BI45: 3 | BJ45: 4 | BK45: 8 | BL45: 15 | BM45: 3 | BN45: 6 | BO45: 2 | BP45: 11 | BQ45: دورثان | BR45: فى : محاسبة - | BS45: 1 | CA45: محاسبة - | CN45: 120
A46: 37 | B46: 1187 | C46: طالبة قانون مسائى 37 | D46: 8/2 | F46: 674 | G46: 9 | H46: 8 | I46: 11 | J46: 28 | K46: 9 | L46: 4 | M46: 7 | N46: 20 | O46: 5 | P46: 5 | Q46: 5 | R46: 15 | S46: 9 | T46: 12 | U46: 7 | V46: 28 | W46: 9 | X46: 13 | Y46: 8 | Z46: 30 | AA46: 9 | AB46: 17 | AC46: 15 | AD46: 41 | AE46: 9 | AF46: 12 | AG46: 19 | AH46: 40 | AI46: 9 | AJ46: 11 | AK46: 16 | AL46: 36 | AM46: 9 | AN46: 16 | AO46: 19 | AP46: 44 | AQ46: 9 | AR46: 18 | AS46: 19 | AT46: 46 | AU46: 9 | AV46: 18 | AW46: 19 | AX46: 46 | AY46: 3 | AZ46: 5 | BA46: 6 | BB46: 9 | BC46: 6 | BD46: 6 | BE46: 15 | BF46: 20 | BG46: 35 | BH46: 409 | BI46: 3 | BJ46: 3 | BK46: 7 | BL46: 13 | BM46: 3 | BN46: 6 | BO46: 3 | BP46: 12 | BQ46: ناجحة | BR46: ومنقولة للصف الثالث | BS46: 0 | CN46: 149
A47: 38 | B47: 1188 | C47: طالبة قانون مسائى 38 | D47: 8/2 | F47: 601 | G47: 9 | H47: 12 | I47: 14 | J47: 35 | K47: 9 | L47: 5 | M47: 6 | N47: 20 | O47: 5 | P47: 8 | Q47: 4 | R47: 17 | S47: 9 | T47: 10 | U47: 11 | V47: 30 | W47: 9 | X47: 9 | Y47: 17 | Z47: 35 | AA47: 9 | AB47: 16 | AC47: 14 | AD47: 39 | AE47: 9 | AF47: 19 | AG47: 17 | AH47: 45 | AI47: 9 | AJ47: 20 | AK47: 18 | AL47: 47 | AM47: 9 | AN47: 18 | AO47: 19 | AP47: 46 | AQ47: 9 | AR47: 18 | AS47: 19 | AT47: 46 | AU47: 9 | AV47: 18 | AW47: 16 | AX47: 43 | AY47: 3 | AZ47: 5 | BA47: 8 | BB47: 8 | BC47: 6 | BD47: 11 | BE47: 17 | BF47: 24 | BG47: 41 | BH47: 444 | BI47: 3 | BJ47: 6 | BK47: 8 | BL47: 17 | BM47: 3 | BN47: 4 | BO47: 5 | BP47: 12 | BQ47: ناجحة | BR47: ومنقولة للصف الثالث | BS47: 0 | CN47: 169
A48: 39 | B48: 1189 | C48: طالبة قانون مسائى 39 | D48: 8/2 | F48: 602 | G48: 9 | H48: 8 | I48: 12 | J48: 29 | K48: 9 | L48: 2 | M48: 5 | N48: 16 | O48: 5 | P48: 8 | Q48: 4 | R48: 17 | S48: 9 | T48: 3 | U48: 1 | V48: 13 | W48: 9 | X48: 3 | Y48: 17 | Z48: 29 | AA48: 9 | AB48: 16 | AC48: 13 | AD48: 38 | AE48: 9 | AF48: 18 | AG48: 17 | AH48: 44 | AI48: 9 | AJ48: 20 | AK48: 16 | AL48: 45 | AM48: 9 | AN48: 17 | AO48: 18 | AP48: 44 | AQ48: 9 | AR48: 18 | AS48: 19 | AT48: 46 | AU48: 9 | AV48: 13 | AW48: 15 | AX48: 37 | AY48: 3 | AZ48: 5 | BA48: 2 | BB48: 9 | BC48: 5 | BD48: 11 | BE48: 10 | BF48: 25 | BG48: 35 | BH48: 393 | BI48: 3 | BJ48: 5 | BK48: 8 | BL48: 16 | BM48: 3 | BN48: 7 | BO48: 5 | BP48: 15 | BQ48: دورثان | BR48: فى : انجليزى - محاسبة - | BS48: 2 | BY48: انجليزى - | CA48: محاسبة - | CN48: 137
A49: 40 | B49: 1190 | C49: طالبة قانون مسائى 40 | D49: 9/2 | F49: 603 | G49: 9 | H49: 7 | I49: 9 | J49: 25 | K49: 9 | L49: 3 | M49: 0 | N49: 12 | O49: 5 | P49: 9 | Q49: 5 | R49: 19 | S49: 9 | T49: 2 | U49: 0 | V49: 11 | W49: 9 | X49: 9 | Y49: 7 | Z49: 25 | AA49: 9 | AB49: 18 | AC49: 12 | AD49: 39 | AE49: 9 | AF49: 19 | AG49: 18 | AH49: 46 | AI49: 9 | AJ49: 17 | AK49: 12 | AL49: 38 | AM49: 9 | AN49: 18 | AO49: 17 | AP49: 44 | AQ49: 9 | AR49: 17 | AS49: 19 | AT49: 45 | AU49: 9 | AV49: 17 | AW49: 15 | AX49: 41 | AY49: 3 | AZ49: 5 | BA49: 4 | BB49: 9 | BC49: 7 | BD49: 9 | BE49: 14 | BF49: 23 | BG49: 37 | BH49: 382 | BI49: 3 | BJ49: 7 | BK49: 7 | BL49: 17 | BM49: 3 | BN49: 6 | BO49: 2 | BP49: 11 | BQ49: دورثان | BR49: فى : انجليزى - محاسبة - | BS49: 2 | BY49: انجليزى - | CA49: محاسبة - | CN49: 149
A50: 41 | B50: 1191 | C50: طالبة قانون مسائى 41 | D50: 8/2 | F50: 604 | G50: 9 | H50: 10 | I50: 11 | J50: 30 | K50: 9 | L50: 5 | M50: 6 | N50: 20 | O50: 5 | P50: 10 | Q50: 4 | R50: 19 | S50: 9 | T50: 10 | U50: 15 | V50: 34 | W50: 9 | X50: 9 | Y50: 18 | Z50: 36 | AA50: 9 | AB50: 15 | AC50: 13 | AD50: 37 | AE50: 9 | AF50: 19 | AG50: 19 | AH50: 47 | AI50: 9 | AJ50: 20 | AK50: 15 | AL50: 44 | AM50: 9 | AN50: 18 | AO50: 18 | AP50: 45 | AQ50: 9 | AR50: 18 | AS50: 19 | AT50: 46 | AU50: 9 | AV50: 20 | AW50: 17 | AX50: 46 | AY50: 3 | AZ50: 5 | BA50: 7 | BB50: 10 | BC50: 4 | BD50: 12 | BE50: 14 | BF50: 27 | BG50: 41 | BH50: 445 | BI50: 3 | BJ50: 8 | BK50: 8 | BL50: 19 | BM50: 3 | BN50: 6 | BO50: 3 | BP50: 12 | BQ50: ناجحة | BR50: ومنقولة للصف الثالث | BS50: 0 | CN50: 171
A51: 42 | B51: 1192 | C51: طالبة قانون مسائى 42 | D51: 8/2 | F51: 605 | G51: 9 | H51: 13 | I51: 12 | J51: 34 | K51: 9 | L51: 7 | M51: 8 | N51: 24 | O51: 5 | P51: 10 | Q51: 4 | R51: 19 | S51: 9 | T51: 16 | U51: 20 | V51: 45 | W51: 9 | X51: 17 | Y51: 18 | Z51: 44 | AA51: 9 | AB51: 16 | AC51: 13 | AD51: 38 | AE51: 9 | AF51: 19 | AG51: 20 | AH51: 48 | AI51: 9 | AJ51: 20 | AK51: 17 | AL51: 46 | AM51: 9 | AN51: 18 | AO51: 18 | AP51: 45 | AQ51: 9 | AR51: 18 | AS51: 19 | AT51: 46 | AU51: 9 | AV51: 20 | AW51: 19 | AX51: 48 | AY51: 3 | AZ51: 5 | BA51: 8 | BB51: 10 | BC51: 4 | BD51: 12 | BE51: 15 | BF51: 27 | BG51: 42 | BH51: 479 | BI51: 3 | BJ51: 8 | BK51: 8 | BL51: 19 | BM51: 3 | BN51: 7 | BO51: 5 | BP51: 15 | BQ51: ناجحة | BR51: ومنقولة للصف الثالث | BS51: 0 | CN51: 192
A52: 43 | B52: 1193 | C52: طالبة قانون مسائى 43 | D52: 8/2 | F52: 606 | G52: 9 | H52: 10 | I52: 11 | J52: 30 | K52: 8 | L52: 7 | M52: 5 | N52: 20 | O52: 5 | P52: 10 | Q52: 5 | R52: 20 | S52: 9 | T52: 15 | U52: 16 | V52: 40 | W52: 9 | X52: 18 | Y52: 20 | Z52: 47 | AA52: 9 | AB52: 16 | AC52: 12 | AD52: 37 | AE52: 9 | AF52: 19 | AG52: 20 | AH52: 48 | AI52: 9 | AJ52: 20 | AK52: 16 | AL52: 45 | AM52: 9 | AN52: 16 | AO52: 17 | AP52: 42 | AQ52: 9 | AR52: 18 | AS52: 19 | AT52: 46 | AU52: 9 | AV52: 19 | AW52: 17 | AX52: 45 | AY52: 3 | AZ52: 5 | BA52: 6 | BB52: 10 | BC52: 4 | BD52: 12 | BE52: 13 | BF52: 27 | BG52: 40 | BH52: 460 | BI52: 3 | BJ52: 7 | BK52: 8 | BL52: 18 | BM52: 3 | BN52: 6 | BO52: 4 | BP52: 13 | BQ52: ناجحة | BR52: ومنقولة للصف الثالث | BS52: 0 | CN52: 184
A53: 44 | B53: 1194 | C53: طالبة قانون مسائى 44 | D53: 9/2 | F53: 607 | G53: 9 | H53: 8 | I53: 10 | J53: 27 | K53: 8 | L53: 6 | M53: 6 | N53: 20 | O53: 5 | P53: 10 | Q53: 6 | R53: 21 | S53: 9 | T53: 12 | U53: 12 | V53: 33 | W53: 9 | X53: 12 | Y53: 18 | Z53: 39 | AA53: 9 | AB53: 17 | AC53: 10 | AD53: 36 | AE53: 9 | AF53: 18 | AG53: 20 | AH53: 47 | AI53: 9 | AJ53: 20 | AK53: 16 | AL53: 45 | AM53: 9 | AN53: 16 | AO53: 18 | AP53: 43 | AQ53: 9 | AR53: 17 | AS53: 19 | AT53: 45 | AU53: 9 | AV53: 15 | AW53: 14 | AX53: 38 | AY53: 3 | AZ53: 5 | BA53: 5 | BB53: 8 | BC53: 5 | BD53: 12 | BE53: 13 | BF53: 25 | BG53: 38 | BH53: 432 | BI53: 3 | BJ53: 7 | BK53: 7 | BL53: 17 | BM53: 3 | BN53: 6 | BO53: 4 | BP53: 13 | BQ53: ناجحة | BR53: ومنقولة للصف الثالث | BS53: 0 | CN53: 164
A54: 45 | B54: 1195 | C54: طالبة قانون مسائى 45 | D54: 8/2 | F54: 608 | G54: غ | H54: غ | I54: غ | J54: 0 | K54: غ | L54: غ | M54: ع | N54: 0 | O54: غ | P54: غ | Q54: غ | R54: 0 | S54: غ | T54: غ | U54: غ | V54: 0 | W54: غ | X54: غ | Y54: غ | Z54: 0 | AA54: غ | AB54: غ | AC54: غ | AD54: 0 | AE54: غ | AF54: غ | AG54: غ | AH54: 0 | AI54: غ | AJ54: غ | AK54: غ | AL54: 0 | AM54: غ | AN54: غ | AO54: غ | AP54: 0 | AQ54: غ | AR54: غ | AS54: غ | AT54: 0 | AU54: غ | AV54: غ | AW54: غ | AX54: 0 | AY54: غ | AZ54: غ | BA54: غ | BB54: غ | BC54: غ | BD54: غ | BE54: 0 | BF54: 0 | BG54: 0 | BH54: 0 | BI54: غ | BJ54: غ | BK54: غ | BL54: 0 | BM54: غ | BN54: غ | BO54: غ | BP54: 0 | BQ54: راسبة | BR54: فى : عربى - انجليزى - فرنسى - محاسبة - احصاء - اعمال وساطة - قانون تجارى - قانون مدنى - قانون عقوبات - قانون مرافعات - علم نفس - حاسب - مواطنة - دين - مجموع | BS54: 15 | BX54: عربى - | BY54: انجليزى - | BZ54: فرنسى - | CA54: محاسبة - | CB54: احصاء - | CC54: اعمال وساطة - | CD54: قانون تجارى - | CE54: قانون مدنى - | CF54: قانون عقوبات - | CG54: قانون مرافعات - | CH54: علم نفس - | CI54: حاسب - | CJ54: مواطنة - | CK54: دين - | CL54: مجموع | CN54: 0
A55: 46 | B55: 1196 | C55: طالبة قانون مسائى 46 | D55: 8/2 | F55: 609 | G55: 9 | H55: 13 | I55: 14 | J55: 36 | K55: 8 | L55: 7 | M55: 5 | N55: 20 | O55: 5 | P55: 10 | Q55: 5 | R55: 20 | S55: 9 | T55: 13 | U55: 13 | V55: 35 | W55: 9 | X55: 14 | Y55: 17 | Z55: 40 | AA55: 9 | AB55: 10 | AC55: 14 | AD55: 33 | AE55: 9 | AF55: 16 | AG55: 14 | AH55: 39 | AI55: 9 | AJ55: 17 | AK55: 14 | AL55: 40 | AM55: 9 | AN55: 16 | AO55: 16 | AP55: 41 | AQ55: 9 | AR55: 16 | AS55: 19 | AT55: 44 | AU55: 9 | AV55: 15 | AW55: 15 | AX55: 39 | AY55: 3 | AZ55: 5 | BA55: 4 | BB55: 9 | BC55: 5 | BD55: 12 | BE55: 12 | BF55: 26 | BG55: 38 | BH55: 425 | BI55: 3 | BJ55: 6 | BK55: 7 | BL55: 16 | BM55: 3 | BN55: 7 | BO55: 4 | BP55: 14 | BQ55: ناجحة | BR55: ومنقولة للصف الثالث | BS55: 0 | CN55: 160
A56: 47 | B56: 1197 | C56: طالبة قانون مسائى 47 | D56: 8/2 | F56: 610 | G56: 9 | H56: 10 | I56: 10 | J56: 29 | K56: 9 | L56: 6 | M56: 5 | N56: 20 | O56: 5 | P56: 11 | Q56: 5 | R56: 21 | S56: 9 | T56: 7 | U56: 9 | V56: 25 | W56: 9 | X56: 5 | Y56: 19 | Z56: 33 | AA56: 9 | AB56: 17 | AC56: 11 | AD56: 37 | AE56: 9 | AF56: 19 | AG56: 18 | AH56: 46 | AI56: 9 | AJ56: 20 | AK56: 16 | AL56: 45 | AM56: 9 | AN56: 18 | AO56: 16 | AP56: 43 | AQ56: 9 | AR56: 14 | AS56: 19 | AT56: 42 | AU56: 9 | AV56: 15 | AW56: 16 | AX56: 40 | AY56: 3 | AZ56: 5 | BA56: 5 | BB56: 9 | BC56: 4 | BD56: 12 | BE56: 12 | BF56: 26 | BG56: 38 | BH56: 419 | BI56: 3 | BJ56: 5 | BK56: 8 | BL56: 16 | BM56: 3 | BN56: 8 | BO56: 4 | BP56: 15 | BQ56: ناجحة | BR56: ومنقولة للصف الثالث | BS56: 0 | CN56: 156
A57: 48 | B57: 1198 | C57: طالبة قانون مسائى 48 | D57: 8/2 | F57: 611 | G57: 9 | H57: 13 | I57: 13 | J57: 35 | K57: 9 | L57: 13 | M57: 11 | N57: 33 | O57: 5 | P57: 10 | Q57: 5 | R57: 20 | S57: 9 | T57: 8 | U57: 11 | V57: 28 | W57: 9 | X57: 7 | Y57: 19 | Z57: 35 | AA57: 9 | AB57: 18 | AC57: 15 | AD57: 42 | AE57: 9 | AF57: 16 | AG57: 20 | AH57: 45 | AI57: 9 | AJ57: 20 | AK57: 17 | AL57: 46 | AM57: 9 | AN57: 18 | AO57: 19 | AP57: 46 | AQ57: 9 | AR57: 18 | AS57: 19 | AT57: 46 | AU57: 9 | AV57: 19 | AW57: 19 | AX57: 47 | AY57: 3 | AZ57: 5 | BA57: 5 | BB57: 10 | BC57: 4 | BD57: 12 | BE57: 12 | BF57: 27 | BG57: 39 | BH57: 462 | BI57: 3 | BJ57: 7 | BK57: 8 | BL57: 18 | BM57: 3 | BN57: 5 | BO57: 4 | BP57: 12 | BQ57: ناجحة | BR57: ومنقولة للصف الثالث | BS57: 0 | CN57: 175
A58: 49 | B58: 1199 | C58: طالبة قانون مسائى 49 | D58: 8/2 | F58: 612 | G58: 9 | H58: 10 | I58: 10 | J58: 29 | K58: 9 | L58: 8 | M58: 5 | N58: 22 | O58: 5 | P58: 10 | Q58: 5 | R58: 20 | S58: 9 | T58: 13 | U58: 12 | V58: 34 | W58: 9 | X58: 4 | Y58: 12 | Z58: 25 | AA58: 9 | AB58: 14 | AC58: 12 | AD58: 35 | AE58: 9 | AF58: 17 | AG58: 20 | AH58: 46 | AI58: 9 | AJ58: 19 | AK58: 16 | AL58: 44 | AM58: 9 | AN58: 18 | AO58: 19 | AP58: 46 | AQ58: 9 | AR58: 18 | AS58: 19 | AT58: 46 | AU58: 9 | AV58: 18 | AW58: 19 | AX58: 46 | AY58: 3 | AZ58: 5 | BA58: 8 | BB58: 10 | BC58: 7 | BD58: 11 | BE58: 18 | BF58: 26 | BG58: 44 | BH58: 437 | BI58: 3 | BJ58: 8 | BK58: 7 | BL58: 18 | BM58: 3 | BN58: 7 | BO58: 5 | BP58: 15 | BQ58: ناجحة | BR58: ومنقولة للصف الثالث | BS58: 0 | CN58: 167
A59: 50 | B59: 1200 | C59: طالبة قانون مسائى 50 | D59: 9/2 | F59: 613 | G59: 9 | H59: 10 | I59: 6 | J59: 25 | K59: 9 | L59: 6 | M59: 5 | N59: 20 | O59: 5 | P59: 8 | Q59: 5 | R59: 18 | S59: 9 | T59: 3 | U59: 4 | V59: 16 | W59: 9 | X59: 1 | Y59: 15 | Z59: 25 | AA59: 9 | AB59: 17 | AC59: 9 | AD59: 35 | AE59: 9 | AF59: 15 | AG59: 17 | AH59: 41 | AI59: 9 | AJ59: 12 | AK59: 14 | AL59: 35 | AM59: 9 | AN59: 11 | AO59: 19 | AP59: 39 | AQ59: 9 | AR59: 14 | AS59: 19 | AT59: 42 | AU59: 9 | AV59: 11 | AW59: 13 | AX59: 33 | AY59: 3 | AZ59: 5 | BA59: 6 | BB59: 6 | BC59: 4 | BD59: 11 | BE59: 13 | BF59: 22 | BG59: 35 | BH59: 364 | BI59: 3 | BJ59: 7 | BK59: 8 | BL59: 18 | BM59: 3 | BN59: 4 | BO59: 3 | BP59: 10 | BQ59: دورثان | BR59: فى : محاسبة - | BS59: 1 | CA59: محاسبة - | CN59: 120
A60: 51 | B60: 1201 | C60: طالبة قانون مسائى 51 | D60: 9/2 | F60: 614 | G60: 9 | H60: 7 | I60: 10 | J60: 26 | K60: 9 | L60: 6 | M60: 5 | N60: 20 | O60: 5 | P60: 11 | Q60: 6 | R60: 22 | S60: 9 | T60: 10 | U60: 6 | V60: 25 | W60: 9 | X60: 7 | Y60: 18 | Z60: 34 | AA60: 9 | AB60: 16 | AC60: 14 | AD60: 39 | AE60: 9 | AF60: 20 | AG60: 19 | AH60: 48 | AI60: 9 | AJ60: 20 | AK60: 18 | AL60: 47 | AM60: 9 | AN60: 17 | AO60: 19 | AP60: 45 | AQ60: 9 | AR60: 17 | AS60: 19 | AT60: 45 | AU60: 9 | AV60: 16 | AW60: 15 | AX60: 40 | AY60: 3 | AZ60: 5 | BA60: 8 | BB60: 8 | BC60: 6 | BD60: 11 | BE60: 17 | BF60: 24 | BG60: 41 | BH60: 432 | BI60: 3 | BJ60: 6 | BK60: 8 | BL60: 17 | BM60: 3 | BN60: 5 | BO60: 5 | BP60: 13 | BQ60: ناجحة | BR60: ومنقولة للصف الثالث | BS60: 0 | CN60: 163
A61: 52 | B61: 1202 | C61: طالبة قانون مسائى 52 | D61: 9/2 | F61: 615 | G61: 9 | H61: 10 | I61: 10 | J61: 29 | K61: 9 | L61: 6 | M61: 5 | N61: 20 | O61: 5 | P61: 7 | Q61: 6 | R61: 18 | S61: 9 | T61: 11 | U61: 5 | V61: 25 | W61: 9 | X61: 4 | Y61: 18 | Z61: 31 | AA61: 9 | AB61: 17 | AC61: 14 | AD61: 40 | AE61: 9 | AF61: 20 | AG61: 16 | AH61: 45 | AI61: 9 | AJ61: 20 | AK61: 20 | AL61: 49 | AM61: 9 | AN61: 17 | AO61: 19 | AP61: 45 | AQ61: 9 | AR61: 17 | AS61: 19 | AT61: 45 | AU61: 9 | AV61: 17 | AW61: 18 | AX61: 44 | AY61: 3 | AZ61: 5 | BA61: 8 | BB61: 5 | BC61: 5 | BD61: 10 | BE61: 16 | BF61: 20 | BG61: 36 | BH61: 427 | BI61: 3 | BJ61: 6 | BK61: 8 | BL61: 17 | BM61: 3 | BN61: 5 | BO61: 4 | BP61: 12 | BQ61: ناجحة | BR61: ومنقولة للصف الثالث | BS61: 0 | CN61: 159
A62: 53 | B62: 1203 | C62: طالبة قانون مسائى 53 | D62: 8/2 | F62: 616 | G62: 9 | H62: 12 | I62: 9 | J62: 30 | K62: 9 | L62: 5 | M62: 6 | N62: 20 | O62: 5 | P62: 11 | Q62: 5 | R62: 21 | S62: 9 | T62: 10 | U62: 6 | V62: 25 | W62: 9 | X62: 11 | Y62: 16 | Z62: 36 | AA62: 9 | AB62: 17 | AC62: 11 | AD62: 37 | AE62: 9 | AF62: 16 | AG62: 19 | AH62: 44 | AI62: 9 | AJ62: 13 | AK62: 19 | AL62: 41 | AM62: 9 | AN62: 18 | AO62: 19 | AP62: 46 | AQ62: 9 | AR62: 18 | AS62: 19 | AT62: 46 | AU62: 9 | AV62: 19 | AW62: 17 | AX62: 45 | AY62: 3 | AZ62: 5 | BA62: 6 | BB62: 8 | BC62: 4 | BD62: 12 | BE62: 13 | BF62: 25 | BG62: 38 | BH62: 429 | BI62: 3 | BJ62: 5 | BK62: 8 | BL62: 16 | BM62: 3 | BN62: 4 | BO62: 3 | BP62: 10 | BQ62: ناجحة | BR62: ومنقولة للصف الثالث | BS62: 0 | CN62: 164
A63: 54 | B63: 1204 | C63: طالبة قانون مسائى 54 | D63: 9/2 | F63: 617 | G63: 9 | H63: 10 | I63: 10 | J63: 29 | K63: 8 | L63: 7 | M63: 5 | N63: 20 | O63: 5 | P63: 10 | Q63: 5 | R63: 20 | S63: 9 | T63: 13 | U63: 18 | V63: 40 | W63: 9 | X63: 18 | Y63: 20 | Z63: 47 | AA63: 9 | AB63: 16 | AC63: 13 | AD63: 38 | AE63: 9 | AF63: 17 | AG63: 20 | AH63: 46 | AI63: 9 | AJ63: 17 | AK63: 19 | AL63: 45 | AM63: 9 | AN63: 17 | AO63: 18 | AP63: 44 | AQ63: 9 | AR63: 16 | AS63: 19 | AT63: 44 | AU63: 9 | AV63: 19 | AW63: 18 | AX63: 46 | AY63: 3 | AZ63: 5 | BA63: 5 | BB63: 9 | BC63: 5 | BD63: 12 | BE63: 13 | BF63: 26 | BG63: 39 | BH63: 458 | BI63: 3 | BJ63: 7 | BK63: 8 | BL63: 18 | BM63: 3 | BN63: 6 | BO63: 4 | BP63: 13 | BQ63: ناجحة | BR63: ومنقولة للصف الثالث | BS63: 0 | CN63: 174
A64: 55 | B64: 1205 | C64: طالبة قانون مسائى 55 | D64: 8/2 | F64: 618 | G64: 9 | H64: 8 | I64: 8 | J64: 25 | K64: 9 | L64: 6 | M64: 6 | N64: 21 | O64: 5 | P64: 9 | Q64: 5 | R64: 19 | S64: 9 | T64: 10 | U64: 16 | V64: 35 | W64: 9 | X64: 11 | Y64: 18 | Z64: 38 | AA64: 9 | AB64: 18 | AC64: 15 | AD64: 42 | AE64: 9 | AF64: 17 | AG64: 20 | AH64: 46 | AI64: 9 | AJ64: 20 | AK64: 17 | AL64: 46 | AM64: 9 | AN64: 17 | AO64: 20 | AP64: 46 | AQ64: 9 | AR64: 16 | AS64: 19 | AT64: 44 | AU64: 9 | AV64: 15 | AW64: 20 | AX64: 44 | AY64: 3 | AZ64: 5 | BA64: 5 | BB64: 1 | BC64: 5 | BD64: 12 | BE64: 13 | BF64: 18 | BG64: 31 | BH64: 437 | BI64: 3 | BJ64: 8 | BK64: 8 | BL64: 19 | BM64: 3 | BN64: 5 | BO64: 4 | BP64: 12 | BQ64: ناجحة | BR64: ومنقولة للصف الثالث | BS64: 0 | CN64: 153
A65: 56 | B65: 1206 | C65: طالبة قانون مسائى 56 | D65: 9/2 | F65: 619 | G65: 9 | H65: 8 | I65: 8 | J65: 25 | K65: 9 | L65: 4 | M65: 3 | N65: 16 | O65: 5 | P65: 10 | Q65: 4 | R65: 19 | S65: 9 | T65: 5 | U65: 4 | V65: 18 | W65: 9 | X65: 3 | Y65: 16 | Z65: 28 | AA65: 9 | AB65: 14 | AC65: 12 | AD65: 35 | AE65: 9 | AF65: 17 | AG65: 17 | AH65: 43 | AI65: 9 | AJ65: 20 | AK65: 16 | AL65: 45 | AM65: 9 | AN65: 16 | AO65: 19 | AP65: 44 | AQ65: 9 | AR65: 15 | AS65: 19 | AT65: 43 | AU65: 9 | AV65: 13 | AW65: 13 | AX65: 35 | AY65: 3 | AZ65: 5 | BA65: 5 | BB65: 9 | BC65: 4 | BD65: 12 | BE65: 12 | BF65: 26 | BG65: 38 | BH65: 389 | BI65: 3 | BJ65: 4 | BK65: 8 | BL65: 15 | BM65: 3 | BN65: 6 | BO65: 3 | BP65: 12 | BQ65: دورثان | BR65: فى : انجليزى - محاسبة - | BS65: 2 | BY65: انجليزى - | CA65: محاسبة - | CN65: 139
A66: 57 | B66: 1207 | C66: طالبة قانون مسائى 57 | D66: 8/2 | F66: 620 | G66: 9 | H66: غ | I66: غ | J66: 9 | K66: 9 | L66: غ | M66: غ | N66: 9 | O66: 5 | P66: غ | Q66: غ | R66: 5 | S66: 9 | T66: غ | U66: غ | V66: 9 | W66: 9 | X66: غ | Y66: غ | Z66: 9 | AA66: 9 | AB66: غ | AC66: غ | AD66: 9 | AE66: 9 | AF66: غ | AG66: غ | AH66: 9 | AI66: 9 | AJ66: غ | AK66: غ | AL66: 9 | AM66: 9 | AN66: غ | AO66: غ | AP66: 9 | AQ66: 9 | AR66: غ | AS66: غ | AT66: 9 | AU66: 9 | AV66: غ | AW66: غ | AX66: 9 | AY66: 3 | AZ66: 5 | BA66: غ | BB66: غ | BC66: غ | BD66: غ | BE66: 3 | BF66: 5 | BG66: 8 | BH66: 103 | BI66: 3 | BJ66: غ | BK66: غ | BL66: 3 | BM66: 3 | BN66: غ | BO66: غ | BP66: 3 | BQ66: راسبة | BR66: فى : عربى - انجليزى - فرنسى - محاسبة - احصاء - اعمال وساطة - قانون تجارى - قانون مدنى - قانون عقوبات - قانون مرافعات - علم نفس - حاسب - مواطنة - دين - مجموع | BS66: 15 | BX66: عربى - | BY66: انجليزى - | BZ66: فرنسى - | CA66: محاسبة - | CB66: احصاء - | CC66: اعمال وساطة - | CD66: قانون تجارى - | CE66: قانون مدنى - | CF66: قانون عقوبات - | CG66: قانون مرافعات - | CH66: علم نفس - | CI66: حاسب - | CJ66: مواطنة - | CK66: دين - | CL66: مجموع | CN66: 0
A67: 58 | B67: 1208 | C67: طالبة قانون مسائى 58 | D67: 9/2 | F67: 621 | G67: 9 | H67: 10 | I67: 13 | J67: 32 | K67: 9 | L67: 8 | M67: 5 | N67: 22 | O67: 5 | P67: 8 | Q67: 5 | R67: 18 | S67: 9 | T67: 13 | U67: 7 | V67: 29 | W67: 9 | X67: 5 | Y67: 14 | Z67: 28 | AA67: 9 | AB67: 16 | AC67: 14 | AD67: 39 | AE67: 9 | AF67: 13 | AG67: 15 | AH67: 37 | AI67: 9 | AJ67: 13 | AK67: 17 | AL67: 39 | AM67: 9 | AN67: 18 | AO67: 13 | AP67: 40 | AQ67: 9 | AR67: 14 | AS67: 18 | AT67: 41 | AU67: 9 | AV67: 20 | AW67: 16 | AX67: 45 | AY67: 3 | AZ67: 5 | BA67: 5 | BB67: 10 | BC67: 5 | BD67: 5 | BE67: 13 | BF67: 20 | BG67: 33 | BH67: 403 | BI67: 3 | BJ67: 6 | BK67: 7 | BL67: 16 | BM67: 3 | BN67: 6 | BO67: 5 | BP67: 14 | BQ67: ناجحة | BR67: ومنقولة للصف الثالث | BS67: 0 | CN67: 153
A68: 59 | B68: 1209 | C68: طالبة قانون مسائى 59 | D68: 8/2 | F68: 622 | G68: 9 | H68: 7 | I68: 11 | J68: 27 | K68: 9 | L68: 6 | M68: 5 | N68: 20 | O68: 5 | P68: 5 | Q68: 5 | R68: 15 | S68: 9 | T68: 11 | U68: 6 | V68: 26 | W68: 9 | X68: 5 | Y68: 14 | Z68: 28 | AA68: 9 | AB68: 17 | AC68: 12 | AD68: 38 | AE68: 9 | AF68: 11 | AG68: 14 | AH68: 34 | AI68: 9 | AJ68: 20 | AK68: 18 | AL68: 47 | AM68: 9 | AN68: 17 | AO68: 13 | AP68: 39 | AQ68: 9 | AR68: 17 | AS68: 19 | AT68: 45 | AU68: 9 | AV68: 20 | AW68: 14 | AX68: 43 | AY68: 3 | AZ68: 5 | BA68: 4 | BB68: 9 | BC68: 6 | BD68: 6 | BE68: 13 | BF68: 20 | BG68: 33 | BH68: 395 | BI68: 3 | BJ68: 6 | BK68: 8 | BL68: 17 | BM68: 3 | BN68: 5 | BO68: 3 | BP68: 11 | BQ68: ناجحة | BR68: ومنقولة للصف الثالث | BS68: 0 | CN68: 149
A69: 60 | B69: 1210 | C69: طالبة قانون مسائى 60 | D69: 9/2 | F69: 623 | G69: 9 | H69: 11 | I69: 11 | J69: 31 | K69: 9 | L69: 3 | M69: 8 | N69: 20 | O69: 5 | P69: 6 | Q69: 5 | R69: 16 | S69: 9 | T69: 10 | U69: 14 | V69: 33 | W69: 9 | X69: 14 | Y69: 18 | Z69: 41 | AA69: 9 | AB69: 15 | AC69: 11 | AD69: 35 | AE69: 9 | AF69: 12 | AG69: 15 | AH69: 36 | AI69: 9 | AJ69: 10 | AK69: 11 | AL69: 30 | AM69: 9 | AN69: 16 | AO69: 13 | AP69: 38 | AQ69: 9 | AR69: 14 | AS69: 18 | AT69: 41 | AU69: 9 | AV69: 17 | AW69: 12 | AX69: 38 | AY69: 3 | AZ69: 5 | BA69: 6 | BB69: 5 | BC69: 6 | BD69: 6 | BE69: 15 | BF69: 16 | BG69: 31 | BH69: 390 | BI69: 3 | BJ69: 6 | BK69: 7 | BL69: 16 | BM69: 3 | BN69: 6 | BO69: 8 | BP69: 17 | BQ69: ناجحة | BR69: ومنقولة للصف الثالث | BS69: 0 | CN69: 139
A70: 61 | B70: 1211 | C70: طالبة قانون مسائى 61 | D70: 8/2 | F70: 624 | G70: 9 | H70: 11 | I70: 10 | J70: 30 | K70: 9 | L70: 4 | M70: 2 | N70: 15 | O70: 5 | P70: 3 | Q70: 5 | R70: 13 | S70: 9 | T70: 5 | U70: 4 | V70: 18 | W70: 9 | X70: 4 | Y70: 12 | Z70: 25 | AA70: 9 | AB70: 18 | AC70: 11 | AD70: 38 | AE70: 9 | AF70: 12 | AG70: 11 | AH70: 32 | AI70: 9 | AJ70: 14 | AK70: 17 | AL70: 40 | AM70: 9 | AN70: 16 | AO70: 11 | AP70: 36 | AQ70: 9 | AR70: 12 | AS70: 17 | AT70: 38 | AU70: 9 | AV70: 20 | AW70: 17 | AX70: 46 | AY70: 3 | AZ70: 5 | BA70: 5 | BB70: 6 | BC70: 5 | BD70: 4 | BE70: 13 | BF70: 15 | BG70: 28 | BH70: 359 | BI70: 3 | BJ70: 6 | BK70: 5 | BL70: 14 | BM70: 3 | BN70: 8 | BO70: 2 | BP70: 13 | BQ70: دورثان | BR70: فى : انجليزى - محاسبة - | BS70: 2 | BY70: انجليزى - | CA70: محاسبة - | CN70: 130
A71: 62 | B71: 1212 | C71: طالبة قانون مسائى 62 | D71: 9/2 | F71: 625 | G71: 9 | H71: 11 | I71: 12 | J71: 32 | K71: 9 | L71: 6 | M71: 5 | N71: 20 | O71: 5 | P71: 5 | Q71: 4 | R71: 14 | S71: 9 | T71: 11 | U71: 11 | V71: 31 | W71: 9 | X71: 13 | Y71: 18 | Z71: 40 | AA71: 9 | AB71: 16 | AC71: 15 | AD71: 40 | AE71: 9 | AF71: 18 | AG71: 16 | AH71: 43 | AI71: 9 | AJ71: 18 | AK71: 18 | AL71: 45 | AM71: 9 | AN71: 18 | AO71: 18 | AP71: 45 | AQ71: 9 | AR71: 18 | AS71: 18 | AT71: 45 | AU71: 9 | AV71: 18 | AW71: 14 | AX71: 41 | AY71: 3 | AZ71: 5 | BA71: 7 | BB71: 6 | BC71: 6 | BD71: 6 | BE71: 16 | BF71: 17 | BG71: 33 | BH71: 429 | BI71: 3 | BJ71: 7 | BK71: 7 | BL71: 17 | BM71: 3 | BN71: 7 | BO71: 4 | BP71: 14 | BQ71: ناجحة | BR71: ومنقولة للصف الثالث | BS71: 0 | CN71: 165
A72: 63 | B72: 1213 | C72: طالبة قانون مسائى 63 | D72: 8/2 | F72: 626 | G72: 9 | H72: 11 | I72: 11 | J72: 31 | K72: 9 | L72: 4 | M72: 6 | N72: 19 | O72: 5 | P72: 4 | Q72: 6 | R72: 15 | S72: 9 | T72: 8 | U72: 7 | V72: 24 | W72: 9 | X72: 4 | Y72: 19 | Z72: 32 | AA72: 9 | AB72: 15 | AC72: 15 | AD72: 39 | AE72: 9 | AF72: 20 | AG72: 17 | AH72: 46 | AI72: 9 | AJ72: 18 | AK72: 18 | AL72: 45 | AM72: 9 | AN72: 17 | AO72: 18 | AP72: 44 | AQ72: 9 | AR72: 18 | AS72: 19 | AT72: 46 | AU72: 9 | AV72: 18 | AW72: 17 | AX72: 44 | AY72: 3 | AZ72: 5 | BA72: 8 | BB72: 9 | BC72: 4 | BD72: 10 | BE72: 15 | BF72: 24 | BG72: 39 | BH72: 424 | BI72: 3 | BJ72: 6 | BK72: 7 | BL72: 16 | BM72: 3 | BN72: 7 | BO72: 2 | BP72: 12 | BQ72: دورثان | BR72: فى : انجليزى - محاسبة - | BS72: 2 | BY72: انجليزى - | CA72: محاسبة - | CN72: 154
A73: 64 | B73: 1214 | C73: طالبة قانون مسائى 64 | D73: 9/2 | F73: 627 | G73: 9 | H73: 14 | I73: 14 | J73: 37 | K73: 9 | L73: 8 | M73: 8 | N73: 25 | O73: 5 | P73: 7 | Q73: 5 | R73: 17 | S73: 9 | T73: 2 | U73: 5 | V73: 16 | W73: 9 | X73: 4 | Y73: 12 | Z73: 25 | AA73: 9 | AB73: 16 | AC73: 7 | AD73: 32 | AE73: 9 | AF73: 14 | AG73: 9 | AH73: 32 | AI73: 9 | AJ73: 18 | AK73: 18 | AL73: 45 | AM73: 9 | AN73: 19 | AO73: 14 | AP73: 42 | AQ73: 9 | AR73: 17 | AS73: 18 | AT73: 44 | AU73: 9 | AV73: 18 | AW73: 14 | AX73: 41 | AY73: 3 | AZ73: 5 | BA73: 4 | BB73: 8 | BC73: 5 | BD73: 3 | BE73: 12 | BF73: 16 | BG73: 28 | BH73: 384 | BI73: 3 | BJ73: 6 | BK73: 8 | BL73: 17 | BM73: 3 | BN73: 4 | BO73: 3 | BP73: 10 | BQ73: دورثان | BR73: فى : محاسبة - | BS73: 1 | CA73: محاسبة - | CN73: 149
A74: 65 | B74: 1215 | C74: طالبة قانون مسائى 65 | D74: 9/2 | F74: 628 | G74: غ | H74: غ | I74: غ | J74: =IF($C74="","",SUM(G74,H74,I74)) -> 0 | K74: غ | L74: غ | M74: غ | N74: =IF($C74="","",SUM(K74,L74,M74)) -> 0 | O74: غ | P74: غ | Q74: غ | R74: =IF($C74="","",SUM(O74,P74,Q74)) -> 0 | S74: غ | T74: غ | U74: غ | V74: =IF($C74="","",SUM(S74,T74,U74)) -> 0 | W74: غ | X74: غ | Y74: غ | Z74: =IF($C74="","",SUM(W74,X74,Y74)) -> 0 | AA74: غ | AB74: غ | AC74: غ | AD74: =IF($C74="","",SUM(AA74:AC74)) -> 0 | AE74: غ | AF74: غ | AG74: غ | AH74: =IF($C74="","",SUM(AE74,AF74,AG74)) -> 0 | AI74: غ | AJ74: غ | AK74: غ | AL74: =IF($C74="","",SUM(AI74,AJ74,AK74)) -> 0 | AM74: غ | AN74: غ | AO74: غ | AP74: =IF($C74="","",SUM(AM74,AN74,AO74)) -> 0 | AQ74: غ | AR74: غ | AS74: غ | AT74: =IF($C74="","",SUM(AQ74,AR74,AS74)) -> 0 | AU74: غ | AV74: غ | AW74: غ | AX74: =IF($C74="","",SUM(AU74,AV74,AW74)) -> 0 | AY74: غ | AZ74: غ | BA74: غ | BB74: غ | BC74: غ | BD74: غ | BE74: =IF($C74="","",SUM(AY74,BA74,BC74)) -> 0 | BF74: =IF($C74="","",SUM(AZ74,BB74,BD74)) -> 0 | BG74: =IF($C74="","",SUM(BE74,BF74)) -> 0 | BH74: =IF($C74="","",SUM(J74,N74,R74,V74,Z74,AD74,AH74,AL74,AP74,AT74,AX74,BG74)) -> 0 | BI74: غ | BJ74: غ | BK74: غ | BL74: =IF($C74="","",SUM(BI74,BJ74,BK74)) -> 0 | BM74: غ | BN74: غ | BO74: غ | BP74: =IF($C74="","",SUM(BM74,BN74,BO74)) -> 0 | BQ74: =IF($C74="","",IF(BS74=0,"ناجحة",IF(BS74<=2,"دورثان","راسبة"))) -> راسبة | BR74: =IF($C74="","",IF(BS74=0,"ومنقولة للصف الثالث",IF(BS74>0,"فى : "&CONCATENATE(BX74,BY74,BZ74,CA74,CB74,CC74,CD74,CE74,CF74,CG74,CH74,CI74,CJ74,CK74,CL74),CONCATENATE(BX74,BY74,BZ74,CA74,CB74,CC74,CD74,CE74,CF74,CG74,CH74,CI74,CJ74,CK74,CL74)))) -> فى : عربى - انجليزى - فرنسى - محاسبة - احصاء - اعمال وساطة - قانون تجارى - قانون مدنى - قانون عقوبات - قانون مرافعات - علم نفس - حاسب - مواطنة - دين - مجموع | BS74: =IF($C74="","",COUNTA($BX74:$CL74)-COUNTBLANK($BX74:$CL74)) -> 15 | BX74: =IF($C74="","",IF(OR(I74<$I$9,I74="غ",J74<$J$9),$BX$5&" - ","")) -> عربى - | BY74: =IF($C74="","",IF(OR(M74<$M$9,M74="غ",N74<$N$9),$BY$5&" - ","")) -> انجليزى - | BZ74: =IF($C74="","",IF(OR(Q74<$Q$9,Q74="غ",R74<$R$9),BZ$5&" - ","")) -> فرنسى - | CA74: =IF($C74="","",IF(OR(U74<$U$9,U74="غ",V74<$V$9),CA$5&" - ","")) -> محاسبة - | CB74: =IF($C74="","",IF(OR(Y74<$Y$9,Y74="غ",Z74<$Z$9),CB$5&" - ","")) -> احصاء - | CC74: =IF($C74="","",IF(OR(AC74<$AC$9,AC74="غ",AD74<$AD$9),CC$5&" - ","")) -> اعمال وساطة - | CD74: =IF($C74="","",IF(OR(AG74<$AG$9,AG74="غ",AH74<$AH$9),CD$5&" - ","")) -> قانون تجارى - | CE74: =IF($C74="","",IF(OR(AK74<$AK$9,AK74="غ",AL74<$AL$9),CE$5&" - ","")) -> قانون مدنى - | CF74: =IF($C74="","",IF(OR(AO74<$AO$9,AO74="غ",AP74<$AP$9),CF$5&" - ","")) -> قانون عقوبات - | CG74: =IF($C74="","",IF(OR(AS74<$AS$9,AS74="غ",AT74<$AT$9),CG$5&" - ","")) -> قانون مرافعات - | CH74: =IF($C74="","",IF(OR(AW74<$AW$9,AW74="غ",AX74<$AX$9),CH$5&" - ","")) -> علم نفس - | CI74: =IF($C74="","",IF(OR(BE74<$BE$9,BE74="غ",BF74<$BF$9,BF74="غ",BG74<$BG$9),CI$5&" - ","")) -> حاسب - | CJ74: =IF($C74="","",IF(OR(BK74<$BK$9,BK74="غ",BL74<$BL$9),CJ$5&" - ","")) -> مواطنة - | CK74: =IF($C74="","",IF(OR(BO74<$BO$9,BO74="غ",BP74<$BP$9),CK$5&" - ","")) -> دين - | CL74: =IF($C74="","",IF(BH74<$BH$9,CL$5,"")) -> مجموع | CN74: =IF($C74="","",SUM(H74,L74,P74,T74,X74,AB74,AF74,AJ74,AN74,AR74,AV74,BA74,BB74)) -> 0
A75: 66 | B75: 1216 | C75: طالبة قانون مسائى 66 | D75: 8/2 | F75: 629 | G75: 9 | H75: 13 | I75: 11 | J75: 33 | K75: 9 | L75: 5 | M75: 6 | N75: 20 | O75: 5 | P75: 4 | Q75: 4 | R75: 13 | S75: 9 | T75: 7 | U75: 10 | V75: 26 | W75: 9 | X75: 15 | Y75: 18 | Z75: 42 | AA75: 9 | AB75: 14 | AC75: 13 | AD75: 36 | AE75: 9 | AF75: 17 | AG75: 18 | AH75: 44 | AI75: 9 | AJ75: 14 | AK75: 19 | AL75: 42 | AM75: 9 | AN75: 18 | AO75: 18 | AP75: 45 | AQ75: 9 | AR75: 17 | AS75: 20 | AT75: 46 | AU75: 9 | AV75: 19 | AW75: 18 | AX75: 46 | AY75: 3 | AZ75: 5 | BA75: 5 | BB75: 9 | BC75: 7 | BD75: 9 | BE75: 15 | BF75: 23 | BG75: 38 | BH75: 431 | BI75: 3 | BJ75: 6 | BK75: 7 | BL75: 16 | BM75: 3 | BN75: 5 | BO75: 4 | BP75: 12 | BQ75: ناجحة | BR75: ومنقولة للصف الثالث | BS75: 0 | CN75: 157
A76: 67 | B76: 1217 | C76: طالبة قانون مسائى 67 | D76: 9/2 | F76: 630 | G76: 9 | H76: 6 | I76: 4 | J76: 19 | K76: 9 | L76: 0 | M76: 2 | N76: 11 | O76: 5 | P76: 4 | Q76: 4 | R76: 13 | S76: 9 | T76: 2 | U76: 0 | V76: 11 | W76: 9 | X76: 0 | Y76: 0 | Z76: 9 | AA76: 9 | AB76: 12 | AC76: 5 | AD76: 26 | AE76: 9 | AF76: 10 | AG76: 10 | AH76: 29 | AI76: 9 | AJ76: 10 | AK76: 11 | AL76: 30 | AM76: 9 | AN76: 15 | AO76: 12 | AP76: 36 | AQ76: 9 | AR76: 9 | AS76: 17 | AT76: 35 | AU76: 9 | AV76: 12 | AW76: 7 | AX76: 28 | AY76: 3 | AZ76: 5 | BA76: 4 | BB76: 5 | BC76: 5 | BD76: 5 | BE76: 12 | BF76: 15 | BG76: 27 | BH76: 274 | BI76: 3 | BJ76: 4 | BK76: 5 | BL76: 12 | BM76: 3 | BN76: 6 | BO76: 2 | BP76: 11 | BQ76: راسبة | BR76: فى : عربى - انجليزى - محاسبة - احصاء - مجموع | BS76: 5 | BX76: عربى - | BY76: انجليزى - | CA76: محاسبة - | CB76: احصاء - | CL76: مجموع | CN76: 89
A77: 68 | B77: 1218 | C77: طالبة قانون مسائى 68 | D77: 8/2 | F77: 631 | G77: 9 | H77: 6 | I77: 13 | J77: 28 | K77: 9 | L77: 7 | M77: 5 | N77: 21 | O77: 5 | P77: 5 | Q77: 5 | R77: 15 | S77: 9 | T77: 9 | U77: 7 | V77: 25 | W77: 9 | X77: 2 | Y77: 15 | Z77: 26 | AA77: 9 | AB77: 15 | AC77: 12 | AD77: 36 | AE77: 9 | AF77: 14 | AG77: 15 | AH77: 38 | AI77: 9 | AJ77: 18 | AK77: 18 | AL77: 45 | AM77: 9 | AN77: 16 | AO77: 15 | AP77: 40 | AQ77: 9 | AR77: 18 | AS77: 19 | AT77: 46 | AU77: 9 | AV77: 19 | AW77: 14 | AX77: 42 | AY77: 3 | AZ77: 5 | BA77: 4 | BB77: 9 | BC77: 4 | BD77: 10 | BE77: 11 | BF77: 24 | BG77: 35 | BH77: 397 | BI77: 3 | BJ77: 6 | BK77: 8 | BL77: 17 | BM77: 3 | BN77: 8 | BO77: 3 | BP77: 14 | BQ77: ناجحة | BR77: ومنقولة للصف الثالث | BS77: 0 | CN77: 142
A78: 69 | B78: 1219 | C78: طالبة قانون مسائى 69 | D78: 9/2 | F78: 632 | G78: 9 | H78: 12 | I78: 16 | J78: 37 | K78: 9 | L78: 8 | M78: 6 | N78: 23 | O78: 5 | P78: 4 | Q78: 3 | R78: 12 | S78: 9 | T78: 8 | U78: 8 | V78: 25 | W78: 9 | X78: 4 | Y78: 14 | Z78: 27 | AA78: 9 | AB78: 13 | AC78: 11 | AD78: 33 | AE78: 9 | AF78: 13 | AG78: 16 | AH78: 38 | AI78: 9 | AJ78: 13 | AK78: 16 | AL78: 38 | AM78: 9 | AN78: 18 | AO78: 15 | AP78: 42 | AQ78: 9 | AR78: 16 | AS78: 19 | AT78: 44 | AU78: 9 | AV78: 19 | AW78: 14 | AX78: 42 | AY78: 3 | AZ78: 5 | BA78: 4 | BB78: 6 | BC78: 5 | BD78: 5 | BE78: 12 | BF78: 16 | BG78: 28 | BH78: 389 | BI78: 3 | BJ78: 6 | BK78: 7 | BL78: 16 | BM78: 3 | BN78: 7 | BO78: 4 | BP78: 14 | BQ78: ناجحة | BR78: ومنقولة للصف الثالث | BS78: 0 | CN78: 138
A79: 70 | B79: 1220 | C79: طالبة قانون مسائى 70 | D79: 9/2 | F79: 633 | G79: 9 | H79: 7 | I79: 9 | J79: 25 | K79: 9 | L79: 8 | M79: 5 | N79: 22 | O79: 5 | P79: 4 | Q79: 6 | R79: 15 | S79: 9 | T79: 9 | U79: 7 | V79: 25 | W79: 9 | X79: 2 | Y79: 15 | Z79: 26 | AA79: 9 | AB79: 17 | AC79: 13 | AD79: 39 | AE79: 9 | AF79: 13 | AG79: 17 | AH79: 39 | AI79: 9 | AJ79: 14 | AK79: 18 | AL79: 41 | AM79: 9 | AN79: 16 | AO79: 16 | AP79: 41 | AQ79: 9 | AR79: 17 | AS79: 19 | AT79: 45 | AU79: 9 | AV79: 19 | AW79: 15 | AX79: 43 | AY79: 3 | AZ79: 5 | BA79: 5 | BB79: 9 | BC79: 5 | BD79: 10 | BE79: 13 | BF79: 24 | BG79: 37 | BH79: 398 | BI79: 3 | BJ79: 6 | BK79: 7 | BL79: 16 | BM79: 3 | BN79: 5 | BO79: 3 | BP79: 11 | BQ79: ناجحة | BR79: ومنقولة للصف الثالث | BS79: 0 | CN79: 140
A80: 71 | B80: 1221 | C80: طالبة قانون مسائى 71 | D80: 8/2 | F80: 634 | G80: 9 | H80: 9 | I80: 8 | J80: 26 | K80: 9 | L80: 6 | M80: 6 | N80: 21 | O80: 5 | P80: 4 | Q80: 6 | R80: 15 | S80: 9 | T80: 6 | U80: 4 | V80: 19 | W80: 9 | X80: 9 | Y80: 7 | Z80: 25 | AA80: 9 | AB80: 16 | AC80: 12 | AD80: 37 | AE80: 9 | AF80: 16 | AG80: 17 | AH80: 42 | AI80: 9 | AJ80: 15 | AK80: 18 | AL80: 42 | AM80: 9 | AN80: 18 | AO80: 17 | AP80: 44 | AQ80: 9 | AR80: 16 | AS80: 19 | AT80: 44 | AU80: 9 | AV80: 19 | AW80: 13 | AX80: 41 | AY80: 3 | AZ80: 5 | BA80: 5 | BB80: 5 | BC80: 8 | BD80: 8 | BE80: 16 | BF80: 18 | BG80: 34 | BH80: 390 | BI80: 3 | BJ80: 6 | BK80: 7 | BL80: 16 | BM80: 3 | BN80: 6 | BO80: 4 | BP80: 13 | BQ80: دورثان | BR80: فى : محاسبة - | BS80: 1 | CA80: محاسبة - | CN80: 144
A81: 72 | B81: 1222 | C81: طالبة قانون مسائى 72 | D81: 9/2 | F81: 635 | G81: 9 | H81: 9 | I81: 13 | J81: 31 | K81: 9 | L81: 9 | M81: 5 | N81: 23 | O81: 5 | P81: 4 | Q81: 6 | R81: 15 | S81: 9 | T81: 14 | U81: 11 | V81: 34 | W81: 9 | X81: 9 | Y81: 17 | Z81: 35 | AA81: 9 | AB81: 15 | AC81: 13 | AD81: 37 | AE81: 9 | AF81: 18 | AG81: 16 | AH81: 43 | AI81: 9 | AJ81: 20 | AK81: 18 | AL81: 47 | AM81: 9 | AN81: 20 | AO81: 16 | AP81: 45 | AQ81: 9 | AR81: 18 | AS81: 20 | AT81: 47 | AU81: 9 | AV81: 20 | AW81: 19 | AX81: 48 | AY81: 3 | AZ81: 5 | BA81: 7 | BB81: 11 | BC81: 5 | BD81: 10 | BE81: 15 | BF81: 26 | BG81: 41 | BH81: 446 | BI81: 3 | BJ81: 7 | BK81: 6 | BL81: 16 | BM81: 3 | BN81: 6 | BO81: 4 | BP81: 13 | BQ81: ناجحة | BR81: ومنقولة للصف الثالث | BS81: 0 | CN81: 174
A82: 73 | B82: 1223 | C82: طالبة قانون مسائى 73 | D82: 9/2 | F82: 636 | G82: 9 | H82: 9 | I82: 7 | J82: 25 | K82: 9 | L82: 6 | M82: 5 | N82: 20 | O82: 5 | P82: 2 | Q82: 4 | R82: 11 | S82: 9 | T82: 11 | U82: 5 | V82: 25 | W82: 9 | X82: 2 | Y82: 15 | Z82: 26 | AA82: 9 | AB82: 14 | AC82: 14 | AD82: 37 | AE82: 9 | AF82: 12 | AG82: 16 | AH82: 37 | AI82: 9 | AJ82: 17 | AK82: 15 | AL82: 41 | AM82: 9 | AN82: 19 | AO82: 17 | AP82: 45 | AQ82: 9 | AR82: 13 | AS82: 19 | AT82: 41 | AU82: 9 | AV82: 19 | AW82: 16 | AX82: 44 | AY82: 3 | AZ82: 5 | BA82: 5 | BB82: 10 | BC82: 5 | BD82: 10 | BE82: 13 | BF82: 25 | BG82: 38 | BH82: 390 | BI82: 3 | BJ82: 7 | BK82: 8 | BL82: 18 | BM82: 3 | BN82: 5 | BO82: 2 | BP82: 10 | BQ82: ناجحة | BR82: ومنقولة للصف الثالث | BS82: 0 | CN82: 139
A83: 74 | B83: 1224 | C83: طالبة قانون مسائى 74 | D83: 9/2 | F83: 637 | G83: 9 | H83: 8 | I83: 11 | J83: 28 | K83: 9 | L83: 8 | M83: 6 | N83: 23 | O83: 5 | P83: 5 | Q83: 6 | R83: 16 | S83: 9 | T83: 11 | U83: 5 | V83: 25 | W83: 9 | X83: 10 | Y83: 15 | Z83: 34 | AA83: 9 | AB83: 15 | AC83: 13 | AD83: 37 | AE83: 9 | AF83: 11 | AG83: 16 | AH83: 36 | AI83: 9 | AJ83: 17 | AK83: 18 | AL83: 44 | AM83: 9 | AN83: 16 | AO83: 17 | AP83: 42 | AQ83: 9 | AR83: 16 | AS83: 19 | AT83: 44 | AU83: 9 | AV83: 20 | AW83: 17 | AX83: 46 | AY83: 3 | AZ83: 5 | BA83: 5 | BB83: 9 | BC83: 5 | BD83: 10 | BE83: 13 | BF83: 24 | BG83: 37 | BH83: 412 | BI83: 3 | BJ83: 7 | BK83: 8 | BL83: 18 | BM83: 3 | BN83: 7 | BO83: 3 | BP83: 13 | BQ83: ناجحة | BR83: ومنقولة للصف الثالث | BS83: 0 | CN83: 151
A84: 75 | B84: 1251 | C84: طالبة قانون مسائى 75 | D84: 11/2 | F84: 701 | G84: 9 | H84: 9 | I84: 7 | J84: 25 | K84: 9 | L84: 4 | M84: 8 | N84: 21 | O84: 5 | P84: 6 | Q84: 3 | R84: 14 | S84: 9 | T84: 8 | U84: 8 | V84: 25 | W84: 9 | X84: 5 | Y84: 11 | Z84: 25 | AA84: 9 | AB84: 12 | AC84: 12 | AD84: 33 | AE84: 9 | AF84: 11 | AG84: 14 | AH84: 34 | AI84: 9 | AJ84: 14 | AK84: 12 | AL84: 35 | AM84: 9 | AN84: 16 | AO84: 14 | AP84: 39 | AQ84: 9 | AR84: 14 | AS84: 16 | AT84: 39 | AU84: 9 | AV84: 14 | AW84: 16 | AX84: 39 | AY84: 3 | AZ84: 5 | BA84: 6 | BB84: 5 | BC84: 5 | BD84: 8 | BE84: 14 | BF84: 18 | BG84: 32 | BH84: 361 | BI84: 3 | BJ84: 6 | BK84: 7 | BL84: 16 | BM84: 3 | BN84: 6 | BO84: 2 | BP84: 11 | BQ84: ناجحة | BR84: ومنقولة للصف الثالث | BS84: 0 | CN84: 124
A85: 76 | B85: 1252 | C85: طالبة قانون مسائى 76 | D85: 11/2 | F85: 702 | G85: 9 | H85: 10 | I85: 9 | J85: 28 | K85: 9 | L85: 5 | M85: 10 | N85: 24 | O85: 5 | P85: 5 | Q85: 4 | R85: 14 | S85: 9 | T85: 11 | U85: 10 | V85: 30 | W85: 9 | X85: 5 | Y85: 11 | Z85: 25 | AA85: 9 | AB85: 9 | AC85: 15 | AD85: 33 | AE85: 9 | AF85: 11 | AG85: 18 | AH85: 38 | AI85: 9 | AJ85: 19 | AK85: 15 | AL85: 43 | AM85: 9 | AN85: 18 | AO85: 16 | AP85: 43 | AQ85: 9 | AR85: 15 | AS85: 16 | AT85: 40 | AU85: 9 | AV85: 16 | AW85: 15 | AX85: 40 | AY85: 3 | AZ85: 5 | BA85: 6 | BB85: 10 | BC85: 6 | BD85: 12 | BE85: 15 | BF85: 27 | BG85: 42 | BH85: 400 | BI85: 3 | BJ85: 8 | BK85: 8 | BL85: 19 | BM85: 3 | BN85: 5 | BO85: 3 | BP85: 11 | BQ85: ناجحة | BR85: ومنقولة للصف الثالث | BS85: 0 | CN85: 140
A86: 77 | B86: 1253 | C86: طالبة قانون مسائى 77 | D86: 11/2 | F86: 703 | G86: 9 | H86: 8 | I86: 9 | J86: 26 | K86: 9 | L86: 3 | M86: 9 | N86: 21 | O86: 5 | P86: 6 | Q86: 4 | R86: 15 | S86: 9 | T86: 8 | U86: 8 | V86: 25 | W86: 9 | X86: 4 | Y86: 12 | Z86: 25 | AA86: 9 | AB86: 11 | AC86: 13 | AD86: 33 | AE86: 9 | AF86: 10 | AG86: 16 | AH86: 35 | AI86: 9 | AJ86: 17 | AK86: 17 | AL86: 43 | AM86: 9 | AN86: 18 | AO86: 16 | AP86: 43 | AQ86: 9 | AR86: 15 | AS86: 17 | AT86: 41 | AU86: 9 | AV86: 7 | AW86: 14 | AX86: 30 | AY86: 3 | AZ86: 5 | BA86: 6 | BB86: 5 | BC86: 6 | BD86: 11 | BE86: 15 | BF86: 21 | BG86: 36 | BH86: 373 | BI86: 3 | BJ86: 5 | BK86: 8 | BL86: 16 | BM86: 3 | BN86: 7 | BO86: 5 | BP86: 15 | BQ86: ناجحة | BR86: ومنقولة للصف الثالث | BS86: 0 | CN86: 118
A87: 78 | B87: 1254 | C87: طالبة قانون مسائى 78 | D87: 11/2 | F87: 704 | G87: 9 | H87: 9 | I87: 10 | J87: 28 | K87: 9 | L87: 1 | M87: 10 | N87: 20 | O87: 5 | P87: 6 | Q87: 4 | R87: 15 | S87: 9 | T87: 11 | U87: 9 | V87: 29 | W87: 9 | X87: 6 | Y87: 10 | Z87: 25 | AA87: 9 | AB87: 12 | AC87: 15 | AD87: 36 | AE87: 9 | AF87: 10 | AG87: 17 | AH87: 36 | AI87: 9 | AJ87: 17 | AK87: 19 | AL87: 45 | AM87: 9 | AN87: 16 | AO87: 16 | AP87: 41 | AQ87: 9 | AR87: 15 | AS87: 13 | AT87: 37 | AU87: 9 | AV87: 11 | AW87: 13 | AX87: 33 | AY87: 3 | AZ87: 5 | BA87: 5 | BB87: 9 | BC87: 6 | BD87: 11 | BE87: 14 | BF87: 25 | BG87: 39 | BH87: 384 | BI87: 3 | BJ87: 4 | BK87: 7 | BL87: 14 | BM87: 3 | BN87: 6 | BO87: 4 | BP87: 13 | BQ87: ناجحة | BR87: ومنقولة للصف الثالث | BS87: 0 | CN87: 128
A88: 79 | B88: 1255 | C88: طالبة قانون مسائى 79 | D88: 11/2 | F88: 705 | G88: 9 | H88: 5 | I88: 2 | J88: 16 | K88: 9 | L88: 1 | M88: 10 | N88: 20 | O88: 5 | P88: 6 | Q88: 7 | R88: 18 | S88: 9 | T88: 5 | U88: 5 | V88: 19 | W88: 9 | X88: 4 | Y88: 12 | Z88: 25 | AA88: 9 | AB88: 12 | AC88: 14 | AD88: 35 | AE88: 9 | AF88: 10 | AG88: 9 | AH88: 28 | AI88: 9 | AJ88: 12 | AK88: 15 | AL88: 36 | AM88: 9 | AN88: 13 | AO88: 17 | AP88: 39 | AQ88: 9 | AR88: 15 | AS88: 11 | AT88: 35 | AU88: 9 | AV88: 7 | AW88: 10 | AX88: 26 | AY88: 3 | AZ88: 5 | BA88: 3 | BB88: 9 | BC88: 4 | BD88: 11 | BE88: 10 | BF88: 25 | BG88: 35 | BH88: 332 | BI88: 3 | BJ88: 4 | BK88: 6 | BL88: 13 | BM88: 3 | BN88: 4 | BO88: 3 | BP88: 10 | BQ88: دورثان | BR88: فى : عربى - محاسبة - | BS88: 2 | BX88: عربى - | CA88: محاسبة - | CN88: 102
A89: 80 | B89: 1256 | C89: طالبة قانون مسائى 80 | D89: 11/2 | F89: 706 | G89: غ | H89: غ | I89: غ | J89: 0 | K89: غ | L89: غ | M89: غ | N89: 0 | O89: غ | P89: غ | Q89: غ | R89: 0 | S89: غ | T89: غ | U89: غ | V89: 0 | W89: غ | X89: غ | Y89: غ | Z89: 0 | AA89: غ | AB89: غ | AC89: غ | AD89: 0 | AE89: غ | AF89: غ | AG89: غ | AH89: 0 | AI89: غ | AJ89: غ | AK89: غ | AL89: 0 | AM89: غ | AN89: غ | AO89: غ | AP89: 0 | AQ89: غ | AR89: غ | AS89: غ | AT89: 0 | AU89: 9 | AV89: غ | AW89: غ | AX89: 9 | AY89: غ | AZ89: غ | BA89: غ | BB89: غ | BC89: غ | BD89: غ | BE89: 0 | BF89: 0 | BG89: 0 | BH89: 9 | BI89: غ | BJ89: غ | BK89: غ | BL89: 0 | BM89: غ | BN89: غ | BO89: غ | BP89: 0 | BQ89: راسبة | BR89: فى : عربى - انجليزى - فرنسى - محاسبة - احصاء - اعمال وساطة - قانون تجارى - قانون مدنى - قانون عقوبات - قانون مرافعات - علم نفس - حاسب - مواطنة - دين - مجموع | BS89: 15 | BX89: عربى - | BY89: انجليزى - | BZ89: فرنسى - | CA89: محاسبة - | CB89: احصاء - | CC89: اعمال وساطة - | CD89: قانون تجارى - | CE89: قانون مدنى - | CF89: قانون عقوبات - | CG89: قانون مرافعات - | CH89: علم نفس - | CI89: حاسب - | CJ89: مواطنة - | CK89: دين - | CL89: مجموع | CN89: 0
A90: 81 | B90: 1257 | C90: طالبة قانون مسائى 81 | D90: 11/2 | F90: 707 | G90: 9 | H90: 9 | I90: 7 | J90: 25 | K90: 9 | L90: 2 | M90: 9 | N90: 20 | O90: 5 | P90: 8 | Q90: 4 | R90: 17 | S90: 9 | T90: 11 | U90: 5 | V90: 25 | W90: 9 | X90: 5 | Y90: 12 | Z90: 26 | AA90: 9 | AB90: 12 | AC90: 13 | AD90: 34 | AE90: 9 | AF90: 11 | AG90: 17 | AH90: 37 | AI90: 9 | AJ90: 12 | AK90: 13 | AL90: 34 | AM90: 9 | AN90: 11 | AO90: 18 | AP90: 38 | AQ90: 9 | AR90: 12 | AS90: 13 | AT90: 34 | AU90: 9 | AV90: 12 | AW90: 11 | AX90: 32 | AY90: 3 | AZ90: 5 | BA90: 5 | BB90: 8 | BC90: 6 | BD90: 10 | BE90: 14 | BF90: 23 | BG90: 37 | BH90: 359 | BI90: 3 | BJ90: 5 | BK90: 8 | BL90: 16 | BM90: 3 | BN90: 5 | BO90: 2 | BP90: 10 | BQ90: ناجحة | BR90: ومنقولة للصف الثالث | BS90: 0 | CN90: 118
A91: 82 | B91: 1258 | C91: طالبة قانون مسائى 82 | D91: 11/2 | F91: 708 | G91: 9 | H91: 8 | I91: 8 | J91: 25 | K91: 9 | L91: 3 | M91: 9 | N91: 21 | O91: 5 | P91: 8 | Q91: 4 | R91: 17 | S91: 9 | T91: 6 | U91: 2 | V91: 17 | W91: 9 | X91: 5 | Y91: 11 | Z91: 25 | AA91: 9 | AB91: 14 | AC91: 14 | AD91: 37 | AE91: 9 | AF91: 10 | AG91: 17 | AH91: 36 | AI91: 9 | AJ91: 13 | AK91: 14 | AL91: 36 | AM91: 9 | AN91: 11 | AO91: 16 | AP91: 36 | AQ91: 9 | AR91: 14 | AS91: 19 | AT91: 42 | AU91: 9 | AV91: 13 | AW91: 13 | AX91: 35 | AY91: 3 | AZ91: 5 | BA91: 2 | BB91: 6 | BC91: 6 | BD91: 7 | BE91: 11 | BF91: 18 | BG91: 29 | BH91: 356 | BI91: 3 | BJ91: 5 | BK91: 6 | BL91: 14 | BM91: 3 | BN91: 5 | BO91: 2 | BP91: 10 | BQ91: دورثان | BR91: فى : محاسبة - | BS91: 1 | CA91: محاسبة - | CN91: 113
A92: 83 | B92: 1259 | C92: طالبة قانون مسائى 83 | D92: 11/2 | F92: 709 | G92: 9 | H92: 10 | I92: 7 | J92: 26 | K92: 9 | L92: 3 | M92: 13 | N92: 25 | O92: 5 | P92: 5 | Q92: 6 | R92: 16 | S92: 9 | T92: 10 | U92: 9 | V92: 28 | W92: 9 | X92: 3 | Y92: 14 | Z92: 26 | AA92: 9 | AB92: 9 | AC92: 14 | AD92: 32 | AE92: 9 | AF92: 11 | AG92: 16 | AH92: 36 | AI92: 9 | AJ92: 16 | AK92: 18 | AL92: 43 | AM92: 9 | AN92: 19 | AO92: 17 | AP92: 45 | AQ92: 9 | AR92: 17 | AS92: 18 | AT92: 44 | AU92: 9 | AV92: 14 | AW92: 12 | AX92: 35 | AY92: 3 | AZ92: 5 | BA92: 6 | BB92: 9 | BC92: 5 | BD92: 11 | BE92: 14 | BF92: 25 | BG92: 39 | BH92: 395 | BI92: 3 | BJ92: 6 | BK92: 8 | BL92: 17 | BM92: 3 | BN92: 6 | BO92: 4 | BP92: 13 | BQ92: ناجحة | BR92: ومنقولة للصف الثالث | BS92: 0 | CN92: 132
A93: 84 | B93: 1260 | C93: طالبة قانون مسائى 84 | D93: 11/2 | F93: 710 | G93: 9 | H93: 10 | I93: 11 | J93: 30 | K93: 9 | L93: 3 | M93: 12 | N93: 24 | O93: 5 | P93: 5 | Q93: 6 | R93: 16 | S93: 9 | T93: 12 | U93: 8 | V93: 29 | W93: 9 | X93: 4 | Y93: 14 | Z93: 27 | AA93: 9 | AB93: 10 | AC93: 14 | AD93: 33 | AE93: 9 | AF93: 12 | AG93: 16 | AH93: 37 | AI93: 9 | AJ93: 17 | AK93: 18 | AL93: 44 | AM93: 9 | AN93: 20 | AO93: 16 | AP93: 45 | AQ93: 9 | AR93: 17 | AS93: 13 | AT93: 39 | AU93: 9 | AV93: 17 | AW93: 11 | AX93: 37 | AY93: 3 | AZ93: 5 | BA93: 6 | BB93: 9 | BC93: 5 | BD93: 11 | BE93: 14 | BF93: 25 | BG93: 39 | BH93: 400 | BI93: 3 | BJ93: 8 | BK93: 7 | BL93: 18 | BM93: 3 | BN93: 5 | BO93: 4 | BP93: 12 | BQ93: ناجحة | BR93: ومنقولة للصف الثالث | BS93: 0 | CN93: 142
A94: 85 | B94: 1261 | C94: طالبة قانون مسائى 85 | D94: 11/2 | F94: 711 | G94: 9 | H94: 8 | I94: 8 | J94: 25 | K94: 9 | L94: 5 | M94: 6 | N94: 20 | O94: 5 | P94: 6 | Q94: 6 | R94: 17 | S94: 9 | T94: 9 | U94: 7 | V94: 25 | W94: 9 | X94: 4 | Y94: 12 | Z94: 25 | AA94: 9 | AB94: 15 | AC94: 16 | AD94: 40 | AE94: 9 | AF94: 10 | AG94: 15 | AH94: 34 | AI94: 9 | AJ94: 13 | AK94: 18 | AL94: 40 | AM94: 9 | AN94: 15 | AO94: 15 | AP94: 39 | AQ94: 9 | AR94: 16 | AS94: 10 | AT94: 35 | AU94: 9 | AV94: 10 | AW94: 9 | AX94: 28 | AY94: 3 | AZ94: 5 | BA94: 6 | BB94: 5 | BC94: 6 | BD94: 11 | BE94: 15 | BF94: 21 | BG94: 36 | BH94: 364 | BI94: 3 | BJ94: 4 | BK94: 7 | BL94: 14 | BM94: 3 | BN94: 5 | BO94: 2 | BP94: 10 | BQ94: ناجحة | BR94: ومنقولة للصف الثالث | BS94: 0 | CN94: 122
A95: 86 | B95: 1262 | C95: طالبة قانون مسائى 86 | D95: 11/2 | F95: 712 | G95: 9 | H95: 11 | I95: 5 | J95: 25 | K95: 9 | L95: 1 | M95: 10 | N95: 20 | O95: 5 | P95: 6 | Q95: 4 | R95: 15 | S95: 9 | T95: 3 | U95: 2 | V95: 14 | W95: 9 | X95: 1 | Y95: 9 | Z95: 19 | AA95: 9 | AB95: 11 | AC95: 16 | AD95: 36 | AE95: 9 | AF95: 10 | AG95: 14 | AH95: 33 | AI95: 9 | AJ95: 12 | AK95: 15 | AL95: 36 | AM95: 9 | AN95: 12 | AO95: 15 | AP95: 36 | AQ95: 9 | AR95: 15 | AS95: 11 | AT95: 35 | AU95: 9 | AV95: 7 | AW95: 9 | AX95: 25 | AY95: 3 | AZ95: 5 | BA95: 6 | BB95: 7 | BC95: 4 | BD95: 12 | BE95: 13 | BF95: 24 | BG95: 37 | BH95: 331 | BI95: 3 | BJ95: 6 | BK95: 5 | BL95: 14 | BM95: 3 | BN95: 4 | BO95: 3 | BP95: 10 | BQ95: دورثان | BR95: فى : محاسبة - احصاء - | BS95: 2 | CA95: محاسبة - | CB95: احصاء - | CN95: 102
